Workbook

Sheet Disclaimer
A10: Exploring Liquid Proxies
A12: Introduction and Disclaimer

Sheet Model Description (hidden)
A1: Exploring Liquid Proxies
A3: Model Description

Sheet Inputs (hidden)
A1: Characteristics - Inputs required
B3: Key
C4: Inputs required
C5: Do not change | V5: Do not touch
V6: Valuation List | W6: Redemption List
V7: 1 | W7: Daily
B8: Asset Return Characteristics | V8: 2 | W8: Weekly
V9: 4 | W9: Fortnightly
B10: - Expected return: | E10: Unlisted | F10: Listed Proxy | V10: 6 | W10: Monthly
C11: - Income: | E11: 0.04 | F11: 0.04 | H11: Income from unlisted asset assumed to be accrued into unit price daily. | V11: 12 | W11: Quarterly
C12: - Capital growth: | E12: 0.03 | F12: 0.03 | W12: Semi-Annually
C13: - Total expected return: | E13: =SUM(E11:E12) -> 0.07 | F13: =SUM(F11:F12) -> 0.07 | W13: Annually
C15: Unlisted | D15: Listed Proxy
B16: - Volatility (ann.): | C16: 0.07 | D16: 0.12
B18: - Correlation: | C18: 0.9 | E18: Assumed correlation between the daily returns of unlisted asset and the listed proxy.
B20: - Calculated beta: | C20: =C16/D16*C18 -> 0.525
B23: Portfolio Allocation to Illiquid Assets
B25: Allocation to illiquid assets: | D25: 1
B28: Transaction Frequency
B30: - Transaction frequency (pa): | D30: Daily
B33: Valuation Framework
B35: - Valuation frequency (pa): | D35: 2
B37: Note:
B38: (1) For simplicity we assume a 240 business day year.
B39: (2) For simplicity we assume that there are no distributions.
B40: (2) For this case study, to remove complexity, we do not allow for lagged valuations (this is considered in the Single-Sector - No Proxy example).
B43: Operational Considerations
B45: - Out-of-cycle trigger: | D45: 0.05 | F45: The level of suspected movement in the unlisted asset (based on listed market movements) which triggers an out-of-cycle revaluation.
B48: Trustee concerns
B50: - Trustee is concerned about level of unit price inequity exceeding: | H50: 0.05
B51: - Trustee is highly concerned about level of unit price inequity exceeding: | H51: 0.1
B52: - Trustee is concerned about the unit price gapping by: | H52: 0.06

Sheet Working (hidden)
A1: Workings
A3: Through-time unit price calculations
A6: Redemption Frequency | C6: =IF(Inputs!D30="Daily",1, IF(Inputs!D30="Weekly",5, IF(Inputs!D30="Fortnightly",10,IF(Inputs!D30="Monthly",20,IF(Inputs!D30="Quarterly",60,IF(Inputs!D30="Semi-Annually",120,IF(Inputs!D30="Annually",240))))))) -> 1 | N6: Count (No of OoCRs) | O6: =SUM(O9:O248) -> 0
B7: Day | C7: Redemption Day | D7: Illiquid - Accrued Income | E7: Illiquid Index (Accrued Income) | F7: Illiquid - Expected Capital Growth | G7: Normal Series 1 | H7: Normal Series 2 | I7: Illiquid Dispersion Component | J7: Actual Performance (Hypothetical, Illiquid) | K7: Liquid Dispersion Component | L7: Liquid Performance | M7: Liquid Index | N7: Liquid Index Alert | O7: Out-of-cycle Reval? | P7: Illiquid Theoretical Unit Price | Q7: Illiquid - Actual Unit Price (No OoCR) | R7: Illiquid - Actual Unit Price (Inc. OoCR) | S7: Product - Premium / Discount (No OoCR) | T7: Product - Premium / Discount (Inc. OoCR) | U7: Product - Transactional Premium / Discount (No OoCR) | V7: Product - Transactional Premium / Discount (Inc. OoCR) | W7: Product - Gapping (No OoCR) | X7: Product - Gapping (Inc. OoCR) | Y7: Product - Abs Value Gapping (Inc. OoCR) | Z7: Product - Out-of-cycle revaluations
B8: 0 | C8: =IF(MOD(B8,$C$6)=0,1,0) -> 1 | E8: 100 | M8: 100 | N8: 100 | P8: 100 | Q8: 100 | R8: 100 | S8: =(Q8/P8-1)*Inputs!$D$25 -> 0 | T8: =(R8/P8-1)*Inputs!$D$25 -> 0 | U8: =C8*S8 -> 0 | V8: =C8*T8 -> 0 | W8: 0 | X8: 0 | Y8: =ABS(X8) -> 0
B9: 1 | C9: =IF(MOD(B9,$C$6)=0,1,0) -> 1 | D9: =(1+Inputs!$E$11)^(1/240)-1 -> 0.0001634329919 | E9: =E8*(1+D9) -> 100.0163433 | F9: =(1+Inputs!$E$12)^(1/240)-1 -> 0.0001231692607 | G9: =_xlfn.NORM.S.INV(RAND()) -> -0.586068238 | H9: =_xlfn.NORM.S.INV(RAND()) -> 0.6612210326 | I9: =G9*Inputs!$C$16/SQRT(240) -> -0.002648137946 | J9: =(1+D9)*(1+F9)*(1+I9)-1 -> -0.00236227458 | K9: =(Inputs!$C$18*G9+((1-Inputs!$C$18^2)^(1/2))*H9)*Inputs!$D$16/SQRT(240) -> -0.001853159387 | L9: =Inputs!$F$13/240+K9 -> -0.001561492721 | M9: =M8*(1+L9) -> 99.84385073 | N9: =IF(MOD(B9,(240/Inputs!$D$35))=0,100*(1+Inputs!$C$20*K9),IF(O8=1,100*(1+Inputs!$C$20*L9),N8*(1+Inputs!$C$20*K9))) -> 99.90270913 | O9: =IF((((N9/100-1)*Inputs!$D$25)+1)*100<100*(1-Inputs!$D$45),1,IF((((N9/100-1)*Inputs!$D$25)+1)*100>100*(1+Inputs!$D$45),1,0)) -> 0 | P9: =P8*(1+J9) -> 99.76377254 | Q9: =IF(MOD(B9,(240/Inputs!$D$35))=0,OFFSET(P9,,0,1,1)*(E9/OFFSET(E9,,0,1,1)),Q8*(1+D9)) -> 100.0163433 | R9: =IF(MOD(B9,(240/Inputs!$D$35))=0,OFFSET(P9,,0,1,1)*(E9/OFFSET(E9,,0,1,1)),IF(O9=1,R8*(1+D9)*(N9/100),R8*(1+D9))) -> 100.0163433 | S9: =(Q9/P9-1)*Inputs!$D$25 -> 0.002531688114 | T9: =(R9/P9-1)*Inputs!$D$25 -> 0.002531688114 | U9: =C9*S9 -> 0.002531688114 | V9: =C9*T9 -> 0.002531688114 | W9: =IF(MOD(B9,(240/Inputs!$D$35))=0,S9-S8,0) -> 0 | X9: =IF(MOD(B9,(240/Inputs!$D$35))=0,T9-T8,0) -> 0 | Y9: =ABS(X9) -> 0 | Z9: =IF(O9=0,0,(N9/100-1)*Inputs!$D$25) -> 0
B10: 2 | C10: 1 | D10: =(1+Inputs!$E$11)^(1/240)-1 -> 0.0001634329919 | E10: =E9*(1+D10) -> 100.0326893 | F10: =(1+Inputs!$E$12)^(1/240)-1 -> 0.0001231692607 | G10: =_xlfn.NORM.S.INV(RAND()) -> 1.011376607 | H10: -1.922572789 | I10: =G10*Inputs!$C$16/SQRT(240) -> 0.004569885547 | J10: =(1+D10)*(1+F10)*(1+I10)-1 -> 0.004857817761 | K10: =(Inputs!$C$18*G10+((1-Inputs!$C$18^2)^(1/2))*H10)*Inputs!$D$16/SQRT(240) -> 0.0005593277039 | L10: =Inputs!$F$13/240+K10 -> 0.0008509943706 | M10: =M9*(1+L10) -> 99.92881728 | N10: =IF(MOD(B10,(240/Inputs!$D$35))=0,100*(1+Inputs!$C$20*K10),IF(O9=1,100*(1+Inputs!$C$20*L10),N9*(1+Inputs!$C$20*K10))) -> 99.93204527 | O10: =IF((((N10/100-1)*Inputs!$D$25)+1)*100<100*(1-Inputs!$D$45),1,IF((((N10/100-1)*Inputs!$D$25)+1)*100>100*(1+Inputs!$D$45),1,0)) -> 0 | P10: =P9*(1+J10) -> 100.2484068 | Q10: =IF(MOD(B10,(240/Inputs!$D$35))=0,OFFSET(P10,,0,1,1)*(E10/OFFSET(E10,,0,1,1)),Q9*(1+D10)) -> 100.0326893 | R10: =IF(MOD(B10,(240/Inputs!$D$35))=0,OFFSET(P10,,0,1,1)*(E10/OFFSET(E10,,0,1,1)),IF(O10=1,R9*(1+D10)*(N10/100),R9*(1+D10))) -> 100.0326893 | S10: =(Q10/P10-1)*Inputs!$D$25 -> -0.002151829697 | T10: =(R10/P10-1)*Inputs!$D$25 -> -0.002151829697 | U10: -0.002151829697 | V10: -0.002151829697 | W10: =IF(MOD(B10,(240/Inputs!$D$35))=0,S10-S9,0) -> 0 | X10: =IF(MOD(B10,(240/Inputs!$D$35))=0,T10-T9,0) -> 0 | Y10: =ABS(X10) -> 0 | Z10: =IF(O10=0,0,(N10/100-1)*Inputs!$D$25) -> 0
B11: 3 | C11: 1 | D11: =(1+Inputs!$E$11)^(1/240)-1 -> 0.0001634329919 | E11: 100.0490379 | F11: =(1+Inputs!$E$12)^(1/240)-1 -> 0.0001231692607 | G11: 0.174887598 | H11: -0.4558223408 | I11: =G11*Inputs!$C$16/SQRT(240) -> 0.0007902262135 | J11: 0.001077075093 | K11: =(Inputs!$C$18*G11+((1-Inputs!$C$18^2)^(1/2))*H11)*Inputs!$D$16/SQRT(240) -> -0.0003198271986 | L11: =Inputs!$F$13/240+K11 -> -2.816053191e-05 | M11: 99.92600323 | N11: =IF(MOD(B11,(240/Inputs!$D$35))=0,100*(1+Inputs!$C$20*K11),IF(O10=1,100*(1+Inputs!$C$20*L11),N10*(1+Inputs!$C$20*K11))) -> 99.91526575 | O11: =IF((((N11/100-1)*Inputs!$D$25)+1)*100<100*(1-Inputs!$D$45),1,IF((((N11/100-1)*Inputs!$D$25)+1)*100>100*(1+Inputs!$D$45),1,0)) -> 0 | P11: 100.3563818 | Q11: =IF(MOD(B11,(240/Inputs!$D$35))=0,OFFSET(P11,,0,1,1)*(E11/OFFSET(E11,,0,1,1)),Q10*(1+D11)) -> 100.0490379 | R11: =IF(MOD(B11,(240/Inputs!$D$35))=0,OFFSET(P11,,0,1,1)*(E11/OFFSET(E11,,0,1,1)),IF(O11=1,R10*(1+D11)*(N11/100),R10*(1+D11))) -> 100.0490379 | S11: =(Q11/P11-1)*Inputs!$D$25 -> -0.003062524908 | T11: =(R11/P11-1)*Inputs!$D$25 -> -0.003062524908 | U11: -0.003062524908 | V11: -0.003062524908 | W11: =IF(MOD(B11,(240/Inputs!$D$35))=0,S11-S10,0) -> 0 | X11: =IF(MOD(B11,(240/Inputs!$D$35))=0,T11-T10,0) -> 0 | Y11: 0 | Z11: =IF(O11=0,0,(N11/100-1)*Inputs!$D$25) -> 0
B12: 4 | C12: 1 | D12: =(1+Inputs!$E$11)^(1/240)-1 -> 0.0001634329919 | E12: 100.0653892 | F12: =(1+Inputs!$E$12)^(1/240)-1 -> 0.0001231692607 | G12: 0.7513312754 | H12: 0.1947670829 | I12: =G12*Inputs!$C$16/SQRT(240) -> 0.00339487577 | J12: 0.0036824712 | K12: =(Inputs!$C$18*G12+((1-Inputs!$C$18^2)^(1/2))*H12)*Inputs!$D$16/SQRT(240) -> 0.00589541769 | L12: =Inputs!$F$13/240+K12 -> 0.006187084356 | M12: 100.5442538 | N12: =IF(MOD(B12,(240/Inputs!$D$35))=0,100*(1+Inputs!$C$20*K12),IF(O11=1,100*(1+Inputs!$C$20*L12),N11*(1+Inputs!$C$20*K12))) -> 100.2245129 | O12: =IF((((N12/100-1)*Inputs!$D$25)+1)*100<100*(1-Inputs!$D$45),1,IF((((N12/100-1)*Inputs!$D$25)+1)*100>100*(1+Inputs!$D$45),1,0)) -> 0 | P12: 100.7259413 | Q12: =IF(MOD(B12,(240/Inputs!$D$35))=0,OFFSET(P12,,0,1,1)*(E12/OFFSET(E12,,0,1,1)),Q11*(1+D12)) -> 100.0653892 | R12: =IF(MOD(B12,(240/Inputs!$D$35))=0,OFFSET(P12,,0,1,1)*(E12/OFFSET(E12,,0,1,1)),IF(O12=1,R11*(1+D12)*(N12/100),R11*(1+D12))) -> 100.0653892 | S12: =(Q12/P12-1)*Inputs!$D$25 -> -0.006557914303 | T12: =(R12/P12-1)*Inputs!$D$25 -> -0.006557914303 | U12: -0.006557914303 | V12: -0.006557914303 | W12: =IF(MOD(B12,(240/Inputs!$D$35))=0,S12-S11,0) -> 0 | X12: =IF(MOD(B12,(240/Inputs!$D$35))=0,T12-T11,0) -> 0 | Y12: 0 | Z12: =IF(O12=0,0,(N12/100-1)*Inputs!$D$25) -> 0
B13: 5 | C13: 1 | D13: =(1+Inputs!$E$11)^(1/240)-1 -> 0.0001634329919 | E13: 100.0817432 | F13: =(1+Inputs!$E$12)^(1/240)-1 -> 0.0001231692607 | G13: -0.7586821624 | H13: -0.9261942745 | I13: =G13*Inputs!$C$16/SQRT(240) -> -0.00342809061 | J13: -0.003142450795 | K13: =(Inputs!$C$18*G13+((1-Inputs!$C$18^2)^(1/2))*H13)*Inputs!$D$16/SQRT(240) -> -0.008416245877 | L13: =Inputs!$F$13/240+K13 -> -0.00812457921 | M13: 99.72737409 | N13: =IF(MOD(B13,(240/Inputs!$D$35))=0,100*(1+Inputs!$C$20*K13),IF(O12=1,100*(1+Inputs!$C$20*L13),N12*(1+Inputs!$C$20*K13))) -> 99.78166799 | O13: =IF((((N13/100-1)*Inputs!$D$25)+1)*100<100*(1-Inputs!$D$45),1,IF((((N13/100-1)*Inputs!$D$25)+1)*100>100*(1+Inputs!$D$45),1,0)) -> 0 | P13: 100.409415 | Q13: =IF(MOD(B13,(240/Inputs!$D$35))=0,OFFSET(P13,,0,1,1)*(E13/OFFSET(E13,,0,1,1)),Q12*(1+D13)) -> 100.0817432 | R13: =IF(MOD(B13,(240/Inputs!$D$35))=0,OFFSET(P13,,0,1,1)*(E13/OFFSET(E13,,0,1,1)),IF(O13=1,R12*(1+D13)*(N13/100),R12*(1+D13))) -> 100.0817432 | S13: =(Q13/P13-1)*Inputs!$D$25 -> -0.003263357235 | T13: =(R13/P13-1)*Inputs!$D$25 -> -0.003263357235 | U13: -0.003263357235 | V13: -0.003263357235 | W13: =IF(MOD(B13,(240/Inputs!$D$35))=0,S13-S12,0) -> 0 | X13: =IF(MOD(B13,(240/Inputs!$D$35))=0,T13-T12,0) -> 0 | Y13: 0 | Z13: =IF(O13=0,0,(N13/100-1)*Inputs!$D$25) -> 0
B14: 6 | C14: 1 | D14: =(1+Inputs!$E$11)^(1/240)-1 -> 0.0001634329919 | E14: 100.0980999 | F14: =(1+Inputs!$E$12)^(1/240)-1 -> 0.0001231692607 | G14: 0.5107207837 | H14: 0.0224345759 | I14: =G14*Inputs!$C$16/SQRT(240) -> 0.002307681938 | J14: 0.002594965754 | K14: =(Inputs!$C$18*G14+((1-Inputs!$C$18^2)^(1/2))*H14)*Inputs!$D$16/SQRT(240) -> 0.003636171408 | L14: =Inputs!$F$13/240+K14 -> 0.003927838075 | M14: 100.1190871 | N14: =IF(MOD(B14,(240/Inputs!$D$35))=0,100*(1+Inputs!$C$20*K14),IF(O13=1,100*(1+Inputs!$C$20*L14),N13*(1+Inputs!$C$20*K14))) -> 99.9721502 | O14: =IF((((N14/100-1)*Inputs!$D$25)+1)*100<100*(1-Inputs!$D$45),1,IF((((N14/100-1)*Inputs!$D$25)+1)*100>100*(1+Inputs!$D$45),1,0)) -> 0 | P14: 100.669974 | Q14: =IF(MOD(B14,(240/Inputs!$D$35))=0,OFFSET(P14,,0,1,1)*(E14/OFFSET(E14,,0,1,1)),Q13*(1+D14)) -> 100.0980999 | R14: =IF(MOD(B14,(240/Inputs!$D$35))=0,OFFSET(P14,,0,1,1)*(E14/OFFSET(E14,,0,1,1)),IF(O14=1,R13*(1+D14)*(N14/100),R13*(1+D14))) -> 100.0980999 | S14: =(Q14/P14-1)*Inputs!$D$25 -> -0.005680682162 | T14: =(R14/P14-1)*Inputs!$D$25 -> -0.005680682162 | U14: -0.005680682162 | V14: -0.005680682162 | W14: =IF(MOD(B14,(240/Inputs!$D$35))=0,S14-S13,0) -> 0 | X14: =IF(MOD(B14,(240/Inputs!$D$35))=0,T14-T13,0) -> 0 | Y14: 0 | Z14: =IF(O14=0,0,(N14/100-1)*Inputs!$D$25) -> 0
B15: 7 | C15: 1 | D15: =(1+Inputs!$E$11)^(1/240)-1 -> 0.0001634329919 | E15: 100.1144592 | F15: =(1+Inputs!$E$12)^(1/240)-1 -> 0.0001231692607 | G15: -0.5381746134 | H15: 1.002674158 | I15: =G15*Inputs!$C$16/SQRT(240) -> -0.002431731534 | J15: -0.00214580614 | K15: =(Inputs!$C$18*G15+((1-Inputs!$C$18^2)^(1/2))*H15)*Inputs!$D$16/SQRT(240) -> -0.0003663967669 | L15: =Inputs!$F$13/240+K15 -> -7.473010024e-05 | M15: 100.1116052 | N15: =IF(MOD(B15,(240/Inputs!$D$35))=0,100*(1+Inputs!$C$20*K15),IF(O14=1,100*(1+Inputs!$C$20*L15),N14*(1+Inputs!$C$20*K15))) -> 99.95291972 | O15: =IF((((N15/100-1)*Inputs!$D$25)+1)*100<100*(1-Inputs!$D$45),1,IF((((N15/100-1)*Inputs!$D$25)+1)*100>100*(1+Inputs!$D$45),1,0)) -> 0 | P15: 100.4539557 | Q15: =IF(MOD(B15,(240/Inputs!$D$35))=0,OFFSET(P15,,0,1,1)*(E15/OFFSET(E15,,0,1,1)),Q14*(1+D15)) -> 100.1144592 | R15: =IF(MOD(B15,(240/Inputs!$D$35))=0,OFFSET(P15,,0,1,1)*(E15/OFFSET(E15,,0,1,1)),IF(O15=1,R14*(1+D15)*(N15/100),R14*(1+D15))) -> 100.1144592 | S15: =(Q15/P15-1)*Inputs!$D$25 -> -0.003379623458 | T15: =(R15/P15-1)*Inputs!$D$25 -> -0.003379623458 | U15: -0.003379623458 | V15: -0.003379623458 | W15: =IF(MOD(B15,(240/Inputs!$D$35))=0,S15-S14,0) -> 0 | X15: =IF(MOD(B15,(240/Inputs!$D$35))=0,T15-T14,0) -> 0 | Y15: 0 | Z15: =IF(O15=0,0,(N15/100-1)*Inputs!$D$25) -> 0
B16: 8 | C16: 1 | D16: =(1+Inputs!$E$11)^(1/240)-1 -> 0.0001634329919 | E16: 100.1308212 | F16: =(1+Inputs!$E$12)^(1/240)-1 -> 0.0001231692607 | G16: 1.17935712 | H16: 0.7905451699 | I16: =G16*Inputs!$C$16/SQRT(240) -> 0.005328902234 | J16: 0.005617051999 | K16: =(Inputs!$C$18*G16+((1-Inputs!$C$18^2)^(1/2))*H16)*Inputs!$D$16/SQRT(240) -> 0.01089092258 | L16: =Inputs!$F$13/240+K16 -> 0.01118258924 | M16: 101.2311121 | N16: =IF(MOD(B16,(240/Inputs!$D$35))=0,100*(1+Inputs!$C$20*K16),IF(O15=1,100*(1+Inputs!$C$20*L16),N15*(1+Inputs!$C$20*K16))) -> 100.524424 | O16: =IF((((N16/100-1)*Inputs!$D$25)+1)*100<100*(1-Inputs!$D$45),1,IF((((N16/100-1)*Inputs!$D$25)+1)*100>100*(1+Inputs!$D$45),1,0)) -> 0 | P16: 101.0182108 | Q16: =IF(MOD(B16,(240/Inputs!$D$35))=0,OFFSET(P16,,0,1,1)*(E16/OFFSET(E16,,0,1,1)),Q15*(1+D16)) -> 100.1308212 | R16: =IF(MOD(B16,(240/Inputs!$D$35))=0,OFFSET(P16,,0,1,1)*(E16/OFFSET(E16,,0,1,1)),IF(O16=1,R15*(1+D16)*(N16/100),R15*(1+D16))) -> 100.1308212 | S16: =(Q16/P16-1)*Inputs!$D$25 -> -0.008784452083 | T16: =(R16/P16-1)*Inputs!$D$25 -> -0.008784452083 | U16: -0.008784452083 | V16: -0.008784452083 | W16: =IF(MOD(B16,(240/Inputs!$D$35))=0,S16-S15,0) -> 0 | X16: =IF(MOD(B16,(240/Inputs!$D$35))=0,T16-T15,0) -> 0 | Y16: 0 | Z16: =IF(O16=0,0,(N16/100-1)*Inputs!$D$25) -> 0
B17: 9 | C17: 1 | D17: =(1+Inputs!$E$11)^(1/240)-1 -> 0.0001634329919 | E17: 100.1471859 | F17: =(1+Inputs!$E$12)^(1/240)-1 -> 0.0001231692607 | G17: 3.014492039 | H17: 1.179012382 | I17: =G17*Inputs!$C$16/SQRT(240) -> 0.01362092371 | J17: 0.01391145015 | K17: =(Inputs!$C$18*G17+((1-Inputs!$C$18^2)^(1/2))*H17)*Inputs!$D$16/SQRT(240) -> 0.02499594341 | L17: =Inputs!$F$13/240+K17 -> 0.02528761007 | M17: 103.791005 | N17: =IF(MOD(B17,(240/Inputs!$D$35))=0,100*(1+Inputs!$C$20*K17),IF(O16=1,100*(1+Inputs!$C$20*L17),N16*(1+Inputs!$C$20*K17))) -> 101.8435929 | O17: =IF((((N17/100-1)*Inputs!$D$25)+1)*100<100*(1-Inputs!$D$45),1,IF((((N17/100-1)*Inputs!$D$25)+1)*100>100*(1+Inputs!$D$45),1,0)) -> 0 | P17: 102.4235206 | Q17: =IF(MOD(B17,(240/Inputs!$D$35))=0,OFFSET(P17,,0,1,1)*(E17/OFFSET(E17,,0,1,1)),Q16*(1+D17)) -> 100.1471859 | R17: =IF(MOD(B17,(240/Inputs!$D$35))=0,OFFSET(P17,,0,1,1)*(E17/OFFSET(E17,,0,1,1)),IF(O17=1,R16*(1+D17)*(N17/100),R16*(1+D17))) -> 100.1471859 | S17: =(Q17/P17-1)*Inputs!$D$25 -> -0.02222472673 | T17: =(R17/P17-1)*Inputs!$D$25 -> -0.02222472673 | U17: -0.02222472673 | V17: -0.02222472673 | W17: =IF(MOD(B17,(240/Inputs!$D$35))=0,S17-S16,0) -> 0 | X17: =IF(MOD(B17,(240/Inputs!$D$35))=0,T17-T16,0) -> 0 | Y17: 0 | Z17: =IF(O17=0,0,(N17/100-1)*Inputs!$D$25) -> 0
B18: 10 | C18: 1 | D18: =(1+Inputs!$E$11)^(1/240)-1 -> 0.0001634329919 | E18: 100.1635532 | F18: =(1+Inputs!$E$12)^(1/240)-1 -> 0.0001231692607 | G18: 0.1282438709 | H18: -0.7160821841 | I18: =G18*Inputs!$C$16/SQRT(240) -> 0.0005794674391 | J18: 0.0008662559099 | K18: =(Inputs!$C$18*G18+((1-Inputs!$C$18^2)^(1/2))*H18)*Inputs!$D$16/SQRT(240) -> -0.001523736248 | L18: =Inputs!$F$13/240+K18 -> -0.001232069581 | M18: 103.6631273 | N18: =IF(MOD(B18,(240/Inputs!$D$35))=0,100*(1+Inputs!$C$20*K18),IF(O17=1,100*(1+Inputs!$C$20*L18),N17*(1+Inputs!$C$20*K18))) -> 101.762122 | O18: =IF((((N18/100-1)*Inputs!$D$25)+1)*100<100*(1-Inputs!$D$45),1,IF((((N18/100-1)*Inputs!$D$25)+1)*100>100*(1+Inputs!$D$45),1,0)) -> 0 | P18: 102.5122456 | Q18: =IF(MOD(B18,(240/Inputs!$D$35))=0,OFFSET(P18,,0,1,1)*(E18/OFFSET(E18,,0,1,1)),Q17*(1+D18)) -> 100.1635532 | R18: =IF(MOD(B18,(240/Inputs!$D$35))=0,OFFSET(P18,,0,1,1)*(E18/OFFSET(E18,,0,1,1)),IF(O18=1,R17*(1+D18)*(N18/100),R17*(1+D18))) -> 100.1635532 | S18: =(Q18/P18-1)*Inputs!$D$25 -> -0.02291133483 | T18: =(R18/P18-1)*Inputs!$D$25 -> -0.02291133483 | U18: -0.02291133483 | V18: -0.02291133483 | W18: =IF(MOD(B18,(240/Inputs!$D$35))=0,S18-S17,0) -> 0 | X18: =IF(MOD(B18,(240/Inputs!$D$35))=0,T18-T17,0) -> 0 | Y18: 0 | Z18: =IF(O18=0,0,(N18/100-1)*Inputs!$D$25) -> 0
B19: 11 | C19: 1 | D19: =(1+Inputs!$E$11)^(1/240)-1 -> 0.0001634329919 | E19: 100.1799233 | F19: =(1+Inputs!$E$12)^(1/240)-1 -> 0.0001231692607 | G19: 0.2181487 | H19: -1.460087636 | I19: =G19*Inputs!$C$16/SQRT(240) -> 0.0009857006623 | J19: 0.001272605569 | K19: =(Inputs!$C$18*G19+((1-Inputs!$C$18^2)^(1/2))*H19)*Inputs!$D$16/SQRT(240) -> -0.003409027947 | L19: =Inputs!$F$13/240+K19 -> -0.003117361281 | M19: 103.3399718 | N19: =IF(MOD(B19,(240/Inputs!$D$35))=0,100*(1+Inputs!$C$20*K19),IF(O18=1,100*(1+Inputs!$C$20*L19),N18*(1+Inputs!$C$20*K19))) -> 101.5799943 | O19: =IF((((N19/100-1)*Inputs!$D$25)+1)*100<100*(1-Inputs!$D$45),1,IF((((N19/100-1)*Inputs!$D$25)+1)*100>100*(1+Inputs!$D$45),1,0)) -> 0 | P19: 102.6427033 | Q19: =IF(MOD(B19,(240/Inputs!$D$35))=0,OFFSET(P19,,0,1,1)*(E19/OFFSET(E19,,0,1,1)),Q18*(1+D19)) -> 100.1799233 | R19: =IF(MOD(B19,(240/Inputs!$D$35))=0,OFFSET(P19,,0,1,1)*(E19/OFFSET(E19,,0,1,1)),IF(O19=1,R18*(1+D19)*(N19/100),R18*(1+D19))) -> 100.1799233 | S19: =(Q19/P19-1)*Inputs!$D$25 -> -0.02399371733 | T19: =(R19/P19-1)*Inputs!$D$25 -> -0.02399371733 | U19: -0.02399371733 | V19: -0.02399371733 | W19: =IF(MOD(B19,(240/Inputs!$D$35))=0,S19-S18,0) -> 0 | X19: =IF(MOD(B19,(240/Inputs!$D$35))=0,T19-T18,0) -> 0 | Y19: 0 | Z19: =IF(O19=0,0,(N19/100-1)*Inputs!$D$25) -> 0
B20: 12 | C20: 1 | D20: =(1+Inputs!$E$11)^(1/240)-1 -> 0.0001634329919 | E20: 100.196296 | F20: =(1+Inputs!$E$12)^(1/240)-1 -> 0.0001231692607 | G20: -1.766019752 | H20: -1.134234281 | I20: =G20*Inputs!$C$16/SQRT(240) -> -0.007979725937 | J20: -0.007695390722 | K20: =(Inputs!$C$18*G20+((1-Inputs!$C$18^2)^(1/2))*H20)*Inputs!$D$16/SQRT(240) -> -0.01614119286 | L20: =Inputs!$F$13/240+K20 -> -0.01584952619 | M20: 101.7020823 | N20: =IF(MOD(B20,(240/Inputs!$D$35))=0,100*(1+Inputs!$C$20*K20),IF(O19=1,100*(1+Inputs!$C$20*L20),N19*(1+Inputs!$C$20*K20))) -> 100.7191926 | O20: =IF((((N20/100-1)*Inputs!$D$25)+1)*100<100*(1-Inputs!$D$45),1,IF((((N20/100-1)*Inputs!$D$25)+1)*100>100*(1+Inputs!$D$45),1,0)) -> 0 | P20: 101.8528276 | Q20: =IF(MOD(B20,(240/Inputs!$D$35))=0,OFFSET(P20,,0,1,1)*(E20/OFFSET(E20,,0,1,1)),Q19*(1+D20)) -> 100.196296 | R20: =IF(MOD(B20,(240/Inputs!$D$35))=0,OFFSET(P20,,0,1,1)*(E20/OFFSET(E20,,0,1,1)),IF(O20=1,R19*(1+D20)*(N20/100),R19*(1+D20))) -> 100.196296 | S20: =(Q20/P20-1)*Inputs!$D$25 -> -0.01626397261 | T20: =(R20/P20-1)*Inputs!$D$25 -> -0.01626397261 | U20: -0.01626397261 | V20: -0.01626397261 | W20: =IF(MOD(B20,(240/Inputs!$D$35))=0,S20-S19,0) -> 0 | X20: =IF(MOD(B20,(240/Inputs!$D$35))=0,T20-T19,0) -> 0 | Y20: 0 | Z20: =IF(O20=0,0,(N20/100-1)*Inputs!$D$25) -> 0
B21: 13 | C21: 1 | D21: =(1+Inputs!$E$11)^(1/240)-1 -> 0.0001634329919 | E21: 100.2126714 | F21: =(1+Inputs!$E$12)^(1/240)-1 -> 0.0001231692607 | G21: 0.5300614486 | H21: 1.512788358 | I21: =G21*Inputs!$C$16/SQRT(240) -> 0.002395072357 | J21: 0.002682381221 | K21: =(Inputs!$C$18*G21+((1-Inputs!$C$18^2)^(1/2))*H21)*Inputs!$D$16/SQRT(240) -> 0.008803015864 | L21: =Inputs!$F$13/240+K21 -> 0.00909468253 | M21: 102.6270304 | N21: =IF(MOD(B21,(240/Inputs!$D$35))=0,100*(1+Inputs!$C$20*K21),IF(O20=1,100*(1+Inputs!$C$20*L21),N20*(1+Inputs!$C$20*K21))) -> 101.1846747 | O21: =IF((((N21/100-1)*Inputs!$D$25)+1)*100<100*(1-Inputs!$D$45),1,IF((((N21/100-1)*Inputs!$D$25)+1)*100>100*(1+Inputs!$D$45),1,0)) -> 0 | P21: 102.1260357 | Q21: =IF(MOD(B21,(240/Inputs!$D$35))=0,OFFSET(P21,,0,1,1)*(E21/OFFSET(E21,,0,1,1)),Q20*(1+D21)) -> 100.2126714 | R21: =IF(MOD(B21,(240/Inputs!$D$35))=0,OFFSET(P21,,0,1,1)*(E21/OFFSET(E21,,0,1,1)),IF(O21=1,R20*(1+D21)*(N21/100),R20*(1+D21))) -> 100.2126714 | S21: =(Q21/P21-1)*Inputs!$D$25 -> -0.01873532363 | T21: =(R21/P21-1)*Inputs!$D$25 -> -0.01873532363 | U21: -0.01873532363 | V21: -0.01873532363 | W21: =IF(MOD(B21,(240/Inputs!$D$35))=0,S21-S20,0) -> 0 | X21: =IF(MOD(B21,(240/Inputs!$D$35))=0,T21-T20,0) -> 0 | Y21: 0 | Z21: =IF(O21=0,0,(N21/100-1)*Inputs!$D$25) -> 0
B22: 14 | C22: 1 | D22: =(1+Inputs!$E$11)^(1/240)-1 -> 0.0001634329919 | E22: 100.2290494 | F22: =(1+Inputs!$E$12)^(1/240)-1 -> 0.0001231692607 | G22: 0.3322309657 | H22: -1.213113329 | I22: =G22*Inputs!$C$16/SQRT(240) -> 0.001501179164 | J22: 0.001788231818 | K22: =(Inputs!$C$18*G22+((1-Inputs!$C$18^2)^(1/2))*H22)*Inputs!$D$16/SQRT(240) -> -0.001779837025 | L22: =Inputs!$F$13/240+K22 -> -0.001488170358 | M22: 102.4743039 | N22: =IF(MOD(B22,(240/Inputs!$D$35))=0,100*(1+Inputs!$C$20*K22),IF(O21=1,100*(1+Inputs!$C$20*L22),N21*(1+Inputs!$C$20*K22))) -> 101.0901263 | O22: =IF((((N22/100-1)*Inputs!$D$25)+1)*100<100*(1-Inputs!$D$45),1,IF((((N22/100-1)*Inputs!$D$25)+1)*100>100*(1+Inputs!$D$45),1,0)) -> 0 | P22: 102.3086607 | Q22: =IF(MOD(B22,(240/Inputs!$D$35))=0,OFFSET(P22,,0,1,1)*(E22/OFFSET(E22,,0,1,1)),Q21*(1+D22)) -> 100.2290494 | R22: =IF(MOD(B22,(240/Inputs!$D$35))=0,OFFSET(P22,,0,1,1)*(E22/OFFSET(E22,,0,1,1)),IF(O22=1,R21*(1+D22)*(N22/100),R21*(1+D22))) -> 100.2290494 | S22: =(Q22/P22-1)*Inputs!$D$25 -> -0.02032683533 | T22: =(R22/P22-1)*Inputs!$D$25 -> -0.02032683533 | U22: -0.02032683533 | V22: -0.02032683533 | W22: =IF(MOD(B22,(240/Inputs!$D$35))=0,S22-S21,0) -> 0 | X22: =IF(MOD(B22,(240/Inputs!$D$35))=0,T22-T21,0) -> 0 | Y22: 0 | Z22: =IF(O22=0,0,(N22/100-1)*Inputs!$D$25) -> 0
B23: 15 | C23: 1 | D23: =(1+Inputs!$E$11)^(1/240)-1 -> 0.0001634329919 | E23: 100.2454301 | F23: =(1+Inputs!$E$12)^(1/240)-1 -> 0.0001231692607 | G23: 0.7276650406 | H23: 0.6491242567 | I23: =G23*Inputs!$C$16/SQRT(240) -> 0.003287940348 | J23: 0.003575505128 | K23: =(Inputs!$C$18*G23+((1-Inputs!$C$18^2)^(1/2))*H23)*Inputs!$D$16/SQRT(240) -> 0.007264517993 | L23: =Inputs!$F$13/240+K23 -> 0.00755618466 | M23: 103.2486187 | N23: =IF(MOD(B23,(240/Inputs!$D$35))=0,100*(1+Inputs!$C$20*K23),IF(O22=1,100*(1+Inputs!$C$20*L23),N22*(1+Inputs!$C$20*K23))) -> 101.4756711 | O23: =IF((((N23/100-1)*Inputs!$D$25)+1)*100<100*(1-Inputs!$D$45),1,IF((((N23/100-1)*Inputs!$D$25)+1)*100>100*(1+Inputs!$D$45),1,0)) -> 0 | P23: 102.6744659 | Q23: =IF(MOD(B23,(240/Inputs!$D$35))=0,OFFSET(P23,,0,1,1)*(E23/OFFSET(E23,,0,1,1)),Q22*(1+D23)) -> 100.2454301 | R23: =IF(MOD(B23,(240/Inputs!$D$35))=0,OFFSET(P23,,0,1,1)*(E23/OFFSET(E23,,0,1,1)),IF(O23=1,R22*(1+D23)*(N23/100),R22*(1+D23))) -> 100.2454301 | S23: =(Q23/P23-1)*Inputs!$D$25 -> -0.02365764152 | T23: =(R23/P23-1)*Inputs!$D$25 -> -0.02365764152 | U23: -0.02365764152 | V23: -0.02365764152 | W23: =IF(MOD(B23,(240/Inputs!$D$35))=0,S23-S22,0) -> 0 | X23: =IF(MOD(B23,(240/Inputs!$D$35))=0,T23-T22,0) -> 0 | Y23: 0 | Z23: =IF(O23=0,0,(N23/100-1)*Inputs!$D$25) -> 0
B24: 16 | C24: 1 | D24: =(1+Inputs!$E$11)^(1/240)-1 -> 0.0001634329919 | E24: 100.2618136 | F24: =(1+Inputs!$E$12)^(1/240)-1 -> 0.0001231692607 | G24: 1.671866142 | H24: -0.8096463132 | I24: =G24*Inputs!$C$16/SQRT(240) -> 0.007554294681 | J24: 0.007843082293 | K24: =(Inputs!$C$18*G24+((1-Inputs!$C$18^2)^(1/2))*H24)*Inputs!$D$16/SQRT(240) -> 0.008921516923 | L24: =Inputs!$F$13/240+K24 -> 0.009213183589 | M24: 104.1998671 | N24: =IF(MOD(B24,(240/Inputs!$D$35))=0,100*(1+Inputs!$C$20*K24),IF(O23=1,100*(1+Inputs!$C$20*L24),N23*(1+Inputs!$C$20*K24))) -> 101.9509625 | O24: =IF((((N24/100-1)*Inputs!$D$25)+1)*100<100*(1-Inputs!$D$45),1,IF((((N24/100-1)*Inputs!$D$25)+1)*100>100*(1+Inputs!$D$45),1,0)) -> 0 | P24: 103.4797501 | Q24: =IF(MOD(B24,(240/Inputs!$D$35))=0,OFFSET(P24,,0,1,1)*(E24/OFFSET(E24,,0,1,1)),Q23*(1+D24)) -> 100.2618136 | R24: =IF(MOD(B24,(240/Inputs!$D$35))=0,OFFSET(P24,,0,1,1)*(E24/OFFSET(E24,,0,1,1)),IF(O24=1,R23*(1+D24)*(N24/100),R23*(1+D24))) -> 100.2618136 | S24: =(Q24/P24-1)*Inputs!$D$25 -> -0.0310972589 | T24: =(R24/P24-1)*Inputs!$D$25 -> -0.0310972589 | U24: -0.0310972589 | V24: -0.0310972589 | W24: =IF(MOD(B24,(240/Inputs!$D$35))=0,S24-S23,0) -> 0 | X24: =IF(MOD(B24,(240/Inputs!$D$35))=0,T24-T23,0) -> 0 | Y24: 0 | Z24: =IF(O24=0,0,(N24/100-1)*Inputs!$D$25) -> 0
B25: 17 | C25: 1 | D25: =(1+Inputs!$E$11)^(1/240)-1 -> 0.0001634329919 | E25: 100.2781996 | F25: =(1+Inputs!$E$12)^(1/240)-1 -> 0.0001231692607 | G25: 0.1928200133 | H25: 0.2409759455 | I25: =G25*Inputs!$C$16/SQRT(240) -> 0.0008712534835 | J25: 0.001158125587 | K25: =(Inputs!$C$18*G25+((1-Inputs!$C$18^2)^(1/2))*H25)*Inputs!$D$16/SQRT(240) -> 0.002157848096 | L25: =Inputs!$F$13/240+K25 -> 0.002449514763 | M25: 104.4551063 | N25: =IF(MOD(B25,(240/Inputs!$D$35))=0,100*(1+Inputs!$C$20*K25),IF(O24=1,100*(1+Inputs!$C$20*L25),N24*(1+Inputs!$C$20*K25))) -> 102.0664597 | O25: =IF((((N25/100-1)*Inputs!$D$25)+1)*100<100*(1-Inputs!$D$45),1,IF((((N25/100-1)*Inputs!$D$25)+1)*100>100*(1+Inputs!$D$45),1,0)) -> 0 | P25: 103.5995927 | Q25: =IF(MOD(B25,(240/Inputs!$D$35))=0,OFFSET(P25,,0,1,1)*(E25/OFFSET(E25,,0,1,1)),Q24*(1+D25)) -> 100.2781996 | R25: =IF(MOD(B25,(240/Inputs!$D$35))=0,OFFSET(P25,,0,1,1)*(E25/OFFSET(E25,,0,1,1)),IF(O25=1,R24*(1+D25)*(N25/100),R24*(1+D25))) -> 100.2781996 | S25: =(Q25/P25-1)*Inputs!$D$25 -> -0.03205990442 | T25: =(R25/P25-1)*Inputs!$D$25 -> -0.03205990442 | U25: -0.03205990442 | V25: -0.03205990442 | W25: =IF(MOD(B25,(240/Inputs!$D$35))=0,S25-S24,0) -> 0 | X25: =IF(MOD(B25,(240/Inputs!$D$35))=0,T25-T24,0) -> 0 | Y25: 0 | Z25: =IF(O25=0,0,(N25/100-1)*Inputs!$D$25) -> 0
B26: 18 | C26: 1 | D26: =(1+Inputs!$E$11)^(1/240)-1 -> 0.0001634329919 | E26: 100.2945884 | F26: =(1+Inputs!$E$12)^(1/240)-1 -> 0.0001231692607 | G26: -0.2175703357 | H26: -1.13731777 | I26: =G26*Inputs!$C$16/SQRT(240) -> -0.0009830873346 | J26: -0.000696746727 | K26: =(Inputs!$C$18*G26+((1-Inputs!$C$18^2)^(1/2))*H26)*Inputs!$D$16/SQRT(240) -> -0.005356790075 | L26: =Inputs!$F$13/240+K26 -> -0.005065123408 | M26: 103.9260283 | N26: =IF(MOD(B26,(240/Inputs!$D$35))=0,100*(1+Inputs!$C$20*K26),IF(O25=1,100*(1+Inputs!$C$20*L26),N25*(1+Inputs!$C$20*K26))) -> 101.7794167 | O26: =IF((((N26/100-1)*Inputs!$D$25)+1)*100<100*(1-Inputs!$D$45),1,IF((((N26/100-1)*Inputs!$D$25)+1)*100>100*(1+Inputs!$D$45),1,0)) -> 0 | P26: 103.52741 | Q26: =IF(MOD(B26,(240/Inputs!$D$35))=0,OFFSET(P26,,0,1,1)*(E26/OFFSET(E26,,0,1,1)),Q25*(1+D26)) -> 100.2945884 | R26: =IF(MOD(B26,(240/Inputs!$D$35))=0,OFFSET(P26,,0,1,1)*(E26/OFFSET(E26,,0,1,1)),IF(O26=1,R25*(1+D26)*(N26/100),R25*(1+D26))) -> 100.2945884 | S26: =(Q26/P26-1)*Inputs!$D$25 -> -0.03122672146 | T26: =(R26/P26-1)*Inputs!$D$25 -> -0.03122672146 | U26: -0.03122672146 | V26: -0.03122672146 | W26: =IF(MOD(B26,(240/Inputs!$D$35))=0,S26-S25,0) -> 0 | X26: =IF(MOD(B26,(240/Inputs!$D$35))=0,T26-T25,0) -> 0 | Y26: 0 | Z26: =IF(O26=0,0,(N26/100-1)*Inputs!$D$25) -> 0
B27: 19 | C27: 1 | D27: =(1+Inputs!$E$11)^(1/240)-1 -> 0.0001634329919 | E27: 100.3109799 | F27: =(1+Inputs!$E$12)^(1/240)-1 -> 0.0001231692607 | G27: 1.278415878 | H27: -0.5863444171 | I27: =G27*Inputs!$C$16/SQRT(240) -> 0.005776497305 | J27: 0.006064775361 | K27: =(Inputs!$C$18*G27+((1-Inputs!$C$18^2)^(1/2))*H27)*Inputs!$D$16/SQRT(240) -> 0.006932583521 | L27: =Inputs!$F$13/240+K27 -> 0.007224250188 | M27: 104.6768159 | N27: =IF(MOD(B27,(240/Inputs!$D$35))=0,100*(1+Inputs!$C$20*K27),IF(O26=1,100*(1+Inputs!$C$20*L27),N26*(1+Inputs!$C$20*K27))) -> 102.1498537 | O27: =IF((((N27/100-1)*Inputs!$D$25)+1)*100<100*(1-Inputs!$D$45),1,IF((((N27/100-1)*Inputs!$D$25)+1)*100>100*(1+Inputs!$D$45),1,0)) -> 0 | P27: 104.1552805 | Q27: =IF(MOD(B27,(240/Inputs!$D$35))=0,OFFSET(P27,,0,1,1)*(E27/OFFSET(E27,,0,1,1)),Q26*(1+D27)) -> 100.3109799 | R27: =IF(MOD(B27,(240/Inputs!$D$35))=0,OFFSET(P27,,0,1,1)*(E27/OFFSET(E27,,0,1,1)),IF(O27=1,R26*(1+D27)*(N27/100),R26*(1+D27))) -> 100.3109799 | S27: =(Q27/P27-1)*Inputs!$D$25 -> -0.03690932057 | T27: =(R27/P27-1)*Inputs!$D$25 -> -0.03690932057 | U27: -0.03690932057 | V27: -0.03690932057 | W27: =IF(MOD(B27,(240/Inputs!$D$35))=0,S27-S26,0) -> 0 | X27: =IF(MOD(B27,(240/Inputs!$D$35))=0,T27-T26,0) -> 0 | Y27: 0 | Z27: =IF(O27=0,0,(N27/100-1)*Inputs!$D$25) -> 0
B28: 20 | C28: 1 | D28: =(1+Inputs!$E$11)^(1/240)-1 -> 0.0001634329919 | E28: 100.327374 | F28: =(1+Inputs!$E$12)^(1/240)-1 -> 0.0001231692607 | G28: -0.4035577811 | H28: -1.046607639 | I28: =G28*Inputs!$C$16/SQRT(240) -> -0.001823467993 | J28: -0.001537368257 | K28: =(Inputs!$C$18*G28+((1-Inputs!$C$18^2)^(1/2))*H28)*Inputs!$D$16/SQRT(240) -> -0.006347104721 | L28: =Inputs!$F$13/240+K28 -> -0.006055438055 | M28: 104.0429519 | N28: =IF(MOD(B28,(240/Inputs!$D$35))=0,100*(1+Inputs!$C$20*K28),IF(O27=1,100*(1+Inputs!$C$20*L28),N27*(1+Inputs!$C$20*K28))) -> 101.8094669 | O28: =IF((((N28/100-1)*Inputs!$D$25)+1)*100<100*(1-Inputs!$D$45),1,IF((((N28/100-1)*Inputs!$D$25)+1)*100>100*(1+Inputs!$D$45),1,0)) -> 0 | P28: 103.9951555 | Q28: =IF(MOD(B28,(240/Inputs!$D$35))=0,OFFSET(P28,,0,1,1)*(E28/OFFSET(E28,,0,1,1)),Q27*(1+D28)) -> 100.327374 | R28: =IF(MOD(B28,(240/Inputs!$D$35))=0,OFFSET(P28,,0,1,1)*(E28/OFFSET(E28,,0,1,1)),IF(O28=1,R27*(1+D28)*(N28/100),R27*(1+D28))) -> 100.327374 | S28: =(Q28/P28-1)*Inputs!$D$25 -> -0.03526877261 | T28: =(R28/P28-1)*Inputs!$D$25 -> -0.03526877261 | U28: -0.03526877261 | V28: -0.03526877261 | W28: =IF(MOD(B28,(240/Inputs!$D$35))=0,S28-S27,0) -> 0 | X28: =IF(MOD(B28,(240/Inputs!$D$35))=0,T28-T27,0) -> 0 | Y28: 0 | Z28: =IF(O28=0,0,(N28/100-1)*Inputs!$D$25) -> 0
B29: 21 | C29: 1 | D29: =(1+Inputs!$E$11)^(1/240)-1 -> 0.0001634329919 | E29: 100.3437708 | F29: =(1+Inputs!$E$12)^(1/240)-1 -> 0.0001231692607 | G29: -0.4960669789 | H29: -1.111834821 | I29: =G29*Inputs!$C$16/SQRT(240) -> -0.002241469006 | J29: -0.001955489078 | K29: =(Inputs!$C$18*G29+((1-Inputs!$C$18^2)^(1/2))*H29)*Inputs!$D$16/SQRT(240) -> -0.007212252883 | L29: =Inputs!$F$13/240+K29 -> -0.006920586216 | M29: 103.3229137 | N29: =IF(MOD(B29,(240/Inputs!$D$35))=0,100*(1+Inputs!$C$20*K29),IF(O28=1,100*(1+Inputs!$C$20*L29),N28*(1+Inputs!$C$20*K29))) -> 101.4239722 | O29: =IF((((N29/100-1)*Inputs!$D$25)+1)*100<100*(1-Inputs!$D$45),1,IF((((N29/100-1)*Inputs!$D$25)+1)*100>100*(1+Inputs!$D$45),1,0)) -> 0 | P29: 103.7917941 | Q29: =IF(MOD(B29,(240/Inputs!$D$35))=0,OFFSET(P29,,0,1,1)*(E29/OFFSET(E29,,0,1,1)),Q28*(1+D29)) -> 100.3437708 | R29: =IF(MOD(B29,(240/Inputs!$D$35))=0,OFFSET(P29,,0,1,1)*(E29/OFFSET(E29,,0,1,1)),IF(O29=1,R28*(1+D29)*(N29/100),R28*(1+D29))) -> 100.3437708 | S29: =(Q29/P29-1)*Inputs!$D$25 -> -0.0332205771 | T29: =(R29/P29-1)*Inputs!$D$25 -> -0.0332205771 | U29: -0.0332205771 | V29: -0.0332205771 | W29: =IF(MOD(B29,(240/Inputs!$D$35))=0,S29-S28,0) -> 0 | X29: =IF(MOD(B29,(240/Inputs!$D$35))=0,T29-T28,0) -> 0 | Y29: 0 | Z29: =IF(O29=0,0,(N29/100-1)*Inputs!$D$25) -> 0
B30: 22 | C30: 1 | D30: =(1+Inputs!$E$11)^(1/240)-1 -> 0.0001634329919 | E30: 100.3601703 | F30: =(1+Inputs!$E$12)^(1/240)-1 -> 0.0001231692607 | G30: 1.174607576 | H30: 1.436220236 | I30: =G30*Inputs!$C$16/SQRT(240) -> 0.00530744151 | J30: 0.005595585124 | K30: =(Inputs!$C$18*G30+((1-Inputs!$C$18^2)^(1/2))*H30)*Inputs!$D$16/SQRT(240) -> 0.01303786168 | L30: =Inputs!$F$13/240+K30 -> 0.01332952835 | M30: 104.7001594 | N30: =IF(MOD(B30,(240/Inputs!$D$35))=0,100*(1+Inputs!$C$20*K30),IF(O29=1,100*(1+Inputs!$C$20*L30),N29*(1+Inputs!$C$20*K30))) -> 102.1182068 | O30: =IF((((N30/100-1)*Inputs!$D$25)+1)*100<100*(1-Inputs!$D$45),1,IF((((N30/100-1)*Inputs!$D$25)+1)*100>100*(1+Inputs!$D$45),1,0)) -> 0 | P30: 104.3725699 | Q30: =IF(MOD(B30,(240/Inputs!$D$35))=0,OFFSET(P30,,0,1,1)*(E30/OFFSET(E30,,0,1,1)),Q29*(1+D30)) -> 100.3601703 | R30: =IF(MOD(B30,(240/Inputs!$D$35))=0,OFFSET(P30,,0,1,1)*(E30/OFFSET(E30,,0,1,1)),IF(O30=1,R29*(1+D30)*(N30/100),R29*(1+D30))) -> 100.3601703 | S30: =(Q30/P30-1)*Inputs!$D$25 -> -0.03844304723 | T30: =(R30/P30-1)*Inputs!$D$25 -> -0.03844304723 | U30: -0.03844304723 | V30: -0.03844304723 | W30: =IF(MOD(B30,(240/Inputs!$D$35))=0,S30-S29,0) -> 0 | X30: =IF(MOD(B30,(240/Inputs!$D$35))=0,T30-T29,0) -> 0 | Y30: 0 | Z30: =IF(O30=0,0,(N30/100-1)*Inputs!$D$25) -> 0
B31: 23 | C31: 1 | D31: =(1+Inputs!$E$11)^(1/240)-1 -> 0.0001634329919 | E31: 100.3765724 | F31: =(1+Inputs!$E$12)^(1/240)-1 -> 0.0001231692607 | G31: -0.6194931611 | H31: -0.311599586 | I31: =G31*Inputs!$C$16/SQRT(240) -> -0.002799167812 | J31: -0.002513347734 | K31: =(Inputs!$C$18*G31+((1-Inputs!$C$18^2)^(1/2))*H31)*Inputs!$D$16/SQRT(240) -> -0.005370797344 | L31: =Inputs!$F$13/240+K31 -> -0.005079130677 | M31: 104.1683736 | N31: =IF(MOD(B31,(240/Inputs!$D$35))=0,100*(1+Inputs!$C$20*K31),IF(O30=1,100*(1+Inputs!$C$20*L31),N30*(1+Inputs!$C$20*K31))) -> 101.8302673 | O31: =IF((((N31/100-1)*Inputs!$D$25)+1)*100<100*(1-Inputs!$D$45),1,IF((((N31/100-1)*Inputs!$D$25)+1)*100>100*(1+Inputs!$D$45),1,0)) -> 0 | P31: 104.1102453 | Q31: =IF(MOD(B31,(240/Inputs!$D$35))=0,OFFSET(P31,,0,1,1)*(E31/OFFSET(E31,,0,1,1)),Q30*(1+D31)) -> 100.3765724 | R31: =IF(MOD(B31,(240/Inputs!$D$35))=0,OFFSET(P31,,0,1,1)*(E31/OFFSET(E31,,0,1,1)),IF(O31=1,R30*(1+D31)*(N31/100),R30*(1+D31))) -> 100.3765724 | S31: =(Q31/P31-1)*Inputs!$D$25 -> -0.03586268476 | T31: =(R31/P31-1)*Inputs!$D$25 -> -0.03586268476 | U31: -0.03586268476 | V31: -0.03586268476 | W31: =IF(MOD(B31,(240/Inputs!$D$35))=0,S31-S30,0) -> 0 | X31: =IF(MOD(B31,(240/Inputs!$D$35))=0,T31-T30,0) -> 0 | Y31: 0 | Z31: =IF(O31=0,0,(N31/100-1)*Inputs!$D$25) -> 0
B32: 24 | C32: 1 | D32: =(1+Inputs!$E$11)^(1/240)-1 -> 0.0001634329919 | E32: 100.3929773 | F32: =(1+Inputs!$E$12)^(1/240)-1 -> 0.0001231692607 | G32: 1.083151706 | H32: 1.222702835 | I32: =G32*Inputs!$C$16/SQRT(240) -> 0.004894199939 | J32: 0.005182225109 | K32: =(Inputs!$C$18*G32+((1-Inputs!$C$18^2)^(1/2))*H32)*Inputs!$D$16/SQRT(240) -> 0.01167937125 | L32: =Inputs!$F$13/240+K32 -> 0.01197103792 | M32: 105.4153772 | N32: =IF(MOD(B32,(240/Inputs!$D$35))=0,100*(1+Inputs!$C$20*K32),IF(O31=1,100*(1+Inputs!$C$20*L32),N31*(1+Inputs!$C$20*K32))) -> 102.4546569 | O32: =IF((((N32/100-1)*Inputs!$D$25)+1)*100<100*(1-Inputs!$D$45),1,IF((((N32/100-1)*Inputs!$D$25)+1)*100>100*(1+Inputs!$D$45),1,0)) -> 0 | P32: 104.6497681 | Q32: =IF(MOD(B32,(240/Inputs!$D$35))=0,OFFSET(P32,,0,1,1)*(E32/OFFSET(E32,,0,1,1)),Q31*(1+D32)) -> 100.3929773 | R32: =IF(MOD(B32,(240/Inputs!$D$35))=0,OFFSET(P32,,0,1,1)*(E32/OFFSET(E32,,0,1,1)),IF(O32=1,R31*(1+D32)*(N32/100),R31*(1+D32))) -> 100.3929773 | S32: =(Q32/P32-1)*Inputs!$D$25 -> -0.04067654302 | T32: =(R32/P32-1)*Inputs!$D$25 -> -0.04067654302 | U32: -0.04067654302 | V32: -0.04067654302 | W32: =IF(MOD(B32,(240/Inputs!$D$35))=0,S32-S31,0) -> 0 | X32: =IF(MOD(B32,(240/Inputs!$D$35))=0,T32-T31,0) -> 0 | Y32: 0 | Z32: =IF(O32=0,0,(N32/100-1)*Inputs!$D$25) -> 0
B33: 25 | C33: 1 | D33: =(1+Inputs!$E$11)^(1/240)-1 -> 0.0001634329919 | E33: 100.4093848 | F33: =(1+Inputs!$E$12)^(1/240)-1 -> 0.0001231692607 | G33: 0.0763457454 | H33: -0.9245415607 | I33: =G33*Inputs!$C$16/SQRT(240) -> 0.0003449667672 | J33: 0.0006316880249 | K33: =(Inputs!$C$18*G33+((1-Inputs!$C$18^2)^(1/2))*H33)*Inputs!$D$16/SQRT(240) -> -0.002589377148 | L33: =Inputs!$F$13/240+K33 -> -0.002297710481 | M33: 105.1731631 | N33: =IF(MOD(B33,(240/Inputs!$D$35))=0,100*(1+Inputs!$C$20*K33),IF(O32=1,100*(1+Inputs!$C$20*L33),N32*(1+Inputs!$C$20*K33))) -> 102.3153777 | O33: =IF((((N33/100-1)*Inputs!$D$25)+1)*100<100*(1-Inputs!$D$45),1,IF((((N33/100-1)*Inputs!$D$25)+1)*100>100*(1+Inputs!$D$45),1,0)) -> 0 | P33: 104.7158741 | Q33: =IF(MOD(B33,(240/Inputs!$D$35))=0,OFFSET(P33,,0,1,1)*(E33/OFFSET(E33,,0,1,1)),Q32*(1+D33)) -> 100.4093848 | R33: =IF(MOD(B33,(240/Inputs!$D$35))=0,OFFSET(P33,,0,1,1)*(E33/OFFSET(E33,,0,1,1)),IF(O33=1,R32*(1+D33)*(N33/100),R32*(1+D33))) -> 100.4093848 | S33: =(Q33/P33-1)*Inputs!$D$25 -> -0.04112546748 | T33: =(R33/P33-1)*Inputs!$D$25 -> -0.04112546748 | U33: -0.04112546748 | V33: -0.04112546748 | W33: =IF(MOD(B33,(240/Inputs!$D$35))=0,S33-S32,0) -> 0 | X33: =IF(MOD(B33,(240/Inputs!$D$35))=0,T33-T32,0) -> 0 | Y33: 0 | Z33: =IF(O33=0,0,(N33/100-1)*Inputs!$D$25) -> 0
B34: 26 | C34: 1 | D34: =(1+Inputs!$E$11)^(1/240)-1 -> 0.0001634329919 | E34: 100.425795 | F34: =(1+Inputs!$E$12)^(1/240)-1 -> 0.0001231692607 | G34: 0.142759621 | H34: -0.7112501402 | I34: =G34*Inputs!$C$16/SQRT(240) -> 0.0006450565737 | J34: 0.0009318638439 | K34: =(Inputs!$C$18*G34+((1-Inputs!$C$18^2)^(1/2))*H34)*Inputs!$D$16/SQRT(240) -> -0.001406226725 | L34: =Inputs!$F$13/240+K34 -> -0.001114560058 | M34: 105.0559413 | N34: =IF(MOD(B34,(240/Inputs!$D$35))=0,100*(1+Inputs!$C$20*K34),IF(O33=1,100*(1+Inputs!$C$20*L34),N33*(1+Inputs!$C$20*K34))) -> 102.2398414 | O34: =IF((((N34/100-1)*Inputs!$D$25)+1)*100<100*(1-Inputs!$D$45),1,IF((((N34/100-1)*Inputs!$D$25)+1)*100>100*(1+Inputs!$D$45),1,0)) -> 0 | P34: 104.813455 | Q34: =IF(MOD(B34,(240/Inputs!$D$35))=0,OFFSET(P34,,0,1,1)*(E34/OFFSET(E34,,0,1,1)),Q33*(1+D34)) -> 100.425795 | R34: =IF(MOD(B34,(240/Inputs!$D$35))=0,OFFSET(P34,,0,1,1)*(E34/OFFSET(E34,,0,1,1)),IF(O34=1,R33*(1+D34)*(N34/100),R33*(1+D34))) -> 100.425795 | S34: =(Q34/P34-1)*Inputs!$D$25 -> -0.04186161027 | T34: =(R34/P34-1)*Inputs!$D$25 -> -0.04186161027 | U34: -0.04186161027 | V34: -0.04186161027 | W34: =IF(MOD(B34,(240/Inputs!$D$35))=0,S34-S33,0) -> 0 | X34: =IF(MOD(B34,(240/Inputs!$D$35))=0,T34-T33,0) -> 0 | Y34: 0 | Z34: =IF(O34=0,0,(N34/100-1)*Inputs!$D$25) -> 0
B35: 27 | C35: 1 | D35: =(1+Inputs!$E$11)^(1/240)-1 -> 0.0001634329919 | E35: 100.4422079 | F35: =(1+Inputs!$E$12)^(1/240)-1 -> 0.0001231692607 | G35: 2.071493362 | H35: -2.091284934 | I35: =G35*Inputs!$C$16/SQRT(240) -> 0.00936000251 | J35: 0.009649307679 | K35: =(Inputs!$C$18*G35+((1-Inputs!$C$18^2)^(1/2))*H35)*Inputs!$D$16/SQRT(240) -> 0.007380156111 | L35: =Inputs!$F$13/240+K35 -> 0.007671822778 | M35: 105.8619119 | N35: =IF(MOD(B35,(240/Inputs!$D$35))=0,100*(1+Inputs!$C$20*K35),IF(O34=1,100*(1+Inputs!$C$20*L35),N34*(1+Inputs!$C$20*K35))) -> 102.6359781 | O35: =IF((((N35/100-1)*Inputs!$D$25)+1)*100<100*(1-Inputs!$D$45),1,IF((((N35/100-1)*Inputs!$D$25)+1)*100>100*(1+Inputs!$D$45),1,0)) -> 0 | P35: 105.8248323 | Q35: =IF(MOD(B35,(240/Inputs!$D$35))=0,OFFSET(P35,,0,1,1)*(E35/OFFSET(E35,,0,1,1)),Q34*(1+D35)) -> 100.4422079 | R35: =IF(MOD(B35,(240/Inputs!$D$35))=0,OFFSET(P35,,0,1,1)*(E35/OFFSET(E35,,0,1,1)),IF(O35=1,R34*(1+D35)*(N35/100),R34*(1+D35))) -> 100.4422079 | S35: =(Q35/P35-1)*Inputs!$D$25 -> -0.05086352868 | T35: =(R35/P35-1)*Inputs!$D$25 -> -0.05086352868 | U35: -0.05086352868 | V35: -0.05086352868 | W35: =IF(MOD(B35,(240/Inputs!$D$35))=0,S35-S34,0) -> 0 | X35: =IF(MOD(B35,(240/Inputs!$D$35))=0,T35-T34,0) -> 0 | Y35: 0 | Z35: =IF(O35=0,0,(N35/100-1)*Inputs!$D$25) -> 0
B36: 28 | C36: 1 | D36: =(1+Inputs!$E$11)^(1/240)-1 -> 0.0001634329919 | E36: 100.4586235 | F36: =(1+Inputs!$E$12)^(1/240)-1 -> 0.0001231692607 | G36: -0.7193681265 | H36: 0.4502681897 | I36: =G36*Inputs!$C$16/SQRT(240) -> -0.003250450903 | J36: -0.002964760172 | K36: =(Inputs!$C$18*G36+((1-Inputs!$C$18^2)^(1/2))*H36)*Inputs!$D$16/SQRT(240) -> -0.003494701008 | L36: =Inputs!$F$13/240+K36 -> -0.003203034342 | M36: 105.5228326 | N36: =IF(MOD(B36,(240/Inputs!$D$35))=0,100*(1+Inputs!$C$20*K36),IF(O35=1,100*(1+Inputs!$C$20*L36),N35*(1+Inputs!$C$20*K36))) -> 102.44767 | O36: =IF((((N36/100-1)*Inputs!$D$25)+1)*100<100*(1-Inputs!$D$45),1,IF((((N36/100-1)*Inputs!$D$25)+1)*100>100*(1+Inputs!$D$45),1,0)) -> 0 | P36: 105.511087 | Q36: =IF(MOD(B36,(240/Inputs!$D$35))=0,OFFSET(P36,,0,1,1)*(E36/OFFSET(E36,,0,1,1)),Q35*(1+D36)) -> 100.4586235 | R36: =IF(MOD(B36,(240/Inputs!$D$35))=0,OFFSET(P36,,0,1,1)*(E36/OFFSET(E36,,0,1,1)),IF(O36=1,R35*(1+D36)*(N36/100),R35*(1+D36))) -> 100.4586235 | S36: =(Q36/P36-1)*Inputs!$D$25 -> -0.04788561767 | T36: =(R36/P36-1)*Inputs!$D$25 -> -0.04788561767 | U36: -0.04788561767 | V36: -0.04788561767 | W36: =IF(MOD(B36,(240/Inputs!$D$35))=0,S36-S35,0) -> 0 | X36: =IF(MOD(B36,(240/Inputs!$D$35))=0,T36-T35,0) -> 0 | Y36: 0 | Z36: =IF(O36=0,0,(N36/100-1)*Inputs!$D$25) -> 0
B37: 29 | C37: 1 | D37: =(1+Inputs!$E$11)^(1/240)-1 -> 0.0001634329919 | E37: 100.4750417 | F37: =(1+Inputs!$E$12)^(1/240)-1 -> 0.0001231692607 | G37: 1.313946332 | H37: 0.6296197233 | I37: =G37*Inputs!$C$16/SQRT(240) -> 0.005937040971 | J37: 0.006225365042 | K37: =(Inputs!$C$18*G37+((1-Inputs!$C$18^2)^(1/2))*H37)*Inputs!$D$16/SQRT(240) -> 0.01128584693 | L37: =Inputs!$F$13/240+K37 -> 0.01157751359 | M37: 106.7445246 | N37: =IF(MOD(B37,(240/Inputs!$D$35))=0,100*(1+Inputs!$C$20*K37),IF(O36=1,100*(1+Inputs!$C$20*L37),N36*(1+Inputs!$C$20*K37))) -> 103.0546796 | O37: =IF((((N37/100-1)*Inputs!$D$25)+1)*100<100*(1-Inputs!$D$45),1,IF((((N37/100-1)*Inputs!$D$25)+1)*100>100*(1+Inputs!$D$45),1,0)) -> 0 | P37: 106.1679321 | Q37: =IF(MOD(B37,(240/Inputs!$D$35))=0,OFFSET(P37,,0,1,1)*(E37/OFFSET(E37,,0,1,1)),Q36*(1+D37)) -> 100.4750417 | R37: =IF(MOD(B37,(240/Inputs!$D$35))=0,OFFSET(P37,,0,1,1)*(E37/OFFSET(E37,,0,1,1)),IF(O37=1,R36*(1+D37)*(N37/100),R36*(1+D37))) -> 100.4750417 | S37: =(Q37/P37-1)*Inputs!$D$25 -> -0.05362156201 | T37: =(R37/P37-1)*Inputs!$D$25 -> -0.05362156201 | U37: -0.05362156201 | V37: -0.05362156201 | W37: =IF(MOD(B37,(240/Inputs!$D$35))=0,S37-S36,0) -> 0 | X37: =IF(MOD(B37,(240/Inputs!$D$35))=0,T37-T36,0) -> 0 | Y37: 0 | Z37: =IF(O37=0,0,(N37/100-1)*Inputs!$D$25) -> 0
B38: 30 | C38: 1 | D38: =(1+Inputs!$E$11)^(1/240)-1 -> 0.0001634329919 | E38: 100.4914626 | F38: =(1+Inputs!$E$12)^(1/240)-1 -> 0.0001231692607 | G38: -1.164565632 | H38: -0.4833288959 | I38: =G38*Inputs!$C$16/SQRT(240) -> -0.005262067181 | J38: -0.004976953025 | K38: =(Inputs!$C$18*G38+((1-Inputs!$C$18^2)^(1/2))*H38)*Inputs!$D$16/SQRT(240) -> -0.009750524112 | L38: =Inputs!$F$13/240+K38 -> -0.009458857445 | M38: 105.7348433 | N38: =IF(MOD(B38,(240/Inputs!$D$35))=0,100*(1+Inputs!$C$20*K38),IF(O37=1,100*(1+Inputs!$C$20*L38),N37*(1+Inputs!$C$20*K38))) -> 102.5271401 | O38: =IF((((N38/100-1)*Inputs!$D$25)+1)*100<100*(1-Inputs!$D$45),1,IF((((N38/100-1)*Inputs!$D$25)+1)*100>100*(1+Inputs!$D$45),1,0)) -> 0 | P38: 105.6395393 | Q38: =IF(MOD(B38,(240/Inputs!$D$35))=0,OFFSET(P38,,0,1,1)*(E38/OFFSET(E38,,0,1,1)),Q37*(1+D38)) -> 100.4914626 | R38: =IF(MOD(B38,(240/Inputs!$D$35))=0,OFFSET(P38,,0,1,1)*(E38/OFFSET(E38,,0,1,1)),IF(O38=1,R37*(1+D38)*(N38/100),R37*(1+D38))) -> 100.4914626 | S38: =(Q38/P38-1)*Inputs!$D$25 -> -0.04873247879 | T38: =(R38/P38-1)*Inputs!$D$25 -> -0.04873247879 | U38: -0.04873247879 | V38: -0.04873247879 | W38: =IF(MOD(B38,(240/Inputs!$D$35))=0,S38-S37,0) -> 0 | X38: =IF(MOD(B38,(240/Inputs!$D$35))=0,T38-T37,0) -> 0 | Y38: 0 | Z38: =IF(O38=0,0,(N38/100-1)*Inputs!$D$25) -> 0
B39: 31 | C39: 1 | D39: =(1+Inputs!$E$11)^(1/240)-1 -> 0.0001634329919 | E39: 100.5078863 | F39: =(1+Inputs!$E$12)^(1/240)-1 -> 0.0001231692607 | G39: 0.3732781445 | H39: -1.033452656 | I39: =G39*Inputs!$C$16/SQRT(240) -> 0.001686650044 | J39: 0.001973755858 | K39: =(Inputs!$C$18*G39+((1-Inputs!$C$18^2)^(1/2))*H39)*Inputs!$D$16/SQRT(240) -> -0.0008870777041 | L39: =Inputs!$F$13/240+K39 -> -0.0005954110374 | M39: 105.6718877 | N39: =IF(MOD(B39,(240/Inputs!$D$35))=0,100*(1+Inputs!$C$20*K39),IF(O38=1,100*(1+Inputs!$C$20*L39),N38*(1+Inputs!$C$20*K39))) -> 102.4793916 | O39: =IF((((N39/100-1)*Inputs!$D$25)+1)*100<100*(1-Inputs!$D$45),1,IF((((N39/100-1)*Inputs!$D$25)+1)*100>100*(1+Inputs!$D$45),1,0)) -> 0 | P39: 105.8480459 | Q39: =IF(MOD(B39,(240/Inputs!$D$35))=0,OFFSET(P39,,0,1,1)*(E39/OFFSET(E39,,0,1,1)),Q38*(1+D39)) -> 100.5078863 | R39: =IF(MOD(B39,(240/Inputs!$D$35))=0,OFFSET(P39,,0,1,1)*(E39/OFFSET(E39,,0,1,1)),IF(O39=1,R38*(1+D39)*(N39/100),R38*(1+D39))) -> 100.5078863 | S39: =(Q39/P39-1)*Inputs!$D$25 -> -0.05045118782 | T39: =(R39/P39-1)*Inputs!$D$25 -> -0.05045118782 | U39: -0.05045118782 | V39: -0.05045118782 | W39: =IF(MOD(B39,(240/Inputs!$D$35))=0,S39-S38,0) -> 0 | X39: =IF(MOD(B39,(240/Inputs!$D$35))=0,T39-T38,0) -> 0 | Y39: 0 | Z39: =IF(O39=0,0,(N39/100-1)*Inputs!$D$25) -> 0
B40: 32 | C40: 1 | D40: =(1+Inputs!$E$11)^(1/240)-1 -> 0.0001634329919 | E40: 100.5243126 | F40: =(1+Inputs!$E$12)^(1/240)-1 -> 0.0001231692607 | G40: -0.3872130517 | H40: 0.3978067548 | I40: =G40*Inputs!$C$16/SQRT(240) -> -0.001749614651 | J40: -0.001463493747 | K40: =(Inputs!$C$18*G40+((1-Inputs!$C$18^2)^(1/2))*H40)*Inputs!$D$16/SQRT(240) -> -0.001356255268 | L40: =Inputs!$F$13/240+K40 -> -0.001064588601 | M40: 105.5593906 | N40: =IF(MOD(B40,(240/Inputs!$D$35))=0,100*(1+Inputs!$C$20*K40),IF(O39=1,100*(1+Inputs!$C$20*L40),N39*(1+Inputs!$C$20*K40))) -> 102.4064228 | O40: =IF((((N40/100-1)*Inputs!$D$25)+1)*100<100*(1-Inputs!$D$45),1,IF((((N40/100-1)*Inputs!$D$25)+1)*100>100*(1+Inputs!$D$45),1,0)) -> 0 | P40: 105.693138 | Q40: =IF(MOD(B40,(240/Inputs!$D$35))=0,OFFSET(P40,,0,1,1)*(E40/OFFSET(E40,,0,1,1)),Q39*(1+D40)) -> 100.5243126 | R40: =IF(MOD(B40,(240/Inputs!$D$35))=0,OFFSET(P40,,0,1,1)*(E40/OFFSET(E40,,0,1,1)),IF(O40=1,R39*(1+D40)*(N40/100),R39*(1+D40))) -> 100.5243126 | S40: =(Q40/P40-1)*Inputs!$D$25 -> -0.04890407728 | T40: =(R40/P40-1)*Inputs!$D$25 -> -0.04890407728 | U40: -0.04890407728 | V40: -0.04890407728 | W40: =IF(MOD(B40,(240/Inputs!$D$35))=0,S40-S39,0) -> 0 | X40: =IF(MOD(B40,(240/Inputs!$D$35))=0,T40-T39,0) -> 0 | Y40: 0 | Z40: =IF(O40=0,0,(N40/100-1)*Inputs!$D$25) -> 0
B41: 33 | C41: 1 | D41: =(1+Inputs!$E$11)^(1/240)-1 -> 0.0001634329919 | E41: 100.5407416 | F41: =(1+Inputs!$E$12)^(1/240)-1 -> 0.0001231692607 | G41: 1.081821245 | H41: 0.4491830176 | I41: =G41*Inputs!$C$16/SQRT(240) -> 0.004888188278 | J41: 0.005176211725 | K41: =(Inputs!$C$18*G41+((1-Inputs!$C$18^2)^(1/2))*H41)*Inputs!$D$16/SQRT(240) -> 0.009058392622 | L41: =Inputs!$F$13/240+K41 -> 0.009350059289 | M41: 106.5463771 | N41: =IF(MOD(B41,(240/Inputs!$D$35))=0,100*(1+Inputs!$C$20*K41),IF(O40=1,100*(1+Inputs!$C$20*L41),N40*(1+Inputs!$C$20*K41))) -> 102.8934325 | O41: =IF((((N41/100-1)*Inputs!$D$25)+1)*100<100*(1-Inputs!$D$45),1,IF((((N41/100-1)*Inputs!$D$25)+1)*100>100*(1+Inputs!$D$45),1,0)) -> 0 | P41: 106.240228 | Q41: =IF(MOD(B41,(240/Inputs!$D$35))=0,OFFSET(P41,,0,1,1)*(E41/OFFSET(E41,,0,1,1)),Q40*(1+D41)) -> 100.5407416 | R41: =IF(MOD(B41,(240/Inputs!$D$35))=0,OFFSET(P41,,0,1,1)*(E41/OFFSET(E41,,0,1,1)),IF(O41=1,R40*(1+D41)*(N41/100),R40*(1+D41))) -> 100.5407416 | S41: =(Q41/P41-1)*Inputs!$D$25 -> -0.0536471595 | T41: =(R41/P41-1)*Inputs!$D$25 -> -0.0536471595 | U41: -0.0536471595 | V41: -0.0536471595 | W41: =IF(MOD(B41,(240/Inputs!$D$35))=0,S41-S40,0) -> 0 | X41: =IF(MOD(B41,(240/Inputs!$D$35))=0,T41-T40,0) -> 0 | Y41: 0 | Z41: =IF(O41=0,0,(N41/100-1)*Inputs!$D$25) -> 0
B42: 34 | C42: 1 | D42: =(1+Inputs!$E$11)^(1/240)-1 -> 0.0001634329919 | E42: 100.5571732 | F42: =(1+Inputs!$E$12)^(1/240)-1 -> 0.0001231692607 | G42: 0.118549269 | H42: -1.335659116 | I42: =G42*Inputs!$C$16/SQRT(240) -> 0.0005356625687 | J42: 0.0008224384841 | K42: =(Inputs!$C$18*G42+((1-Inputs!$C$18^2)^(1/2))*H42)*Inputs!$D$16/SQRT(240) -> -0.003683253397 | L42: =Inputs!$F$13/240+K42 -> -0.00339158673 | M42: 106.1850158 | N42: =IF(MOD(B42,(240/Inputs!$D$35))=0,100*(1+Inputs!$C$20*K42),IF(O41=1,100*(1+Inputs!$C$20*L42),N41*(1+Inputs!$C$20*K42))) -> 102.6944666 | O42: =IF((((N42/100-1)*Inputs!$D$25)+1)*100<100*(1-Inputs!$D$45),1,IF((((N42/100-1)*Inputs!$D$25)+1)*100>100*(1+Inputs!$D$45),1,0)) -> 0 | P42: 106.3276041 | Q42: =IF(MOD(B42,(240/Inputs!$D$35))=0,OFFSET(P42,,0,1,1)*(E42/OFFSET(E42,,0,1,1)),Q41*(1+D42)) -> 100.5571732 | R42: =IF(MOD(B42,(240/Inputs!$D$35))=0,OFFSET(P42,,0,1,1)*(E42/OFFSET(E42,,0,1,1)),IF(O42=1,R41*(1+D42)*(N42/100),R41*(1+D42))) -> 100.5571732 | S42: =(Q42/P42-1)*Inputs!$D$25 -> -0.05427029872 | T42: =(R42/P42-1)*Inputs!$D$25 -> -0.05427029872 | U42: -0.05427029872 | V42: -0.05427029872 | W42: =IF(MOD(B42,(240/Inputs!$D$35))=0,S42-S41,0) -> 0 | X42: =IF(MOD(B42,(240/Inputs!$D$35))=0,T42-T41,0) -> 0 | Y42: 0 | Z42: =IF(O42=0,0,(N42/100-1)*Inputs!$D$25) -> 0
B43: 35 | C43: 1 | D43: =(1+Inputs!$E$11)^(1/240)-1 -> 0.0001634329919 | E43: 100.5736076 | F43: =(1+Inputs!$E$12)^(1/240)-1 -> 0.0001231692607 | G43: 0.8059584988 | H43: -0.2881208504 | I43: =G43*Inputs!$C$16/SQRT(240) -> 0.003641707817 | J43: 0.003929373995 | K43: =(Inputs!$C$18*G43+((1-Inputs!$C$18^2)^(1/2))*H43)*Inputs!$D$16/SQRT(240) -> 0.004645826963 | L43: =Inputs!$F$13/240+K43 -> 0.004937493629 | M43: 106.7093037 | N43: =IF(MOD(B43,(240/Inputs!$D$35))=0,100*(1+Inputs!$C$20*K43),IF(O42=1,100*(1+Inputs!$C$20*L43),N42*(1+Inputs!$C$20*K43))) -> 102.9449445 | O43: =IF((((N43/100-1)*Inputs!$D$25)+1)*100<100*(1-Inputs!$D$45),1,IF((((N43/100-1)*Inputs!$D$25)+1)*100>100*(1+Inputs!$D$45),1,0)) -> 0 | P43: 106.745405 | Q43: =IF(MOD(B43,(240/Inputs!$D$35))=0,OFFSET(P43,,0,1,1)*(E43/OFFSET(E43,,0,1,1)),Q42*(1+D43)) -> 100.5736076 | R43: =IF(MOD(B43,(240/Inputs!$D$35))=0,OFFSET(P43,,0,1,1)*(E43/OFFSET(E43,,0,1,1)),IF(O43=1,R42*(1+D43)*(N43/100),R42*(1+D43))) -> 100.5736076 | S43: =(Q43/P43-1)*Inputs!$D$25 -> -0.05781792105 | T43: =(R43/P43-1)*Inputs!$D$25 -> -0.05781792105 | U43: -0.05781792105 | V43: -0.05781792105 | W43: =IF(MOD(B43,(240/Inputs!$D$35))=0,S43-S42,0) -> 0 | X43: =IF(MOD(B43,(240/Inputs!$D$35))=0,T43-T42,0) -> 0 | Y43: 0 | Z43: =IF(O43=0,0,(N43/100-1)*Inputs!$D$25) -> 0
B44: 36 | C44: 1 | D44: =(1+Inputs!$E$11)^(1/240)-1 -> 0.0001634329919 | E44: 100.5900446 | F44: =(1+Inputs!$E$12)^(1/240)-1 -> 0.0001231692607 | G44: -1.64204804 | H44: 0.8613271266 | I44: =G44*Inputs!$C$16/SQRT(240) -> -0.007419562165 | J44: -0.007135066395 | K44: =(Inputs!$C$18*G44+((1-Inputs!$C$18^2)^(1/2))*H44)*Inputs!$D$16/SQRT(240) -> -0.00853914939 | L44: =Inputs!$F$13/240+K44 -> -0.008247482723 | M44: 105.8292205 | N44: =IF(MOD(B44,(240/Inputs!$D$35))=0,100*(1+Inputs!$C$20*K44),IF(O43=1,100*(1+Inputs!$C$20*L44),N43*(1+Inputs!$C$20*K44))) -> 102.4834368 | O44: =IF((((N44/100-1)*Inputs!$D$25)+1)*100<100*(1-Inputs!$D$45),1,IF((((N44/100-1)*Inputs!$D$25)+1)*100>100*(1+Inputs!$D$45),1,0)) -> 0 | P44: 105.9837694 | Q44: =IF(MOD(B44,(240/Inputs!$D$35))=0,OFFSET(P44,,0,1,1)*(E44/OFFSET(E44,,0,1,1)),Q43*(1+D44)) -> 100.5900446 | R44: =IF(MOD(B44,(240/Inputs!$D$35))=0,OFFSET(P44,,0,1,1)*(E44/OFFSET(E44,,0,1,1)),IF(O44=1,R43*(1+D44)*(N44/100),R43*(1+D44))) -> 100.5900446 | S44: =(Q44/P44-1)*Inputs!$D$25 -> -0.05089198874 | T44: =(R44/P44-1)*Inputs!$D$25 -> -0.05089198874 | U44: -0.05089198874 | V44: -0.05089198874 | W44: =IF(MOD(B44,(240/Inputs!$D$35))=0,S44-S43,0) -> 0 | X44: =IF(MOD(B44,(240/Inputs!$D$35))=0,T44-T43,0) -> 0 | Y44: 0 | Z44: =IF(O44=0,0,(N44/100-1)*Inputs!$D$25) -> 0
B45: 37 | C45: 1 | D45: =(1+Inputs!$E$11)^(1/240)-1 -> 0.0001634329919 | E45: 100.6064844 | F45: =(1+Inputs!$E$12)^(1/240)-1 -> 0.0001231692607 | G45: -1.201829715 | H45: 0.2036819804 | I45: =G45*Inputs!$C$16/SQRT(240) -> -0.005430444214 | J45: -0.005145378319 | K45: =(Inputs!$C$18*G45+((1-Inputs!$C$18^2)^(1/2))*H45)*Inputs!$D$16/SQRT(240) -> -0.007690690128 | L45: =Inputs!$F$13/240+K45 -> -0.007399023461 | M45: 105.0461877 | N45: =IF(MOD(B45,(240/Inputs!$D$35))=0,100*(1+Inputs!$C$20*K45),IF(O44=1,100*(1+Inputs!$C$20*L45),N44*(1+Inputs!$C$20*K45))) -> 102.0696484 | O45: =IF((((N45/100-1)*Inputs!$D$25)+1)*100<100*(1-Inputs!$D$45),1,IF((((N45/100-1)*Inputs!$D$25)+1)*100>100*(1+Inputs!$D$45),1,0)) -> 0 | P45: 105.4384429 | Q45: =IF(MOD(B45,(240/Inputs!$D$35))=0,OFFSET(P45,,0,1,1)*(E45/OFFSET(E45,,0,1,1)),Q44*(1+D45)) -> 100.6064844 | R45: =IF(MOD(B45,(240/Inputs!$D$35))=0,OFFSET(P45,,0,1,1)*(E45/OFFSET(E45,,0,1,1)),IF(O45=1,R44*(1+D45)*(N45/100),R44*(1+D45))) -> 100.6064844 | S45: =(Q45/P45-1)*Inputs!$D$25 -> -0.04582729362 | T45: =(R45/P45-1)*Inputs!$D$25 -> -0.04582729362 | U45: -0.04582729362 | V45: -0.04582729362 | W45: =IF(MOD(B45,(240/Inputs!$D$35))=0,S45-S44,0) -> 0 | X45: =IF(MOD(B45,(240/Inputs!$D$35))=0,T45-T44,0) -> 0 | Y45: 0 | Z45: =IF(O45=0,0,(N45/100-1)*Inputs!$D$25) -> 0
B46: 38 | C46: 1 | D46: =(1+Inputs!$E$11)^(1/240)-1 -> 0.0001634329919 | E46: 100.6229268 | F46: =(1+Inputs!$E$12)^(1/240)-1 -> 0.0001231692607 | G46: -0.1560242698 | H46: 0.645911894 | I46: =G46*Inputs!$C$16/SQRT(240) -> -0.0007049926315 | J46: -0.0004185723157 | K46: =(Inputs!$C$18*G46+((1-Inputs!$C$18^2)^(1/2))*H46)*Inputs!$D$16/SQRT(240) -> 0.00109314664 | L46: =Inputs!$F$13/240+K46 -> 0.001384813307 | M46: 105.191657 | N46: =IF(MOD(B46,(240/Inputs!$D$35))=0,100*(1+Inputs!$C$20*K46),IF(O45=1,100*(1+Inputs!$C$20*L46),N45*(1+Inputs!$C$20*K46))) -> 102.1282264 | O46: =IF((((N46/100-1)*Inputs!$D$25)+1)*100<100*(1-Inputs!$D$45),1,IF((((N46/100-1)*Inputs!$D$25)+1)*100>100*(1+Inputs!$D$45),1,0)) -> 0 | P46: 105.3943092 | Q46: =IF(MOD(B46,(240/Inputs!$D$35))=0,OFFSET(P46,,0,1,1)*(E46/OFFSET(E46,,0,1,1)),Q45*(1+D46)) -> 100.6229268 | R46: =IF(MOD(B46,(240/Inputs!$D$35))=0,OFFSET(P46,,0,1,1)*(E46/OFFSET(E46,,0,1,1)),IF(O46=1,R45*(1+D46)*(N46/100),R45*(1+D46))) -> 100.6229268 | S46: =(Q46/P46-1)*Inputs!$D$25 -> -0.04527172749 | T46: =(R46/P46-1)*Inputs!$D$25 -> -0.04527172749 | U46: -0.04527172749 | V46: -0.04527172749 | W46: =IF(MOD(B46,(240/Inputs!$D$35))=0,S46-S45,0) -> 0 | X46: =IF(MOD(B46,(240/Inputs!$D$35))=0,T46-T45,0) -> 0 | Y46: 0 | Z46: =IF(O46=0,0,(N46/100-1)*Inputs!$D$25) -> 0
B47: 39 | C47: 1 | D47: =(1+Inputs!$E$11)^(1/240)-1 -> 0.0001634329919 | E47: 100.6393719 | F47: =(1+Inputs!$E$12)^(1/240)-1 -> 0.0001231692607 | G47: -1.962163169 | H47: -1.409893213 | I47: =G47*Inputs!$C$16/SQRT(240) -> -0.008865996157 | J47: -0.008581914967 | K47: =(Inputs!$C$18*G47+((1-Inputs!$C$18^2)^(1/2))*H47)*Inputs!$D$16/SQRT(240) -> -0.01843931288 | L47: =Inputs!$F$13/240+K47 -> -0.01814764621 | M47: 103.282676 | N47: =IF(MOD(B47,(240/Inputs!$D$35))=0,100*(1+Inputs!$C$20*K47),IF(O46=1,100*(1+Inputs!$C$20*L47),N46*(1+Inputs!$C$20*K47))) -> 101.1395599 | O47: =IF((((N47/100-1)*Inputs!$D$25)+1)*100<100*(1-Inputs!$D$45),1,IF((((N47/100-1)*Inputs!$D$25)+1)*100>100*(1+Inputs!$D$45),1,0)) -> 0 | P47: 104.4898242 | Q47: =IF(MOD(B47,(240/Inputs!$D$35))=0,OFFSET(P47,,0,1,1)*(E47/OFFSET(E47,,0,1,1)),Q46*(1+D47)) -> 100.6393719 | R47: =IF(MOD(B47,(240/Inputs!$D$35))=0,OFFSET(P47,,0,1,1)*(E47/OFFSET(E47,,0,1,1)),IF(O47=1,R46*(1+D47)*(N47/100),R46*(1+D47))) -> 100.6393719 | S47: =(Q47/P47-1)*Inputs!$D$25 -> -0.03685002219 | T47: =(R47/P47-1)*Inputs!$D$25 -> -0.03685002219 | U47: -0.03685002219 | V47: -0.03685002219 | W47: =IF(MOD(B47,(240/Inputs!$D$35))=0,S47-S46,0) -> 0 | X47: =IF(MOD(B47,(240/Inputs!$D$35))=0,T47-T46,0) -> 0 | Y47: 0 | Z47: =IF(O47=0,0,(N47/100-1)*Inputs!$D$25) -> 0
B48: 40 | C48: 1 | D48: =(1+Inputs!$E$11)^(1/240)-1 -> 0.0001634329919 | E48: 100.6558197 | F48: =(1+Inputs!$E$12)^(1/240)-1 -> 0.0001231692607 | G48: -0.3582543655 | H48: -1.593892619 | I48: =G48*Inputs!$C$16/SQRT(240) -> -0.00161876539 | J48: -0.001332606982 | K48: =(Inputs!$C$18*G48+((1-Inputs!$C$18^2)^(1/2))*H48)*Inputs!$D$16/SQRT(240) -> -0.007879124617 | L48: =Inputs!$F$13/240+K48 -> -0.00758745795 | M48: 102.4990231 | N48: =IF(MOD(B48,(240/Inputs!$D$35))=0,100*(1+Inputs!$C$20*K48),IF(O47=1,100*(1+Inputs!$C$20*L48),N47*(1+Inputs!$C$20*K48))) -> 100.721192 | O48: =IF((((N48/100-1)*Inputs!$D$25)+1)*100<100*(1-Inputs!$D$45),1,IF((((N48/100-1)*Inputs!$D$25)+1)*100>100*(1+Inputs!$D$45),1,0)) -> 0 | P48: 104.3505804 | Q48: =IF(MOD(B48,(240/Inputs!$D$35))=0,OFFSET(P48,,0,1,1)*(E48/OFFSET(E48,,0,1,1)),Q47*(1+D48)) -> 100.6558197 | R48: =IF(MOD(B48,(240/Inputs!$D$35))=0,OFFSET(P48,,0,1,1)*(E48/OFFSET(E48,,0,1,1)),IF(O48=1,R47*(1+D48)*(N48/100),R47*(1+D48))) -> 100.6558197 | S48: =(Q48/P48-1)*Inputs!$D$25 -> -0.03540718859 | T48: =(R48/P48-1)*Inputs!$D$25 -> -0.03540718859 | U48: -0.03540718859 | V48: -0.03540718859 | W48: =IF(MOD(B48,(240/Inputs!$D$35))=0,S48-S47,0) -> 0 | X48: =IF(MOD(B48,(240/Inputs!$D$35))=0,T48-T47,0) -> 0 | Y48: 0 | Z48: =IF(O48=0,0,(N48/100-1)*Inputs!$D$25) -> 0
B49: 41 | C49: 1 | D49: =(1+Inputs!$E$11)^(1/240)-1 -> 0.0001634329919 | E49: 100.6722702 | F49: =(1+Inputs!$E$12)^(1/240)-1 -> 0.0001231692607 | G49: 2.384293526 | H49: -0.9113938689 | I49: =G49*Inputs!$C$16/SQRT(240) -> 0.01077338397 | J49: 0.01106309425 | K49: =(Inputs!$C$18*G49+((1-Inputs!$C$18^2)^(1/2))*H49)*Inputs!$D$16/SQRT(240) -> 0.01354457254 | L49: =Inputs!$F$13/240+K49 -> 0.01383623921 | M49: 103.9172241 | N49: =IF(MOD(B49,(240/Inputs!$D$35))=0,100*(1+Inputs!$C$20*K49),IF(O48=1,100*(1+Inputs!$C$20*L49),N48*(1+Inputs!$C$20*K49))) -> 101.4374104 | O49: =IF((((N49/100-1)*Inputs!$D$25)+1)*100<100*(1-Inputs!$D$45),1,IF((((N49/100-1)*Inputs!$D$25)+1)*100>100*(1+Inputs!$D$45),1,0)) -> 0 | P49: 105.5050207 | Q49: =IF(MOD(B49,(240/Inputs!$D$35))=0,OFFSET(P49,,0,1,1)*(E49/OFFSET(E49,,0,1,1)),Q48*(1+D49)) -> 100.6722702 | R49: =IF(MOD(B49,(240/Inputs!$D$35))=0,OFFSET(P49,,0,1,1)*(E49/OFFSET(E49,,0,1,1)),IF(O49=1,R48*(1+D49)*(N49/100),R48*(1+D49))) -> 100.6722702 | S49: =(Q49/P49-1)*Inputs!$D$25 -> -0.04580588176 | T49: =(R49/P49-1)*Inputs!$D$25 -> -0.04580588176 | U49: -0.04580588176 | V49: -0.04580588176 | W49: =IF(MOD(B49,(240/Inputs!$D$35))=0,S49-S48,0) -> 0 | X49: =IF(MOD(B49,(240/Inputs!$D$35))=0,T49-T48,0) -> 0 | Y49: 0 | Z49: =IF(O49=0,0,(N49/100-1)*Inputs!$D$25) -> 0
B50: 42 | C50: 1 | D50: =(1+Inputs!$E$11)^(1/240)-1 -> 0.0001634329919 | E50: 100.6887233 | F50: =(1+Inputs!$E$12)^(1/240)-1 -> 0.0001231692607 | G50: -1.857860042 | H50: -0.5397082589 | I50: =G50*Inputs!$C$16/SQRT(240) -> -0.008394704501 | J50: -0.008110488228 | K50: =(Inputs!$C$18*G50+((1-Inputs!$C$18^2)^(1/2))*H50)*Inputs!$D$16/SQRT(240) -> -0.01477409462 | L50: =Inputs!$F$13/240+K50 -> -0.01448242795 | M50: 102.4122504 | N50: =IF(MOD(B50,(240/Inputs!$D$35))=0,100*(1+Inputs!$C$20*K50),IF(O49=1,100*(1+Inputs!$C$20*L50),N49*(1+Inputs!$C$20*K50))) -> 100.6506213 | O50: =IF((((N50/100-1)*Inputs!$D$25)+1)*100<100*(1-Inputs!$D$45),1,IF((((N50/100-1)*Inputs!$D$25)+1)*100>100*(1+Inputs!$D$45),1,0)) -> 0 | P50: 104.6493234 | Q50: =IF(MOD(B50,(240/Inputs!$D$35))=0,OFFSET(P50,,0,1,1)*(E50/OFFSET(E50,,0,1,1)),Q49*(1+D50)) -> 100.6887233 | R50: =IF(MOD(B50,(240/Inputs!$D$35))=0,OFFSET(P50,,0,1,1)*(E50/OFFSET(E50,,0,1,1)),IF(O50=1,R49*(1+D50)*(N50/100),R49*(1+D50))) -> 100.6887233 | S50: =(Q50/P50-1)*Inputs!$D$25 -> -0.03784639951 | T50: =(R50/P50-1)*Inputs!$D$25 -> -0.03784639951 | U50: -0.03784639951 | V50: -0.03784639951 | W50: =IF(MOD(B50,(240/Inputs!$D$35))=0,S50-S49,0) -> 0 | X50: =IF(MOD(B50,(240/Inputs!$D$35))=0,T50-T49,0) -> 0 | Y50: 0 | Z50: =IF(O50=0,0,(N50/100-1)*Inputs!$D$25) -> 0
B51: 43 | C51: 1 | D51: =(1+Inputs!$E$11)^(1/240)-1 -> 0.0001634329919 | E51: 100.7051792 | F51: =(1+Inputs!$E$12)^(1/240)-1 -> 0.0001231692607 | G51: 0.6761478786 | H51: 1.051323301 | I51: =G51*Inputs!$C$16/SQRT(240) -> 0.003055161052 | J51: 0.003342659112 | K51: =(Inputs!$C$18*G51+((1-Inputs!$C$18^2)^(1/2))*H51)*Inputs!$D$16/SQRT(240) -> 0.008263353063 | L51: =Inputs!$F$13/240+K51 -> 0.00855501973 | M51: 103.2883892 | N51: =IF(MOD(B51,(240/Inputs!$D$35))=0,100*(1+Inputs!$C$20*K51),IF(O50=1,100*(1+Inputs!$C$20*L51),N50*(1+Inputs!$C$20*K51))) -> 101.0872699 | O51: =IF((((N51/100-1)*Inputs!$D$25)+1)*100<100*(1-Inputs!$D$45),1,IF((((N51/100-1)*Inputs!$D$25)+1)*100>100*(1+Inputs!$D$45),1,0)) -> 0 | P51: 104.9991305 | Q51: =IF(MOD(B51,(240/Inputs!$D$35))=0,OFFSET(P51,,0,1,1)*(E51/OFFSET(E51,,0,1,1)),Q50*(1+D51)) -> 100.7051792 | R51: =IF(MOD(B51,(240/Inputs!$D$35))=0,OFFSET(P51,,0,1,1)*(E51/OFFSET(E51,,0,1,1)),IF(O51=1,R50*(1+D51)*(N51/100),R50*(1+D51))) -> 100.7051792 | S51: =(Q51/P51-1)*Inputs!$D$25 -> -0.04089511256 | T51: =(R51/P51-1)*Inputs!$D$25 -> -0.04089511256 | U51: -0.04089511256 | V51: -0.04089511256 | W51: =IF(MOD(B51,(240/Inputs!$D$35))=0,S51-S50,0) -> 0 | X51: =IF(MOD(B51,(240/Inputs!$D$35))=0,T51-T50,0) -> 0 | Y51: 0 | Z51: =IF(O51=0,0,(N51/100-1)*Inputs!$D$25) -> 0
B52: 44 | C52: 1 | D52: =(1+Inputs!$E$11)^(1/240)-1 -> 0.0001634329919 | E52: 100.7216378 | F52: =(1+Inputs!$E$12)^(1/240)-1 -> 0.0001231692607 | G52: 0.9638803943 | H52: -0.7909425297 | I52: =G52*Inputs!$C$16/SQRT(240) -> 0.004355274834 | J52: 0.004643145536 | K52: =(Inputs!$C$18*G52+((1-Inputs!$C$18^2)^(1/2))*H52)*Inputs!$D$16/SQRT(240) -> 0.004049037544 | L52: =Inputs!$F$13/240+K52 -> 0.00434070421 | M52: 103.7367335 | N52: =IF(MOD(B52,(240/Inputs!$D$35))=0,100*(1+Inputs!$C$20*K52),IF(O51=1,100*(1+Inputs!$C$20*L52),N51*(1+Inputs!$C$20*K52))) -> 101.3021556 | O52: =IF((((N52/100-1)*Inputs!$D$25)+1)*100<100*(1-Inputs!$D$45),1,IF((((N52/100-1)*Inputs!$D$25)+1)*100>100*(1+Inputs!$D$45),1,0)) -> 0 | P52: 105.4866567 | Q52: =IF(MOD(B52,(240/Inputs!$D$35))=0,OFFSET(P52,,0,1,1)*(E52/OFFSET(E52,,0,1,1)),Q51*(1+D52)) -> 100.7216378 | R52: =IF(MOD(B52,(240/Inputs!$D$35))=0,OFFSET(P52,,0,1,1)*(E52/OFFSET(E52,,0,1,1)),IF(O52=1,R51*(1+D52)*(N52/100),R51*(1+D52))) -> 100.7216378 | S52: =(Q52/P52-1)*Inputs!$D$25 -> -0.04517176962 | T52: =(R52/P52-1)*Inputs!$D$25 -> -0.04517176962 | U52: -0.04517176962 | V52: -0.04517176962 | W52: =IF(MOD(B52,(240/Inputs!$D$35))=0,S52-S51,0) -> 0 | X52: =IF(MOD(B52,(240/Inputs!$D$35))=0,T52-T51,0) -> 0 | Y52: 0 | Z52: =IF(O52=0,0,(N52/100-1)*Inputs!$D$25) -> 0
B53: 45 | C53: 1 | D53: =(1+Inputs!$E$11)^(1/240)-1 -> 0.0001634329919 | E53: 100.738099 | F53: =(1+Inputs!$E$12)^(1/240)-1 -> 0.0001231692607 | G53: -1.785983177 | H53: 0.06218919345 | I53: =G53*Inputs!$C$16/SQRT(240) -> -0.008069930286 | J53: -0.007785620926 | K53: =(Inputs!$C$18*G53+((1-Inputs!$C$18^2)^(1/2))*H53)*Inputs!$D$16/SQRT(240) -> -0.0122407747 | L53: =Inputs!$F$13/240+K53 -> -0.01194910803 | M53: 102.4971721 | N53: =IF(MOD(B53,(240/Inputs!$D$35))=0,100*(1+Inputs!$C$20*K53),IF(O52=1,100*(1+Inputs!$C$20*L53),N52*(1+Inputs!$C$20*K53))) -> 100.6511468 | O53: =IF((((N53/100-1)*Inputs!$D$25)+1)*100<100*(1-Inputs!$D$45),1,IF((((N53/100-1)*Inputs!$D$25)+1)*100>100*(1+Inputs!$D$45),1,0)) -> 0 | P53: 104.6653776 | Q53: =IF(MOD(B53,(240/Inputs!$D$35))=0,OFFSET(P53,,0,1,1)*(E53/OFFSET(E53,,0,1,1)),Q52*(1+D53)) -> 100.738099 | R53: =IF(MOD(B53,(240/Inputs!$D$35))=0,OFFSET(P53,,0,1,1)*(E53/OFFSET(E53,,0,1,1)),IF(O53=1,R52*(1+D53)*(N53/100),R52*(1+D53))) -> 100.738099 | S53: =(Q53/P53-1)*Inputs!$D$25 -> -0.03752223213 | T53: =(R53/P53-1)*Inputs!$D$25 -> -0.03752223213 | U53: -0.03752223213 | V53: -0.03752223213 | W53: =IF(MOD(B53,(240/Inputs!$D$35))=0,S53-S52,0) -> 0 | X53: =IF(MOD(B53,(240/Inputs!$D$35))=0,T53-T52,0) -> 0 | Y53: 0 | Z53: =IF(O53=0,0,(N53/100-1)*Inputs!$D$25) -> 0
B54: 46 | C54: 1 | D54: =(1+Inputs!$E$11)^(1/240)-1 -> 0.0001634329919 | E54: 100.7545629 | F54: =(1+Inputs!$E$12)^(1/240)-1 -> 0.0001231692607 | G54: 2.264762048 | H54: 0.06934471279 | I54: =G54*Inputs!$C$16/SQRT(240) -> 0.01023328331 | J54: 0.01052283878 | K54: =(Inputs!$C$18*G54+((1-Inputs!$C$18^2)^(1/2))*H54)*Inputs!$D$16/SQRT(240) -> 0.01602262895 | L54: =Inputs!$F$13/240+K54 -> 0.01631429562 | M54: 104.1693413 | N54: =IF(MOD(B54,(240/Inputs!$D$35))=0,100*(1+Inputs!$C$20*K54),IF(O53=1,100*(1+Inputs!$C$20*L54),N53*(1+Inputs!$C$20*K54))) -> 101.4978122 | O54: =IF((((N54/100-1)*Inputs!$D$25)+1)*100<100*(1-Inputs!$D$45),1,IF((((N54/100-1)*Inputs!$D$25)+1)*100>100*(1+Inputs!$D$45),1,0)) -> 0 | P54: 105.7667545 | Q54: =IF(MOD(B54,(240/Inputs!$D$35))=0,OFFSET(P54,,0,1,1)*(E54/OFFSET(E54,,0,1,1)),Q53*(1+D54)) -> 100.7545629 | R54: =IF(MOD(B54,(240/Inputs!$D$35))=0,OFFSET(P54,,0,1,1)*(E54/OFFSET(E54,,0,1,1)),IF(O54=1,R53*(1+D54)*(N54/100),R53*(1+D54))) -> 100.7545629 | S54: =(Q54/P54-1)*Inputs!$D$25 -> -0.04738910241 | T54: =(R54/P54-1)*Inputs!$D$25 -> -0.04738910241 | U54: -0.04738910241 | V54: -0.04738910241 | W54: =IF(MOD(B54,(240/Inputs!$D$35))=0,S54-S53,0) -> 0 | X54: =IF(MOD(B54,(240/Inputs!$D$35))=0,T54-T53,0) -> 0 | Y54: 0 | Z54: =IF(O54=0,0,(N54/100-1)*Inputs!$D$25) -> 0
B55: 47 | C55: 1 | D55: =(1+Inputs!$E$11)^(1/240)-1 -> 0.0001634329919 | E55: 100.7710295 | F55: =(1+Inputs!$E$12)^(1/240)-1 -> 0.0001231692607 | G55: -1.445982132 | H55: 0.5848058333 | I55: =G55*Inputs!$C$16/SQRT(240) -> -0.00653364217 | J55: -0.006248892475 | K55: =(Inputs!$C$18*G55+((1-Inputs!$C$18^2)^(1/2))*H55)*Inputs!$D$16/SQRT(240) -> -0.00810594474 | L55: =Inputs!$F$13/240+K55 -> -0.007814278073 | M55: 103.3553331 | N55: =IF(MOD(B55,(240/Inputs!$D$35))=0,100*(1+Inputs!$C$20*K55),IF(O54=1,100*(1+Inputs!$C$20*L55),N54*(1+Inputs!$C$20*K55))) -> 101.0658759 | O55: =IF((((N55/100-1)*Inputs!$D$25)+1)*100<100*(1-Inputs!$D$45),1,IF((((N55/100-1)*Inputs!$D$25)+1)*100>100*(1+Inputs!$D$45),1,0)) -> 0 | P55: 105.1058294 | Q55: =IF(MOD(B55,(240/Inputs!$D$35))=0,OFFSET(P55,,0,1,1)*(E55/OFFSET(E55,,0,1,1)),Q54*(1+D55)) -> 100.7710295 | R55: =IF(MOD(B55,(240/Inputs!$D$35))=0,OFFSET(P55,,0,1,1)*(E55/OFFSET(E55,,0,1,1)),IF(O55=1,R54*(1+D55)*(N55/100),R54*(1+D55))) -> 100.7710295 | S55: =(Q55/P55-1)*Inputs!$D$25 -> -0.04124224021 | T55: =(R55/P55-1)*Inputs!$D$25 -> -0.04124224021 | U55: -0.04124224021 | V55: -0.04124224021 | W55: =IF(MOD(B55,(240/Inputs!$D$35))=0,S55-S54,0) -> 0 | X55: =IF(MOD(B55,(240/Inputs!$D$35))=0,T55-T54,0) -> 0 | Y55: 0 | Z55: =IF(O55=0,0,(N55/100-1)*Inputs!$D$25) -> 0
B56: 48 | C56: 1 | D56: =(1+Inputs!$E$11)^(1/240)-1 -> 0.0001634329919 | E56: 100.7874989 | F56: =(1+Inputs!$E$12)^(1/240)-1 -> 0.0001231692607 | G56: 1.385736593 | H56: 1.862996943 | I56: =G56*Inputs!$C$16/SQRT(240) -> 0.006261423872 | J56: 0.006549840919 | K56: =(Inputs!$C$18*G56+((1-Inputs!$C$18^2)^(1/2))*H56)*Inputs!$D$16/SQRT(240) -> 0.01595068419 | L56: =Inputs!$F$13/240+K56 -> 0.01624235086 | M56: 105.0340667 | N56: =IF(MOD(B56,(240/Inputs!$D$35))=0,100*(1+Inputs!$C$20*K56),IF(O55=1,100*(1+Inputs!$C$20*L56),N55*(1+Inputs!$C$20*K56))) -> 101.9122126 | O56: =IF((((N56/100-1)*Inputs!$D$25)+1)*100<100*(1-Inputs!$D$45),1,IF((((N56/100-1)*Inputs!$D$25)+1)*100>100*(1+Inputs!$D$45),1,0)) -> 0 | P56: 105.7942559 | Q56: =IF(MOD(B56,(240/Inputs!$D$35))=0,OFFSET(P56,,0,1,1)*(E56/OFFSET(E56,,0,1,1)),Q55*(1+D56)) -> 100.7874989 | R56: =IF(MOD(B56,(240/Inputs!$D$35))=0,OFFSET(P56,,0,1,1)*(E56/OFFSET(E56,,0,1,1)),IF(O56=1,R55*(1+D56)*(N56/100),R55*(1+D56))) -> 100.7874989 | S56: =(Q56/P56-1)*Inputs!$D$25 -> -0.04732541454 | T56: =(R56/P56-1)*Inputs!$D$25 -> -0.04732541454 | U56: -0.04732541454 | V56: -0.04732541454 | W56: =IF(MOD(B56,(240/Inputs!$D$35))=0,S56-S55,0) -> 0 | X56: =IF(MOD(B56,(240/Inputs!$D$35))=0,T56-T55,0) -> 0 | Y56: 0 | Z56: =IF(O56=0,0,(N56/100-1)*Inputs!$D$25) -> 0
B57: 49 | C57: 1 | D57: =(1+Inputs!$E$11)^(1/240)-1 -> 0.0001634329919 | E57: 100.8039709 | F57: =(1+Inputs!$E$12)^(1/240)-1 -> 0.0001231692607 | G57: -0.1374364291 | H57: 0.227068234 | I57: =G57*Inputs!$C$16/SQRT(240) -> -0.0006210038345 | J57: -0.0003345594456 | K57: =(Inputs!$C$18*G57+((1-Inputs!$C$18^2)^(1/2))*H57)*Inputs!$D$16/SQRT(240) -> -0.0001914496042 | L57: =Inputs!$F$13/240+K57 -> 0.0001002170625 | M57: 105.0445929 | N57: =IF(MOD(B57,(240/Inputs!$D$35))=0,100*(1+Inputs!$C$20*K57),IF(O56=1,100*(1+Inputs!$C$20*L57),N56*(1+Inputs!$C$20*K57))) -> 101.9019693 | O57: =IF((((N57/100-1)*Inputs!$D$25)+1)*100<100*(1-Inputs!$D$45),1,IF((((N57/100-1)*Inputs!$D$25)+1)*100>100*(1+Inputs!$D$45),1,0)) -> 0 | P57: 105.7588614 | Q57: =IF(MOD(B57,(240/Inputs!$D$35))=0,OFFSET(P57,,0,1,1)*(E57/OFFSET(E57,,0,1,1)),Q56*(1+D57)) -> 100.8039709 | R57: =IF(MOD(B57,(240/Inputs!$D$35))=0,OFFSET(P57,,0,1,1)*(E57/OFFSET(E57,,0,1,1)),IF(O57=1,R56*(1+D57)*(N57/100),R56*(1+D57))) -> 100.8039709 | S57: =(Q57/P57-1)*Inputs!$D$25 -> -0.04685083103 | T57: =(R57/P57-1)*Inputs!$D$25 -> -0.04685083103 | U57: -0.04685083103 | V57: -0.04685083103 | W57: =IF(MOD(B57,(240/Inputs!$D$35))=0,S57-S56,0) -> 0 | X57: =IF(MOD(B57,(240/Inputs!$D$35))=0,T57-T56,0) -> 0 | Y57: 0 | Z57: =IF(O57=0,0,(N57/100-1)*Inputs!$D$25) -> 0
B58: 50 | C58: 1 | D58: =(1+Inputs!$E$11)^(1/240)-1 -> 0.0001634329919 | E58: 100.8204455 | F58: =(1+Inputs!$E$12)^(1/240)-1 -> 0.0001231692607 | G58: 0.09986398644 | H58: -0.1851124296 | I58: =G58*Inputs!$C$16/SQRT(240) -> 0.0004512334824 | J58: 0.0007379851986 | K58: =(Inputs!$C$18*G58+((1-Inputs!$C$18^2)^(1/2))*H58)*Inputs!$D$16/SQRT(240) -> 7.117730387e-05 | L58: =Inputs!$F$13/240+K58 -> 0.0003628439705 | M58: 105.0827077 | N58: =IF(MOD(B58,(240/Inputs!$D$35))=0,100*(1+Inputs!$C$20*K58),IF(O57=1,100*(1+Inputs!$C$20*L58),N57*(1+Inputs!$C$20*K58))) -> 101.9057772 | O58: =IF((((N58/100-1)*Inputs!$D$25)+1)*100<100*(1-Inputs!$D$45),1,IF((((N58/100-1)*Inputs!$D$25)+1)*100>100*(1+Inputs!$D$45),1,0)) -> 0 | P58: 105.8369099 | Q58: =IF(MOD(B58,(240/Inputs!$D$35))=0,OFFSET(P58,,0,1,1)*(E58/OFFSET(E58,,0,1,1)),Q57*(1+D58)) -> 100.8204455 | R58: =IF(MOD(B58,(240/Inputs!$D$35))=0,OFFSET(P58,,0,1,1)*(E58/OFFSET(E58,,0,1,1)),IF(O58=1,R57*(1+D58)*(N58/100),R57*(1+D58))) -> 100.8204455 | S58: =(Q58/P58-1)*Inputs!$D$25 -> -0.04739806114 | T58: =(R58/P58-1)*Inputs!$D$25 -> -0.04739806114 | U58: -0.04739806114 | V58: -0.04739806114 | W58: =IF(MOD(B58,(240/Inputs!$D$35))=0,S58-S57,0) -> 0 | X58: =IF(MOD(B58,(240/Inputs!$D$35))=0,T58-T57,0) -> 0 | Y58: 0 | Z58: =IF(O58=0,0,(N58/100-1)*Inputs!$D$25) -> 0
B59: 51 | C59: 1 | D59: =(1+Inputs!$E$11)^(1/240)-1 -> 0.0001634329919 | E59: 100.8369229 | F59: =(1+Inputs!$E$12)^(1/240)-1 -> 0.0001231692607 | G59: 0.7027334294 | H59: 1.410687693 | I59: =G59*Inputs!$C$16/SQRT(240) -> 0.003175287347 | J59: 0.003462819838 | K59: =(Inputs!$C$18*G59+((1-Inputs!$C$18^2)^(1/2))*H59)*Inputs!$D$16/SQRT(240) -> 0.009662044612 | L59: =Inputs!$F$13/240+K59 -> 0.009953711278 | M59: 106.1286706 | N59: =IF(MOD(B59,(240/Inputs!$D$35))=0,100*(1+Inputs!$C$20*K59),IF(O58=1,100*(1+Inputs!$C$20*L59),N58*(1+Inputs!$C$20*K59))) -> 102.4227017 | O59: =IF((((N59/100-1)*Inputs!$D$25)+1)*100<100*(1-Inputs!$D$45),1,IF((((N59/100-1)*Inputs!$D$25)+1)*100>100*(1+Inputs!$D$45),1,0)) -> 0 | P59: 106.203404 | Q59: =IF(MOD(B59,(240/Inputs!$D$35))=0,OFFSET(P59,,0,1,1)*(E59/OFFSET(E59,,0,1,1)),Q58*(1+D59)) -> 100.8369229 | R59: =IF(MOD(B59,(240/Inputs!$D$35))=0,OFFSET(P59,,0,1,1)*(E59/OFFSET(E59,,0,1,1)),IF(O59=1,R58*(1+D59)*(N59/100),R58*(1+D59))) -> 100.8369229 | S59: =(Q59/P59-1)*Inputs!$D$25 -> -0.05053021735 | T59: =(R59/P59-1)*Inputs!$D$25 -> -0.05053021735 | U59: -0.05053021735 | V59: -0.05053021735 | W59: =IF(MOD(B59,(240/Inputs!$D$35))=0,S59-S58,0) -> 0 | X59: =IF(MOD(B59,(240/Inputs!$D$35))=0,T59-T58,0) -> 0 | Y59: 0 | Z59: =IF(O59=0,0,(N59/100-1)*Inputs!$D$25) -> 0
B60: 52 | C60: 1 | D60: =(1+Inputs!$E$11)^(1/240)-1 -> 0.0001634329919 | E60: 100.853403 | F60: =(1+Inputs!$E$12)^(1/240)-1 -> 0.0001231692607 | G60: -0.6613212568 | H60: -0.4296019414 | I60: =G60*Inputs!$C$16/SQRT(240) -> -0.00298816725 | J60: -0.002702401343 | K60: =(Inputs!$C$18*G60+((1-Inputs!$C$18^2)^(1/2))*H60)*Inputs!$D$16/SQRT(240) -> -0.006060818284 | L60: =Inputs!$F$13/240+K60 -> -0.005769151617 | M60: 105.5163982 | N60: =IF(MOD(B60,(240/Inputs!$D$35))=0,100*(1+Inputs!$C$20*K60),IF(O59=1,100*(1+Inputs!$C$20*L60),N59*(1+Inputs!$C$20*K60))) -> 102.0967999 | O60: =IF((((N60/100-1)*Inputs!$D$25)+1)*100<100*(1-Inputs!$D$45),1,IF((((N60/100-1)*Inputs!$D$25)+1)*100>100*(1+Inputs!$D$45),1,0)) -> 0 | P60: 105.9163998 | Q60: =IF(MOD(B60,(240/Inputs!$D$35))=0,OFFSET(P60,,0,1,1)*(E60/OFFSET(E60,,0,1,1)),Q59*(1+D60)) -> 100.853403 | R60: =IF(MOD(B60,(240/Inputs!$D$35))=0,OFFSET(P60,,0,1,1)*(E60/OFFSET(E60,,0,1,1)),IF(O60=1,R59*(1+D60)*(N60/100),R59*(1+D60))) -> 100.853403 | S60: =(Q60/P60-1)*Inputs!$D$25 -> -0.04780182103 | T60: =(R60/P60-1)*Inputs!$D$25 -> -0.04780182103 | U60: -0.04780182103 | V60: -0.04780182103 | W60: =IF(MOD(B60,(240/Inputs!$D$35))=0,S60-S59,0) -> 0 | X60: =IF(MOD(B60,(240/Inputs!$D$35))=0,T60-T59,0) -> 0 | Y60: 0 | Z60: =IF(O60=0,0,(N60/100-1)*Inputs!$D$25) -> 0
B61: 53 | C61: 1 | D61: =(1+Inputs!$E$11)^(1/240)-1 -> 0.0001634329919 | E61: 100.8698858 | F61: =(1+Inputs!$E$12)^(1/240)-1 -> 0.0001231692607 | G61: -1.044181009 | H61: -0.09864734853 | I61: =G61*Inputs!$C$16/SQRT(240) -> -0.004718111601 | J61: -0.004432841534 | K61: =(Inputs!$C$18*G61+((1-Inputs!$C$18^2)^(1/2))*H61)*Inputs!$D$16/SQRT(240) -> -0.007612443967 | L61: =Inputs!$F$13/240+K61 -> -0.0073207773 | M61: 104.7439361 | N61: =IF(MOD(B61,(240/Inputs!$D$35))=0,100*(1+Inputs!$C$20*K61),IF(O60=1,100*(1+Inputs!$C$20*L61),N60*(1+Inputs!$C$20*K61))) -> 101.6887667 | O61: =IF((((N61/100-1)*Inputs!$D$25)+1)*100<100*(1-Inputs!$D$45),1,IF((((N61/100-1)*Inputs!$D$25)+1)*100>100*(1+Inputs!$D$45),1,0)) -> 0 | P61: 105.4468892 | Q61: =IF(MOD(B61,(240/Inputs!$D$35))=0,OFFSET(P61,,0,1,1)*(E61/OFFSET(E61,,0,1,1)),Q60*(1+D61)) -> 100.8698858 | R61: =IF(MOD(B61,(240/Inputs!$D$35))=0,OFFSET(P61,,0,1,1)*(E61/OFFSET(E61,,0,1,1)),IF(O61=1,R60*(1+D61)*(N61/100),R60*(1+D61))) -> 100.8698858 | S61: =(Q61/P61-1)*Inputs!$D$25 -> -0.04340576979 | T61: =(R61/P61-1)*Inputs!$D$25 -> -0.04340576979 | U61: -0.04340576979 | V61: -0.04340576979 | W61: =IF(MOD(B61,(240/Inputs!$D$35))=0,S61-S60,0) -> 0 | X61: =IF(MOD(B61,(240/Inputs!$D$35))=0,T61-T60,0) -> 0 | Y61: 0 | Z61: =IF(O61=0,0,(N61/100-1)*Inputs!$D$25) -> 0
B62: 54 | C62: 1 | D62: =(1+Inputs!$E$11)^(1/240)-1 -> 0.0001634329919 | E62: 100.8863713 | F62: =(1+Inputs!$E$12)^(1/240)-1 -> 0.0001231692607 | G62: 0.983417123 | H62: 0.3316826528 | I62: =G62*Inputs!$C$16/SQRT(240) -> 0.004443551163 | J62: 0.004731447167 | K62: =(Inputs!$C$18*G62+((1-Inputs!$C$18^2)^(1/2))*H62)*Inputs!$D$16/SQRT(240) -> 0.00797565418 | L62: =Inputs!$F$13/240+K62 -> 0.008267320847 | M62: 105.6098879 | N62: =IF(MOD(B62,(240/Inputs!$D$35))=0,100*(1+Inputs!$C$20*K62),IF(O61=1,100*(1+Inputs!$C$20*L62),N61*(1+Inputs!$C$20*K62))) -> 102.1145598 | O62: =IF((((N62/100-1)*Inputs!$D$25)+1)*100<100*(1-Inputs!$D$45),1,IF((((N62/100-1)*Inputs!$D$25)+1)*100>100*(1+Inputs!$D$45),1,0)) -> 0 | P62: 105.9458056 | Q62: =IF(MOD(B62,(240/Inputs!$D$35))=0,OFFSET(P62,,0,1,1)*(E62/OFFSET(E62,,0,1,1)),Q61*(1+D62)) -> 100.8863713 | R62: =IF(MOD(B62,(240/Inputs!$D$35))=0,OFFSET(P62,,0,1,1)*(E62/OFFSET(E62,,0,1,1)),IF(O62=1,R61*(1+D62)*(N62/100),R61*(1+D62))) -> 100.8863713 | S62: =(Q62/P62-1)*Inputs!$D$25 -> -0.04775492798 | T62: =(R62/P62-1)*Inputs!$D$25 -> -0.04775492798 | U62: -0.04775492798 | V62: -0.04775492798 | W62: =IF(MOD(B62,(240/Inputs!$D$35))=0,S62-S61,0) -> 0 | X62: =IF(MOD(B62,(240/Inputs!$D$35))=0,T62-T61,0) -> 0 | Y62: 0 | Z62: =IF(O62=0,0,(N62/100-1)*Inputs!$D$25) -> 0
B63: 55 | C63: 1 | D63: =(1+Inputs!$E$11)^(1/240)-1 -> 0.0001634329919 | E63: 100.9028594 | F63: =(1+Inputs!$E$12)^(1/240)-1 -> 0.0001231692607 | G63: -0.3740767135 | H63: -2.123313858 | I63: =G63*Inputs!$C$16/SQRT(240) -> -0.001690258362 | J63: -0.001404120445 | K63: =(Inputs!$C$18*G63+((1-Inputs!$C$18^2)^(1/2))*H63)*Inputs!$D$16/SQRT(240) -> -0.009776959897 | L63: =Inputs!$F$13/240+K63 -> -0.009485293231 | M63: 104.6081471 | N63: =IF(MOD(B63,(240/Inputs!$D$35))=0,100*(1+Inputs!$C$20*K63),IF(O62=1,100*(1+Inputs!$C$20*L63),N62*(1+Inputs!$C$20*K63))) -> 101.5904155 | O63: =IF((((N63/100-1)*Inputs!$D$25)+1)*100<100*(1-Inputs!$D$45),1,IF((((N63/100-1)*Inputs!$D$25)+1)*100>100*(1+Inputs!$D$45),1,0)) -> 0 | P63: 105.7970449 | Q63: =IF(MOD(B63,(240/Inputs!$D$35))=0,OFFSET(P63,,0,1,1)*(E63/OFFSET(E63,,0,1,1)),Q62*(1+D63)) -> 100.9028594 | R63: =IF(MOD(B63,(240/Inputs!$D$35))=0,OFFSET(P63,,0,1,1)*(E63/OFFSET(E63,,0,1,1)),IF(O63=1,R62*(1+D63)*(N63/100),R62*(1+D63))) -> 100.9028594 | S63: =(Q63/P63-1)*Inputs!$D$25 -> -0.04626013408 | T63: =(R63/P63-1)*Inputs!$D$25 -> -0.04626013408 | U63: -0.04626013408 | V63: -0.04626013408 | W63: =IF(MOD(B63,(240/Inputs!$D$35))=0,S63-S62,0) -> 0 | X63: =IF(MOD(B63,(240/Inputs!$D$35))=0,T63-T62,0) -> 0 | Y63: 0 | Z63: =IF(O63=0,0,(N63/100-1)*Inputs!$D$25) -> 0
B64: 56 | C64: 1 | D64: =(1+Inputs!$E$11)^(1/240)-1 -> 0.0001634329919 | E64: 100.9193503 | F64: =(1+Inputs!$E$12)^(1/240)-1 -> 0.0001231692607 | G64: -0.7083054721 | H64: -0.3894766656 | I64: =G64*Inputs!$C$16/SQRT(240) -> -0.003200464513 | J64: -0.002914759456 | K64: =(Inputs!$C$18*G64+((1-Inputs!$C$18^2)^(1/2))*H64)*Inputs!$D$16/SQRT(240) -> -0.00625288411 | L64: =Inputs!$F$13/240+K64 -> -0.005961217443 | M64: 103.9845552 | N64: =IF(MOD(B64,(240/Inputs!$D$35))=0,100*(1+Inputs!$C$20*K64),IF(O63=1,100*(1+Inputs!$C$20*L64),N63*(1+Inputs!$C$20*K64))) -> 101.2569182 | O64: =IF((((N64/100-1)*Inputs!$D$25)+1)*100<100*(1-Inputs!$D$45),1,IF((((N64/100-1)*Inputs!$D$25)+1)*100>100*(1+Inputs!$D$45),1,0)) -> 0 | P64: 105.488672 | Q64: =IF(MOD(B64,(240/Inputs!$D$35))=0,OFFSET(P64,,0,1,1)*(E64/OFFSET(E64,,0,1,1)),Q63*(1+D64)) -> 100.9193503 | R64: =IF(MOD(B64,(240/Inputs!$D$35))=0,OFFSET(P64,,0,1,1)*(E64/OFFSET(E64,,0,1,1)),IF(O64=1,R63*(1+D64)*(N64/100),R63*(1+D64))) -> 100.9193503 | S64: =(Q64/P64-1)*Inputs!$D$25 -> -0.04331575707 | T64: =(R64/P64-1)*Inputs!$D$25 -> -0.04331575707 | U64: -0.04331575707 | V64: -0.04331575707 | W64: =IF(MOD(B64,(240/Inputs!$D$35))=0,S64-S63,0) -> 0 | X64: =IF(MOD(B64,(240/Inputs!$D$35))=0,T64-T63,0) -> 0 | Y64: 0 | Z64: =IF(O64=0,0,(N64/100-1)*Inputs!$D$25) -> 0
B65: 57 | C65: 1 | D65: =(1+Inputs!$E$11)^(1/240)-1 -> 0.0001634329919 | E65: 100.9358438 | F65: =(1+Inputs!$E$12)^(1/240)-1 -> 0.0001231692607 | G65: -0.9615139825 | H65: 1.248185421 | I65: =G65*Inputs!$C$16/SQRT(240) -> -0.004344582248 | J65: -0.00405920512 | K65: =(Inputs!$C$18*G65+((1-Inputs!$C$18^2)^(1/2))*H65)*Inputs!$D$16/SQRT(240) -> -0.002488710724 | L65: =Inputs!$F$13/240+K65 -> -0.002197044058 | M65: 103.7560966 | N65: =IF(MOD(B65,(240/Inputs!$D$35))=0,100*(1+Inputs!$C$20*K65),IF(O64=1,100*(1+Inputs!$C$20*L65),N64*(1+Inputs!$C$20*K65))) -> 101.1246186 | O65: =IF((((N65/100-1)*Inputs!$D$25)+1)*100<100*(1-Inputs!$D$45),1,IF((((N65/100-1)*Inputs!$D$25)+1)*100>100*(1+Inputs!$D$45),1,0)) -> 0 | P65: 105.0604718 | Q65: =IF(MOD(B65,(240/Inputs!$D$35))=0,OFFSET(P65,,0,1,1)*(E65/OFFSET(E65,,0,1,1)),Q64*(1+D65)) -> 100.9358438 | R65: =IF(MOD(B65,(240/Inputs!$D$35))=0,OFFSET(P65,,0,1,1)*(E65/OFFSET(E65,,0,1,1)),IF(O65=1,R64*(1+D65)*(N65/100),R64*(1+D65))) -> 100.9358438 | S65: =(Q65/P65-1)*Inputs!$D$25 -> -0.0392595608 | T65: =(R65/P65-1)*Inputs!$D$25 -> -0.0392595608 | U65: -0.0392595608 | V65: -0.0392595608 | W65: =IF(MOD(B65,(240/Inputs!$D$35))=0,S65-S64,0) -> 0 | X65: =IF(MOD(B65,(240/Inputs!$D$35))=0,T65-T64,0) -> 0 | Y65: 0 | Z65: =IF(O65=0,0,(N65/100-1)*Inputs!$D$25) -> 0
B66: 58 | C66: 1 | D66: =(1+Inputs!$E$11)^(1/240)-1 -> 0.0001634329919 | E66: 100.9523401 | F66: =(1+Inputs!$E$12)^(1/240)-1 -> 0.0001231692607 | G66: -0.5349515643 | H66: -0.07196635582 | I66: =G66*Inputs!$C$16/SQRT(240) -> -0.00241716825 | J66: -0.002131238682 | K66: =(Inputs!$C$18*G66+((1-Inputs!$C$18^2)^(1/2))*H66)*Inputs!$D$16/SQRT(240) -> -0.003972331683 | L66: =Inputs!$F$13/240+K66 -> -0.003680665016 | M66: 103.3742051 | N66: =IF(MOD(B66,(240/Inputs!$D$35))=0,100*(1+Inputs!$C$20*K66),IF(O65=1,100*(1+Inputs!$C$20*L66),N65*(1+Inputs!$C$20*K66))) -> 100.9137258 | O66: =IF((((N66/100-1)*Inputs!$D$25)+1)*100<100*(1-Inputs!$D$45),1,IF((((N66/100-1)*Inputs!$D$25)+1)*100>100*(1+Inputs!$D$45),1,0)) -> 0 | P66: 104.8365629 | Q66: =IF(MOD(B66,(240/Inputs!$D$35))=0,OFFSET(P66,,0,1,1)*(E66/OFFSET(E66,,0,1,1)),Q65*(1+D66)) -> 100.9523401 | R66: =IF(MOD(B66,(240/Inputs!$D$35))=0,OFFSET(P66,,0,1,1)*(E66/OFFSET(E66,,0,1,1)),IF(O66=1,R65*(1+D66)*(N66/100),R65*(1+D66))) -> 100.9523401 | S66: =(Q66/P66-1)*Inputs!$D$25 -> -0.0370502684 | T66: =(R66/P66-1)*Inputs!$D$25 -> -0.0370502684 | U66: -0.0370502684 | V66: -0.0370502684 | W66: =IF(MOD(B66,(240/Inputs!$D$35))=0,S66-S65,0) -> 0 | X66: =IF(MOD(B66,(240/Inputs!$D$35))=0,T66-T65,0) -> 0 | Y66: 0 | Z66: =IF(O66=0,0,(N66/100-1)*Inputs!$D$25) -> 0
B67: 59 | C67: 1 | D67: =(1+Inputs!$E$11)^(1/240)-1 -> 0.0001634329919 | E67: 100.968839 | F67: =(1+Inputs!$E$12)^(1/240)-1 -> 0.0001231692607 | G67: -1.027510803 | H67: 0.2198901057 | I67: =G67*Inputs!$C$16/SQRT(240) -> -0.004642787599 | J67: -0.004357495943 | K67: =(Inputs!$C$18*G67+((1-Inputs!$C$18^2)^(1/2))*H67)*Inputs!$D$16/SQRT(240) -> -0.006420723563 | L67: =Inputs!$F$13/240+K67 -> -0.006129056897 | M67: 102.7406187 | N67: =IF(MOD(B67,(240/Inputs!$D$35))=0,100*(1+Inputs!$C$20*K67),IF(O66=1,100*(1+Inputs!$C$20*L67),N66*(1+Inputs!$C$20*K67))) -> 100.5735578 | O67: =IF((((N67/100-1)*Inputs!$D$25)+1)*100<100*(1-Inputs!$D$45),1,IF((((N67/100-1)*Inputs!$D$25)+1)*100>100*(1+Inputs!$D$45),1,0)) -> 0 | P67: 104.379738 | Q67: =IF(MOD(B67,(240/Inputs!$D$35))=0,OFFSET(P67,,0,1,1)*(E67/OFFSET(E67,,0,1,1)),Q66*(1+D67)) -> 100.968839 | R67: =IF(MOD(B67,(240/Inputs!$D$35))=0,OFFSET(P67,,0,1,1)*(E67/OFFSET(E67,,0,1,1)),IF(O67=1,R66*(1+D67)*(N67/100),R66*(1+D67))) -> 100.968839 | S67: =(Q67/P67-1)*Inputs!$D$25 -> -0.03267778803 | T67: =(R67/P67-1)*Inputs!$D$25 -> -0.03267778803 | U67: -0.03267778803 | V67: -0.03267778803 | W67: =IF(MOD(B67,(240/Inputs!$D$35))=0,S67-S66,0) -> 0 | X67: =IF(MOD(B67,(240/Inputs!$D$35))=0,T67-T66,0) -> 0 | Y67: 0 | Z67: =IF(O67=0,0,(N67/100-1)*Inputs!$D$25) -> 0
B68: 60 | C68: 1 | D68: =(1+Inputs!$E$11)^(1/240)-1 -> 0.0001634329919 | E68: 100.9853407 | F68: =(1+Inputs!$E$12)^(1/240)-1 -> 0.0001231692607 | G68: 0.4586095469 | H68: -0.09721187366 | I68: =G68*Inputs!$C$16/SQRT(240) -> 0.002072218327 | J68: 0.002359434654 | K68: =(Inputs!$C$18*G68+((1-Inputs!$C$18^2)^(1/2))*H68)*Inputs!$D$16/SQRT(240) -> 0.002868911786 | L68: =Inputs!$F$13/240+K68 -> 0.003160578452 | M68: 103.0653385 | N68: =IF(MOD(B68,(240/Inputs!$D$35))=0,100*(1+Inputs!$C$20*K68),IF(O67=1,100*(1+Inputs!$C$20*L68),N67*(1+Inputs!$C$20*K68))) -> 100.7250395 | O68: =IF((((N68/100-1)*Inputs!$D$25)+1)*100<100*(1-Inputs!$D$45),1,IF((((N68/100-1)*Inputs!$D$25)+1)*100>100*(1+Inputs!$D$45),1,0)) -> 0 | P68: 104.6260151 | Q68: =IF(MOD(B68,(240/Inputs!$D$35))=0,OFFSET(P68,,0,1,1)*(E68/OFFSET(E68,,0,1,1)),Q67*(1+D68)) -> 100.9853407 | R68: =IF(MOD(B68,(240/Inputs!$D$35))=0,OFFSET(P68,,0,1,1)*(E68/OFFSET(E68,,0,1,1)),IF(O68=1,R67*(1+D68)*(N68/100),R67*(1+D68))) -> 100.9853407 | S68: =(Q68/P68-1)*Inputs!$D$25 -> -0.034797029 | T68: =(R68/P68-1)*Inputs!$D$25 -> -0.034797029 | U68: -0.034797029 | V68: -0.034797029 | W68: =IF(MOD(B68,(240/Inputs!$D$35))=0,S68-S67,0) -> 0 | X68: =IF(MOD(B68,(240/Inputs!$D$35))=0,T68-T67,0) -> 0 | Y68: 0 | Z68: =IF(O68=0,0,(N68/100-1)*Inputs!$D$25) -> 0
B69: 61 | C69: 1 | D69: =(1+Inputs!$E$11)^(1/240)-1 -> 0.0001634329919 | E69: 101.001845 | F69: =(1+Inputs!$E$12)^(1/240)-1 -> 0.0001231692607 | G69: 1.270536082 | H69: 0.9050934337 | I69: =G69*Inputs!$C$16/SQRT(240) -> 0.005740892601 | J69: 0.006029160452 | K69: =(Inputs!$C$18*G69+((1-Inputs!$C$18^2)^(1/2))*H69)*Inputs!$D$16/SQRT(240) -> 0.01191332431 | L69: =Inputs!$F$13/240+K69 -> 0.01220499098 | M69: 104.3232501 | N69: =IF(MOD(B69,(240/Inputs!$D$35))=0,100*(1+Inputs!$C$20*K69),IF(O68=1,100*(1+Inputs!$C$20*L69),N68*(1+Inputs!$C$20*K69))) -> 101.3550238 | O69: =IF((((N69/100-1)*Inputs!$D$25)+1)*100<100*(1-Inputs!$D$45),1,IF((((N69/100-1)*Inputs!$D$25)+1)*100>100*(1+Inputs!$D$45),1,0)) -> 0 | P69: 105.2568222 | Q69: =IF(MOD(B69,(240/Inputs!$D$35))=0,OFFSET(P69,,0,1,1)*(E69/OFFSET(E69,,0,1,1)),Q68*(1+D69)) -> 101.001845 | R69: =IF(MOD(B69,(240/Inputs!$D$35))=0,OFFSET(P69,,0,1,1)*(E69/OFFSET(E69,,0,1,1)),IF(O69=1,R68*(1+D69)*(N69/100),R68*(1+D69))) -> 101.001845 | S69: =(Q69/P69-1)*Inputs!$D$25 -> -0.04042471634 | T69: =(R69/P69-1)*Inputs!$D$25 -> -0.04042471634 | U69: -0.04042471634 | V69: -0.04042471634 | W69: =IF(MOD(B69,(240/Inputs!$D$35))=0,S69-S68,0) -> 0 | X69: =IF(MOD(B69,(240/Inputs!$D$35))=0,T69-T68,0) -> 0 | Y69: 0 | Z69: =IF(O69=0,0,(N69/100-1)*Inputs!$D$25) -> 0
B70: 62 | C70: 1 | D70: =(1+Inputs!$E$11)^(1/240)-1 -> 0.0001634329919 | E70: 101.018352 | F70: =(1+Inputs!$E$12)^(1/240)-1 -> 0.0001231692607 | G70: 0.0593249071 | H70: 0.1783837284 | I70: =G70*Inputs!$C$16/SQRT(240) -> 0.0002680584401 | J70: 0.0005547576541 | K70: =(Inputs!$C$18*G70+((1-Inputs!$C$18^2)^(1/2))*H70)*Inputs!$D$16/SQRT(240) -> 0.001015868666 | L70: =Inputs!$F$13/240+K70 -> 0.001307535333 | M70: 104.4596564 | N70: =IF(MOD(B70,(240/Inputs!$D$35))=0,100*(1+Inputs!$C$20*K70),IF(O69=1,100*(1+Inputs!$C$20*L70),N69*(1+Inputs!$C$20*K70))) -> 101.4090796 | O70: =IF((((N70/100-1)*Inputs!$D$25)+1)*100<100*(1-Inputs!$D$45),1,IF((((N70/100-1)*Inputs!$D$25)+1)*100>100*(1+Inputs!$D$45),1,0)) -> 0 | P70: 105.3152142 | Q70: =IF(MOD(B70,(240/Inputs!$D$35))=0,OFFSET(P70,,0,1,1)*(E70/OFFSET(E70,,0,1,1)),Q69*(1+D70)) -> 101.018352 | R70: =IF(MOD(B70,(240/Inputs!$D$35))=0,OFFSET(P70,,0,1,1)*(E70/OFFSET(E70,,0,1,1)),IF(O70=1,R69*(1+D70)*(N70/100),R69*(1+D70))) -> 101.018352 | S70: =(Q70/P70-1)*Inputs!$D$25 -> -0.04080001362 | T70: =(R70/P70-1)*Inputs!$D$25 -> -0.04080001362 | U70: -0.04080001362 | V70: -0.04080001362 | W70: =IF(MOD(B70,(240/Inputs!$D$35))=0,S70-S69,0) -> 0 | X70: =IF(MOD(B70,(240/Inputs!$D$35))=0,T70-T69,0) -> 0 | Y70: 0 | Z70: =IF(O70=0,0,(N70/100-1)*Inputs!$D$25) -> 0
B71: 63 | C71: 1 | D71: =(1+Inputs!$E$11)^(1/240)-1 -> 0.0001634329919 | E71: 101.0348618 | F71: =(1+Inputs!$E$12)^(1/240)-1 -> 0.0001231692607 | G71: 0.1334545225 | H71: -0.7173163679 | I71: =G71*Inputs!$C$16/SQRT(240) -> 0.0006030116669 | J71: 0.000889806886 | K71: =(Inputs!$C$18*G71+((1-Inputs!$C$18^2)^(1/2))*H71)*Inputs!$D$16/SQRT(240) -> -0.001491577952 | L71: =Inputs!$F$13/240+K71 -> -0.001199911285 | M71: 104.3343141 | N71: =IF(MOD(B71,(240/Inputs!$D$35))=0,100*(1+Inputs!$C$20*K71),IF(O70=1,100*(1+Inputs!$C$20*L71),N70*(1+Inputs!$C$20*K71))) -> 101.3296683 | O71: =IF((((N71/100-1)*Inputs!$D$25)+1)*100<100*(1-Inputs!$D$45),1,IF((((N71/100-1)*Inputs!$D$25)+1)*100>100*(1+Inputs!$D$45),1,0)) -> 0 | P71: 105.4089244 | Q71: =IF(MOD(B71,(240/Inputs!$D$35))=0,OFFSET(P71,,0,1,1)*(E71/OFFSET(E71,,0,1,1)),Q70*(1+D71)) -> 101.0348618 | R71: =IF(MOD(B71,(240/Inputs!$D$35))=0,OFFSET(P71,,0,1,1)*(E71/OFFSET(E71,,0,1,1)),IF(O71=1,R70*(1+D71)*(N71/100),R70*(1+D71))) -> 101.0348618 | S71: =(Q71/P71-1)*Inputs!$D$25 -> -0.04149613204 | T71: =(R71/P71-1)*Inputs!$D$25 -> -0.04149613204 | U71: -0.04149613204 | V71: -0.04149613204 | W71: =IF(MOD(B71,(240/Inputs!$D$35))=0,S71-S70,0) -> 0 | X71: =IF(MOD(B71,(240/Inputs!$D$35))=0,T71-T70,0) -> 0 | Y71: 0 | Z71: =IF(O71=0,0,(N71/100-1)*Inputs!$D$25) -> 0
B72: 64 | C72: 1 | D72: =(1+Inputs!$E$11)^(1/240)-1 -> 0.0001634329919 | E72: 101.0513742 | F72: =(1+Inputs!$E$12)^(1/240)-1 -> 0.0001231692607 | G72: -1.160144594 | H72: -0.107903023 | I72: =G72*Inputs!$C$16/SQRT(240) -> -0.005242090807 | J72: -0.004956970925 | K72: =(Inputs!$C$18*G72+((1-Inputs!$C$18^2)^(1/2))*H72)*Inputs!$D$16/SQRT(240) -> -0.008452119783 | L72: =Inputs!$F$13/240+K72 -> -0.008160453116 | M72: 103.4828988 | N72: =IF(MOD(B72,(240/Inputs!$D$35))=0,100*(1+Inputs!$C$20*K72),IF(O71=1,100*(1+Inputs!$C$20*L72),N71*(1+Inputs!$C$20*K72))) -> 100.8800318 | O72: =IF((((N72/100-1)*Inputs!$D$25)+1)*100<100*(1-Inputs!$D$45),1,IF((((N72/100-1)*Inputs!$D$25)+1)*100>100*(1+Inputs!$D$45),1,0)) -> 0 | P72: 104.8864154 | Q72: =IF(MOD(B72,(240/Inputs!$D$35))=0,OFFSET(P72,,0,1,1)*(E72/OFFSET(E72,,0,1,1)),Q71*(1+D72)) -> 101.0513742 | R72: =IF(MOD(B72,(240/Inputs!$D$35))=0,OFFSET(P72,,0,1,1)*(E72/OFFSET(E72,,0,1,1)),IF(O72=1,R71*(1+D72)*(N72/100),R71*(1+D72))) -> 101.0513742 | S72: =(Q72/P72-1)*Inputs!$D$25 -> -0.03656375543 | T72: =(R72/P72-1)*Inputs!$D$25 -> -0.03656375543 | U72: -0.03656375543 | V72: -0.03656375543 | W72: =IF(MOD(B72,(240/Inputs!$D$35))=0,S72-S71,0) -> 0 | X72: =IF(MOD(B72,(240/Inputs!$D$35))=0,T72-T71,0) -> 0 | Y72: 0 | Z72: =IF(O72=0,0,(N72/100-1)*Inputs!$D$25) -> 0
B73: 65 | C73: =IF(MOD(B73,$C$6)=0,1,0) -> 1 | D73: =(1+Inputs!$E$11)^(1/240)-1 -> 0.0001634329919 | E73: 101.0678893 | F73: =(1+Inputs!$E$12)^(1/240)-1 -> 0.0001231692607 | G73: 2.203313035 | H73: 0.8993737289 | I73: =G73*Inputs!$C$16/SQRT(240) -> 0.009955627141 | J73: 0.01024510303 | K73: =(Inputs!$C$18*G73+((1-Inputs!$C$18^2)^(1/2))*H73)*Inputs!$D$16/SQRT(240) -> 0.01839674565 | L73: =Inputs!$F$13/240+K73 -> 0.01868841232 | M73: 105.4168299 | N73: =IF(MOD(B73,(240/Inputs!$D$35))=0,100*(1+Inputs!$C$20*K73),IF(O72=1,100*(1+Inputs!$C$20*L73),N72*(1+Inputs!$C$20*K73))) -> 101.8543606 | O73: =IF((((N73/100-1)*Inputs!$D$25)+1)*100<100*(1-Inputs!$D$45),1,IF((((N73/100-1)*Inputs!$D$25)+1)*100>100*(1+Inputs!$D$45),1,0)) -> 0 | P73: 105.9609876 | Q73: =IF(MOD(B73,(240/Inputs!$D$35))=0,OFFSET(P73,,0,1,1)*(E73/OFFSET(E73,,0,1,1)),Q72*(1+D73)) -> 101.0678893 | R73: =IF(MOD(B73,(240/Inputs!$D$35))=0,OFFSET(P73,,0,1,1)*(E73/OFFSET(E73,,0,1,1)),IF(O73=1,R72*(1+D73)*(N73/100),R72*(1+D73))) -> 101.0678893 | S73: =(Q73/P73-1)*Inputs!$D$25 -> -0.04617829975 | T73: =(R73/P73-1)*Inputs!$D$25 -> -0.04617829975 | U73: =C73*S73 -> -0.04617829975 | V73: =C73*T73 -> -0.04617829975 | W73: =IF(MOD(B73,(240/Inputs!$D$35))=0,S73-S72,0) -> 0 | X73: =IF(MOD(B73,(240/Inputs!$D$35))=0,T73-T72,0) -> 0 | Y73: 0 | Z73: =IF(O73=0,0,(N73/100-1)*Inputs!$D$25) -> 0
B74: 66 | C74: 1 | D74: =(1+Inputs!$E$11)^(1/240)-1 -> 0.0001634329919 | E74: =E73*(1+D74) -> 101.0844071 | F74: =(1+Inputs!$E$12)^(1/240)-1 -> 0.0001231692607 | G74: =_xlfn.NORM.S.INV(RAND()) -> -0.4827304035 | H74: 2.089206372 | I74: =G74*Inputs!$C$16/SQRT(240) -> -0.002181207949 | J74: =(1+D74)*(1+F74)*(1+I74)-1 -> -0.00189521075 | K74: =(Inputs!$C$18*G74+((1-Inputs!$C$18^2)^(1/2))*H74)*Inputs!$D$16/SQRT(240) -> 0.003688680321 | L74: =Inputs!$F$13/240+K74 -> 0.003980346987 | M74: =M73*(1+L74) -> 105.8364254 | N74: =IF(MOD(B74,(240/Inputs!$D$35))=0,100*(1+Inputs!$C$20*K74),IF(O73=1,100*(1+Inputs!$C$20*L74),N73*(1+Inputs!$C$20*K74))) -> 102.0516073 | O74: =IF((((N74/100-1)*Inputs!$D$25)+1)*100<100*(1-Inputs!$D$45),1,IF((((N74/100-1)*Inputs!$D$25)+1)*100>100*(1+Inputs!$D$45),1,0)) -> 0 | P74: =P73*(1+J74) -> 105.7601692 | Q74: =IF(MOD(B74,(240/Inputs!$D$35))=0,OFFSET(P74,,0,1,1)*(E74/OFFSET(E74,,0,1,1)),Q73*(1+D74)) -> 101.0844071 | R74: =IF(MOD(B74,(240/Inputs!$D$35))=0,OFFSET(P74,,0,1,1)*(E74/OFFSET(E74,,0,1,1)),IF(O74=1,R73*(1+D74)*(N74/100),R73*(1+D74))) -> 101.0844071 | S74: =(Q74/P74-1)*Inputs!$D$25 -> -0.04421099221 | T74: =(R74/P74-1)*Inputs!$D$25 -> -0.04421099221 | U74: -0.04421099221 | V74: -0.04421099221 | W74: =IF(MOD(B74,(240/Inputs!$D$35))=0,S74-S73,0) -> 0 | X74: =IF(MOD(B74,(240/Inputs!$D$35))=0,T74-T73,0) -> 0 | Y74: =ABS(X74) -> 0 | Z74: =IF(O74=0,0,(N74/100-1)*Inputs!$D$25) -> 0
B75: 67 | C75: 1 | D75: =(1+Inputs!$E$11)^(1/240)-1 -> 0.0001634329919 | E75: 101.1009277 | F75: =(1+Inputs!$E$12)^(1/240)-1 -> 0.0001231692607 | G75: 0.4456620318 | H75: -0.804647141 | I75: =G75*Inputs!$C$16/SQRT(240) -> 0.002013715232 | J75: 0.00230091479 | K75: =(Inputs!$C$18*G75+((1-Inputs!$C$18^2)^(1/2))*H75)*Inputs!$D$16/SQRT(240) -> 0.0003900734923 | L75: =Inputs!$F$13/240+K75 -> 0.000681740159 | M75: 105.9085784 | N75: =IF(MOD(B75,(240/Inputs!$D$35))=0,100*(1+Inputs!$C$20*K75),IF(O74=1,100*(1+Inputs!$C$20*L75),N74*(1+Inputs!$C$20*K75))) -> 102.0725064 | O75: =IF((((N75/100-1)*Inputs!$D$25)+1)*100<100*(1-Inputs!$D$45),1,IF((((N75/100-1)*Inputs!$D$25)+1)*100>100*(1+Inputs!$D$45),1,0)) -> 0 | P75: 106.0035143 | Q75: =IF(MOD(B75,(240/Inputs!$D$35))=0,OFFSET(P75,,0,1,1)*(E75/OFFSET(E75,,0,1,1)),Q74*(1+D75)) -> 101.1009277 | R75: =IF(MOD(B75,(240/Inputs!$D$35))=0,OFFSET(P75,,0,1,1)*(E75/OFFSET(E75,,0,1,1)),IF(O75=1,R74*(1+D75)*(N75/100),R74*(1+D75))) -> 101.1009277 | S75: =(Q75/P75-1)*Inputs!$D$25 -> -0.04624928389 | T75: =(R75/P75-1)*Inputs!$D$25 -> -0.04624928389 | U75: -0.04624928389 | V75: -0.04624928389 | W75: =IF(MOD(B75,(240/Inputs!$D$35))=0,S75-S74,0) -> 0 | X75: =IF(MOD(B75,(240/Inputs!$D$35))=0,T75-T74,0) -> 0 | Y75: 0 | Z75: =IF(O75=0,0,(N75/100-1)*Inputs!$D$25) -> 0
B76: 68 | C76: 1 | D76: =(1+Inputs!$E$11)^(1/240)-1 -> 0.0001634329919 | E76: 101.1174509 | F76: =(1+Inputs!$E$12)^(1/240)-1 -> 0.0001231692607 | G76: 0.5136172864 | H76: -3.152056995 | I76: =G76*Inputs!$C$16/SQRT(240) -> 0.002320769729 | J76: 0.002608057296 | K76: =(Inputs!$C$18*G76+((1-Inputs!$C$18^2)^(1/2))*H76)*Inputs!$D$16/SQRT(240) -> -0.007061953159 | L76: =Inputs!$F$13/240+K76 -> -0.006770286492 | M76: 105.191547 | N76: =IF(MOD(B76,(240/Inputs!$D$35))=0,100*(1+Inputs!$C$20*K76),IF(O75=1,100*(1+Inputs!$C$20*L76),N75*(1+Inputs!$C$20*K76))) -> 101.6940699 | O76: =IF((((N76/100-1)*Inputs!$D$25)+1)*100<100*(1-Inputs!$D$45),1,IF((((N76/100-1)*Inputs!$D$25)+1)*100>100*(1+Inputs!$D$45),1,0)) -> 0 | P76: 106.2799775 | Q76: =IF(MOD(B76,(240/Inputs!$D$35))=0,OFFSET(P76,,0,1,1)*(E76/OFFSET(E76,,0,1,1)),Q75*(1+D76)) -> 101.1174509 | R76: =IF(MOD(B76,(240/Inputs!$D$35))=0,OFFSET(P76,,0,1,1)*(E76/OFFSET(E76,,0,1,1)),IF(O76=1,R75*(1+D76)*(N76/100),R75*(1+D76))) -> 101.1174509 | S76: =(Q76/P76-1)*Inputs!$D$25 -> -0.04857478104 | T76: =(R76/P76-1)*Inputs!$D$25 -> -0.04857478104 | U76: -0.04857478104 | V76: -0.04857478104 | W76: =IF(MOD(B76,(240/Inputs!$D$35))=0,S76-S75,0) -> 0 | X76: =IF(MOD(B76,(240/Inputs!$D$35))=0,T76-T75,0) -> 0 | Y76: 0 | Z76: =IF(O76=0,0,(N76/100-1)*Inputs!$D$25) -> 0
B77: 69 | C77: 1 | D77: =(1+Inputs!$E$11)^(1/240)-1 -> 0.0001634329919 | E77: 101.1339768 | F77: =(1+Inputs!$E$12)^(1/240)-1 -> 0.0001231692607 | G77: 1.30374118 | H77: 0.9115354301 | I77: =G77*Inputs!$C$16/SQRT(240) -> 0.005890929192 | J77: 0.006179240047 | K77: =(Inputs!$C$18*G77+((1-Inputs!$C$18^2)^(1/2))*H77)*Inputs!$D$16/SQRT(240) -> 0.01216656002 | L77: =Inputs!$F$13/240+K77 -> 0.01245822669 | M77: 106.5020471 | N77: =IF(MOD(B77,(240/Inputs!$D$35))=0,100*(1+Inputs!$C$20*K77),IF(O76=1,100*(1+Inputs!$C$20*L77),N76*(1+Inputs!$C$20*K77))) -> 102.3436351 | O77: =IF((((N77/100-1)*Inputs!$D$25)+1)*100<100*(1-Inputs!$D$45),1,IF((((N77/100-1)*Inputs!$D$25)+1)*100>100*(1+Inputs!$D$45),1,0)) -> 0 | P77: 106.936707 | Q77: =IF(MOD(B77,(240/Inputs!$D$35))=0,OFFSET(P77,,0,1,1)*(E77/OFFSET(E77,,0,1,1)),Q76*(1+D77)) -> 101.1339768 | R77: =IF(MOD(B77,(240/Inputs!$D$35))=0,OFFSET(P77,,0,1,1)*(E77/OFFSET(E77,,0,1,1)),IF(O77=1,R76*(1+D77)*(N77/100),R76*(1+D77))) -> 101.1339768 | S77: =(Q77/P77-1)*Inputs!$D$25 -> -0.05426322134 | T77: =(R77/P77-1)*Inputs!$D$25 -> -0.05426322134 | U77: -0.05426322134 | V77: -0.05426322134 | W77: =IF(MOD(B77,(240/Inputs!$D$35))=0,S77-S76,0) -> 0 | X77: =IF(MOD(B77,(240/Inputs!$D$35))=0,T77-T76,0) -> 0 | Y77: 0 | Z77: =IF(O77=0,0,(N77/100-1)*Inputs!$D$25) -> 0
B78: 70 | C78: 1 | D78: =(1+Inputs!$E$11)^(1/240)-1 -> 0.0001634329919 | E78: 101.1505055 | F78: =(1+Inputs!$E$12)^(1/240)-1 -> 0.0001231692607 | G78: -0.09013187568 | H78: -2.155987374 | I78: =G78*Inputs!$C$16/SQRT(240) -> -0.000407259129 | J78: -0.0001207534761 | K78: =(Inputs!$C$18*G78+((1-Inputs!$C$18^2)^(1/2))*H78)*Inputs!$D$16/SQRT(240) -> -0.007907793853 | L78: =Inputs!$F$13/240+K78 -> -0.007616127187 | M78: 105.690914 | N78: =IF(MOD(B78,(240/Inputs!$D$35))=0,100*(1+Inputs!$C$20*K78),IF(O77=1,100*(1+Inputs!$C$20*L78),N77*(1+Inputs!$C$20*K78))) -> 101.9187461 | O78: =IF((((N78/100-1)*Inputs!$D$25)+1)*100<100*(1-Inputs!$D$45),1,IF((((N78/100-1)*Inputs!$D$25)+1)*100>100*(1+Inputs!$D$45),1,0)) -> 0 | P78: 106.923794 | Q78: =IF(MOD(B78,(240/Inputs!$D$35))=0,OFFSET(P78,,0,1,1)*(E78/OFFSET(E78,,0,1,1)),Q77*(1+D78)) -> 101.1505055 | R78: =IF(MOD(B78,(240/Inputs!$D$35))=0,OFFSET(P78,,0,1,1)*(E78/OFFSET(E78,,0,1,1)),IF(O78=1,R77*(1+D78)*(N78/100),R77*(1+D78))) -> 101.1505055 | S78: =(Q78/P78-1)*Inputs!$D$25 -> -0.05399442329 | T78: =(R78/P78-1)*Inputs!$D$25 -> -0.05399442329 | U78: -0.05399442329 | V78: -0.05399442329 | W78: =IF(MOD(B78,(240/Inputs!$D$35))=0,S78-S77,0) -> 0 | X78: =IF(MOD(B78,(240/Inputs!$D$35))=0,T78-T77,0) -> 0 | Y78: 0 | Z78: =IF(O78=0,0,(N78/100-1)*Inputs!$D$25) -> 0
B79: 71 | C79: 1 | D79: =(1+Inputs!$E$11)^(1/240)-1 -> 0.0001634329919 | E79: 101.1670368 | F79: =(1+Inputs!$E$12)^(1/240)-1 -> 0.0001231692607 | G79: 1.301917365 | H79: -1.402138456 | I79: =G79*Inputs!$C$16/SQRT(240) -> 0.005882688318 | J79: 0.00617099681 | K79: =(Inputs!$C$18*G79+((1-Inputs!$C$18^2)^(1/2))*H79)*Inputs!$D$16/SQRT(240) -> 0.004341983385 | L79: =Inputs!$F$13/240+K79 -> 0.004633650052 | M79: 106.1806487 | N79: =IF(MOD(B79,(240/Inputs!$D$35))=0,100*(1+Inputs!$C$20*K79),IF(O78=1,100*(1+Inputs!$C$20*L79),N78*(1+Inputs!$C$20*K79))) -> 102.1510741 | O79: =IF((((N79/100-1)*Inputs!$D$25)+1)*100<100*(1-Inputs!$D$45),1,IF((((N79/100-1)*Inputs!$D$25)+1)*100>100*(1+Inputs!$D$45),1,0)) -> 0 | P79: 107.5836204 | Q79: =IF(MOD(B79,(240/Inputs!$D$35))=0,OFFSET(P79,,0,1,1)*(E79/OFFSET(E79,,0,1,1)),Q78*(1+D79)) -> 101.1670368 | R79: =IF(MOD(B79,(240/Inputs!$D$35))=0,OFFSET(P79,,0,1,1)*(E79/OFFSET(E79,,0,1,1)),IF(O79=1,R78*(1+D79)*(N79/100),R78*(1+D79))) -> 101.1670368 | S79: =(Q79/P79-1)*Inputs!$D$25 -> -0.05964275632 | T79: =(R79/P79-1)*Inputs!$D$25 -> -0.05964275632 | U79: -0.05964275632 | V79: -0.05964275632 | W79: =IF(MOD(B79,(240/Inputs!$D$35))=0,S79-S78,0) -> 0 | X79: =IF(MOD(B79,(240/Inputs!$D$35))=0,T79-T78,0) -> 0 | Y79: 0 | Z79: =IF(O79=0,0,(N79/100-1)*Inputs!$D$25) -> 0
B80: 72 | C80: 1 | D80: =(1+Inputs!$E$11)^(1/240)-1 -> 0.0001634329919 | E80: 101.1835708 | F80: =(1+Inputs!$E$12)^(1/240)-1 -> 0.0001231692607 | G80: 1.404401317 | H80: 0.5141603369 | I80: =G80*Inputs!$C$16/SQRT(240) -> 0.006345760065 | J80: 0.006634201285 | K80: =(Inputs!$C$18*G80+((1-Inputs!$C$18^2)^(1/2))*H80)*Inputs!$D$16/SQRT(240) -> 0.01152660635 | L80: =Inputs!$F$13/240+K80 -> 0.01181827301 | M80: 107.4355206 | N80: =IF(MOD(B80,(240/Inputs!$D$35))=0,100*(1+Inputs!$C$20*K80),IF(O79=1,100*(1+Inputs!$C$20*L80),N79*(1+Inputs!$C$20*K80))) -> 102.7692381 | O80: =IF((((N80/100-1)*Inputs!$D$25)+1)*100<100*(1-Inputs!$D$45),1,IF((((N80/100-1)*Inputs!$D$25)+1)*100>100*(1+Inputs!$D$45),1,0)) -> 0 | P80: 108.2973518 | Q80: =IF(MOD(B80,(240/Inputs!$D$35))=0,OFFSET(P80,,0,1,1)*(E80/OFFSET(E80,,0,1,1)),Q79*(1+D80)) -> 101.1835708 | R80: =IF(MOD(B80,(240/Inputs!$D$35))=0,OFFSET(P80,,0,1,1)*(E80/OFFSET(E80,,0,1,1)),IF(O80=1,R79*(1+D80)*(N80/100),R79*(1+D80))) -> 101.1835708 | S80: =(Q80/P80-1)*Inputs!$D$25 -> -0.06568748819 | T80: =(R80/P80-1)*Inputs!$D$25 -> -0.06568748819 | U80: -0.06568748819 | V80: -0.06568748819 | W80: =IF(MOD(B80,(240/Inputs!$D$35))=0,S80-S79,0) -> 0 | X80: =IF(MOD(B80,(240/Inputs!$D$35))=0,T80-T79,0) -> 0 | Y80: 0 | Z80: =IF(O80=0,0,(N80/100-1)*Inputs!$D$25) -> 0
B81: 73 | C81: 1 | D81: =(1+Inputs!$E$11)^(1/240)-1 -> 0.0001634329919 | E81: 101.2001075 | F81: =(1+Inputs!$E$12)^(1/240)-1 -> 0.0001231692607 | G81: -0.5607643398 | H81: -1.022915858 | I81: =G81*Inputs!$C$16/SQRT(240) -> -0.002533802774 | J81: -0.002247906636 | K81: =(Inputs!$C$18*G81+((1-Inputs!$C$18^2)^(1/2))*H81)*Inputs!$D$16/SQRT(240) -> -0.007363057152 | L81: =Inputs!$F$13/240+K81 -> -0.007071390485 | M81: 106.675802 | N81: =IF(MOD(B81,(240/Inputs!$D$35))=0,100*(1+Inputs!$C$20*K81),IF(O80=1,100*(1+Inputs!$C$20*L81),N80*(1+Inputs!$C$20*K81))) -> 102.3719728 | O81: =IF((((N81/100-1)*Inputs!$D$25)+1)*100<100*(1-Inputs!$D$45),1,IF((((N81/100-1)*Inputs!$D$25)+1)*100>100*(1+Inputs!$D$45),1,0)) -> 0 | P81: 108.0539095 | Q81: =IF(MOD(B81,(240/Inputs!$D$35))=0,OFFSET(P81,,0,1,1)*(E81/OFFSET(E81,,0,1,1)),Q80*(1+D81)) -> 101.2001075 | R81: =IF(MOD(B81,(240/Inputs!$D$35))=0,OFFSET(P81,,0,1,1)*(E81/OFFSET(E81,,0,1,1)),IF(O81=1,R80*(1+D81)*(N81/100),R80*(1+D81))) -> 101.2001075 | S81: =(Q81/P81-1)*Inputs!$D$25 -> -0.06342946758 | T81: =(R81/P81-1)*Inputs!$D$25 -> -0.06342946758 | U81: -0.06342946758 | V81: -0.06342946758 | W81: =IF(MOD(B81,(240/Inputs!$D$35))=0,S81-S80,0) -> 0 | X81: =IF(MOD(B81,(240/Inputs!$D$35))=0,T81-T80,0) -> 0 | Y81: 0 | Z81: =IF(O81=0,0,(N81/100-1)*Inputs!$D$25) -> 0
B82: 74 | C82: 1 | D82: =(1+Inputs!$E$11)^(1/240)-1 -> 0.0001634329919 | E82: 101.216647 | F82: =(1+Inputs!$E$12)^(1/240)-1 -> 0.0001231692607 | G82: 0.8037117389 | H82: -0.7092405531 | I82: =G82*Inputs!$C$16/SQRT(240) -> 0.003631555876 | J82: 0.003919219144 | K82: =(Inputs!$C$18*G82+((1-Inputs!$C$18^2)^(1/2))*H82)*Inputs!$D$16/SQRT(240) -> 0.003208300203 | L82: =Inputs!$F$13/240+K82 -> 0.00349996687 | M82: 107.0491638 | N82: =IF(MOD(B82,(240/Inputs!$D$35))=0,100*(1+Inputs!$C$20*K82),IF(O81=1,100*(1+Inputs!$C$20*L82),N81*(1+Inputs!$C$20*K82))) -> 102.5444038 | O82: =IF((((N82/100-1)*Inputs!$D$25)+1)*100<100*(1-Inputs!$D$45),1,IF((((N82/100-1)*Inputs!$D$25)+1)*100>100*(1+Inputs!$D$45),1,0)) -> 0 | P82: 108.4773964 | Q82: =IF(MOD(B82,(240/Inputs!$D$35))=0,OFFSET(P82,,0,1,1)*(E82/OFFSET(E82,,0,1,1)),Q81*(1+D82)) -> 101.216647 | R82: =IF(MOD(B82,(240/Inputs!$D$35))=0,OFFSET(P82,,0,1,1)*(E82/OFFSET(E82,,0,1,1)),IF(O82=1,R81*(1+D82)*(N82/100),R81*(1+D82))) -> 101.216647 | S82: =(Q82/P82-1)*Inputs!$D$25 -> -0.06693329396 | T82: =(R82/P82-1)*Inputs!$D$25 -> -0.06693329396 | U82: -0.06693329396 | V82: -0.06693329396 | W82: =IF(MOD(B82,(240/Inputs!$D$35))=0,S82-S81,0) -> 0 | X82: =IF(MOD(B82,(240/Inputs!$D$35))=0,T82-T81,0) -> 0 | Y82: 0 | Z82: =IF(O82=0,0,(N82/100-1)*Inputs!$D$25) -> 0
B83: 75 | C83: 1 | D83: =(1+Inputs!$E$11)^(1/240)-1 -> 0.0001634329919 | E83: 101.2331891 | F83: =(1+Inputs!$E$12)^(1/240)-1 -> 0.0001231692607 | G83: 1.384848484 | H83: -0.7371585523 | I83: =G83*Inputs!$C$16/SQRT(240) -> 0.00625741097 | J83: 0.006545826866 | K83: =(Inputs!$C$18*G83+((1-Inputs!$C$18^2)^(1/2))*H83)*Inputs!$D$16/SQRT(240) -> 0.007165357475 | L83: =Inputs!$F$13/240+K83 -> 0.007457024142 | M83: 107.847432 | N83: =IF(MOD(B83,(240/Inputs!$D$35))=0,100*(1+Inputs!$C$20*K83),IF(O82=1,100*(1+Inputs!$C$20*L83),N82*(1+Inputs!$C$20*K83))) -> 102.9301567 | O83: =IF((((N83/100-1)*Inputs!$D$25)+1)*100<100*(1-Inputs!$D$45),1,IF((((N83/100-1)*Inputs!$D$25)+1)*100>100*(1+Inputs!$D$45),1,0)) -> 0 | P83: 109.1874707 | Q83: =IF(MOD(B83,(240/Inputs!$D$35))=0,OFFSET(P83,,0,1,1)*(E83/OFFSET(E83,,0,1,1)),Q82*(1+D83)) -> 101.2331891 | R83: =IF(MOD(B83,(240/Inputs!$D$35))=0,OFFSET(P83,,0,1,1)*(E83/OFFSET(E83,,0,1,1)),IF(O83=1,R82*(1+D83)*(N83/100),R82*(1+D83))) -> 101.2331891 | S83: =(Q83/P83-1)*Inputs!$D$25 -> -0.07284976499 | T83: =(R83/P83-1)*Inputs!$D$25 -> -0.07284976499 | U83: -0.07284976499 | V83: -0.07284976499 | W83: =IF(MOD(B83,(240/Inputs!$D$35))=0,S83-S82,0) -> 0 | X83: =IF(MOD(B83,(240/Inputs!$D$35))=0,T83-T82,0) -> 0 | Y83: 0 | Z83: =IF(O83=0,0,(N83/100-1)*Inputs!$D$25) -> 0
B84: 76 | C84: 1 | D84: =(1+Inputs!$E$11)^(1/240)-1 -> 0.0001634329919 | E84: 101.249734 | F84: =(1+Inputs!$E$12)^(1/240)-1 -> 0.0001231692607 | G84: 0.1587148419 | H84: -0.06946219497 | I84: =G84*Inputs!$C$16/SQRT(240) -> 0.0007171499296 | J84: 0.001003977863 | K84: =(Inputs!$C$18*G84+((1-Inputs!$C$18^2)^(1/2))*H84)*Inputs!$D$16/SQRT(240) -> 0.0008719285279 | L84: =Inputs!$F$13/240+K84 -> 0.001163595195 | M84: 107.9729228 | N84: =IF(MOD(B84,(240/Inputs!$D$35))=0,100*(1+Inputs!$C$20*K84),IF(O83=1,100*(1+Inputs!$C$20*L84),N83*(1+Inputs!$C$20*K84))) -> 102.9772742 | O84: =IF((((N84/100-1)*Inputs!$D$25)+1)*100<100*(1-Inputs!$D$45),1,IF((((N84/100-1)*Inputs!$D$25)+1)*100>100*(1+Inputs!$D$45),1,0)) -> 0 | P84: 109.2970925 | Q84: =IF(MOD(B84,(240/Inputs!$D$35))=0,OFFSET(P84,,0,1,1)*(E84/OFFSET(E84,,0,1,1)),Q83*(1+D84)) -> 101.249734 | R84: =IF(MOD(B84,(240/Inputs!$D$35))=0,OFFSET(P84,,0,1,1)*(E84/OFFSET(E84,,0,1,1)),IF(O84=1,R83*(1+D84)*(N84/100),R83*(1+D84))) -> 101.249734 | S84: =(Q84/P84-1)*Inputs!$D$25 -> -0.07362829474 | T84: =(R84/P84-1)*Inputs!$D$25 -> -0.07362829474 | U84: -0.07362829474 | V84: -0.07362829474 | W84: =IF(MOD(B84,(240/Inputs!$D$35))=0,S84-S83,0) -> 0 | X84: =IF(MOD(B84,(240/Inputs!$D$35))=0,T84-T83,0) -> 0 | Y84: 0 | Z84: =IF(O84=0,0,(N84/100-1)*Inputs!$D$25) -> 0
B85: 77 | C85: 1 | D85: =(1+Inputs!$E$11)^(1/240)-1 -> 0.0001634329919 | E85: 101.2662815 | F85: =(1+Inputs!$E$12)^(1/240)-1 -> 0.0001231692607 | G85: -0.8723147141 | H85: -0.5437842308 | I85: =G85*Inputs!$C$16/SQRT(240) -> -0.003941537087 | J85: -0.003656044437 | K85: =(Inputs!$C$18*G85+((1-Inputs!$C$18^2)^(1/2))*H85)*Inputs!$D$16/SQRT(240) -> -0.007917255528 | L85: =Inputs!$F$13/240+K85 -> -0.007625588861 | M85: 107.1495657 | N85: =IF(MOD(B85,(240/Inputs!$D$35))=0,100*(1+Inputs!$C$20*K85),IF(O84=1,100*(1+Inputs!$C$20*L85),N84*(1+Inputs!$C$20*K85))) -> 102.5492431 | O85: =IF((((N85/100-1)*Inputs!$D$25)+1)*100<100*(1-Inputs!$D$45),1,IF((((N85/100-1)*Inputs!$D$25)+1)*100>100*(1+Inputs!$D$45),1,0)) -> 0 | P85: 108.8974975 | Q85: =IF(MOD(B85,(240/Inputs!$D$35))=0,OFFSET(P85,,0,1,1)*(E85/OFFSET(E85,,0,1,1)),Q84*(1+D85)) -> 101.2662815 | R85: =IF(MOD(B85,(240/Inputs!$D$35))=0,OFFSET(P85,,0,1,1)*(E85/OFFSET(E85,,0,1,1)),IF(O85=1,R84*(1+D85)*(N85/100),R84*(1+D85))) -> 101.2662815 | S85: =(Q85/P85-1)*Inputs!$D$25 -> -0.07007705543 | T85: =(R85/P85-1)*Inputs!$D$25 -> -0.07007705543 | U85: -0.07007705543 | V85: -0.07007705543 | W85: =IF(MOD(B85,(240/Inputs!$D$35))=0,S85-S84,0) -> 0 | X85: =IF(MOD(B85,(240/Inputs!$D$35))=0,T85-T84,0) -> 0 | Y85: 0 | Z85: =IF(O85=0,0,(N85/100-1)*Inputs!$D$25) -> 0
B86: 78 | C86: 1 | D86: =(1+Inputs!$E$11)^(1/240)-1 -> 0.0001634329919 | E86: 101.2828318 | F86: =(1+Inputs!$E$12)^(1/240)-1 -> 0.0001231692607 | G86: 0.1175566723 | H86: 1.15667506 | I86: =G86*Inputs!$C$16/SQRT(240) -> 0.0005311775398 | J86: 0.0008179521696 | K86: =(Inputs!$C$18*G86+((1-Inputs!$C$18^2)^(1/2))*H86)*Inputs!$D$16/SQRT(240) -> 0.004724915552 | L86: =Inputs!$F$13/240+K86 -> 0.005016582218 | M86: 107.6870903 | N86: =IF(MOD(B86,(240/Inputs!$D$35))=0,100*(1+Inputs!$C$20*K86),IF(O85=1,100*(1+Inputs!$C$20*L86),N85*(1+Inputs!$C$20*K86))) -> 102.8036248 | O86: =IF((((N86/100-1)*Inputs!$D$25)+1)*100<100*(1-Inputs!$D$45),1,IF((((N86/100-1)*Inputs!$D$25)+1)*100>100*(1+Inputs!$D$45),1,0)) -> 0 | P86: 108.9865704 | Q86: =IF(MOD(B86,(240/Inputs!$D$35))=0,OFFSET(P86,,0,1,1)*(E86/OFFSET(E86,,0,1,1)),Q85*(1+D86)) -> 101.2828318 | R86: =IF(MOD(B86,(240/Inputs!$D$35))=0,OFFSET(P86,,0,1,1)*(E86/OFFSET(E86,,0,1,1)),IF(O86=1,R85*(1+D86)*(N86/100),R85*(1+D86))) -> 101.2828318 | S86: =(Q86/P86-1)*Inputs!$D$25 -> -0.07068521039 | T86: =(R86/P86-1)*Inputs!$D$25 -> -0.07068521039 | U86: -0.07068521039 | V86: -0.07068521039 | W86: =IF(MOD(B86,(240/Inputs!$D$35))=0,S86-S85,0) -> 0 | X86: =IF(MOD(B86,(240/Inputs!$D$35))=0,T86-T85,0) -> 0 | Y86: 0 | Z86: =IF(O86=0,0,(N86/100-1)*Inputs!$D$25) -> 0
B87: 79 | C87: 1 | D87: =(1+Inputs!$E$11)^(1/240)-1 -> 0.0001634329919 | E87: 101.2993847 | F87: =(1+Inputs!$E$12)^(1/240)-1 -> 0.0001231692607 | G87: -0.6999706217 | H87: 1.33375783 | I87: =G87*Inputs!$C$16/SQRT(240) -> -0.003162803654 | J87: -0.002877087802 | K87: =(Inputs!$C$18*G87+((1-Inputs!$C$18^2)^(1/2))*H87)*Inputs!$D$16/SQRT(240) -> -0.0003764694712 | L87: =Inputs!$F$13/240+K87 -> -8.480280457e-05 | M87: 107.6779581 | N87: =IF(MOD(B87,(240/Inputs!$D$35))=0,100*(1+Inputs!$C$20*K87),IF(O86=1,100*(1+Inputs!$C$20*L87),N86*(1+Inputs!$C$20*K87))) -> 102.783306 | O87: =IF((((N87/100-1)*Inputs!$D$25)+1)*100<100*(1-Inputs!$D$45),1,IF((((N87/100-1)*Inputs!$D$25)+1)*100>100*(1+Inputs!$D$45),1,0)) -> 0 | P87: 108.6730065 | Q87: =IF(MOD(B87,(240/Inputs!$D$35))=0,OFFSET(P87,,0,1,1)*(E87/OFFSET(E87,,0,1,1)),Q86*(1+D87)) -> 101.2993847 | R87: =IF(MOD(B87,(240/Inputs!$D$35))=0,OFFSET(P87,,0,1,1)*(E87/OFFSET(E87,,0,1,1)),IF(O87=1,R86*(1+D87)*(N87/100),R86*(1+D87))) -> 101.2993847 | S87: =(Q87/P87-1)*Inputs!$D$25 -> -0.06785145649 | T87: =(R87/P87-1)*Inputs!$D$25 -> -0.06785145649 | U87: -0.06785145649 | V87: -0.06785145649 | W87: =IF(MOD(B87,(240/Inputs!$D$35))=0,S87-S86,0) -> 0 | X87: =IF(MOD(B87,(240/Inputs!$D$35))=0,T87-T86,0) -> 0 | Y87: 0 | Z87: =IF(O87=0,0,(N87/100-1)*Inputs!$D$25) -> 0
B88: 80 | C88: 1 | D88: =(1+Inputs!$E$11)^(1/240)-1 -> 0.0001634329919 | E88: 101.3159404 | F88: =(1+Inputs!$E$12)^(1/240)-1 -> 0.0001231692607 | G88: -0.3361419393 | H88: 0.05792659609 | I88: =G88*Inputs!$C$16/SQRT(240) -> -0.001518850821 | J88: -0.001232663776 | K88: =(Inputs!$C$18*G88+((1-Inputs!$C$18^2)^(1/2))*H88)*Inputs!$D$16/SQRT(240) -> -0.00214778714 | L88: =Inputs!$F$13/240+K88 -> -0.001856120473 | M88: 107.4780948 | N88: =IF(MOD(B88,(240/Inputs!$D$35))=0,100*(1+Inputs!$C$20*K88),IF(O87=1,100*(1+Inputs!$C$20*L88),N87*(1+Inputs!$C$20*K88))) -> 102.6674088 | O88: =IF((((N88/100-1)*Inputs!$D$25)+1)*100<100*(1-Inputs!$D$45),1,IF((((N88/100-1)*Inputs!$D$25)+1)*100>100*(1+Inputs!$D$45),1,0)) -> 0 | P88: 108.5390492 | Q88: =IF(MOD(B88,(240/Inputs!$D$35))=0,OFFSET(P88,,0,1,1)*(E88/OFFSET(E88,,0,1,1)),Q87*(1+D88)) -> 101.3159404 | R88: =IF(MOD(B88,(240/Inputs!$D$35))=0,OFFSET(P88,,0,1,1)*(E88/OFFSET(E88,,0,1,1)),IF(O88=1,R87*(1+D88)*(N88/100),R87*(1+D88))) -> 101.3159404 | S88: =(Q88/P88-1)*Inputs!$D$25 -> -0.06654848079 | T88: =(R88/P88-1)*Inputs!$D$25 -> -0.06654848079 | U88: -0.06654848079 | V88: -0.06654848079 | W88: =IF(MOD(B88,(240/Inputs!$D$35))=0,S88-S87,0) -> 0 | X88: =IF(MOD(B88,(240/Inputs!$D$35))=0,T88-T87,0) -> 0 | Y88: 0 | Z88: =IF(O88=0,0,(N88/100-1)*Inputs!$D$25) -> 0
B89: 81 | C89: 1 | D89: =(1+Inputs!$E$11)^(1/240)-1 -> 0.0001634329919 | E89: 101.3324987 | F89: =(1+Inputs!$E$12)^(1/240)-1 -> 0.0001231692607 | G89: 1.345700214 | H89: -0.9454152314 | I89: =G89*Inputs!$C$16/SQRT(240) -> 0.006080520269 | J89: 0.006368885464 | K89: =(Inputs!$C$18*G89+((1-Inputs!$C$18^2)^(1/2))*H89)*Inputs!$D$16/SQRT(240) -> 0.006189284916 | L89: =Inputs!$F$13/240+K89 -> 0.006480951583 | M89: 108.1746552 | N89: =IF(MOD(B89,(240/Inputs!$D$35))=0,100*(1+Inputs!$C$20*K89),IF(O88=1,100*(1+Inputs!$C$20*L89),N88*(1+Inputs!$C$20*K89))) -> 103.0010136 | O89: =IF((((N89/100-1)*Inputs!$D$25)+1)*100<100*(1-Inputs!$D$45),1,IF((((N89/100-1)*Inputs!$D$25)+1)*100>100*(1+Inputs!$D$45),1,0)) -> 0 | P89: 109.230322 | Q89: =IF(MOD(B89,(240/Inputs!$D$35))=0,OFFSET(P89,,0,1,1)*(E89/OFFSET(E89,,0,1,1)),Q88*(1+D89)) -> 101.3324987 | R89: =IF(MOD(B89,(240/Inputs!$D$35))=0,OFFSET(P89,,0,1,1)*(E89/OFFSET(E89,,0,1,1)),IF(O89=1,R88*(1+D89)*(N89/100),R88*(1+D89))) -> 101.3324987 | S89: =(Q89/P89-1)*Inputs!$D$25 -> -0.0723043116 | T89: =(R89/P89-1)*Inputs!$D$25 -> -0.0723043116 | U89: -0.0723043116 | V89: -0.0723043116 | W89: =IF(MOD(B89,(240/Inputs!$D$35))=0,S89-S88,0) -> 0 | X89: =IF(MOD(B89,(240/Inputs!$D$35))=0,T89-T88,0) -> 0 | Y89: 0 | Z89: =IF(O89=0,0,(N89/100-1)*Inputs!$D$25) -> 0
B90: 82 | C90: 1 | D90: =(1+Inputs!$E$11)^(1/240)-1 -> 0.0001634329919 | E90: 101.3490598 | F90: =(1+Inputs!$E$12)^(1/240)-1 -> 0.0001231692607 | G90: -1.941864822 | H90: 0.7666593986 | I90: =G90*Inputs!$C$16/SQRT(240) -> -0.008774278469 | J90: -0.008490170991 | K90: =(Inputs!$C$18*G90+((1-Inputs!$C$18^2)^(1/2))*H90)*Inputs!$D$16/SQRT(240) -> -0.01094891815 | L90: =Inputs!$F$13/240+K90 -> -0.01065725149 | M90: 107.0218107 | N90: =IF(MOD(B90,(240/Inputs!$D$35))=0,100*(1+Inputs!$C$20*K90),IF(O89=1,100*(1+Inputs!$C$20*L90),N89*(1+Inputs!$C$20*K90))) -> 102.408945 | O90: =IF((((N90/100-1)*Inputs!$D$25)+1)*100<100*(1-Inputs!$D$45),1,IF((((N90/100-1)*Inputs!$D$25)+1)*100>100*(1+Inputs!$D$45),1,0)) -> 0 | P90: 108.3029379 | Q90: =IF(MOD(B90,(240/Inputs!$D$35))=0,OFFSET(P90,,0,1,1)*(E90/OFFSET(E90,,0,1,1)),Q89*(1+D90)) -> 101.3490598 | R90: =IF(MOD(B90,(240/Inputs!$D$35))=0,OFFSET(P90,,0,1,1)*(E90/OFFSET(E90,,0,1,1)),IF(O90=1,R89*(1+D90)*(N90/100),R89*(1+D90))) -> 101.3490598 | S90: =(Q90/P90-1)*Inputs!$D$25 -> -0.06420765853 | T90: =(R90/P90-1)*Inputs!$D$25 -> -0.06420765853 | U90: -0.06420765853 | V90: -0.06420765853 | W90: =IF(MOD(B90,(240/Inputs!$D$35))=0,S90-S89,0) -> 0 | X90: =IF(MOD(B90,(240/Inputs!$D$35))=0,T90-T89,0) -> 0 | Y90: 0 | Z90: =IF(O90=0,0,(N90/100-1)*Inputs!$D$25) -> 0
B91: 83 | C91: 1 | D91: =(1+Inputs!$E$11)^(1/240)-1 -> 0.0001634329919 | E91: 101.3656236 | F91: =(1+Inputs!$E$12)^(1/240)-1 -> 0.0001231692607 | G91: 0.07896687323 | H91: -0.6790893267 | I91: =G91*Inputs!$C$16/SQRT(240) -> 0.0003568102824 | J91: 0.0006435349347 | K91: =(Inputs!$C$18*G91+((1-Inputs!$C$18^2)^(1/2))*H91)*Inputs!$D$16/SQRT(240) -> -0.00174236217 | L91: =Inputs!$F$13/240+K91 -> -0.001450695504 | M91: 106.8665546 | N91: =IF(MOD(B91,(240/Inputs!$D$35))=0,100*(1+Inputs!$C$20*K91),IF(O90=1,100*(1+Inputs!$C$20*L91),N90*(1+Inputs!$C$20*K91))) -> 102.3152675 | O91: =IF((((N91/100-1)*Inputs!$D$25)+1)*100<100*(1-Inputs!$D$45),1,IF((((N91/100-1)*Inputs!$D$25)+1)*100>100*(1+Inputs!$D$45),1,0)) -> 0 | P91: 108.3726346 | Q91: =IF(MOD(B91,(240/Inputs!$D$35))=0,OFFSET(P91,,0,1,1)*(E91/OFFSET(E91,,0,1,1)),Q90*(1+D91)) -> 101.3656236 | R91: =IF(MOD(B91,(240/Inputs!$D$35))=0,OFFSET(P91,,0,1,1)*(E91/OFFSET(E91,,0,1,1)),IF(O91=1,R90*(1+D91)*(N91/100),R90*(1+D91))) -> 101.3656236 | S91: =(Q91/P91-1)*Inputs!$D$25 -> -0.06465664531 | T91: =(R91/P91-1)*Inputs!$D$25 -> -0.06465664531 | U91: -0.06465664531 | V91: -0.06465664531 | W91: =IF(MOD(B91,(240/Inputs!$D$35))=0,S91-S90,0) -> 0 | X91: =IF(MOD(B91,(240/Inputs!$D$35))=0,T91-T90,0) -> 0 | Y91: 0 | Z91: =IF(O91=0,0,(N91/100-1)*Inputs!$D$25) -> 0
B92: 84 | C92: 1 | D92: =(1+Inputs!$E$11)^(1/240)-1 -> 0.0001634329919 | E92: 101.3821901 | F92: =(1+Inputs!$E$12)^(1/240)-1 -> 0.0001231692607 | G92: 1.105103437 | H92: 0.1246584597 | I92: =G92*Inputs!$C$16/SQRT(240) -> 0.004993388411 | J92: 0.00528144201 | K92: =(Inputs!$C$18*G92+((1-Inputs!$C$18^2)^(1/2))*H92)*Inputs!$D$16/SQRT(240) -> 0.008124980379 | L92: =Inputs!$F$13/240+K92 -> 0.008416647046 | M92: 107.7660127 | N92: =IF(MOD(B92,(240/Inputs!$D$35))=0,100*(1+Inputs!$C$20*K92),IF(O91=1,100*(1+Inputs!$C$20*L92),N91*(1+Inputs!$C$20*K92))) -> 102.751705 | O92: =IF((((N92/100-1)*Inputs!$D$25)+1)*100<100*(1-Inputs!$D$45),1,IF((((N92/100-1)*Inputs!$D$25)+1)*100>100*(1+Inputs!$D$45),1,0)) -> 0 | P92: 108.9449984 | Q92: =IF(MOD(B92,(240/Inputs!$D$35))=0,OFFSET(P92,,0,1,1)*(E92/OFFSET(E92,,0,1,1)),Q91*(1+D92)) -> 101.3821901 | R92: =IF(MOD(B92,(240/Inputs!$D$35))=0,OFFSET(P92,,0,1,1)*(E92/OFFSET(E92,,0,1,1)),IF(O92=1,R91*(1+D92)*(N92/100),R91*(1+D92))) -> 101.3821901 | S92: =(Q92/P92-1)*Inputs!$D$25 -> -0.06941859109 | T92: =(R92/P92-1)*Inputs!$D$25 -> -0.06941859109 | U92: -0.06941859109 | V92: -0.06941859109 | W92: =IF(MOD(B92,(240/Inputs!$D$35))=0,S92-S91,0) -> 0 | X92: =IF(MOD(B92,(240/Inputs!$D$35))=0,T92-T91,0) -> 0 | Y92: 0 | Z92: =IF(O92=0,0,(N92/100-1)*Inputs!$D$25) -> 0
B93: 85 | C93: 1 | D93: =(1+Inputs!$E$11)^(1/240)-1 -> 0.0001634329919 | E93: 101.3987593 | F93: =(1+Inputs!$E$12)^(1/240)-1 -> 0.0001231692607 | G93: -0.1982007929 | H93: -0.2117518372 | I93: =G93*Inputs!$C$16/SQRT(240) -> -0.0008955664317 | J93: -0.0006092007386 | K93: =(Inputs!$C$18*G93+((1-Inputs!$C$18^2)^(1/2))*H93)*Inputs!$D$16/SQRT(240) -> -0.002096687556 | L93: =Inputs!$F$13/240+K93 -> -0.001805020889 | M93: 107.5714928 | N93: =IF(MOD(B93,(240/Inputs!$D$35))=0,100*(1+Inputs!$C$20*K93),IF(O92=1,100*(1+Inputs!$C$20*L93),N92*(1+Inputs!$C$20*K93))) -> 102.6385999 | O93: =IF((((N93/100-1)*Inputs!$D$25)+1)*100<100*(1-Inputs!$D$45),1,IF((((N93/100-1)*Inputs!$D$25)+1)*100>100*(1+Inputs!$D$45),1,0)) -> 0 | P93: 108.878629 | Q93: =IF(MOD(B93,(240/Inputs!$D$35))=0,OFFSET(P93,,0,1,1)*(E93/OFFSET(E93,,0,1,1)),Q92*(1+D93)) -> 101.3987593 | R93: =IF(MOD(B93,(240/Inputs!$D$35))=0,OFFSET(P93,,0,1,1)*(E93/OFFSET(E93,,0,1,1)),IF(O93=1,R92*(1+D93)*(N93/100),R92*(1+D93))) -> 101.3987593 | S93: =(Q93/P93-1)*Inputs!$D$25 -> -0.06869915423 | T93: =(R93/P93-1)*Inputs!$D$25 -> -0.06869915423 | U93: -0.06869915423 | V93: -0.06869915423 | W93: =IF(MOD(B93,(240/Inputs!$D$35))=0,S93-S92,0) -> 0 | X93: =IF(MOD(B93,(240/Inputs!$D$35))=0,T93-T92,0) -> 0 | Y93: 0 | Z93: =IF(O93=0,0,(N93/100-1)*Inputs!$D$25) -> 0
B94: 86 | C94: 1 | D94: =(1+Inputs!$E$11)^(1/240)-1 -> 0.0001634329919 | E94: 101.4153312 | F94: =(1+Inputs!$E$12)^(1/240)-1 -> 0.0001231692607 | G94: 0.1352734522 | H94: 1.293117217 | I94: =G94*Inputs!$C$16/SQRT(240) -> 0.0006112304656 | J94: 0.0008980280404 | K94: =(Inputs!$C$18*G94+((1-Inputs!$C$18^2)^(1/2))*H94)*Inputs!$D$16/SQRT(240) -> 0.005309107525 | L94: =Inputs!$F$13/240+K94 -> 0.005600774192 | M94: 108.1739764 | N94: =IF(MOD(B94,(240/Inputs!$D$35))=0,100*(1+Inputs!$C$20*K94),IF(O93=1,100*(1+Inputs!$C$20*L94),N93*(1+Inputs!$C$20*K94))) -> 102.9246826 | O94: =IF((((N94/100-1)*Inputs!$D$25)+1)*100<100*(1-Inputs!$D$45),1,IF((((N94/100-1)*Inputs!$D$25)+1)*100>100*(1+Inputs!$D$45),1,0)) -> 0 | P94: 108.9764051 | Q94: =IF(MOD(B94,(240/Inputs!$D$35))=0,OFFSET(P94,,0,1,1)*(E94/OFFSET(E94,,0,1,1)),Q93*(1+D94)) -> 101.4153312 | R94: =IF(MOD(B94,(240/Inputs!$D$35))=0,OFFSET(P94,,0,1,1)*(E94/OFFSET(E94,,0,1,1)),IF(O94=1,R93*(1+D94)*(N94/100),R93*(1+D94))) -> 101.4153312 | S94: =(Q94/P94-1)*Inputs!$D$25 -> -0.0693826694 | T94: =(R94/P94-1)*Inputs!$D$25 -> -0.0693826694 | U94: -0.0693826694 | V94: -0.0693826694 | W94: =IF(MOD(B94,(240/Inputs!$D$35))=0,S94-S93,0) -> 0 | X94: =IF(MOD(B94,(240/Inputs!$D$35))=0,T94-T93,0) -> 0 | Y94: 0 | Z94: =IF(O94=0,0,(N94/100-1)*Inputs!$D$25) -> 0
B95: 87 | C95: 1 | D95: =(1+Inputs!$E$11)^(1/240)-1 -> 0.0001634329919 | E95: 101.4319058 | F95: =(1+Inputs!$E$12)^(1/240)-1 -> 0.0001231692607 | G95: 1.282109898 | H95: 0.302980183 | I95: =G95*Inputs!$C$16/SQRT(240) -> 0.005793188665 | J95: 0.006081471505 | K95: =(Inputs!$C$18*G95+((1-Inputs!$C$18^2)^(1/2))*H95)*Inputs!$D$16/SQRT(240) -> 0.009961041349 | L95: =Inputs!$F$13/240+K95 -> 0.01025270802 | M95: 109.2830526 | N95: =IF(MOD(B95,(240/Inputs!$D$35))=0,100*(1+Inputs!$C$20*K95),IF(O94=1,100*(1+Inputs!$C$20*L95),N94*(1+Inputs!$C$20*K95))) -> 103.462932 | O95: =IF((((N95/100-1)*Inputs!$D$25)+1)*100<100*(1-Inputs!$D$45),1,IF((((N95/100-1)*Inputs!$D$25)+1)*100>100*(1+Inputs!$D$45),1,0)) -> 0 | P95: 109.639142 | Q95: =IF(MOD(B95,(240/Inputs!$D$35))=0,OFFSET(P95,,0,1,1)*(E95/OFFSET(E95,,0,1,1)),Q94*(1+D95)) -> 101.4319058 | R95: =IF(MOD(B95,(240/Inputs!$D$35))=0,OFFSET(P95,,0,1,1)*(E95/OFFSET(E95,,0,1,1)),IF(O95=1,R94*(1+D95)*(N95/100),R94*(1+D95))) -> 101.4319058 | S95: =(Q95/P95-1)*Inputs!$D$25 -> -0.07485680779 | T95: =(R95/P95-1)*Inputs!$D$25 -> -0.07485680779 | U95: -0.07485680779 | V95: -0.07485680779 | W95: =IF(MOD(B95,(240/Inputs!$D$35))=0,S95-S94,0) -> 0 | X95: =IF(MOD(B95,(240/Inputs!$D$35))=0,T95-T94,0) -> 0 | Y95: 0 | Z95: =IF(O95=0,0,(N95/100-1)*Inputs!$D$25) -> 0
B96: 88 | C96: 1 | D96: =(1+Inputs!$E$11)^(1/240)-1 -> 0.0001634329919 | E96: 101.4484831 | F96: =(1+Inputs!$E$12)^(1/240)-1 -> 0.0001231692607 | G96: 2.557250749 | H96: -0.4477248993 | I96: =G96*Inputs!$C$16/SQRT(240) -> 0.01155488782 | J96: 0.0118448221 | K96: =(Inputs!$C$18*G96+((1-Inputs!$C$18^2)^(1/2))*H96)*Inputs!$D$16/SQRT(240) -> 0.01631584797 | L96: =Inputs!$F$13/240+K96 -> 0.01660751463 | M96: 111.0979725 | N96: =IF(MOD(B96,(240/Inputs!$D$35))=0,100*(1+Inputs!$C$20*K96),IF(O95=1,100*(1+Inputs!$C$20*L96),N95*(1+Inputs!$C$20*K96))) -> 104.3491769 | O96: =IF((((N96/100-1)*Inputs!$D$25)+1)*100<100*(1-Inputs!$D$45),1,IF((((N96/100-1)*Inputs!$D$25)+1)*100>100*(1+Inputs!$D$45),1,0)) -> 0 | P96: 110.9377981 | Q96: =IF(MOD(B96,(240/Inputs!$D$35))=0,OFFSET(P96,,0,1,1)*(E96/OFFSET(E96,,0,1,1)),Q95*(1+D96)) -> 101.4484831 | R96: =IF(MOD(B96,(240/Inputs!$D$35))=0,OFFSET(P96,,0,1,1)*(E96/OFFSET(E96,,0,1,1)),IF(O96=1,R95*(1+D96)*(N96/100),R95*(1+D96))) -> 101.4484831 | S96: =(Q96/P96-1)*Inputs!$D$25 -> -0.08553725737 | T96: =(R96/P96-1)*Inputs!$D$25 -> -0.08553725737 | U96: -0.08553725737 | V96: -0.08553725737 | W96: =IF(MOD(B96,(240/Inputs!$D$35))=0,S96-S95,0) -> 0 | X96: =IF(MOD(B96,(240/Inputs!$D$35))=0,T96-T95,0) -> 0 | Y96: 0 | Z96: =IF(O96=0,0,(N96/100-1)*Inputs!$D$25) -> 0
B97: 89 | C97: 1 | D97: =(1+Inputs!$E$11)^(1/240)-1 -> 0.0001634329919 | E97: 101.4650631 | F97: =(1+Inputs!$E$12)^(1/240)-1 -> 0.0001231692607 | G97: -0.7788933374 | H97: -0.5844867512 | I97: =G97*Inputs!$C$16/SQRT(240) -> -0.003519414412 | J97: -0.003233800772 | K97: =(Inputs!$C$18*G97+((1-Inputs!$C$18^2)^(1/2))*H97)*Inputs!$D$16/SQRT(240) -> -0.007403408069 | L97: =Inputs!$F$13/240+K97 -> -0.007111741403 | M97: 110.3078724 | N97: =IF(MOD(B97,(240/Inputs!$D$35))=0,100*(1+Inputs!$C$20*K97),IF(O96=1,100*(1+Inputs!$C$20*L97),N96*(1+Inputs!$C$20*K97))) -> 103.9435936 | O97: =IF((((N97/100-1)*Inputs!$D$25)+1)*100<100*(1-Inputs!$D$45),1,IF((((N97/100-1)*Inputs!$D$25)+1)*100>100*(1+Inputs!$D$45),1,0)) -> 0 | P97: 110.5790474 | Q97: =IF(MOD(B97,(240/Inputs!$D$35))=0,OFFSET(P97,,0,1,1)*(E97/OFFSET(E97,,0,1,1)),Q96*(1+D97)) -> 101.4650631 | R97: =IF(MOD(B97,(240/Inputs!$D$35))=0,OFFSET(P97,,0,1,1)*(E97/OFFSET(E97,,0,1,1)),IF(O97=1,R96*(1+D97)*(N97/100),R96*(1+D97))) -> 101.4650631 | S97: =(Q97/P97-1)*Inputs!$D$25 -> -0.0824205348 | T97: =(R97/P97-1)*Inputs!$D$25 -> -0.0824205348 | U97: -0.0824205348 | V97: -0.0824205348 | W97: =IF(MOD(B97,(240/Inputs!$D$35))=0,S97-S96,0) -> 0 | X97: =IF(MOD(B97,(240/Inputs!$D$35))=0,T97-T96,0) -> 0 | Y97: 0 | Z97: =IF(O97=0,0,(N97/100-1)*Inputs!$D$25) -> 0
B98: 90 | C98: 1 | D98: =(1+Inputs!$E$11)^(1/240)-1 -> 0.0001634329919 | E98: 101.4816459 | F98: =(1+Inputs!$E$12)^(1/240)-1 -> 0.0001231692607 | G98: -2.50031615 | H98: 0.07907346959 | I98: =G98*Inputs!$C$16/SQRT(240) -> -0.01129762994 | J98: -0.01101424571 | K98: =(Inputs!$C$18*G98+((1-Inputs!$C$18^2)^(1/2))*H98)*Inputs!$D$16/SQRT(240) -> -0.01716364629 | L98: =Inputs!$F$13/240+K98 -> -0.01687197963 | M98: 108.4467603 | N98: =IF(MOD(B98,(240/Inputs!$D$35))=0,100*(1+Inputs!$C$20*K98),IF(O97=1,100*(1+Inputs!$C$20*L98),N97*(1+Inputs!$C$20*K98))) -> 103.0069668 | O98: =IF((((N98/100-1)*Inputs!$D$25)+1)*100<100*(1-Inputs!$D$45),1,IF((((N98/100-1)*Inputs!$D$25)+1)*100>100*(1+Inputs!$D$45),1,0)) -> 0 | P98: 109.3611026 | Q98: =IF(MOD(B98,(240/Inputs!$D$35))=0,OFFSET(P98,,0,1,1)*(E98/OFFSET(E98,,0,1,1)),Q97*(1+D98)) -> 101.4816459 | R98: =IF(MOD(B98,(240/Inputs!$D$35))=0,OFFSET(P98,,0,1,1)*(E98/OFFSET(E98,,0,1,1)),IF(O98=1,R97*(1+D98)*(N98/100),R97*(1+D98))) -> 101.4816459 | S98: =(Q98/P98-1)*Inputs!$D$25 -> -0.07204990165 | T98: =(R98/P98-1)*Inputs!$D$25 -> -0.07204990165 | U98: -0.07204990165 | V98: -0.07204990165 | W98: =IF(MOD(B98,(240/Inputs!$D$35))=0,S98-S97,0) -> 0 | X98: =IF(MOD(B98,(240/Inputs!$D$35))=0,T98-T97,0) -> 0 | Y98: 0 | Z98: =IF(O98=0,0,(N98/100-1)*Inputs!$D$25) -> 0
B99: 91 | C99: 1 | D99: =(1+Inputs!$E$11)^(1/240)-1 -> 0.0001634329919 | E99: 101.4982313 | F99: =(1+Inputs!$E$12)^(1/240)-1 -> 0.0001231692607 | G99: -0.818090831 | H99: -2.410294034 | I99: =G99*Inputs!$C$16/SQRT(240) -> -0.003696527525 | J99: -0.00341096465 | K99: =(Inputs!$C$18*G99+((1-Inputs!$C$18^2)^(1/2))*H99)*Inputs!$D$16/SQRT(240) -> -0.0138413032 | L99: =Inputs!$F$13/240+K99 -> -0.01354963654 | M99: 106.9773461 | N99: =IF(MOD(B99,(240/Inputs!$D$35))=0,100*(1+Inputs!$C$20*K99),IF(O98=1,100*(1+Inputs!$C$20*L99),N98*(1+Inputs!$C$20*K99))) -> 102.2584477 | O99: =IF((((N99/100-1)*Inputs!$D$25)+1)*100<100*(1-Inputs!$D$45),1,IF((((N99/100-1)*Inputs!$D$25)+1)*100>100*(1+Inputs!$D$45),1,0)) -> 0 | P99: 108.9880757 | Q99: =IF(MOD(B99,(240/Inputs!$D$35))=0,OFFSET(P99,,0,1,1)*(E99/OFFSET(E99,,0,1,1)),Q98*(1+D99)) -> 101.4982313 | R99: =IF(MOD(B99,(240/Inputs!$D$35))=0,OFFSET(P99,,0,1,1)*(E99/OFFSET(E99,,0,1,1)),IF(O99=1,R98*(1+D99)*(N99/100),R98*(1+D99))) -> 101.4982313 | S99: =(Q99/P99-1)*Inputs!$D$25 -> -0.06872168659 | T99: =(R99/P99-1)*Inputs!$D$25 -> -0.06872168659 | U99: -0.06872168659 | V99: -0.06872168659 | W99: =IF(MOD(B99,(240/Inputs!$D$35))=0,S99-S98,0) -> 0 | X99: =IF(MOD(B99,(240/Inputs!$D$35))=0,T99-T98,0) -> 0 | Y99: 0 | Z99: =IF(O99=0,0,(N99/100-1)*Inputs!$D$25) -> 0
B100: 92 | C100: 1 | D100: =(1+Inputs!$E$11)^(1/240)-1 -> 0.0001634329919 | E100: 101.5148195 | F100: =(1+Inputs!$E$12)^(1/240)-1 -> 0.0001231692607 | G100: 0.8785656401 | H100: 0.02136413519 | I100: =G100*Inputs!$C$16/SQRT(240) -> 0.003969781775 | J100: 0.004257541986 | K100: =(Inputs!$C$18*G100+((1-Inputs!$C$18^2)^(1/2))*H100)*Inputs!$D$16/SQRT(240) -> 0.006196939789 | L100: =Inputs!$F$13/240+K100 -> 0.006488606456 | M100: 107.67148 | N100: =IF(MOD(B100,(240/Inputs!$D$35))=0,100*(1+Inputs!$C$20*K100),IF(O99=1,100*(1+Inputs!$C$20*L100),N99*(1+Inputs!$C$20*K100))) -> 102.5911347 | O100: =IF((((N100/100-1)*Inputs!$D$25)+1)*100<100*(1-Inputs!$D$45),1,IF((((N100/100-1)*Inputs!$D$25)+1)*100>100*(1+Inputs!$D$45),1,0)) -> 0 | P100: 109.452097 | Q100: =IF(MOD(B100,(240/Inputs!$D$35))=0,OFFSET(P100,,0,1,1)*(E100/OFFSET(E100,,0,1,1)),Q99*(1+D100)) -> 101.5148195 | R100: =IF(MOD(B100,(240/Inputs!$D$35))=0,OFFSET(P100,,0,1,1)*(E100/OFFSET(E100,,0,1,1)),IF(O100=1,R99*(1+D100)*(N100/100),R99*(1+D100))) -> 101.5148195 | S100: =(Q100/P100-1)*Inputs!$D$25 -> -0.07251827736 | T100: =(R100/P100-1)*Inputs!$D$25 -> -0.07251827736 | U100: -0.07251827736 | V100: -0.07251827736 | W100: =IF(MOD(B100,(240/Inputs!$D$35))=0,S100-S99,0) -> 0 | X100: =IF(MOD(B100,(240/Inputs!$D$35))=0,T100-T99,0) -> 0 | Y100: 0 | Z100: =IF(O100=0,0,(N100/100-1)*Inputs!$D$25) -> 0
B101: 93 | C101: 1 | D101: =(1+Inputs!$E$11)^(1/240)-1 -> 0.0001634329919 | E101: 101.5314104 | F101: =(1+Inputs!$E$12)^(1/240)-1 -> 0.0001231692607 | G101: 1.065311077 | H101: 0.1680763314 | I101: =G101*Inputs!$C$16/SQRT(240) -> 0.004813587405 | J101: 0.005101589469 | K101: =(Inputs!$C$18*G101+((1-Inputs!$C$18^2)^(1/2))*H101)*Inputs!$D$16/SQRT(240) -> 0.00799416872 | L101: =Inputs!$F$13/240+K101 -> 0.008285835387 | M101: 108.5636281 | N101: =IF(MOD(B101,(240/Inputs!$D$35))=0,100*(1+Inputs!$C$20*K101),IF(O100=1,100*(1+Inputs!$C$20*L101),N100*(1+Inputs!$C$20*K101))) -> 103.0217034 | O101: =IF((((N101/100-1)*Inputs!$D$25)+1)*100<100*(1-Inputs!$D$45),1,IF((((N101/100-1)*Inputs!$D$25)+1)*100>100*(1+Inputs!$D$45),1,0)) -> 0 | P101: 110.0104767 | Q101: =IF(MOD(B101,(240/Inputs!$D$35))=0,OFFSET(P101,,0,1,1)*(E101/OFFSET(E101,,0,1,1)),Q100*(1+D101)) -> 101.5314104 | R101: =IF(MOD(B101,(240/Inputs!$D$35))=0,OFFSET(P101,,0,1,1)*(E101/OFFSET(E101,,0,1,1)),IF(O101=1,R100*(1+D101)*(N101/100),R100*(1+D101))) -> 101.5314104 | S101: =(Q101/P101-1)*Inputs!$D$25 -> -0.0770750803 | T101: =(R101/P101-1)*Inputs!$D$25 -> -0.0770750803 | U101: -0.0770750803 | V101: -0.0770750803 | W101: =IF(MOD(B101,(240/Inputs!$D$35))=0,S101-S100,0) -> 0 | X101: =IF(MOD(B101,(240/Inputs!$D$35))=0,T101-T100,0) -> 0 | Y101: 0 | Z101: =IF(O101=0,0,(N101/100-1)*Inputs!$D$25) -> 0
B102: 94 | C102: 1 | D102: =(1+Inputs!$E$11)^(1/240)-1 -> 0.0001634329919 | E102: 101.5480039 | F102: =(1+Inputs!$E$12)^(1/240)-1 -> 0.0001231692607 | G102: -1.143317977 | H102: 0.8619602594 | I102: =G102*Inputs!$C$16/SQRT(240) -> -0.005166060067 | J102: -0.004880918392 | K102: =(Inputs!$C$18*G102+((1-Inputs!$C$18^2)^(1/2))*H102)*Inputs!$D$16/SQRT(240) -> -0.005060179878 | L102: =Inputs!$F$13/240+K102 -> -0.004768513211 | M102: 108.045941 | N102: =IF(MOD(B102,(240/Inputs!$D$35))=0,100*(1+Inputs!$C$20*K102),IF(O101=1,100*(1+Inputs!$C$20*L102),N101*(1+Inputs!$C$20*K102))) -> 102.7480165 | O102: =IF((((N102/100-1)*Inputs!$D$25)+1)*100<100*(1-Inputs!$D$45),1,IF((((N102/100-1)*Inputs!$D$25)+1)*100>100*(1+Inputs!$D$45),1,0)) -> 0 | P102: 109.4735245 | Q102: =IF(MOD(B102,(240/Inputs!$D$35))=0,OFFSET(P102,,0,1,1)*(E102/OFFSET(E102,,0,1,1)),Q101*(1+D102)) -> 101.5480039 | R102: =IF(MOD(B102,(240/Inputs!$D$35))=0,OFFSET(P102,,0,1,1)*(E102/OFFSET(E102,,0,1,1)),IF(O102=1,R101*(1+D102)*(N102/100),R101*(1+D102))) -> 101.5480039 | S102: =(Q102/P102-1)*Inputs!$D$25 -> -0.07239668785 | T102: =(R102/P102-1)*Inputs!$D$25 -> -0.07239668785 | U102: -0.07239668785 | V102: -0.07239668785 | W102: =IF(MOD(B102,(240/Inputs!$D$35))=0,S102-S101,0) -> 0 | X102: =IF(MOD(B102,(240/Inputs!$D$35))=0,T102-T101,0) -> 0 | Y102: 0 | Z102: =IF(O102=0,0,(N102/100-1)*Inputs!$D$25) -> 0
B103: 95 | C103: 1 | D103: =(1+Inputs!$E$11)^(1/240)-1 -> 0.0001634329919 | E103: 101.5646002 | F103: =(1+Inputs!$E$12)^(1/240)-1 -> 0.0001231692607 | G103: -0.6959192615 | H103: -1.576504851 | I103: =G103*Inputs!$C$16/SQRT(240) -> -0.003144497662 | J103: -0.002858776563 | K103: =(Inputs!$C$18*G103+((1-Inputs!$C$18^2)^(1/2))*H103)*Inputs!$D$16/SQRT(240) -> -0.01017440369 | L103: =Inputs!$F$13/240+K103 -> -0.009882737023 | M103: 106.9781514 | N103: =IF(MOD(B103,(240/Inputs!$D$35))=0,100*(1+Inputs!$C$20*K103),IF(O102=1,100*(1+Inputs!$C$20*L103),N102*(1+Inputs!$C$20*K103))) -> 102.1991816 | O103: =IF((((N103/100-1)*Inputs!$D$25)+1)*100<100*(1-Inputs!$D$45),1,IF((((N103/100-1)*Inputs!$D$25)+1)*100>100*(1+Inputs!$D$45),1,0)) -> 0 | P103: 109.1605642 | Q103: =IF(MOD(B103,(240/Inputs!$D$35))=0,OFFSET(P103,,0,1,1)*(E103/OFFSET(E103,,0,1,1)),Q102*(1+D103)) -> 101.5646002 | R103: =IF(MOD(B103,(240/Inputs!$D$35))=0,OFFSET(P103,,0,1,1)*(E103/OFFSET(E103,,0,1,1)),IF(O103=1,R102*(1+D103)*(N103/100),R102*(1+D103))) -> 101.5646002 | S103: =(Q103/P103-1)*Inputs!$D$25 -> -0.06958523895 | T103: =(R103/P103-1)*Inputs!$D$25 -> -0.06958523895 | U103: -0.06958523895 | V103: -0.06958523895 | W103: =IF(MOD(B103,(240/Inputs!$D$35))=0,S103-S102,0) -> 0 | X103: =IF(MOD(B103,(240/Inputs!$D$35))=0,T103-T102,0) -> 0 | Y103: 0 | Z103: =IF(O103=0,0,(N103/100-1)*Inputs!$D$25) -> 0
B104: 96 | C104: 1 | D104: =(1+Inputs!$E$11)^(1/240)-1 -> 0.0001634329919 | E104: 101.5811992 | F104: =(1+Inputs!$E$12)^(1/240)-1 -> 0.0001231692607 | G104: 1.270531941 | H104: -1.892001989 | I104: =G104*Inputs!$C$16/SQRT(240) -> 0.005740873889 | J104: 0.006029141734 | K104: =(Inputs!$C$18*G104+((1-Inputs!$C$18^2)^(1/2))*H104)*Inputs!$D$16/SQRT(240) -> 0.002469214332 | L104: =Inputs!$F$13/240+K104 -> 0.002760880998 | M104: 107.2735054 | N104: =IF(MOD(B104,(240/Inputs!$D$35))=0,100*(1+Inputs!$C$20*K104),IF(O103=1,100*(1+Inputs!$C$20*L104),N103*(1+Inputs!$C$20*K104))) -> 102.3316662 | O104: =IF((((N104/100-1)*Inputs!$D$25)+1)*100<100*(1-Inputs!$D$45),1,IF((((N104/100-1)*Inputs!$D$25)+1)*100>100*(1+Inputs!$D$45),1,0)) -> 0 | P104: 109.8187087 | Q104: =IF(MOD(B104,(240/Inputs!$D$35))=0,OFFSET(P104,,0,1,1)*(E104/OFFSET(E104,,0,1,1)),Q103*(1+D104)) -> 101.5811992 | R104: =IF(MOD(B104,(240/Inputs!$D$35))=0,OFFSET(P104,,0,1,1)*(E104/OFFSET(E104,,0,1,1)),IF(O104=1,R103*(1+D104)*(N104/100),R103*(1+D104))) -> 101.5811992 | S104: =(Q104/P104-1)*Inputs!$D$25 -> -0.07501007385 | T104: =(R104/P104-1)*Inputs!$D$25 -> -0.07501007385 | U104: -0.07501007385 | V104: -0.07501007385 | W104: =IF(MOD(B104,(240/Inputs!$D$35))=0,S104-S103,0) -> 0 | X104: =IF(MOD(B104,(240/Inputs!$D$35))=0,T104-T103,0) -> 0 | Y104: 0 | Z104: =IF(O104=0,0,(N104/100-1)*Inputs!$D$25) -> 0
B105: 97 | C105: 1 | D105: =(1+Inputs!$E$11)^(1/240)-1 -> 0.0001634329919 | E105: 101.597801 | F105: =(1+Inputs!$E$12)^(1/240)-1 -> 0.0001231692607 | G105: 0.8350571435 | H105: 0.2508065301 | I105: =G105*Inputs!$C$16/SQRT(240) -> 0.003773189478 | J105: 0.004060893341 | K105: =(Inputs!$C$18*G105+((1-Inputs!$C$18^2)^(1/2))*H105)*Inputs!$D$16/SQRT(240) -> 0.006668312647 | L105: =Inputs!$F$13/240+K105 -> 0.006959979314 | M105: 108.0201267 | N105: =IF(MOD(B105,(240/Inputs!$D$35))=0,100*(1+Inputs!$C$20*K105),IF(O104=1,100*(1+Inputs!$C$20*L105),N104*(1+Inputs!$C$20*K105))) -> 102.6899155 | O105: =IF((((N105/100-1)*Inputs!$D$25)+1)*100<100*(1-Inputs!$D$45),1,IF((((N105/100-1)*Inputs!$D$25)+1)*100>100*(1+Inputs!$D$45),1,0)) -> 0 | P105: 110.2646708 | Q105: =IF(MOD(B105,(240/Inputs!$D$35))=0,OFFSET(P105,,0,1,1)*(E105/OFFSET(E105,,0,1,1)),Q104*(1+D105)) -> 101.597801 | R105: =IF(MOD(B105,(240/Inputs!$D$35))=0,OFFSET(P105,,0,1,1)*(E105/OFFSET(E105,,0,1,1)),IF(O105=1,R104*(1+D105)*(N105/100),R104*(1+D105))) -> 101.597801 | S105: =(Q105/P105-1)*Inputs!$D$25 -> -0.07860060465 | T105: =(R105/P105-1)*Inputs!$D$25 -> -0.07860060465 | U105: -0.07860060465 | V105: -0.07860060465 | W105: =IF(MOD(B105,(240/Inputs!$D$35))=0,S105-S104,0) -> 0 | X105: =IF(MOD(B105,(240/Inputs!$D$35))=0,T105-T104,0) -> 0 | Y105: 0 | Z105: =IF(O105=0,0,(N105/100-1)*Inputs!$D$25) -> 0
B106: 98 | C106: 1 | D106: =(1+Inputs!$E$11)^(1/240)-1 -> 0.0001634329919 | E106: 101.6144054 | F106: =(1+Inputs!$E$12)^(1/240)-1 -> 0.0001231692607 | G106: =_xlfn.NORM.S.INV(RAND()) -> -0.3854125456 | H106: 1.859707202 | I106: =G106*Inputs!$C$16/SQRT(240) -> -0.001741479099 | J106: -0.001455355863 | K106: =(Inputs!$C$18*G106+((1-Inputs!$C$18^2)^(1/2))*H106)*Inputs!$D$16/SQRT(240) -> 0.003592240734 | L106: =Inputs!$F$13/240+K106 -> 0.003883907401 | M106: 108.4396669 | N106: =IF(MOD(B106,(240/Inputs!$D$35))=0,100*(1+Inputs!$C$20*K106),IF(O105=1,100*(1+Inputs!$C$20*L106),N105*(1+Inputs!$C$20*K106))) -> 102.8835811 | O106: =IF((((N106/100-1)*Inputs!$D$25)+1)*100<100*(1-Inputs!$D$45),1,IF((((N106/100-1)*Inputs!$D$25)+1)*100>100*(1+Inputs!$D$45),1,0)) -> 0 | P106: 110.1041964 | Q106: =IF(MOD(B106,(240/Inputs!$D$35))=0,OFFSET(P106,,0,1,1)*(E106/OFFSET(E106,,0,1,1)),Q105*(1+D106)) -> 101.6144054 | R106: =IF(MOD(B106,(240/Inputs!$D$35))=0,OFFSET(P106,,0,1,1)*(E106/OFFSET(E106,,0,1,1)),IF(O106=1,R105*(1+D106)*(N106/100),R105*(1+D106))) -> 101.6144054 | S106: =(Q106/P106-1)*Inputs!$D$25 -> -0.07710687968 | T106: =(R106/P106-1)*Inputs!$D$25 -> -0.07710687968 | U106: -0.07710687968 | V106: -0.07710687968 | W106: =IF(MOD(B106,(240/Inputs!$D$35))=0,S106-S105,0) -> 0 | X106: =IF(MOD(B106,(240/Inputs!$D$35))=0,T106-T105,0) -> 0 | Y106: 0 | Z106: =IF(O106=0,0,(N106/100-1)*Inputs!$D$25) -> 0
B107: 99 | C107: 1 | D107: =(1+Inputs!$E$11)^(1/240)-1 -> 0.0001634329919 | E107: 101.6310125 | F107: =(1+Inputs!$E$12)^(1/240)-1 -> 0.0001231692607 | G107: -0.02932528948 | H107: 0.2134359988 | I107: =G107*Inputs!$C$16/SQRT(240) -> -0.0001325057508 | J107: 0.0001540786526 | K107: =(Inputs!$C$18*G107+((1-Inputs!$C$18^2)^(1/2))*H107)*Inputs!$D$16/SQRT(240) -> 0.0005162054298 | L107: =Inputs!$F$13/240+K107 -> 0.0008078720965 | M107: 108.5272723 | N107: =IF(MOD(B107,(240/Inputs!$D$35))=0,100*(1+Inputs!$C$20*K107),IF(O106=1,100*(1+Inputs!$C$20*L107),N106*(1+Inputs!$C$20*K107))) -> 102.9114634 | O107: =IF((((N107/100-1)*Inputs!$D$25)+1)*100<100*(1-Inputs!$D$45),1,IF((((N107/100-1)*Inputs!$D$25)+1)*100>100*(1+Inputs!$D$45),1,0)) -> 0 | P107: 110.1211611 | Q107: =IF(MOD(B107,(240/Inputs!$D$35))=0,OFFSET(P107,,0,1,1)*(E107/OFFSET(E107,,0,1,1)),Q106*(1+D107)) -> 101.6310125 | R107: =IF(MOD(B107,(240/Inputs!$D$35))=0,OFFSET(P107,,0,1,1)*(E107/OFFSET(E107,,0,1,1)),IF(O107=1,R106*(1+D107)*(N107/100),R106*(1+D107))) -> 101.6310125 | S107: =(Q107/P107-1)*Inputs!$D$25 -> -0.07709824795 | T107: =(R107/P107-1)*Inputs!$D$25 -> -0.07709824795 | U107: -0.07709824795 | V107: -0.07709824795 | W107: =IF(MOD(B107,(240/Inputs!$D$35))=0,S107-S106,0) -> 0 | X107: =IF(MOD(B107,(240/Inputs!$D$35))=0,T107-T106,0) -> 0 | Y107: 0 | Z107: =IF(O107=0,0,(N107/100-1)*Inputs!$D$25) -> 0
B108: 100 | C108: 1 | D108: =(1+Inputs!$E$11)^(1/240)-1 -> 0.0001634329919 | E108: 101.6476224 | F108: =(1+Inputs!$E$12)^(1/240)-1 -> 0.0001231692607 | G108: -1.283197028 | H108: 0.4831341696 | I108: =G108*Inputs!$C$16/SQRT(240) -> -0.00579810084 | J108: -0.005513140322 | K108: =(Inputs!$C$18*G108+((1-Inputs!$C$18^2)^(1/2))*H108)*Inputs!$D$16/SQRT(240) -> -0.007314392591 | L108: =Inputs!$F$13/240+K108 -> -0.007022725925 | M108: 107.765115 | N108: =IF(MOD(B108,(240/Inputs!$D$35))=0,100*(1+Inputs!$C$20*K108),IF(O107=1,100*(1+Inputs!$C$20*L108),N107*(1+Inputs!$C$20*K108))) -> 102.5162776 | O108: =IF((((N108/100-1)*Inputs!$D$25)+1)*100<100*(1-Inputs!$D$45),1,IF((((N108/100-1)*Inputs!$D$25)+1)*100>100*(1+Inputs!$D$45),1,0)) -> 0 | P108: 109.5140477 | Q108: =IF(MOD(B108,(240/Inputs!$D$35))=0,OFFSET(P108,,0,1,1)*(E108/OFFSET(E108,,0,1,1)),Q107*(1+D108)) -> 101.6476224 | R108: =IF(MOD(B108,(240/Inputs!$D$35))=0,OFFSET(P108,,0,1,1)*(E108/OFFSET(E108,,0,1,1)),IF(O108=1,R107*(1+D108)*(N108/100),R107*(1+D108))) -> 101.6476224 | S108: =(Q108/P108-1)*Inputs!$D$25 -> -0.07183028548 | T108: =(R108/P108-1)*Inputs!$D$25 -> -0.07183028548 | U108: -0.07183028548 | V108: -0.07183028548 | W108: =IF(MOD(B108,(240/Inputs!$D$35))=0,S108-S107,0) -> 0 | X108: =IF(MOD(B108,(240/Inputs!$D$35))=0,T108-T107,0) -> 0 | Y108: 0 | Z108: =IF(O108=0,0,(N108/100-1)*Inputs!$D$25) -> 0
B109: 101 | C109: 1 | D109: =(1+Inputs!$E$11)^(1/240)-1 -> 0.0001634329919 | E109: 101.664235 | F109: =(1+Inputs!$E$12)^(1/240)-1 -> 0.0001231692607 | G109: 0.9090648474 | H109: -0.5928783502 | I109: =G109*Inputs!$C$16/SQRT(240) -> 0.00410759185 | J109: 0.004395391561 | K109: =(Inputs!$C$18*G109+((1-Inputs!$C$18^2)^(1/2))*H109)*Inputs!$D$16/SQRT(240) -> 0.004335639721 | L109: =Inputs!$F$13/240+K109 -> 0.004627306388 | M109: 108.2637772 | N109: =IF(MOD(B109,(240/Inputs!$D$35))=0,100*(1+Inputs!$C$20*K109),IF(O108=1,100*(1+Inputs!$C$20*L109),N108*(1+Inputs!$C$20*K109))) -> 102.7496262 | O109: =IF((((N109/100-1)*Inputs!$D$25)+1)*100<100*(1-Inputs!$D$45),1,IF((((N109/100-1)*Inputs!$D$25)+1)*100>100*(1+Inputs!$D$45),1,0)) -> 0 | P109: 109.9954048 | Q109: =IF(MOD(B109,(240/Inputs!$D$35))=0,OFFSET(P109,,0,1,1)*(E109/OFFSET(E109,,0,1,1)),Q108*(1+D109)) -> 101.664235 | R109: =IF(MOD(B109,(240/Inputs!$D$35))=0,OFFSET(P109,,0,1,1)*(E109/OFFSET(E109,,0,1,1)),IF(O109=1,R108*(1+D109)*(N109/100),R108*(1+D109))) -> 101.664235 | S109: =(Q109/P109-1)*Inputs!$D$25 -> -0.07574107182 | T109: =(R109/P109-1)*Inputs!$D$25 -> -0.07574107182 | U109: -0.07574107182 | V109: -0.07574107182 | W109: =IF(MOD(B109,(240/Inputs!$D$35))=0,S109-S108,0) -> 0 | X109: =IF(MOD(B109,(240/Inputs!$D$35))=0,T109-T108,0) -> 0 | Y109: 0 | Z109: =IF(O109=0,0,(N109/100-1)*Inputs!$D$25) -> 0
B110: 102 | C110: 1 | D110: =(1+Inputs!$E$11)^(1/240)-1 -> 0.0001634329919 | E110: 101.6808503 | F110: =(1+Inputs!$E$12)^(1/240)-1 -> 0.0001231692607 | G110: 0.02196508041 | H110: 0.2744596029 | I110: =G110*Inputs!$C$16/SQRT(240) -> 9.924878905e-05 | J110: 0.0003858996185 | K110: =(Inputs!$C$18*G110+((1-Inputs!$C$18^2)^(1/2))*H110)*Inputs!$D$16/SQRT(240) -> 0.001079808978 | L110: =Inputs!$F$13/240+K110 -> 0.001371475645 | M110: 108.4122583 | N110: =IF(MOD(B110,(240/Inputs!$D$35))=0,100*(1+Inputs!$C$20*K110),IF(O109=1,100*(1+Inputs!$C$20*L110),N109*(1+Inputs!$C$20*K110))) -> 102.807875 | O110: =IF((((N110/100-1)*Inputs!$D$25)+1)*100<100*(1-Inputs!$D$45),1,IF((((N110/100-1)*Inputs!$D$25)+1)*100>100*(1+Inputs!$D$45),1,0)) -> 0 | P110: 110.037852 | Q110: =IF(MOD(B110,(240/Inputs!$D$35))=0,OFFSET(P110,,0,1,1)*(E110/OFFSET(E110,,0,1,1)),Q109*(1+D110)) -> 101.6808503 | R110: =IF(MOD(B110,(240/Inputs!$D$35))=0,OFFSET(P110,,0,1,1)*(E110/OFFSET(E110,,0,1,1)),IF(O110=1,R109*(1+D110)*(N110/100),R109*(1+D110))) -> 101.6808503 | S110: =(Q110/P110-1)*Inputs!$D$25 -> -0.07594660927 | T110: =(R110/P110-1)*Inputs!$D$25 -> -0.07594660927 | U110: -0.07594660927 | V110: -0.07594660927 | W110: =IF(MOD(B110,(240/Inputs!$D$35))=0,S110-S109,0) -> 0 | X110: =IF(MOD(B110,(240/Inputs!$D$35))=0,T110-T109,0) -> 0 | Y110: 0 | Z110: =IF(O110=0,0,(N110/100-1)*Inputs!$D$25) -> 0
B111: 103 | C111: 1 | D111: =(1+Inputs!$E$11)^(1/240)-1 -> 0.0001634329919 | E111: 101.6974683 | F111: =(1+Inputs!$E$12)^(1/240)-1 -> 0.0001231692607 | G111: -0.4073182217 | H111: 0.4950252669 | I111: =G111*Inputs!$C$16/SQRT(240) -> -0.001840459471 | J111: -0.001554364605 | K111: =(Inputs!$C$18*G111+((1-Inputs!$C$18^2)^(1/2))*H111)*Inputs!$D$16/SQRT(240) -> -0.001168168371 | L111: =Inputs!$F$13/240+K111 -> -0.0008765017043 | M111: 108.3172348 | N111: =IF(MOD(B111,(240/Inputs!$D$35))=0,100*(1+Inputs!$C$20*K111),IF(O110=1,100*(1+Inputs!$C$20*L111),N110*(1+Inputs!$C$20*K111))) -> 102.7448241 | O111: =IF((((N111/100-1)*Inputs!$D$25)+1)*100<100*(1-Inputs!$D$45),1,IF((((N111/100-1)*Inputs!$D$25)+1)*100>100*(1+Inputs!$D$45),1,0)) -> 0 | P111: 109.8668131 | Q111: =IF(MOD(B111,(240/Inputs!$D$35))=0,OFFSET(P111,,0,1,1)*(E111/OFFSET(E111,,0,1,1)),Q110*(1+D111)) -> 101.6974683 | R111: =IF(MOD(B111,(240/Inputs!$D$35))=0,OFFSET(P111,,0,1,1)*(E111/OFFSET(E111,,0,1,1)),IF(O111=1,R110*(1+D111)*(N111/100),R110*(1+D111))) -> 101.6974683 | S111: =(Q111/P111-1)*Inputs!$D$25 -> -0.07435680143 | T111: =(R111/P111-1)*Inputs!$D$25 -> -0.07435680143 | U111: -0.07435680143 | V111: -0.07435680143 | W111: =IF(MOD(B111,(240/Inputs!$D$35))=0,S111-S110,0) -> 0 | X111: =IF(MOD(B111,(240/Inputs!$D$35))=0,T111-T110,0) -> 0 | Y111: 0 | Z111: =IF(O111=0,0,(N111/100-1)*Inputs!$D$25) -> 0
B112: 104 | C112: 1 | D112: =(1+Inputs!$E$11)^(1/240)-1 -> 0.0001634329919 | E112: 101.714089 | F112: =(1+Inputs!$E$12)^(1/240)-1 -> 0.0001231692607 | G112: -0.5009202126 | H112: 0.537260355 | I112: =G112*Inputs!$C$16/SQRT(240) -> -0.002263398248 | J112: -0.001977424606 | K112: =(Inputs!$C$18*G112+((1-Inputs!$C$18^2)^(1/2))*H112)*Inputs!$D$16/SQRT(240) -> -0.001678100415 | L112: =Inputs!$F$13/240+K112 -> -0.001386433748 | M112: 108.1670601 | N112: =IF(MOD(B112,(240/Inputs!$D$35))=0,100*(1+Inputs!$C$20*K112),IF(O111=1,100*(1+Inputs!$C$20*L112),N111*(1+Inputs!$C$20*K112))) -> 102.6543056 | O112: =IF((((N112/100-1)*Inputs!$D$25)+1)*100<100*(1-Inputs!$D$45),1,IF((((N112/100-1)*Inputs!$D$25)+1)*100>100*(1+Inputs!$D$45),1,0)) -> 0 | P112: 109.6495597 | Q112: =IF(MOD(B112,(240/Inputs!$D$35))=0,OFFSET(P112,,0,1,1)*(E112/OFFSET(E112,,0,1,1)),Q111*(1+D112)) -> 101.714089 | R112: =IF(MOD(B112,(240/Inputs!$D$35))=0,OFFSET(P112,,0,1,1)*(E112/OFFSET(E112,,0,1,1)),IF(O112=1,R111*(1+D112)*(N112/100),R111*(1+D112))) -> 101.714089 | S112: =(Q112/P112-1)*Inputs!$D$25 -> -0.07237120479 | T112: =(R112/P112-1)*Inputs!$D$25 -> -0.07237120479 | U112: -0.07237120479 | V112: -0.07237120479 | W112: =IF(MOD(B112,(240/Inputs!$D$35))=0,S112-S111,0) -> 0 | X112: =IF(MOD(B112,(240/Inputs!$D$35))=0,T112-T111,0) -> 0 | Y112: 0 | Z112: =IF(O112=0,0,(N112/100-1)*Inputs!$D$25) -> 0
B113: 105 | C113: 1 | D113: =(1+Inputs!$E$11)^(1/240)-1 -> 0.0001634329919 | E113: 101.7307124 | F113: =(1+Inputs!$E$12)^(1/240)-1 -> 0.0001231692607 | G113: -0.1773885428 | H113: 0.6801711814 | I113: =G113*Inputs!$C$16/SQRT(240) -> -0.000801526684 | J113: -0.000515134037 | K113: =(Inputs!$C$18*G113+((1-Inputs!$C$18^2)^(1/2))*H113)*Inputs!$D$16/SQRT(240) -> 0.001059881055 | L113: =Inputs!$F$13/240+K113 -> 0.001351547722 | M113: 108.3132531 | N113: =IF(MOD(B113,(240/Inputs!$D$35))=0,100*(1+Inputs!$C$20*K113),IF(O112=1,100*(1+Inputs!$C$20*L113),N112*(1+Inputs!$C$20*K113))) -> 102.7114263 | O113: =IF((((N113/100-1)*Inputs!$D$25)+1)*100<100*(1-Inputs!$D$45),1,IF((((N113/100-1)*Inputs!$D$25)+1)*100>100*(1+Inputs!$D$45),1,0)) -> 0 | P113: 109.5930755 | Q113: =IF(MOD(B113,(240/Inputs!$D$35))=0,OFFSET(P113,,0,1,1)*(E113/OFFSET(E113,,0,1,1)),Q112*(1+D113)) -> 101.7307124 | R113: =IF(MOD(B113,(240/Inputs!$D$35))=0,OFFSET(P113,,0,1,1)*(E113/OFFSET(E113,,0,1,1)),IF(O113=1,R112*(1+D113)*(N113/100),R112*(1+D113))) -> 101.7307124 | S113: =(Q113/P113-1)*Inputs!$D$25 -> -0.07174142205 | T113: =(R113/P113-1)*Inputs!$D$25 -> -0.07174142205 | U113: -0.07174142205 | V113: -0.07174142205 | W113: =IF(MOD(B113,(240/Inputs!$D$35))=0,S113-S112,0) -> 0 | X113: =IF(MOD(B113,(240/Inputs!$D$35))=0,T113-T112,0) -> 0 | Y113: 0 | Z113: =IF(O113=0,0,(N113/100-1)*Inputs!$D$25) -> 0
B114: 106 | C114: 1 | D114: =(1+Inputs!$E$11)^(1/240)-1 -> 0.0001634329919 | E114: 101.7473386 | F114: =(1+Inputs!$E$12)^(1/240)-1 -> 0.0001231692607 | G114: -0.692922077 | H114: 0.5813495605 | I114: =G114*Inputs!$C$16/SQRT(240) -> -0.003130954942 | J114: -0.002845229961 | K114: =(Inputs!$C$18*G114+((1-Inputs!$C$18^2)^(1/2))*H114)*Inputs!$D$16/SQRT(240) -> -0.002867754166 | L114: =Inputs!$F$13/240+K114 -> -0.002576087499 | M114: 108.0342287 | N114: =IF(MOD(B114,(240/Inputs!$D$35))=0,100*(1+Inputs!$C$20*K114),IF(O113=1,100*(1+Inputs!$C$20*L114),N113*(1+Inputs!$C$20*K114))) -> 102.556787 | O114: =IF((((N114/100-1)*Inputs!$D$25)+1)*100<100*(1-Inputs!$D$45),1,IF((((N114/100-1)*Inputs!$D$25)+1)*100>100*(1+Inputs!$D$45),1,0)) -> 0 | P114: 109.281258 | Q114: =IF(MOD(B114,(240/Inputs!$D$35))=0,OFFSET(P114,,0,1,1)*(E114/OFFSET(E114,,0,1,1)),Q113*(1+D114)) -> 101.7473386 | R114: =IF(MOD(B114,(240/Inputs!$D$35))=0,OFFSET(P114,,0,1,1)*(E114/OFFSET(E114,,0,1,1)),IF(O114=1,R113*(1+D114)*(N114/100),R113*(1+D114))) -> 101.7473386 | S114: =(Q114/P114-1)*Inputs!$D$25 -> -0.06894063598 | T114: =(R114/P114-1)*Inputs!$D$25 -> -0.06894063598 | U114: -0.06894063598 | V114: -0.06894063598 | W114: =IF(MOD(B114,(240/Inputs!$D$35))=0,S114-S113,0) -> 0 | X114: =IF(MOD(B114,(240/Inputs!$D$35))=0,T114-T113,0) -> 0 | Y114: 0 | Z114: =IF(O114=0,0,(N114/100-1)*Inputs!$D$25) -> 0
B115: 107 | C115: 1 | D115: =(1+Inputs!$E$11)^(1/240)-1 -> 0.0001634329919 | E115: 101.7639675 | F115: =(1+Inputs!$E$12)^(1/240)-1 -> 0.0001231692607 | G115: 0.06487023859 | H115: -0.8373234324 | I115: =G115*Inputs!$C$16/SQRT(240) -> 0.0002931149127 | J115: 0.0005798213085 | K115: =(Inputs!$C$18*G115+((1-Inputs!$C$18^2)^(1/2))*H115)*Inputs!$D$16/SQRT(240) -> -0.002374894858 | L115: =Inputs!$F$13/240+K115 -> -0.002083228191 | M115: 107.8091687 | N115: =IF(MOD(B115,(240/Inputs!$D$35))=0,100*(1+Inputs!$C$20*K115),IF(O114=1,100*(1+Inputs!$C$20*L115),N114*(1+Inputs!$C$20*K115))) -> 102.4289172 | O115: =IF((((N115/100-1)*Inputs!$D$25)+1)*100<100*(1-Inputs!$D$45),1,IF((((N115/100-1)*Inputs!$D$25)+1)*100>100*(1+Inputs!$D$45),1,0)) -> 0 | P115: 109.3446216 | Q115: =IF(MOD(B115,(240/Inputs!$D$35))=0,OFFSET(P115,,0,1,1)*(E115/OFFSET(E115,,0,1,1)),Q114*(1+D115)) -> 101.7639675 | R115: =IF(MOD(B115,(240/Inputs!$D$35))=0,OFFSET(P115,,0,1,1)*(E115/OFFSET(E115,,0,1,1)),IF(O115=1,R114*(1+D115)*(N115/100),R114*(1+D115))) -> 101.7639675 | S115: =(Q115/P115-1)*Inputs!$D$25 -> -0.06932809356 | T115: =(R115/P115-1)*Inputs!$D$25 -> -0.06932809356 | U115: -0.06932809356 | V115: -0.06932809356 | W115: =IF(MOD(B115,(240/Inputs!$D$35))=0,S115-S114,0) -> 0 | X115: =IF(MOD(B115,(240/Inputs!$D$35))=0,T115-T114,0) -> 0 | Y115: 0 | Z115: =IF(O115=0,0,(N115/100-1)*Inputs!$D$25) -> 0
B116: 108 | C116: 1 | D116: =(1+Inputs!$E$11)^(1/240)-1 -> 0.0001634329919 | E116: 101.7805991 | F116: =(1+Inputs!$E$12)^(1/240)-1 -> 0.0001231692607 | G116: 0.2864848628 | H116: 0.05838656879 | I116: =G116*Inputs!$C$16/SQRT(240) -> 0.001294476286 | J116: 0.001581469695 | K116: =(Inputs!$C$18*G116+((1-Inputs!$C$18^2)^(1/2))*H116)*Inputs!$D$16/SQRT(240) -> 0.00219432773 | L116: =Inputs!$F$13/240+K116 -> 0.002485994396 | M116: 108.0771817 | N116: =IF(MOD(B116,(240/Inputs!$D$35))=0,100*(1+Inputs!$C$20*K116),IF(O115=1,100*(1+Inputs!$C$20*L116),N115*(1+Inputs!$C$20*K116))) -> 102.5469175 | O116: =IF((((N116/100-1)*Inputs!$D$25)+1)*100<100*(1-Inputs!$D$45),1,IF((((N116/100-1)*Inputs!$D$25)+1)*100>100*(1+Inputs!$D$45),1,0)) -> 0 | P116: 109.5175468 | Q116: =IF(MOD(B116,(240/Inputs!$D$35))=0,OFFSET(P116,,0,1,1)*(E116/OFFSET(E116,,0,1,1)),Q115*(1+D116)) -> 101.7805991 | R116: =IF(MOD(B116,(240/Inputs!$D$35))=0,OFFSET(P116,,0,1,1)*(E116/OFFSET(E116,,0,1,1)),IF(O116=1,R115*(1+D116)*(N116/100),R115*(1+D116))) -> 101.7805991 | S116: =(Q116/P116-1)*Inputs!$D$25 -> -0.07064573667 | T116: =(R116/P116-1)*Inputs!$D$25 -> -0.07064573667 | U116: -0.07064573667 | V116: -0.07064573667 | W116: =IF(MOD(B116,(240/Inputs!$D$35))=0,S116-S115,0) -> 0 | X116: =IF(MOD(B116,(240/Inputs!$D$35))=0,T116-T115,0) -> 0 | Y116: 0 | Z116: =IF(O116=0,0,(N116/100-1)*Inputs!$D$25) -> 0
B117: 109 | C117: 1 | D117: =(1+Inputs!$E$11)^(1/240)-1 -> 0.0001634329919 | E117: 101.7972334 | F117: =(1+Inputs!$E$12)^(1/240)-1 -> 0.0001231692607 | G117: -0.2974066618 | H117: 0.7790100333 | I117: =G117*Inputs!$C$16/SQRT(240) -> -0.001343826223 | J117: -0.001057589011 | K117: =(Inputs!$C$18*G117+((1-Inputs!$C$18^2)^(1/2))*H117)*Inputs!$D$16/SQRT(240) -> 0.0005569087117 | L117: =Inputs!$F$13/240+K117 -> 0.0008485753783 | M117: 108.1688933 | N117: =IF(MOD(B117,(240/Inputs!$D$35))=0,100*(1+Inputs!$C$20*K117),IF(O116=1,100*(1+Inputs!$C$20*L117),N116*(1+Inputs!$C$20*K117))) -> 102.5768999 | O117: =IF((((N117/100-1)*Inputs!$D$25)+1)*100<100*(1-Inputs!$D$45),1,IF((((N117/100-1)*Inputs!$D$25)+1)*100>100*(1+Inputs!$D$45),1,0)) -> 0 | P117: 109.4017223 | Q117: =IF(MOD(B117,(240/Inputs!$D$35))=0,OFFSET(P117,,0,1,1)*(E117/OFFSET(E117,,0,1,1)),Q116*(1+D117)) -> 101.7972334 | R117: =IF(MOD(B117,(240/Inputs!$D$35))=0,OFFSET(P117,,0,1,1)*(E117/OFFSET(E117,,0,1,1)),IF(O117=1,R116*(1+D117)*(N117/100),R116*(1+D117))) -> 101.7972334 | S117: =(Q117/P117-1)*Inputs!$D$25 -> -0.06950977328 | T117: =(R117/P117-1)*Inputs!$D$25 -> -0.06950977328 | U117: -0.06950977328 | V117: -0.06950977328 | W117: =IF(MOD(B117,(240/Inputs!$D$35))=0,S117-S116,0) -> 0 | X117: =IF(MOD(B117,(240/Inputs!$D$35))=0,T117-T116,0) -> 0 | Y117: 0 | Z117: =IF(O117=0,0,(N117/100-1)*Inputs!$D$25) -> 0
B118: 110 | C118: 1 | D118: =(1+Inputs!$E$11)^(1/240)-1 -> 0.0001634329919 | E118: 101.8138704 | F118: =(1+Inputs!$E$12)^(1/240)-1 -> 0.0001231692607 | G118: -0.8285251782 | H118: -1.067690913 | I118: =G118*Inputs!$C$16/SQRT(240) -> -0.00374367492 | J118: -0.003458125559 | K118: =(Inputs!$C$18*G118+((1-Inputs!$C$18^2)^(1/2))*H118)*Inputs!$D$16/SQRT(240) -> -0.00938089502 | L118: =Inputs!$F$13/240+K118 -> -0.009089228353 | M118: 107.1857216 | N118: =IF(MOD(B118,(240/Inputs!$D$35))=0,100*(1+Inputs!$C$20*K118),IF(O117=1,100*(1+Inputs!$C$20*L118),N117*(1+Inputs!$C$20*K118))) -> 102.0717118 | O118: =IF((((N118/100-1)*Inputs!$D$25)+1)*100<100*(1-Inputs!$D$45),1,IF((((N118/100-1)*Inputs!$D$25)+1)*100>100*(1+Inputs!$D$45),1,0)) -> 0 | P118: 109.0233974 | Q118: =IF(MOD(B118,(240/Inputs!$D$35))=0,OFFSET(P118,,0,1,1)*(E118/OFFSET(E118,,0,1,1)),Q117*(1+D118)) -> 101.8138704 | R118: =IF(MOD(B118,(240/Inputs!$D$35))=0,OFFSET(P118,,0,1,1)*(E118/OFFSET(E118,,0,1,1)),IF(O118=1,R117*(1+D118)*(N118/100),R117*(1+D118))) -> 101.8138704 | S118: =(Q118/P118-1)*Inputs!$D$25 -> -0.06612825473 | T118: =(R118/P118-1)*Inputs!$D$25 -> -0.06612825473 | U118: -0.06612825473 | V118: -0.06612825473 | W118: =IF(MOD(B118,(240/Inputs!$D$35))=0,S118-S117,0) -> 0 | X118: =IF(MOD(B118,(240/Inputs!$D$35))=0,T118-T117,0) -> 0 | Y118: 0 | Z118: =IF(O118=0,0,(N118/100-1)*Inputs!$D$25) -> 0
B119: 111 | C119: 1 | D119: =(1+Inputs!$E$11)^(1/240)-1 -> 0.0001634329919 | E119: 101.8305101 | F119: =(1+Inputs!$E$12)^(1/240)-1 -> 0.0001231692607 | G119: 1.839133945 | H119: 0.9540272102 | I119: =G119*Inputs!$C$16/SQRT(240) -> 0.008310090998 | J119: 0.008599095238 | K119: =(Inputs!$C$18*G119+((1-Inputs!$C$18^2)^(1/2))*H119)*Inputs!$D$16/SQRT(240) -> 0.01604244985 | L119: =Inputs!$F$13/240+K119 -> 0.01633411652 | M119: 108.9365056 | N119: =IF(MOD(B119,(240/Inputs!$D$35))=0,100*(1+Inputs!$C$20*K119),IF(O118=1,100*(1+Inputs!$C$20*L119),N118*(1+Inputs!$C$20*K119))) -> 102.9313889 | O119: =IF((((N119/100-1)*Inputs!$D$25)+1)*100<100*(1-Inputs!$D$45),1,IF((((N119/100-1)*Inputs!$D$25)+1)*100>100*(1+Inputs!$D$45),1,0)) -> 0 | P119: 109.9609 | Q119: =IF(MOD(B119,(240/Inputs!$D$35))=0,OFFSET(P119,,0,1,1)*(E119/OFFSET(E119,,0,1,1)),Q118*(1+D119)) -> 101.8305101 | R119: =IF(MOD(B119,(240/Inputs!$D$35))=0,OFFSET(P119,,0,1,1)*(E119/OFFSET(E119,,0,1,1)),IF(O119=1,R118*(1+D119)*(N119/100),R118*(1+D119))) -> 101.8305101 | S119: =(Q119/P119-1)*Inputs!$D$25 -> -0.07393891673 | T119: =(R119/P119-1)*Inputs!$D$25 -> -0.07393891673 | U119: -0.07393891673 | V119: -0.07393891673 | W119: =IF(MOD(B119,(240/Inputs!$D$35))=0,S119-S118,0) -> 0 | X119: =IF(MOD(B119,(240/Inputs!$D$35))=0,T119-T118,0) -> 0 | Y119: 0 | Z119: =IF(O119=0,0,(N119/100-1)*Inputs!$D$25) -> 0
B120: 112 | C120: 1 | D120: =(1+Inputs!$E$11)^(1/240)-1 -> 0.0001634329919 | E120: 101.8471526 | F120: =(1+Inputs!$E$12)^(1/240)-1 -> 0.0001231692607 | G120: 1.673531208 | H120: 0.1669424701 | I120: =G120*Inputs!$C$16/SQRT(240) -> 0.007561818249 | J120: 0.007850608018 | K120: =(Inputs!$C$18*G120+((1-Inputs!$C$18^2)^(1/2))*H120)*Inputs!$D$16/SQRT(240) -> 0.01223046795 | L120: =Inputs!$F$13/240+K120 -> 0.01252213462 | M120: 110.3006232 | N120: =IF(MOD(B120,(240/Inputs!$D$35))=0,100*(1+Inputs!$C$20*K120),IF(O119=1,100*(1+Inputs!$C$20*L120),N119*(1+Inputs!$C$20*K120))) -> 103.5923109 | O120: =IF((((N120/100-1)*Inputs!$D$25)+1)*100<100*(1-Inputs!$D$45),1,IF((((N120/100-1)*Inputs!$D$25)+1)*100>100*(1+Inputs!$D$45),1,0)) -> 0 | P120: 110.8241599 | Q120: =IF(MOD(B120,(240/Inputs!$D$35))=0,OFFSET(P120,,0,1,1)*(E120/OFFSET(E120,,0,1,1)),Q119*(1+D120)) -> 101.8471526 | R120: =IF(MOD(B120,(240/Inputs!$D$35))=0,OFFSET(P120,,0,1,1)*(E120/OFFSET(E120,,0,1,1)),IF(O120=1,R119*(1+D120)*(N120/100),R119*(1+D120))) -> 101.8471526 | S120: =(Q120/P120-1)*Inputs!$D$25 -> -0.08100225883 | T120: =(R120/P120-1)*Inputs!$D$25 -> -0.08100225883 | U120: -0.08100225883 | V120: -0.08100225883 | W120: =IF(MOD(B120,(240/Inputs!$D$35))=0,S120-S119,0) -> 0 | X120: =IF(MOD(B120,(240/Inputs!$D$35))=0,T120-T119,0) -> 0 | Y120: 0 | Z120: =IF(O120=0,0,(N120/100-1)*Inputs!$D$25) -> 0
B121: 113 | C121: 1 | D121: =(1+Inputs!$E$11)^(1/240)-1 -> 0.0001634329919 | E121: 101.8637978 | F121: =(1+Inputs!$E$12)^(1/240)-1 -> 0.0001231692607 | G121: -1.234487554 | H121: -0.01607916077 | I121: =G121*Inputs!$C$16/SQRT(240) -> -0.005578008027 | J121: -0.005292984426 | K121: =(Inputs!$C$18*G121+((1-Inputs!$C$18^2)^(1/2))*H121)*Inputs!$D$16/SQRT(240) -> -0.008660359022 | L121: =Inputs!$F$13/240+K121 -> -0.008368692355 | M121: 109.3775512 | N121: =IF(MOD(B121,(240/Inputs!$D$35))=0,100*(1+Inputs!$C$20*K121),IF(O120=1,100*(1+Inputs!$C$20*L121),N120*(1+Inputs!$C$20*K121))) -> 103.121309 | O121: =IF((((N121/100-1)*Inputs!$D$25)+1)*100<100*(1-Inputs!$D$45),1,IF((((N121/100-1)*Inputs!$D$25)+1)*100>100*(1+Inputs!$D$45),1,0)) -> 0 | P121: 110.2375693 | Q121: =IF(MOD(B121,(240/Inputs!$D$35))=0,OFFSET(P121,,0,1,1)*(E121/OFFSET(E121,,0,1,1)),Q120*(1+D121)) -> 101.8637978 | R121: =IF(MOD(B121,(240/Inputs!$D$35))=0,OFFSET(P121,,0,1,1)*(E121/OFFSET(E121,,0,1,1)),IF(O121=1,R120*(1+D121)*(N121/100),R120*(1+D121))) -> 101.8637978 | S121: =(Q121/P121-1)*Inputs!$D$25 -> -0.07596114099 | T121: =(R121/P121-1)*Inputs!$D$25 -> -0.07596114099 | U121: -0.07596114099 | V121: -0.07596114099 | W121: =IF(MOD(B121,(240/Inputs!$D$35))=0,S121-S120,0) -> 0 | X121: =IF(MOD(B121,(240/Inputs!$D$35))=0,T121-T120,0) -> 0 | Y121: 0 | Z121: =IF(O121=0,0,(N121/100-1)*Inputs!$D$25) -> 0
B122: 114 | C122: 1 | D122: =(1+Inputs!$E$11)^(1/240)-1 -> 0.0001634329919 | E122: 101.8804457 | F122: =(1+Inputs!$E$12)^(1/240)-1 -> 0.0001231692607 | G122: 0.7767053995 | H122: 0.277380678 | I122: =G122*Inputs!$C$16/SQRT(240) -> 0.003509528256 | J122: 0.003797156548 | K122: =(Inputs!$C$18*G122+((1-Inputs!$C$18^2)^(1/2))*H122)*Inputs!$D$16/SQRT(240) -> 0.006351245698 | L122: =Inputs!$F$13/240+K122 -> 0.006642912365 | M122: 110.1041367 | N122: =IF(MOD(B122,(240/Inputs!$D$35))=0,100*(1+Inputs!$C$20*K122),IF(O121=1,100*(1+Inputs!$C$20*L122),N121*(1+Inputs!$C$20*K122))) -> 103.4651571 | O122: =IF((((N122/100-1)*Inputs!$D$25)+1)*100<100*(1-Inputs!$D$45),1,IF((((N122/100-1)*Inputs!$D$25)+1)*100>100*(1+Inputs!$D$45),1,0)) -> 0 | P122: 110.6561586 | Q122: =IF(MOD(B122,(240/Inputs!$D$35))=0,OFFSET(P122,,0,1,1)*(E122/OFFSET(E122,,0,1,1)),Q121*(1+D122)) -> 101.8804457 | R122: =IF(MOD(B122,(240/Inputs!$D$35))=0,OFFSET(P122,,0,1,1)*(E122/OFFSET(E122,,0,1,1)),IF(O122=1,R121*(1+D122)*(N122/100),R121*(1+D122))) -> 101.8804457 | S122: =(Q122/P122-1)*Inputs!$D$25 -> -0.07930614127 | T122: =(R122/P122-1)*Inputs!$D$25 -> -0.07930614127 | U122: -0.07930614127 | V122: -0.07930614127 | W122: =IF(MOD(B122,(240/Inputs!$D$35))=0,S122-S121,0) -> 0 | X122: =IF(MOD(B122,(240/Inputs!$D$35))=0,T122-T121,0) -> 0 | Y122: 0 | Z122: =IF(O122=0,0,(N122/100-1)*Inputs!$D$25) -> 0
B123: 115 | C123: 1 | D123: =(1+Inputs!$E$11)^(1/240)-1 -> 0.0001634329919 | E123: 101.8970963 | F123: =(1+Inputs!$E$12)^(1/240)-1 -> 0.0001231692607 | G123: -0.7645629797 | H123: -0.7496484934 | I123: =G123*Inputs!$C$16/SQRT(240) -> -0.003454662969 | J123: -0.00316903077 | K123: =(Inputs!$C$18*G123+((1-Inputs!$C$18^2)^(1/2))*H123)*Inputs!$D$16/SQRT(240) -> -0.007861156067 | L123: =Inputs!$F$13/240+K123 -> -0.0075694894 | M123: 109.2707046 | N123: =IF(MOD(B123,(240/Inputs!$D$35))=0,100*(1+Inputs!$C$20*K123),IF(O122=1,100*(1+Inputs!$C$20*L123),N122*(1+Inputs!$C$20*K123))) -> 103.0381453 | O123: =IF((((N123/100-1)*Inputs!$D$25)+1)*100<100*(1-Inputs!$D$45),1,IF((((N123/100-1)*Inputs!$D$25)+1)*100>100*(1+Inputs!$D$45),1,0)) -> 0 | P123: 110.3054859 | Q123: =IF(MOD(B123,(240/Inputs!$D$35))=0,OFFSET(P123,,0,1,1)*(E123/OFFSET(E123,,0,1,1)),Q122*(1+D123)) -> 101.8970963 | R123: =IF(MOD(B123,(240/Inputs!$D$35))=0,OFFSET(P123,,0,1,1)*(E123/OFFSET(E123,,0,1,1)),IF(O123=1,R122*(1+D123)*(N123/100),R122*(1+D123))) -> 101.8970963 | S123: =(Q123/P123-1)*Inputs!$D$25 -> -0.07622820829 | T123: =(R123/P123-1)*Inputs!$D$25 -> -0.07622820829 | U123: -0.07622820829 | V123: -0.07622820829 | W123: =IF(MOD(B123,(240/Inputs!$D$35))=0,S123-S122,0) -> 0 | X123: =IF(MOD(B123,(240/Inputs!$D$35))=0,T123-T122,0) -> 0 | Y123: 0 | Z123: =IF(O123=0,0,(N123/100-1)*Inputs!$D$25) -> 0
B124: 116 | C124: 1 | D124: =(1+Inputs!$E$11)^(1/240)-1 -> 0.0001634329919 | E124: 101.9137497 | F124: =(1+Inputs!$E$12)^(1/240)-1 -> 0.0001231692607 | G124: -0.003959829171 | H124: 1.413388897 | I124: =G124*Inputs!$C$16/SQRT(240) -> -1.789241117e-05 | J124: 0.000268724843 | K124: =(Inputs!$C$18*G124+((1-Inputs!$C$18^2)^(1/2))*H124)*Inputs!$D$16/SQRT(240) -> 0.00474454473 | L124: =Inputs!$F$13/240+K124 -> 0.005036211397 | M124: 109.821015 | N124: =IF(MOD(B124,(240/Inputs!$D$35))=0,100*(1+Inputs!$C$20*K124),IF(O123=1,100*(1+Inputs!$C$20*L124),N123*(1+Inputs!$C$20*K124))) -> 103.2948016 | O124: =IF((((N124/100-1)*Inputs!$D$25)+1)*100<100*(1-Inputs!$D$45),1,IF((((N124/100-1)*Inputs!$D$25)+1)*100>100*(1+Inputs!$D$45),1,0)) -> 0 | P124: 110.3351277 | Q124: =IF(MOD(B124,(240/Inputs!$D$35))=0,OFFSET(P124,,0,1,1)*(E124/OFFSET(E124,,0,1,1)),Q123*(1+D124)) -> 101.9137497 | R124: =IF(MOD(B124,(240/Inputs!$D$35))=0,OFFSET(P124,,0,1,1)*(E124/OFFSET(E124,,0,1,1)),IF(O124=1,R123*(1+D124)*(N124/100),R123*(1+D124))) -> 101.9137497 | S124: =(Q124/P124-1)*Inputs!$D$25 -> -0.0763254478 | T124: =(R124/P124-1)*Inputs!$D$25 -> -0.0763254478 | U124: -0.0763254478 | V124: -0.0763254478 | W124: =IF(MOD(B124,(240/Inputs!$D$35))=0,S124-S123,0) -> 0 | X124: =IF(MOD(B124,(240/Inputs!$D$35))=0,T124-T123,0) -> 0 | Y124: 0 | Z124: =IF(O124=0,0,(N124/100-1)*Inputs!$D$25) -> 0
B125: 117 | C125: 1 | D125: =(1+Inputs!$E$11)^(1/240)-1 -> 0.0001634329919 | E125: 101.9304057 | F125: =(1+Inputs!$E$12)^(1/240)-1 -> 0.0001231692607 | G125: -2.32761564 | H125: -0.2139048834 | I125: =G125*Inputs!$C$16/SQRT(240) -> -0.01051728605 | J125: -0.01023367815 | K125: =(Inputs!$C$18*G125+((1-Inputs!$C$18^2)^(1/2))*H125)*Inputs!$D$16/SQRT(240) -> -0.01694889591 | L125: =Inputs!$F$13/240+K125 -> -0.01665722925 | M125: 107.9917012 | N125: =IF(MOD(B125,(240/Inputs!$D$35))=0,100*(1+Inputs!$C$20*K125),IF(O124=1,100*(1+Inputs!$C$20*L125),N124*(1+Inputs!$C$20*K125))) -> 102.3756668 | O125: =IF((((N125/100-1)*Inputs!$D$25)+1)*100<100*(1-Inputs!$D$45),1,IF((((N125/100-1)*Inputs!$D$25)+1)*100>100*(1+Inputs!$D$45),1,0)) -> 0 | P125: 109.2059935 | Q125: =IF(MOD(B125,(240/Inputs!$D$35))=0,OFFSET(P125,,0,1,1)*(E125/OFFSET(E125,,0,1,1)),Q124*(1+D125)) -> 101.9304057 | R125: =IF(MOD(B125,(240/Inputs!$D$35))=0,OFFSET(P125,,0,1,1)*(E125/OFFSET(E125,,0,1,1)),IF(O125=1,R124*(1+D125)*(N125/100),R124*(1+D125))) -> 101.9304057 | S125: =(Q125/P125-1)*Inputs!$D$25 -> -0.06662260505 | T125: =(R125/P125-1)*Inputs!$D$25 -> -0.06662260505 | U125: -0.06662260505 | V125: -0.06662260505 | W125: =IF(MOD(B125,(240/Inputs!$D$35))=0,S125-S124,0) -> 0 | X125: =IF(MOD(B125,(240/Inputs!$D$35))=0,T125-T124,0) -> 0 | Y125: 0 | Z125: =IF(O125=0,0,(N125/100-1)*Inputs!$D$25) -> 0
B126: 118 | C126: 1 | D126: =(1+Inputs!$E$11)^(1/240)-1 -> 0.0001634329919 | E126: 101.9470645 | F126: =(1+Inputs!$E$12)^(1/240)-1 -> 0.0001231692607 | G126: -2.00099764 | H126: -0.3347170596 | I126: =G126*Inputs!$C$16/SQRT(240) -> -0.009041468957 | J126: -0.008757438062 | K126: =(Inputs!$C$18*G126+((1-Inputs!$C$18^2)^(1/2))*H126)*Inputs!$D$16/SQRT(240) -> -0.01507982983 | L126: =Inputs!$F$13/240+K126 -> -0.01478816316 | M126: 106.3947023 | N126: =IF(MOD(B126,(240/Inputs!$D$35))=0,100*(1+Inputs!$C$20*K126),IF(O125=1,100*(1+Inputs!$C$20*L126),N125*(1+Inputs!$C$20*K126))) -> 101.5651678 | O126: =IF((((N126/100-1)*Inputs!$D$25)+1)*100<100*(1-Inputs!$D$45),1,IF((((N126/100-1)*Inputs!$D$25)+1)*100>100*(1+Inputs!$D$45),1,0)) -> 0 | P126: 108.2496288 | Q126: =IF(MOD(B126,(240/Inputs!$D$35))=0,OFFSET(P126,,0,1,1)*(E126/OFFSET(E126,,0,1,1)),Q125*(1+D126)) -> 101.9470645 | R126: =IF(MOD(B126,(240/Inputs!$D$35))=0,OFFSET(P126,,0,1,1)*(E126/OFFSET(E126,,0,1,1)),IF(O126=1,R125*(1+D126)*(N126/100),R125*(1+D126))) -> 101.9470645 | S126: =(Q126/P126-1)*Inputs!$D$25 -> -0.05822250228 | T126: =(R126/P126-1)*Inputs!$D$25 -> -0.05822250228 | U126: -0.05822250228 | V126: -0.05822250228 | W126: =IF(MOD(B126,(240/Inputs!$D$35))=0,S126-S125,0) -> 0 | X126: =IF(MOD(B126,(240/Inputs!$D$35))=0,T126-T125,0) -> 0 | Y126: 0 | Z126: =IF(O126=0,0,(N126/100-1)*Inputs!$D$25) -> 0
B127: 119 | C127: 1 | D127: =(1+Inputs!$E$11)^(1/240)-1 -> 0.0001634329919 | E127: 101.963726 | F127: =(1+Inputs!$E$12)^(1/240)-1 -> 0.0001231692607 | G127: 1.628465992 | H127: 0.8973140925 | I127: =G127*Inputs!$C$16/SQRT(240) -> 0.007358191944 | J127: 0.007646923349 | K127: =(Inputs!$C$18*G127+((1-Inputs!$C$18^2)^(1/2))*H127)*Inputs!$D$16/SQRT(240) -> 0.01438232008 | L127: =Inputs!$F$13/240+K127 -> 0.01467398674 | M127: 107.9559367 | N127: =IF(MOD(B127,(240/Inputs!$D$35))=0,100*(1+Inputs!$C$20*K127),IF(O126=1,100*(1+Inputs!$C$20*L127),N126*(1+Inputs!$C$20*K127))) -> 102.3320578 | O127: =IF((((N127/100-1)*Inputs!$D$25)+1)*100<100*(1-Inputs!$D$45),1,IF((((N127/100-1)*Inputs!$D$25)+1)*100>100*(1+Inputs!$D$45),1,0)) -> 0 | P127: 109.0774054 | Q127: =IF(MOD(B127,(240/Inputs!$D$35))=0,OFFSET(P127,,0,1,1)*(E127/OFFSET(E127,,0,1,1)),Q126*(1+D127)) -> 101.963726 | R127: =IF(MOD(B127,(240/Inputs!$D$35))=0,OFFSET(P127,,0,1,1)*(E127/OFFSET(E127,,0,1,1)),IF(O127=1,R126*(1+D127)*(N127/100),R126*(1+D127))) -> 101.963726 | S127: =(Q127/P127-1)*Inputs!$D$25 -> -0.06521680024 | T127: =(R127/P127-1)*Inputs!$D$25 -> -0.06521680024 | U127: -0.06521680024 | V127: -0.06521680024 | W127: =IF(MOD(B127,(240/Inputs!$D$35))=0,S127-S126,0) -> 0 | X127: =IF(MOD(B127,(240/Inputs!$D$35))=0,T127-T126,0) -> 0 | Y127: 0 | Z127: =IF(O127=0,0,(N127/100-1)*Inputs!$D$25) -> 0
B128: 120 | C128: 1 | D128: =(1+Inputs!$E$11)^(1/240)-1 -> 0.0001634329919 | E128: 101.9803903 | F128: =(1+Inputs!$E$12)^(1/240)-1 -> 0.0001231692607 | G128: 1.358220751 | H128: -0.006470647691 | I128: =G128*Inputs!$C$16/SQRT(240) -> 0.006137094073 | J128: 0.006425475484 | K128: =(Inputs!$C$18*G128+((1-Inputs!$C$18^2)^(1/2))*H128)*Inputs!$D$16/SQRT(240) -> 0.009446812007 | L128: =Inputs!$F$13/240+K128 -> 0.009738478673 | M128: 109.0072633 | N128: =IF(MOD(B128,(240/Inputs!$D$35))=0,100*(1+Inputs!$C$20*K128),IF(O127=1,100*(1+Inputs!$C$20*L128),N127*(1+Inputs!$C$20*K128))) -> 100.4959576 | O128: =IF((((N128/100-1)*Inputs!$D$25)+1)*100<100*(1-Inputs!$D$45),1,IF((((N128/100-1)*Inputs!$D$25)+1)*100>100*(1+Inputs!$D$45),1,0)) -> 0 | P128: 109.7782796 | Q128: =IF(MOD(B128,(240/Inputs!$D$35))=0,OFFSET(P128,,0,1,1)*(E128/OFFSET(E128,,0,1,1)),Q127*(1+D128)) -> 109.7782796 | R128: =IF(MOD(B128,(240/Inputs!$D$35))=0,OFFSET(P128,,0,1,1)*(E128/OFFSET(E128,,0,1,1)),IF(O128=1,R127*(1+D128)*(N128/100),R127*(1+D128))) -> 109.7782796 | S128: =(Q128/P128-1)*Inputs!$D$25 -> 0 | T128: =(R128/P128-1)*Inputs!$D$25 -> 0 | U128: 0 | V128: 0 | W128: =IF(MOD(B128,(240/Inputs!$D$35))=0,S128-S127,0) -> 0.06521680024 | X128: =IF(MOD(B128,(240/Inputs!$D$35))=0,T128-T127,0) -> 0.06521680024 | Y128: 0.06521680024 | Z128: =IF(O128=0,0,(N128/100-1)*Inputs!$D$25) -> 0
B129: 121 | C129: 1 | D129: =(1+Inputs!$E$11)^(1/240)-1 -> 0.0001634329919 | E129: 101.9970572 | F129: =(1+Inputs!$E$12)^(1/240)-1 -> 0.0001231692607 | G129: -1.357324284 | H129: -1.167160988 | I129: =G129*Inputs!$C$16/SQRT(240) -> -0.006133043407 | J129: -0.005848178892 | K129: =(Inputs!$C$18*G129+((1-Inputs!$C$18^2)^(1/2))*H129)*Inputs!$D$16/SQRT(240) -> -0.01340319889 | L129: =Inputs!$F$13/240+K129 -> -0.01311153222 | M129: 107.5780111 | N129: =IF(MOD(B129,(240/Inputs!$D$35))=0,100*(1+Inputs!$C$20*K129),IF(O128=1,100*(1+Inputs!$C$20*L129),N128*(1+Inputs!$C$20*K129))) -> 99.78879979 | O129: =IF((((N129/100-1)*Inputs!$D$25)+1)*100<100*(1-Inputs!$D$45),1,IF((((N129/100-1)*Inputs!$D$25)+1)*100>100*(1+Inputs!$D$45),1,0)) -> 0 | P129: 109.1362766 | Q129: =IF(MOD(B129,(240/Inputs!$D$35))=0,OFFSET(P129,,0,1,1)*(E129/OFFSET(E129,,0,1,1)),Q128*(1+D129)) -> 109.796221 | R129: =IF(MOD(B129,(240/Inputs!$D$35))=0,OFFSET(P129,,0,1,1)*(E129/OFFSET(E129,,0,1,1)),IF(O129=1,R128*(1+D129)*(N129/100),R128*(1+D129))) -> 109.796221 | S129: =(Q129/P129-1)*Inputs!$D$25 -> 0.006046975679 | T129: =(R129/P129-1)*Inputs!$D$25 -> 0.006046975679 | U129: 0.006046975679 | V129: 0.006046975679 | W129: =IF(MOD(B129,(240/Inputs!$D$35))=0,S129-S128,0) -> 0 | X129: =IF(MOD(B129,(240/Inputs!$D$35))=0,T129-T128,0) -> 0 | Y129: 0 | Z129: =IF(O129=0,0,(N129/100-1)*Inputs!$D$25) -> 0
B130: 122 | C130: 1 | D130: =(1+Inputs!$E$11)^(1/240)-1 -> 0.0001634329919 | E130: 102.0137269 | F130: =(1+Inputs!$E$12)^(1/240)-1 -> 0.0001231692607 | G130: 0.6451031598 | H130: -2.202335521 | I130: =G130*Inputs!$C$16/SQRT(240) -> 0.002914886093 | J130: 0.003202343948 | K130: =(Inputs!$C$18*G130+((1-Inputs!$C$18^2)^(1/2))*H130)*Inputs!$D$16/SQRT(240) -> -0.002938687724 | L130: =Inputs!$F$13/240+K130 -> -0.002647021058 | M130: 107.2932498 | N130: =IF(MOD(B130,(240/Inputs!$D$35))=0,100*(1+Inputs!$C$20*K130),IF(O129=1,100*(1+Inputs!$C$20*L130),N129*(1+Inputs!$C$20*K130))) -> 99.63484453 | O130: =IF((((N130/100-1)*Inputs!$D$25)+1)*100<100*(1-Inputs!$D$45),1,IF((((N130/100-1)*Inputs!$D$25)+1)*100>100*(1+Inputs!$D$45),1,0)) -> 0 | P130: 109.4857685 | Q130: =IF(MOD(B130,(240/Inputs!$D$35))=0,OFFSET(P130,,0,1,1)*(E130/OFFSET(E130,,0,1,1)),Q129*(1+D130)) -> 109.8141653 | R130: =IF(MOD(B130,(240/Inputs!$D$35))=0,OFFSET(P130,,0,1,1)*(E130/OFFSET(E130,,0,1,1)),IF(O130=1,R129*(1+D130)*(N130/100),R129*(1+D130))) -> 109.8141653 | S130: =(Q130/P130-1)*Inputs!$D$25 -> 0.002999447736 | T130: =(R130/P130-1)*Inputs!$D$25 -> 0.002999447736 | U130: 0.002999447736 | V130: 0.002999447736 | W130: =IF(MOD(B130,(240/Inputs!$D$35))=0,S130-S129,0) -> 0 | X130: =IF(MOD(B130,(240/Inputs!$D$35))=0,T130-T129,0) -> 0 | Y130: 0 | Z130: =IF(O130=0,0,(N130/100-1)*Inputs!$D$25) -> 0
B131: 123 | C131: 1 | D131: =(1+Inputs!$E$11)^(1/240)-1 -> 0.0001634329919 | E131: 102.0303993 | F131: =(1+Inputs!$E$12)^(1/240)-1 -> 0.0001231692607 | G131: -0.560702367 | H131: 0.2655334285 | I131: =G131*Inputs!$C$16/SQRT(240) -> -0.002533522751 | J131: -0.002247626533 | K131: =(Inputs!$C$18*G131+((1-Inputs!$C$18^2)^(1/2))*H131)*Inputs!$D$16/SQRT(240) -> -0.003012319631 | L131: =Inputs!$F$13/240+K131 -> -0.002720652965 | M131: 107.0013421 | N131: =IF(MOD(B131,(240/Inputs!$D$35))=0,100*(1+Inputs!$C$20*K131),IF(O130=1,100*(1+Inputs!$C$20*L131),N130*(1+Inputs!$C$20*K131))) -> 99.47727523 | O131: =IF((((N131/100-1)*Inputs!$D$25)+1)*100<100*(1-Inputs!$D$45),1,IF((((N131/100-1)*Inputs!$D$25)+1)*100>100*(1+Inputs!$D$45),1,0)) -> 0 | P131: 109.2396853 | Q131: =IF(MOD(B131,(240/Inputs!$D$35))=0,OFFSET(P131,,0,1,1)*(E131/OFFSET(E131,,0,1,1)),Q130*(1+D131)) -> 109.8321126 | R131: =IF(MOD(B131,(240/Inputs!$D$35))=0,OFFSET(P131,,0,1,1)*(E131/OFFSET(E131,,0,1,1)),IF(O131=1,R130*(1+D131)*(N131/100),R130*(1+D131))) -> 109.8321126 | S131: =(Q131/P131-1)*Inputs!$D$25 -> 0.005423186768 | T131: =(R131/P131-1)*Inputs!$D$25 -> 0.005423186768 | U131: 0.005423186768 | V131: 0.005423186768 | W131: =IF(MOD(B131,(240/Inputs!$D$35))=0,S131-S130,0) -> 0 | X131: =IF(MOD(B131,(240/Inputs!$D$35))=0,T131-T130,0) -> 0 | Y131: 0 | Z131: =IF(O131=0,0,(N131/100-1)*Inputs!$D$25) -> 0
B132: 124 | C132: 1 | D132: =(1+Inputs!$E$11)^(1/240)-1 -> 0.0001634329919 | E132: 102.0470745 | F132: =(1+Inputs!$E$12)^(1/240)-1 -> 0.0001231692607 | G132: -0.09537639601 | H132: -0.3353617655 | I132: =G132*Inputs!$C$16/SQRT(240) -> -0.0004309563923 | J132: -0.0001444575315 | K132: =(Inputs!$C$18*G132+((1-Inputs!$C$18^2)^(1/2))*H132)*Inputs!$D$16/SQRT(240) -> -0.001797215791 | L132: =Inputs!$F$13/240+K132 -> -0.001505549124 | M132: 106.8402463 | N132: =IF(MOD(B132,(240/Inputs!$D$35))=0,100*(1+Inputs!$C$20*K132),IF(O131=1,100*(1+Inputs!$C$20*L132),N131*(1+Inputs!$C$20*K132))) -> 99.38341461 | O132: =IF((((N132/100-1)*Inputs!$D$25)+1)*100<100*(1-Inputs!$D$45),1,IF((((N132/100-1)*Inputs!$D$25)+1)*100>100*(1+Inputs!$D$45),1,0)) -> 0 | P132: 109.2239049 | Q132: =IF(MOD(B132,(240/Inputs!$D$35))=0,OFFSET(P132,,0,1,1)*(E132/OFFSET(E132,,0,1,1)),Q131*(1+D132)) -> 109.8500628 | R132: =IF(MOD(B132,(240/Inputs!$D$35))=0,OFFSET(P132,,0,1,1)*(E132/OFFSET(E132,,0,1,1)),IF(O132=1,R131*(1+D132)*(N132/100),R131*(1+D132))) -> 109.8500628 | S132: =(Q132/P132-1)*Inputs!$D$25 -> 0.005732791764 | T132: =(R132/P132-1)*Inputs!$D$25 -> 0.005732791764 | U132: 0.005732791764 | V132: 0.005732791764 | W132: =IF(MOD(B132,(240/Inputs!$D$35))=0,S132-S131,0) -> 0 | X132: =IF(MOD(B132,(240/Inputs!$D$35))=0,T132-T131,0) -> 0 | Y132: 0 | Z132: =IF(O132=0,0,(N132/100-1)*Inputs!$D$25) -> 0
B133: 125 | C133: 1 | D133: =(1+Inputs!$E$11)^(1/240)-1 -> 0.0001634329919 | E133: 102.0637523 | F133: =(1+Inputs!$E$12)^(1/240)-1 -> 0.0001231692607 | G133: 0.9935330262 | H133: 0.5401917771 | I133: =G133*Inputs!$C$16/SQRT(240) -> 0.004489259675 | J133: 0.00477716878 | K133: =(Inputs!$C$18*G133+((1-Inputs!$C$18^2)^(1/2))*H133)*Inputs!$D$16/SQRT(240) -> 0.008750183715 | L133: =Inputs!$F$13/240+K133 -> 0.009041850382 | M133: 107.8062799 | N133: =IF(MOD(B133,(240/Inputs!$D$35))=0,100*(1+Inputs!$C$20*K133),IF(O132=1,100*(1+Inputs!$C$20*L133),N132*(1+Inputs!$C$20*K133))) -> 99.83996676 | O133: =IF((((N133/100-1)*Inputs!$D$25)+1)*100<100*(1-Inputs!$D$45),1,IF((((N133/100-1)*Inputs!$D$25)+1)*100>100*(1+Inputs!$D$45),1,0)) -> 0 | P133: 109.7456859 | Q133: =IF(MOD(B133,(240/Inputs!$D$35))=0,OFFSET(P133,,0,1,1)*(E133/OFFSET(E133,,0,1,1)),Q132*(1+D133)) -> 109.8680159 | R133: =IF(MOD(B133,(240/Inputs!$D$35))=0,OFFSET(P133,,0,1,1)*(E133/OFFSET(E133,,0,1,1)),IF(O133=1,R132*(1+D133)*(N133/100),R132*(1+D133))) -> 109.8680159 | S133: =(Q133/P133-1)*Inputs!$D$25 -> 0.001114667946 | T133: =(R133/P133-1)*Inputs!$D$25 -> 0.001114667946 | U133: 0.001114667946 | V133: 0.001114667946 | W133: =IF(MOD(B133,(240/Inputs!$D$35))=0,S133-S132,0) -> 0 | X133: =IF(MOD(B133,(240/Inputs!$D$35))=0,T133-T132,0) -> 0 | Y133: 0 | Z133: =IF(O133=0,0,(N133/100-1)*Inputs!$D$25) -> 0
B134: 126 | C134: 1 | D134: =(1+Inputs!$E$11)^(1/240)-1 -> 0.0001634329919 | E134: 102.0804329 | F134: =(1+Inputs!$E$12)^(1/240)-1 -> 0.0001231692607 | G134: 0.8065911868 | H134: 1.181311254 | I134: =G134*Inputs!$C$16/SQRT(240) -> 0.003644566606 | J134: 0.003932233603 | K134: =(Inputs!$C$18*G134+((1-Inputs!$C$18^2)^(1/2))*H134)*Inputs!$D$16/SQRT(240) -> 0.009611611474 | L134: =Inputs!$F$13/240+K134 -> 0.009903278141 | M134: 108.8739154 | N134: =IF(MOD(B134,(240/Inputs!$D$35))=0,100*(1+Inputs!$C$20*K134),IF(O133=1,100*(1+Inputs!$C$20*L134),N133*(1+Inputs!$C$20*K134))) -> 100.3437688 | O134: =IF((((N134/100-1)*Inputs!$D$25)+1)*100<100*(1-Inputs!$D$45),1,IF((((N134/100-1)*Inputs!$D$25)+1)*100>100*(1+Inputs!$D$45),1,0)) -> 0 | P134: 110.1772316 | Q134: =IF(MOD(B134,(240/Inputs!$D$35))=0,OFFSET(P134,,0,1,1)*(E134/OFFSET(E134,,0,1,1)),Q133*(1+D134)) -> 109.8859719 | R134: =IF(MOD(B134,(240/Inputs!$D$35))=0,OFFSET(P134,,0,1,1)*(E134/OFFSET(E134,,0,1,1)),IF(O134=1,R133*(1+D134)*(N134/100),R133*(1+D134))) -> 109.8859719 | S134: =(Q134/P134-1)*Inputs!$D$25 -> -0.002643555414 | T134: =(R134/P134-1)*Inputs!$D$25 -> -0.002643555414 | U134: -0.002643555414 | V134: -0.002643555414 | W134: =IF(MOD(B134,(240/Inputs!$D$35))=0,S134-S133,0) -> 0 | X134: =IF(MOD(B134,(240/Inputs!$D$35))=0,T134-T133,0) -> 0 | Y134: 0 | Z134: =IF(O134=0,0,(N134/100-1)*Inputs!$D$25) -> 0
B135: 127 | C135: 1 | D135: =(1+Inputs!$E$11)^(1/240)-1 -> 0.0001634329919 | E135: 102.0971162 | F135: =(1+Inputs!$E$12)^(1/240)-1 -> 0.0001231692607 | G135: 0.9107280809 | H135: -0.02596105545 | I135: =G135*Inputs!$C$16/SQRT(240) -> 0.004115107139 | J135: 0.004402909003 | K135: =(Inputs!$C$18*G135+((1-Inputs!$C$18^2)^(1/2))*H135)*Inputs!$D$16/SQRT(240) -> 0.006261367831 | L135: =Inputs!$F$13/240+K135 -> 0.006553034497 | M135: 109.58737 | N135: =IF(MOD(B135,(240/Inputs!$D$35))=0,100*(1+Inputs!$C$20*K135),IF(O134=1,100*(1+Inputs!$C$20*L135),N134*(1+Inputs!$C$20*K135))) -> 100.6736207 | O135: =IF((((N135/100-1)*Inputs!$D$25)+1)*100<100*(1-Inputs!$D$45),1,IF((((N135/100-1)*Inputs!$D$25)+1)*100>100*(1+Inputs!$D$45),1,0)) -> 0 | P135: 110.6623319 | Q135: =IF(MOD(B135,(240/Inputs!$D$35))=0,OFFSET(P135,,0,1,1)*(E135/OFFSET(E135,,0,1,1)),Q134*(1+D135)) -> 109.9039309 | R135: =IF(MOD(B135,(240/Inputs!$D$35))=0,OFFSET(P135,,0,1,1)*(E135/OFFSET(E135,,0,1,1)),IF(O135=1,R134*(1+D135)*(N135/100),R134*(1+D135))) -> 109.9039309 | S135: =(Q135/P135-1)*Inputs!$D$25 -> -0.006853289061 | T135: =(R135/P135-1)*Inputs!$D$25 -> -0.006853289061 | U135: -0.006853289061 | V135: -0.006853289061 | W135: =IF(MOD(B135,(240/Inputs!$D$35))=0,S135-S134,0) -> 0 | X135: =IF(MOD(B135,(240/Inputs!$D$35))=0,T135-T134,0) -> 0 | Y135: 0 | Z135: =IF(O135=0,0,(N135/100-1)*Inputs!$D$25) -> 0
B136: 128 | C136: 1 | D136: =(1+Inputs!$E$11)^(1/240)-1 -> 0.0001634329919 | E136: 102.1138022 | F136: =(1+Inputs!$E$12)^(1/240)-1 -> 0.0001231692607 | G136: -0.4964352122 | H136: -0.5448770467 | I136: =G136*Inputs!$C$16/SQRT(240) -> -0.002243132861 | J136: -0.00195715341 | K136: =(Inputs!$C$18*G136+((1-Inputs!$C$18^2)^(1/2))*H136)*Inputs!$D$16/SQRT(240) -> -0.005300550207 | L136: =Inputs!$F$13/240+K136 -> -0.005008883541 | M136: 109.0384596 | N136: =IF(MOD(B136,(240/Inputs!$D$35))=0,100*(1+Inputs!$C$20*K136),IF(O135=1,100*(1+Inputs!$C$20*L136),N135*(1+Inputs!$C$20*K136))) -> 100.3934672 | O136: =IF((((N136/100-1)*Inputs!$D$25)+1)*100<100*(1-Inputs!$D$45),1,IF((((N136/100-1)*Inputs!$D$25)+1)*100>100*(1+Inputs!$D$45),1,0)) -> 0 | P136: 110.4457487 | Q136: =IF(MOD(B136,(240/Inputs!$D$35))=0,OFFSET(P136,,0,1,1)*(E136/OFFSET(E136,,0,1,1)),Q135*(1+D136)) -> 109.9218929 | R136: =IF(MOD(B136,(240/Inputs!$D$35))=0,OFFSET(P136,,0,1,1)*(E136/OFFSET(E136,,0,1,1)),IF(O136=1,R135*(1+D136)*(N136/100),R135*(1+D136))) -> 109.9218929 | S136: =(Q136/P136-1)*Inputs!$D$25 -> -0.004743105698 | T136: =(R136/P136-1)*Inputs!$D$25 -> -0.004743105698 | U136: -0.004743105698 | V136: -0.004743105698 | W136: =IF(MOD(B136,(240/Inputs!$D$35))=0,S136-S135,0) -> 0 | X136: =IF(MOD(B136,(240/Inputs!$D$35))=0,T136-T135,0) -> 0 | Y136: 0 | Z136: =IF(O136=0,0,(N136/100-1)*Inputs!$D$25) -> 0
B137: 129 | C137: =IF(MOD(B137,$C$6)=0,1,0) -> 1 | D137: =(1+Inputs!$E$11)^(1/240)-1 -> 0.0001634329919 | E137: 102.130491 | F137: =(1+Inputs!$E$12)^(1/240)-1 -> 0.0001231692607 | G137: -0.3865682337 | H137: 0.2239642778 | I137: =G137*Inputs!$C$16/SQRT(240) -> -0.001746701053 | J137: -0.001460579314 | K137: =(Inputs!$C$18*G137+((1-Inputs!$C$18^2)^(1/2))*H137)*Inputs!$D$16/SQRT(240) -> -0.001938719761 | L137: =Inputs!$F$13/240+K137 -> -0.001647053094 | M137: 108.8588675 | N137: =IF(MOD(B137,(240/Inputs!$D$35))=0,100*(1+Inputs!$C$20*K137),IF(O136=1,100*(1+Inputs!$C$20*L137),N136*(1+Inputs!$C$20*K137))) -> 100.291284 | O137: =IF((((N137/100-1)*Inputs!$D$25)+1)*100<100*(1-Inputs!$D$45),1,IF((((N137/100-1)*Inputs!$D$25)+1)*100>100*(1+Inputs!$D$45),1,0)) -> 0 | P137: 110.2844339 | Q137: =IF(MOD(B137,(240/Inputs!$D$35))=0,OFFSET(P137,,0,1,1)*(E137/OFFSET(E137,,0,1,1)),Q136*(1+D137)) -> 109.9398577 | R137: =IF(MOD(B137,(240/Inputs!$D$35))=0,OFFSET(P137,,0,1,1)*(E137/OFFSET(E137,,0,1,1)),IF(O137=1,R136*(1+D137)*(N137/100),R136*(1+D137))) -> 109.9398577 | S137: =(Q137/P137-1)*Inputs!$D$25 -> -0.003124432052 | T137: =(R137/P137-1)*Inputs!$D$25 -> -0.003124432052 | U137: =C137*S137 -> -0.003124432052 | V137: =C137*T137 -> -0.003124432052 | W137: =IF(MOD(B137,(240/Inputs!$D$35))=0,S137-S136,0) -> 0 | X137: =IF(MOD(B137,(240/Inputs!$D$35))=0,T137-T136,0) -> 0 | Y137: 0 | Z137: =IF(O137=0,0,(N137/100-1)*Inputs!$D$25) -> 0
B138: 130 | C138: 1 | D138: =(1+Inputs!$E$11)^(1/240)-1 -> 0.0001634329919 | E138: =E137*(1+D138) -> 102.1471825 | F138: =(1+Inputs!$E$12)^(1/240)-1 -> 0.0001231692607 | G138: =_xlfn.NORM.S.INV(RAND()) -> 0.3245937162 | H138: -0.1510373054 | I138: =G138*Inputs!$C$16/SQRT(240) -> 0.0014666704 | J138: =(1+D138)*(1+F138)*(1+I138)-1 -> 0.001753713163 | K138: =(Inputs!$C$18*G138+((1-Inputs!$C$18^2)^(1/2))*H138)*Inputs!$D$16/SQRT(240) -> 0.001752902266 | L138: =Inputs!$F$13/240+K138 -> 0.002044568933 | M138: =M137*(1+L138) -> 109.0814369 | N138: =IF(MOD(B138,(240/Inputs!$D$35))=0,100*(1+Inputs!$C$20*K138),IF(O137=1,100*(1+Inputs!$C$20*L138),N137*(1+Inputs!$C$20*K138))) -> 100.3835794 | O138: =IF((((N138/100-1)*Inputs!$D$25)+1)*100<100*(1-Inputs!$D$45),1,IF((((N138/100-1)*Inputs!$D$25)+1)*100>100*(1+Inputs!$D$45),1,0)) -> 0 | P138: =P137*(1+J138) -> 110.4778412 | Q138: =IF(MOD(B138,(240/Inputs!$D$35))=0,OFFSET(P138,,0,1,1)*(E138/OFFSET(E138,,0,1,1)),Q137*(1+D138)) -> 109.9578255 | R138: =IF(MOD(B138,(240/Inputs!$D$35))=0,OFFSET(P138,,0,1,1)*(E138/OFFSET(E138,,0,1,1)),IF(O138=1,R137*(1+D138)*(N138/100),R137*(1+D138))) -> 109.9578255 | S138: =(Q138/P138-1)*Inputs!$D$25 -> -0.004706968187 | T138: =(R138/P138-1)*Inputs!$D$25 -> -0.004706968187 | U138: -0.004706968187 | V138: -0.004706968187 | W138: =IF(MOD(B138,(240/Inputs!$D$35))=0,S138-S137,0) -> 0 | X138: =IF(MOD(B138,(240/Inputs!$D$35))=0,T138-T137,0) -> 0 | Y138: =ABS(X138) -> 0 | Z138: =IF(O138=0,0,(N138/100-1)*Inputs!$D$25) -> 0
B139: 131 | C139: 1 | D139: =(1+Inputs!$E$11)^(1/240)-1 -> 0.0001634329919 | E139: 102.1638767 | F139: =(1+Inputs!$E$12)^(1/240)-1 -> 0.0001231692607 | G139: 0.5341611758 | H139: -0.4836072121 | I139: =G139*Inputs!$C$16/SQRT(240) -> 0.002413596894 | J139: 0.002700911068 | K139: =(Inputs!$C$18*G139+((1-Inputs!$C$18^2)^(1/2))*H139)*Inputs!$D$16/SQRT(240) -> 0.002090989329 | L139: =Inputs!$F$13/240+K139 -> 0.002382655995 | M139: 109.3413405 | N139: =IF(MOD(B139,(240/Inputs!$D$35))=0,100*(1+Inputs!$C$20*K139),IF(O138=1,100*(1+Inputs!$C$20*L139),N138*(1+Inputs!$C$20*K139))) -> 100.4937774 | O139: =IF((((N139/100-1)*Inputs!$D$25)+1)*100<100*(1-Inputs!$D$45),1,IF((((N139/100-1)*Inputs!$D$25)+1)*100>100*(1+Inputs!$D$45),1,0)) -> 0 | P139: 110.776232 | Q139: =IF(MOD(B139,(240/Inputs!$D$35))=0,OFFSET(P139,,0,1,1)*(E139/OFFSET(E139,,0,1,1)),Q138*(1+D139)) -> 109.9757963 | R139: =IF(MOD(B139,(240/Inputs!$D$35))=0,OFFSET(P139,,0,1,1)*(E139/OFFSET(E139,,0,1,1)),IF(O139=1,R138*(1+D139)*(N139/100),R138*(1+D139))) -> 109.9757963 | S139: =(Q139/P139-1)*Inputs!$D$25 -> -0.007225699564 | T139: =(R139/P139-1)*Inputs!$D$25 -> -0.007225699564 | U139: -0.007225699564 | V139: -0.007225699564 | W139: =IF(MOD(B139,(240/Inputs!$D$35))=0,S139-S138,0) -> 0 | X139: =IF(MOD(B139,(240/Inputs!$D$35))=0,T139-T138,0) -> 0 | Y139: 0 | Z139: =IF(O139=0,0,(N139/100-1)*Inputs!$D$25) -> 0
B140: 132 | C140: 1 | D140: =(1+Inputs!$E$11)^(1/240)-1 -> 0.0001634329919 | E140: 102.1805737 | F140: =(1+Inputs!$E$12)^(1/240)-1 -> 0.0001231692607 | G140: -0.5708646415 | H140: 1.276438753 | I140: =G140*Inputs!$C$16/SQRT(240) -> -0.002579440791 | J140: -0.002293557734 | K140: =(Inputs!$C$18*G140+((1-Inputs!$C$18^2)^(1/2))*H140)*Inputs!$D$16/SQRT(240) -> 0.0003300446091 | L140: =Inputs!$F$13/240+K140 -> 0.0006217112758 | M140: 109.4093192 | N140: =IF(MOD(B140,(240/Inputs!$D$35))=0,100*(1+Inputs!$C$20*K140),IF(O139=1,100*(1+Inputs!$C$20*L140),N139*(1+Inputs!$C$20*K140))) -> 100.5111903 | O140: =IF((((N140/100-1)*Inputs!$D$25)+1)*100<100*(1-Inputs!$D$45),1,IF((((N140/100-1)*Inputs!$D$25)+1)*100>100*(1+Inputs!$D$45),1,0)) -> 0 | P140: 110.5221603 | Q140: =IF(MOD(B140,(240/Inputs!$D$35))=0,OFFSET(P140,,0,1,1)*(E140/OFFSET(E140,,0,1,1)),Q139*(1+D140)) -> 109.9937699 | R140: =IF(MOD(B140,(240/Inputs!$D$35))=0,OFFSET(P140,,0,1,1)*(E140/OFFSET(E140,,0,1,1)),IF(O140=1,R139*(1+D140)*(N140/100),R139*(1+D140))) -> 109.9937699 | S140: =(Q140/P140-1)*Inputs!$D$25 -> -0.004780854923 | T140: =(R140/P140-1)*Inputs!$D$25 -> -0.004780854923 | U140: -0.004780854923 | V140: -0.004780854923 | W140: =IF(MOD(B140,(240/Inputs!$D$35))=0,S140-S139,0) -> 0 | X140: =IF(MOD(B140,(240/Inputs!$D$35))=0,T140-T139,0) -> 0 | Y140: 0 | Z140: =IF(O140=0,0,(N140/100-1)*Inputs!$D$25) -> 0
B141: 133 | C141: 1 | D141: =(1+Inputs!$E$11)^(1/240)-1 -> 0.0001634329919 | E141: 102.1972733 | F141: =(1+Inputs!$E$12)^(1/240)-1 -> 0.0001231692607 | G141: -0.1167955308 | H141: -0.6138874924 | I141: =G141*Inputs!$C$16/SQRT(240) -> -0.0005277383367 | J141: -0.0002412672159 | K141: =(Inputs!$C$18*G141+((1-Inputs!$C$18^2)^(1/2))*H141)*Inputs!$D$16/SQRT(240) -> -0.002886947595 | L141: =Inputs!$F$13/240+K141 -> -0.002595280929 | M141: 109.1253713 | N141: =IF(MOD(B141,(240/Inputs!$D$35))=0,100*(1+Inputs!$C$20*K141),IF(O140=1,100*(1+Inputs!$C$20*L141),N140*(1+Inputs!$C$20*K141))) -> 100.3588508 | O141: =IF((((N141/100-1)*Inputs!$D$25)+1)*100<100*(1-Inputs!$D$45),1,IF((((N141/100-1)*Inputs!$D$25)+1)*100>100*(1+Inputs!$D$45),1,0)) -> 0 | P141: 110.495495 | Q141: =IF(MOD(B141,(240/Inputs!$D$35))=0,OFFSET(P141,,0,1,1)*(E141/OFFSET(E141,,0,1,1)),Q140*(1+D141)) -> 110.0117465 | R141: =IF(MOD(B141,(240/Inputs!$D$35))=0,OFFSET(P141,,0,1,1)*(E141/OFFSET(E141,,0,1,1)),IF(O141=1,R140*(1+D141)*(N141/100),R140*(1+D141))) -> 110.0117465 | S141: =(Q141/P141-1)*Inputs!$D$25 -> -0.004377992331 | T141: =(R141/P141-1)*Inputs!$D$25 -> -0.004377992331 | U141: -0.004377992331 | V141: -0.004377992331 | W141: =IF(MOD(B141,(240/Inputs!$D$35))=0,S141-S140,0) -> 0 | X141: =IF(MOD(B141,(240/Inputs!$D$35))=0,T141-T140,0) -> 0 | Y141: 0 | Z141: =IF(O141=0,0,(N141/100-1)*Inputs!$D$25) -> 0
B142: 134 | C142: 1 | D142: =(1+Inputs!$E$11)^(1/240)-1 -> 0.0001634329919 | E142: 102.2139758 | F142: =(1+Inputs!$E$12)^(1/240)-1 -> 0.0001231692607 | G142: 0.2552465379 | H142: 0.01882684207 | I142: =G142*Inputs!$C$16/SQRT(240) -> 0.001153326522 | J142: 0.001440279474 | K142: =(Inputs!$C$18*G142+((1-Inputs!$C$18^2)^(1/2))*H142)*Inputs!$D$16/SQRT(240) -> 0.001842984798 | L142: =Inputs!$F$13/240+K142 -> 0.002134651465 | M142: 109.3583159 | N142: =IF(MOD(B142,(240/Inputs!$D$35))=0,100*(1+Inputs!$C$20*K142),IF(O141=1,100*(1+Inputs!$C$20*L142),N141*(1+Inputs!$C$20*K142))) -> 100.4559547 | O142: =IF((((N142/100-1)*Inputs!$D$25)+1)*100<100*(1-Inputs!$D$45),1,IF((((N142/100-1)*Inputs!$D$25)+1)*100>100*(1+Inputs!$D$45),1,0)) -> 0 | P142: 110.6546394 | Q142: =IF(MOD(B142,(240/Inputs!$D$35))=0,OFFSET(P142,,0,1,1)*(E142/OFFSET(E142,,0,1,1)),Q141*(1+D142)) -> 110.0297261 | R142: =IF(MOD(B142,(240/Inputs!$D$35))=0,OFFSET(P142,,0,1,1)*(E142/OFFSET(E142,,0,1,1)),IF(O142=1,R141*(1+D142)*(N142/100),R141*(1+D142))) -> 110.0297261 | S142: =(Q142/P142-1)*Inputs!$D$25 -> -0.005647420458 | T142: =(R142/P142-1)*Inputs!$D$25 -> -0.005647420458 | U142: -0.005647420458 | V142: -0.005647420458 | W142: =IF(MOD(B142,(240/Inputs!$D$35))=0,S142-S141,0) -> 0 | X142: =IF(MOD(B142,(240/Inputs!$D$35))=0,T142-T141,0) -> 0 | Y142: 0 | Z142: =IF(O142=0,0,(N142/100-1)*Inputs!$D$25) -> 0
B143: 135 | C143: 1 | D143: =(1+Inputs!$E$11)^(1/240)-1 -> 0.0001634329919 | E143: 102.2306809 | F143: =(1+Inputs!$E$12)^(1/240)-1 -> 0.0001231692607 | G143: -0.2398394494 | H143: 1.2311512 | I143: =G143*Inputs!$C$16/SQRT(240) -> -0.001083709892 | J143: -0.000797398125 | K143: =(Inputs!$C$18*G143+((1-Inputs!$C$18^2)^(1/2))*H143)*Inputs!$D$16/SQRT(240) -> 0.002484835331 | L143: =Inputs!$F$13/240+K143 -> 0.002776501998 | M143: 109.6619495 | N143: =IF(MOD(B143,(240/Inputs!$D$35))=0,100*(1+Inputs!$C$20*K143),IF(O142=1,100*(1+Inputs!$C$20*L143),N142*(1+Inputs!$C$20*K143))) -> 100.5870034 | O143: =IF((((N143/100-1)*Inputs!$D$25)+1)*100<100*(1-Inputs!$D$45),1,IF((((N143/100-1)*Inputs!$D$25)+1)*100>100*(1+Inputs!$D$45),1,0)) -> 0 | P143: 110.5664036 | Q143: =IF(MOD(B143,(240/Inputs!$D$35))=0,OFFSET(P143,,0,1,1)*(E143/OFFSET(E143,,0,1,1)),Q142*(1+D143)) -> 110.0477086 | R143: =IF(MOD(B143,(240/Inputs!$D$35))=0,OFFSET(P143,,0,1,1)*(E143/OFFSET(E143,,0,1,1)),IF(O143=1,R142*(1+D143)*(N143/100),R142*(1+D143))) -> 110.0477086 | S143: =(Q143/P143-1)*Inputs!$D$25 -> -0.004691253112 | T143: =(R143/P143-1)*Inputs!$D$25 -> -0.004691253112 | U143: -0.004691253112 | V143: -0.004691253112 | W143: =IF(MOD(B143,(240/Inputs!$D$35))=0,S143-S142,0) -> 0 | X143: =IF(MOD(B143,(240/Inputs!$D$35))=0,T143-T142,0) -> 0 | Y143: 0 | Z143: =IF(O143=0,0,(N143/100-1)*Inputs!$D$25) -> 0
B144: 136 | C144: 1 | D144: =(1+Inputs!$E$11)^(1/240)-1 -> 0.0001634329919 | E144: 102.2473888 | F144: =(1+Inputs!$E$12)^(1/240)-1 -> 0.0001231692607 | G144: -0.4933309966 | H144: 0.4335063225 | I144: =G144*Inputs!$C$16/SQRT(240) -> -0.002229106523 | J144: -0.001943123052 | K144: =(Inputs!$C$18*G144+((1-Inputs!$C$18^2)^(1/2))*H144)*Inputs!$D$16/SQRT(240) -> -0.001975507114 | L144: =Inputs!$F$13/240+K144 -> -0.001683840448 | M144: 109.4772963 | N144: =IF(MOD(B144,(240/Inputs!$D$35))=0,100*(1+Inputs!$C$20*K144),IF(O143=1,100*(1+Inputs!$C$20*L144),N143*(1+Inputs!$C$20*K144))) -> 100.4826804 | O144: =IF((((N144/100-1)*Inputs!$D$25)+1)*100<100*(1-Inputs!$D$45),1,IF((((N144/100-1)*Inputs!$D$25)+1)*100>100*(1+Inputs!$D$45),1,0)) -> 0 | P144: 110.3515594 | Q144: =IF(MOD(B144,(240/Inputs!$D$35))=0,OFFSET(P144,,0,1,1)*(E144/OFFSET(E144,,0,1,1)),Q143*(1+D144)) -> 110.065694 | R144: =IF(MOD(B144,(240/Inputs!$D$35))=0,OFFSET(P144,,0,1,1)*(E144/OFFSET(E144,,0,1,1)),IF(O144=1,R143*(1+D144)*(N144/100),R143*(1+D144))) -> 110.065694 | S144: =(Q144/P144-1)*Inputs!$D$25 -> -0.002590497429 | T144: =(R144/P144-1)*Inputs!$D$25 -> -0.002590497429 | U144: -0.002590497429 | V144: -0.002590497429 | W144: =IF(MOD(B144,(240/Inputs!$D$35))=0,S144-S143,0) -> 0 | X144: =IF(MOD(B144,(240/Inputs!$D$35))=0,T144-T143,0) -> 0 | Y144: 0 | Z144: =IF(O144=0,0,(N144/100-1)*Inputs!$D$25) -> 0
B145: 137 | C145: 1 | D145: =(1+Inputs!$E$11)^(1/240)-1 -> 0.0001634329919 | E145: 102.2640994 | F145: =(1+Inputs!$E$12)^(1/240)-1 -> 0.0001231692607 | G145: 0.5394919537 | H145: 0.531538114 | I145: =G145*Inputs!$C$16/SQRT(240) -> 0.002437683911 | J145: 0.002725004988 | K145: =(Inputs!$C$18*G145+((1-Inputs!$C$18^2)^(1/2))*H145)*Inputs!$D$16/SQRT(240) -> 0.005555677264 | L145: =Inputs!$F$13/240+K145 -> 0.005847343931 | M145: 110.1174477 | N145: =IF(MOD(B145,(240/Inputs!$D$35))=0,100*(1+Inputs!$C$20*K145),IF(O144=1,100*(1+Inputs!$C$20*L145),N144*(1+Inputs!$C$20*K145))) -> 100.7757613 | O145: =IF((((N145/100-1)*Inputs!$D$25)+1)*100<100*(1-Inputs!$D$45),1,IF((((N145/100-1)*Inputs!$D$25)+1)*100>100*(1+Inputs!$D$45),1,0)) -> 0 | P145: 110.652268 | Q145: =IF(MOD(B145,(240/Inputs!$D$35))=0,OFFSET(P145,,0,1,1)*(E145/OFFSET(E145,,0,1,1)),Q144*(1+D145)) -> 110.0836824 | R145: =IF(MOD(B145,(240/Inputs!$D$35))=0,OFFSET(P145,,0,1,1)*(E145/OFFSET(E145,,0,1,1)),IF(O145=1,R144*(1+D145)*(N145/100),R144*(1+D145))) -> 110.0836824 | S145: =(Q145/P145-1)*Inputs!$D$25 -> -0.005138490386 | T145: =(R145/P145-1)*Inputs!$D$25 -> -0.005138490386 | U145: -0.005138490386 | V145: -0.005138490386 | W145: =IF(MOD(B145,(240/Inputs!$D$35))=0,S145-S144,0) -> 0 | X145: =IF(MOD(B145,(240/Inputs!$D$35))=0,T145-T144,0) -> 0 | Y145: 0 | Z145: =IF(O145=0,0,(N145/100-1)*Inputs!$D$25) -> 0
B146: 138 | C146: 1 | D146: =(1+Inputs!$E$11)^(1/240)-1 -> 0.0001634329919 | E146: 102.2808127 | F146: =(1+Inputs!$E$12)^(1/240)-1 -> 0.0001231692607 | G146: -0.8477962622 | H146: 0.5567448719 | I146: =G146*Inputs!$C$16/SQRT(240) -> -0.003830750938 | J146: -0.003545226535 | K146: =(Inputs!$C$18*G146+((1-Inputs!$C$18^2)^(1/2))*H146)*Inputs!$D$16/SQRT(240) -> -0.004030514408 | L146: =Inputs!$F$13/240+K146 -> -0.003738847741 | M146: 109.7057353 | N146: =IF(MOD(B146,(240/Inputs!$D$35))=0,100*(1+Inputs!$C$20*K146),IF(O145=1,100*(1+Inputs!$C$20*L146),N145*(1+Inputs!$C$20*K146))) -> 100.5625178 | O146: =IF((((N146/100-1)*Inputs!$D$25)+1)*100<100*(1-Inputs!$D$45),1,IF((((N146/100-1)*Inputs!$D$25)+1)*100>100*(1+Inputs!$D$45),1,0)) -> 0 | P146: 110.2599806 | Q146: =IF(MOD(B146,(240/Inputs!$D$35))=0,OFFSET(P146,,0,1,1)*(E146/OFFSET(E146,,0,1,1)),Q145*(1+D146)) -> 110.1016737 | R146: =IF(MOD(B146,(240/Inputs!$D$35))=0,OFFSET(P146,,0,1,1)*(E146/OFFSET(E146,,0,1,1)),IF(O146=1,R145*(1+D146)*(N146/100),R145*(1+D146))) -> 110.1016737 | S146: =(Q146/P146-1)*Inputs!$D$25 -> -0.001435760755 | T146: =(R146/P146-1)*Inputs!$D$25 -> -0.001435760755 | U146: -0.001435760755 | V146: -0.001435760755 | W146: =IF(MOD(B146,(240/Inputs!$D$35))=0,S146-S145,0) -> 0 | X146: =IF(MOD(B146,(240/Inputs!$D$35))=0,T146-T145,0) -> 0 | Y146: 0 | Z146: =IF(O146=0,0,(N146/100-1)*Inputs!$D$25) -> 0
B147: 139 | C147: 1 | D147: =(1+Inputs!$E$11)^(1/240)-1 -> 0.0001634329919 | E147: 102.2975287 | F147: =(1+Inputs!$E$12)^(1/240)-1 -> 0.0001231692607 | G147: -1.240702311 | H147: -0.4764223927 | I147: =G147*Inputs!$C$16/SQRT(240) -> -0.005606089286 | J147: -0.005321073734 | K147: =(Inputs!$C$18*G147+((1-Inputs!$C$18^2)^(1/2))*H147)*Inputs!$D$16/SQRT(240) -> -0.01025798204 | L147: =Inputs!$F$13/240+K147 -> -0.009966315369 | M147: 108.6123733 | N147: =IF(MOD(B147,(240/Inputs!$D$35))=0,100*(1+Inputs!$C$20*K147),IF(O146=1,100*(1+Inputs!$C$20*L147),N146*(1+Inputs!$C$20*K147))) -> 100.0209444 | O147: =IF((((N147/100-1)*Inputs!$D$25)+1)*100<100*(1-Inputs!$D$45),1,IF((((N147/100-1)*Inputs!$D$25)+1)*100>100*(1+Inputs!$D$45),1,0)) -> 0 | P147: 109.6732791 | Q147: =IF(MOD(B147,(240/Inputs!$D$35))=0,OFFSET(P147,,0,1,1)*(E147/OFFSET(E147,,0,1,1)),Q146*(1+D147)) -> 110.1196679 | R147: =IF(MOD(B147,(240/Inputs!$D$35))=0,OFFSET(P147,,0,1,1)*(E147/OFFSET(E147,,0,1,1)),IF(O147=1,R146*(1+D147)*(N147/100),R146*(1+D147))) -> 110.1196679 | S147: =(Q147/P147-1)*Inputs!$D$25 -> 0.00407016899 | T147: =(R147/P147-1)*Inputs!$D$25 -> 0.00407016899 | U147: 0.00407016899 | V147: 0.00407016899 | W147: =IF(MOD(B147,(240/Inputs!$D$35))=0,S147-S146,0) -> 0 | X147: =IF(MOD(B147,(240/Inputs!$D$35))=0,T147-T146,0) -> 0 | Y147: 0 | Z147: =IF(O147=0,0,(N147/100-1)*Inputs!$D$25) -> 0
B148: 140 | C148: 1 | D148: =(1+Inputs!$E$11)^(1/240)-1 -> 0.0001634329919 | E148: 102.3142475 | F148: =(1+Inputs!$E$12)^(1/240)-1 -> 0.0001231692607 | G148: -1.381180908 | H148: -0.1135146923 | I148: =G148*Inputs!$C$16/SQRT(240) -> -0.006240839099 | J148: -0.005956005481 | K148: =(Inputs!$C$18*G148+((1-Inputs!$C$18^2)^(1/2))*H148)*Inputs!$D$16/SQRT(240) -> -0.0100119929 | L148: =Inputs!$F$13/240+K148 -> -0.009720326229 | M148: 107.5566256 | N148: =IF(MOD(B148,(240/Inputs!$D$35))=0,100*(1+Inputs!$C$20*K148),IF(O147=1,100*(1+Inputs!$C$20*L148),N147*(1+Inputs!$C$20*K148))) -> 99.49520464 | O148: =IF((((N148/100-1)*Inputs!$D$25)+1)*100<100*(1-Inputs!$D$45),1,IF((((N148/100-1)*Inputs!$D$25)+1)*100>100*(1+Inputs!$D$45),1,0)) -> 0 | P148: 109.0200645 | Q148: =IF(MOD(B148,(240/Inputs!$D$35))=0,OFFSET(P148,,0,1,1)*(E148/OFFSET(E148,,0,1,1)),Q147*(1+D148)) -> 110.1376651 | R148: =IF(MOD(B148,(240/Inputs!$D$35))=0,OFFSET(P148,,0,1,1)*(E148/OFFSET(E148,,0,1,1)),IF(O148=1,R147*(1+D148)*(N148/100),R147*(1+D148))) -> 110.1376651 | S148: =(Q148/P148-1)*Inputs!$D$25 -> 0.01025132964 | T148: =(R148/P148-1)*Inputs!$D$25 -> 0.01025132964 | U148: 0.01025132964 | V148: 0.01025132964 | W148: =IF(MOD(B148,(240/Inputs!$D$35))=0,S148-S147,0) -> 0 | X148: =IF(MOD(B148,(240/Inputs!$D$35))=0,T148-T147,0) -> 0 | Y148: 0 | Z148: =IF(O148=0,0,(N148/100-1)*Inputs!$D$25) -> 0
B149: 141 | C149: 1 | D149: =(1+Inputs!$E$11)^(1/240)-1 -> 0.0001634329919 | E149: 102.3309691 | F149: =(1+Inputs!$E$12)^(1/240)-1 -> 0.0001231692607 | G149: 1.877597696 | H149: 0.361665221 | I149: =G149*Inputs!$C$16/SQRT(240) -> 0.00848388871 | J149: 0.008772942765 | K149: =(Inputs!$C$18*G149+((1-Inputs!$C$18^2)^(1/2))*H149)*Inputs!$D$16/SQRT(240) -> 0.01431055063 | L149: =Inputs!$F$13/240+K149 -> 0.01460221729 | M149: 109.1271909 | N149: =IF(MOD(B149,(240/Inputs!$D$35))=0,100*(1+Inputs!$C$20*K149),IF(O148=1,100*(1+Inputs!$C$20*L149),N148*(1+Inputs!$C$20*K149))) -> 100.242716 | O149: =IF((((N149/100-1)*Inputs!$D$25)+1)*100<100*(1-Inputs!$D$45),1,IF((((N149/100-1)*Inputs!$D$25)+1)*100>100*(1+Inputs!$D$45),1,0)) -> 0 | P149: 109.9764913 | Q149: =IF(MOD(B149,(240/Inputs!$D$35))=0,OFFSET(P149,,0,1,1)*(E149/OFFSET(E149,,0,1,1)),Q148*(1+D149)) -> 110.1556652 | R149: =IF(MOD(B149,(240/Inputs!$D$35))=0,OFFSET(P149,,0,1,1)*(E149/OFFSET(E149,,0,1,1)),IF(O149=1,R148*(1+D149)*(N149/100),R148*(1+D149))) -> 110.1556652 | S149: =(Q149/P149-1)*Inputs!$D$25 -> 0.001629202372 | T149: =(R149/P149-1)*Inputs!$D$25 -> 0.001629202372 | U149: 0.001629202372 | V149: 0.001629202372 | W149: =IF(MOD(B149,(240/Inputs!$D$35))=0,S149-S148,0) -> 0 | X149: =IF(MOD(B149,(240/Inputs!$D$35))=0,T149-T148,0) -> 0 | Y149: 0 | Z149: =IF(O149=0,0,(N149/100-1)*Inputs!$D$25) -> 0
B150: 142 | C150: 1 | D150: =(1+Inputs!$E$11)^(1/240)-1 -> 0.0001634329919 | E150: 102.3476933 | F150: =(1+Inputs!$E$12)^(1/240)-1 -> 0.0001231692607 | G150: 0.1432246068 | H150: -1.51095507 | I150: =G150*Inputs!$C$16/SQRT(240) -> 0.0006471576032 | J150: 0.0009339654755 | K150: =(Inputs!$C$18*G150+((1-Inputs!$C$18^2)^(1/2))*H150)*Inputs!$D$16/SQRT(240) -> -0.004103099749 | L150: =Inputs!$F$13/240+K150 -> -0.003811433082 | M150: 108.7112599 | N150: =IF(MOD(B150,(240/Inputs!$D$35))=0,100*(1+Inputs!$C$20*K150),IF(O149=1,100*(1+Inputs!$C$20*L150),N149*(1+Inputs!$C$20*K150))) -> 100.0267804 | O150: =IF((((N150/100-1)*Inputs!$D$25)+1)*100<100*(1-Inputs!$D$45),1,IF((((N150/100-1)*Inputs!$D$25)+1)*100>100*(1+Inputs!$D$45),1,0)) -> 0 | P150: 110.0792055 | Q150: =IF(MOD(B150,(240/Inputs!$D$35))=0,OFFSET(P150,,0,1,1)*(E150/OFFSET(E150,,0,1,1)),Q149*(1+D150)) -> 110.1736683 | R150: =IF(MOD(B150,(240/Inputs!$D$35))=0,OFFSET(P150,,0,1,1)*(E150/OFFSET(E150,,0,1,1)),IF(O150=1,R149*(1+D150)*(N150/100),R149*(1+D150))) -> 110.1736683 | S150: =(Q150/P150-1)*Inputs!$D$25 -> 0.0008581346852 | T150: =(R150/P150-1)*Inputs!$D$25 -> 0.0008581346852 | U150: 0.0008581346852 | V150: 0.0008581346852 | W150: =IF(MOD(B150,(240/Inputs!$D$35))=0,S150-S149,0) -> 0 | X150: =IF(MOD(B150,(240/Inputs!$D$35))=0,T150-T149,0) -> 0 | Y150: 0 | Z150: =IF(O150=0,0,(N150/100-1)*Inputs!$D$25) -> 0
B151: 143 | C151: 1 | D151: =(1+Inputs!$E$11)^(1/240)-1 -> 0.0001634329919 | E151: 102.3644203 | F151: =(1+Inputs!$E$12)^(1/240)-1 -> 0.0001231692607 | G151: -0.7669701765 | H151: -0.1369100973 | I151: =G151*Inputs!$C$16/SQRT(240) -> -0.003465539841 | J151: -0.003179910759 | K151: =(Inputs!$C$18*G151+((1-Inputs!$C$18^2)^(1/2))*H151)*Inputs!$D$16/SQRT(240) -> -0.005809094589 | L151: =Inputs!$F$13/240+K151 -> -0.005517427922 | M151: 108.1114533 | N151: =IF(MOD(B151,(240/Inputs!$D$35))=0,100*(1+Inputs!$C$20*K151),IF(O150=1,100*(1+Inputs!$C$20*L151),N150*(1+Inputs!$C$20*K151))) -> 99.72172128 | O151: =IF((((N151/100-1)*Inputs!$D$25)+1)*100<100*(1-Inputs!$D$45),1,IF((((N151/100-1)*Inputs!$D$25)+1)*100>100*(1+Inputs!$D$45),1,0)) -> 0 | P151: 109.7291635 | Q151: =IF(MOD(B151,(240/Inputs!$D$35))=0,OFFSET(P151,,0,1,1)*(E151/OFFSET(E151,,0,1,1)),Q150*(1+D151)) -> 110.1916743 | R151: =IF(MOD(B151,(240/Inputs!$D$35))=0,OFFSET(P151,,0,1,1)*(E151/OFFSET(E151,,0,1,1)),IF(O151=1,R150*(1+D151)*(N151/100),R150*(1+D151))) -> 110.1916743 | S151: =(Q151/P151-1)*Inputs!$D$25 -> 0.004215022078 | T151: =(R151/P151-1)*Inputs!$D$25 -> 0.004215022078 | U151: 0.004215022078 | V151: 0.004215022078 | W151: =IF(MOD(B151,(240/Inputs!$D$35))=0,S151-S150,0) -> 0 | X151: =IF(MOD(B151,(240/Inputs!$D$35))=0,T151-T150,0) -> 0 | Y151: 0 | Z151: =IF(O151=0,0,(N151/100-1)*Inputs!$D$25) -> 0
B152: 144 | C152: 1 | D152: =(1+Inputs!$E$11)^(1/240)-1 -> 0.0001634329919 | E152: 102.38115 | F152: =(1+Inputs!$E$12)^(1/240)-1 -> 0.0001231692607 | G152: 1.041386872 | H152: -0.05020318739 | I152: =G152*Inputs!$C$16/SQRT(240) -> 0.004705486349 | J152: 0.004993457429 | K152: =(Inputs!$C$18*G152+((1-Inputs!$C$18^2)^(1/2))*H152)*Inputs!$D$16/SQRT(240) -> 0.007090387754 | L152: =Inputs!$F$13/240+K152 -> 0.007382054421 | M152: 108.909538 | N152: =IF(MOD(B152,(240/Inputs!$D$35))=0,100*(1+Inputs!$C$20*K152),IF(O151=1,100*(1+Inputs!$C$20*L152),N151*(1+Inputs!$C$20*K152))) -> 100.0929308 | O152: =IF((((N152/100-1)*Inputs!$D$25)+1)*100<100*(1-Inputs!$D$45),1,IF((((N152/100-1)*Inputs!$D$25)+1)*100>100*(1+Inputs!$D$45),1,0)) -> 0 | P152: 110.2770914 | Q152: =IF(MOD(B152,(240/Inputs!$D$35))=0,OFFSET(P152,,0,1,1)*(E152/OFFSET(E152,,0,1,1)),Q151*(1+D152)) -> 110.2096833 | R152: =IF(MOD(B152,(240/Inputs!$D$35))=0,OFFSET(P152,,0,1,1)*(E152/OFFSET(E152,,0,1,1)),IF(O152=1,R151*(1+D152)*(N152/100),R151*(1+D152))) -> 110.2096833 | S152: =(Q152/P152-1)*Inputs!$D$25 -> -0.0006112611789 | T152: =(R152/P152-1)*Inputs!$D$25 -> -0.0006112611789 | U152: -0.0006112611789 | V152: -0.0006112611789 | W152: =IF(MOD(B152,(240/Inputs!$D$35))=0,S152-S151,0) -> 0 | X152: =IF(MOD(B152,(240/Inputs!$D$35))=0,T152-T151,0) -> 0 | Y152: 0 | Z152: =IF(O152=0,0,(N152/100-1)*Inputs!$D$25) -> 0
B153: 145 | C153: 1 | D153: =(1+Inputs!$E$11)^(1/240)-1 -> 0.0001634329919 | E153: 102.3978825 | F153: =(1+Inputs!$E$12)^(1/240)-1 -> 0.0001231692607 | G153: 1.378238552 | H153: -1.354520358 | I153: =G153*Inputs!$C$16/SQRT(240) -> 0.00622754412 | J153: 0.006515951456 | K153: =(Inputs!$C$18*G153+((1-Inputs!$C$18^2)^(1/2))*H153)*Inputs!$D$16/SQRT(240) -> 0.005034823829 | L153: =Inputs!$F$13/240+K153 -> 0.005326490496 | M153: 109.4896436 | N153: =IF(MOD(B153,(240/Inputs!$D$35))=0,100*(1+Inputs!$C$20*K153),IF(O152=1,100*(1+Inputs!$C$20*L153),N152*(1+Inputs!$C$20*K153))) -> 100.3575046 | O153: =IF((((N153/100-1)*Inputs!$D$25)+1)*100<100*(1-Inputs!$D$45),1,IF((((N153/100-1)*Inputs!$D$25)+1)*100>100*(1+Inputs!$D$45),1,0)) -> 0 | P153: 110.9956516 | Q153: =IF(MOD(B153,(240/Inputs!$D$35))=0,OFFSET(P153,,0,1,1)*(E153/OFFSET(E153,,0,1,1)),Q152*(1+D153)) -> 110.2276952 | R153: =IF(MOD(B153,(240/Inputs!$D$35))=0,OFFSET(P153,,0,1,1)*(E153/OFFSET(E153,,0,1,1)),IF(O153=1,R152*(1+D153)*(N153/100),R152*(1+D153))) -> 110.2276952 | S153: =(Q153/P153-1)*Inputs!$D$25 -> -0.006918796998 | T153: =(R153/P153-1)*Inputs!$D$25 -> -0.006918796998 | U153: -0.006918796998 | V153: -0.006918796998 | W153: =IF(MOD(B153,(240/Inputs!$D$35))=0,S153-S152,0) -> 0 | X153: =IF(MOD(B153,(240/Inputs!$D$35))=0,T153-T152,0) -> 0 | Y153: 0 | Z153: =IF(O153=0,0,(N153/100-1)*Inputs!$D$25) -> 0
B154: 146 | C154: 1 | D154: =(1+Inputs!$E$11)^(1/240)-1 -> 0.0001634329919 | E154: 102.4146177 | F154: =(1+Inputs!$E$12)^(1/240)-1 -> 0.0001231692607 | G154: 1.190193481 | H154: -1.365479024 | I154: =G154*Inputs!$C$16/SQRT(240) -> 0.005377866121 | J154: 0.005666029921 | K154: =(Inputs!$C$18*G154+((1-Inputs!$C$18^2)^(1/2))*H154)*Inputs!$D$16/SQRT(240) -> 0.003686891344 | L154: =Inputs!$F$13/240+K154 -> 0.003978558011 | M154: 109.9252545 | N154: =IF(MOD(B154,(240/Inputs!$D$35))=0,100*(1+Inputs!$C$20*K154),IF(O153=1,100*(1+Inputs!$C$20*L154),N153*(1+Inputs!$C$20*K154))) -> 100.5517584 | O154: =IF((((N154/100-1)*Inputs!$D$25)+1)*100<100*(1-Inputs!$D$45),1,IF((((N154/100-1)*Inputs!$D$25)+1)*100>100*(1+Inputs!$D$45),1,0)) -> 0 | P154: 111.6245562 | Q154: =IF(MOD(B154,(240/Inputs!$D$35))=0,OFFSET(P154,,0,1,1)*(E154/OFFSET(E154,,0,1,1)),Q153*(1+D154)) -> 110.24571 | R154: =IF(MOD(B154,(240/Inputs!$D$35))=0,OFFSET(P154,,0,1,1)*(E154/OFFSET(E154,,0,1,1)),IF(O154=1,R153*(1+D154)*(N154/100),R153*(1+D154))) -> 110.24571 | S154: =(Q154/P154-1)*Inputs!$D$25 -> -0.01235253485 | T154: =(R154/P154-1)*Inputs!$D$25 -> -0.01235253485 | U154: -0.01235253485 | V154: -0.01235253485 | W154: =IF(MOD(B154,(240/Inputs!$D$35))=0,S154-S153,0) -> 0 | X154: =IF(MOD(B154,(240/Inputs!$D$35))=0,T154-T153,0) -> 0 | Y154: 0 | Z154: =IF(O154=0,0,(N154/100-1)*Inputs!$D$25) -> 0
B155: 147 | C155: 1 | D155: =(1+Inputs!$E$11)^(1/240)-1 -> 0.0001634329919 | E155: 102.4313556 | F155: =(1+Inputs!$E$12)^(1/240)-1 -> 0.0001231692607 | G155: -0.8769381002 | H155: -0.1533634103 | I155: =G155*Inputs!$C$16/SQRT(240) -> -0.003962427767 | J155: -0.003676941105 | K155: =(Inputs!$C$18*G155+((1-Inputs!$C$18^2)^(1/2))*H155)*Inputs!$D$16/SQRT(240) -> -0.006631274454 | L155: =Inputs!$F$13/240+K155 -> -0.006339607788 | M155: 109.2283715 | N155: =IF(MOD(B155,(240/Inputs!$D$35))=0,100*(1+Inputs!$C$20*K155),IF(O154=1,100*(1+Inputs!$C$20*L155),N154*(1+Inputs!$C$20*K155))) -> 100.2016956 | O155: =IF((((N155/100-1)*Inputs!$D$25)+1)*100<100*(1-Inputs!$D$45),1,IF((((N155/100-1)*Inputs!$D$25)+1)*100>100*(1+Inputs!$D$45),1,0)) -> 0 | P155: 111.2141193 | Q155: =IF(MOD(B155,(240/Inputs!$D$35))=0,OFFSET(P155,,0,1,1)*(E155/OFFSET(E155,,0,1,1)),Q154*(1+D155)) -> 110.2637278 | R155: =IF(MOD(B155,(240/Inputs!$D$35))=0,OFFSET(P155,,0,1,1)*(E155/OFFSET(E155,,0,1,1)),IF(O155=1,R154*(1+D155)*(N155/100),R154*(1+D155))) -> 110.2637278 | S155: =(Q155/P155-1)*Inputs!$D$25 -> -0.008545601242 | T155: =(R155/P155-1)*Inputs!$D$25 -> -0.008545601242 | U155: -0.008545601242 | V155: -0.008545601242 | W155: =IF(MOD(B155,(240/Inputs!$D$35))=0,S155-S154,0) -> 0 | X155: =IF(MOD(B155,(240/Inputs!$D$35))=0,T155-T154,0) -> 0 | Y155: 0 | Z155: =IF(O155=0,0,(N155/100-1)*Inputs!$D$25) -> 0
B156: 148 | C156: 1 | D156: =(1+Inputs!$E$11)^(1/240)-1 -> 0.0001634329919 | E156: 102.4480963 | F156: =(1+Inputs!$E$12)^(1/240)-1 -> 0.0001231692607 | G156: 2.481402663 | H156: -0.8954448818 | I156: =G156*Inputs!$C$16/SQRT(240) -> 0.01121216972 | J156: 0.01150200576 | K156: =(Inputs!$C$18*G156+((1-Inputs!$C$18^2)^(1/2))*H156)*Inputs!$D$16/SQRT(240) -> 0.01427540625 | L156: =Inputs!$F$13/240+K156 -> 0.01456707291 | M156: 110.8195091 | N156: =IF(MOD(B156,(240/Inputs!$D$35))=0,100*(1+Inputs!$C$20*K156),IF(O155=1,100*(1+Inputs!$C$20*L156),N155*(1+Inputs!$C$20*K156))) -> 100.9526661 | O156: =IF((((N156/100-1)*Inputs!$D$25)+1)*100<100*(1-Inputs!$D$45),1,IF((((N156/100-1)*Inputs!$D$25)+1)*100>100*(1+Inputs!$D$45),1,0)) -> 0 | P156: 112.4933048 | Q156: =IF(MOD(B156,(240/Inputs!$D$35))=0,OFFSET(P156,,0,1,1)*(E156/OFFSET(E156,,0,1,1)),Q155*(1+D156)) -> 110.2817485 | R156: =IF(MOD(B156,(240/Inputs!$D$35))=0,OFFSET(P156,,0,1,1)*(E156/OFFSET(E156,,0,1,1)),IF(O156=1,R155*(1+D156)*(N156/100),R155*(1+D156))) -> 110.2817485 | S156: =(Q156/P156-1)*Inputs!$D$25 -> -0.01965944757 | T156: =(R156/P156-1)*Inputs!$D$25 -> -0.01965944757 | U156: -0.01965944757 | V156: -0.01965944757 | W156: =IF(MOD(B156,(240/Inputs!$D$35))=0,S156-S155,0) -> 0 | X156: =IF(MOD(B156,(240/Inputs!$D$35))=0,T156-T155,0) -> 0 | Y156: 0 | Z156: =IF(O156=0,0,(N156/100-1)*Inputs!$D$25) -> 0
B157: 149 | C157: 1 | D157: =(1+Inputs!$E$11)^(1/240)-1 -> 0.0001634329919 | E157: 102.4648397 | F157: =(1+Inputs!$E$12)^(1/240)-1 -> 0.0001231692607 | G157: 0.3991914714 | H157: -1.600590514 | I157: =G157*Inputs!$C$16/SQRT(240) -> 0.001803738908 | J157: 0.002090878282 | K157: =(Inputs!$C$18*G157+((1-Inputs!$C$18^2)^(1/2))*H157)*Inputs!$D$16/SQRT(240) -> -0.002621304113 | L157: =Inputs!$F$13/240+K157 -> -0.002329637446 | M157: 110.5613399 | N157: =IF(MOD(B157,(240/Inputs!$D$35))=0,100*(1+Inputs!$C$20*K157),IF(O156=1,100*(1+Inputs!$C$20*L157),N156*(1+Inputs!$C$20*K157))) -> 100.8137366 | O157: =IF((((N157/100-1)*Inputs!$D$25)+1)*100<100*(1-Inputs!$D$45),1,IF((((N157/100-1)*Inputs!$D$25)+1)*100>100*(1+Inputs!$D$45),1,0)) -> 0 | P157: 112.7285146 | Q157: =IF(MOD(B157,(240/Inputs!$D$35))=0,OFFSET(P157,,0,1,1)*(E157/OFFSET(E157,,0,1,1)),Q156*(1+D157)) -> 110.2997722 | R157: =IF(MOD(B157,(240/Inputs!$D$35))=0,OFFSET(P157,,0,1,1)*(E157/OFFSET(E157,,0,1,1)),IF(O157=1,R156*(1+D157)*(N157/100),R156*(1+D157))) -> 110.2997722 | S157: =(Q157/P157-1)*Inputs!$D$25 -> -0.02154505776 | T157: =(R157/P157-1)*Inputs!$D$25 -> -0.02154505776 | U157: -0.02154505776 | V157: -0.02154505776 | W157: =IF(MOD(B157,(240/Inputs!$D$35))=0,S157-S156,0) -> 0 | X157: =IF(MOD(B157,(240/Inputs!$D$35))=0,T157-T156,0) -> 0 | Y157: 0 | Z157: =IF(O157=0,0,(N157/100-1)*Inputs!$D$25) -> 0
B158: 150 | C158: 1 | D158: =(1+Inputs!$E$11)^(1/240)-1 -> 0.0001634329919 | E158: 102.4815858 | F158: =(1+Inputs!$E$12)^(1/240)-1 -> 0.0001231692607 | G158: -1.826399243 | H158: 1.660244395 | I158: =G158*Inputs!$C$16/SQRT(240) -> -0.008252549492 | J158: -0.007968292475 | K158: =(Inputs!$C$18*G158+((1-Inputs!$C$18^2)^(1/2))*H158)*Inputs!$D$16/SQRT(240) -> -0.007126874675 | L158: =Inputs!$F$13/240+K158 -> -0.006835208008 | M158: 109.8056301 | N158: =IF(MOD(B158,(240/Inputs!$D$35))=0,100*(1+Inputs!$C$20*K158),IF(O157=1,100*(1+Inputs!$C$20*L158),N157*(1+Inputs!$C$20*K158))) -> 100.436531 | O158: =IF((((N158/100-1)*Inputs!$D$25)+1)*100<100*(1-Inputs!$D$45),1,IF((((N158/100-1)*Inputs!$D$25)+1)*100>100*(1+Inputs!$D$45),1,0)) -> 0 | P158: 111.8302608 | Q158: =IF(MOD(B158,(240/Inputs!$D$35))=0,OFFSET(P158,,0,1,1)*(E158/OFFSET(E158,,0,1,1)),Q157*(1+D158)) -> 110.3177988 | R158: =IF(MOD(B158,(240/Inputs!$D$35))=0,OFFSET(P158,,0,1,1)*(E158/OFFSET(E158,,0,1,1)),IF(O158=1,R157*(1+D158)*(N158/100),R157*(1+D158))) -> 110.3177988 | S158: =(Q158/P158-1)*Inputs!$D$25 -> -0.01352462161 | T158: =(R158/P158-1)*Inputs!$D$25 -> -0.01352462161 | U158: -0.01352462161 | V158: -0.01352462161 | W158: =IF(MOD(B158,(240/Inputs!$D$35))=0,S158-S157,0) -> 0 | X158: =IF(MOD(B158,(240/Inputs!$D$35))=0,T158-T157,0) -> 0 | Y158: 0 | Z158: =IF(O158=0,0,(N158/100-1)*Inputs!$D$25) -> 0
B159: 151 | C159: 1 | D159: =(1+Inputs!$E$11)^(1/240)-1 -> 0.0001634329919 | E159: 102.4983347 | F159: =(1+Inputs!$E$12)^(1/240)-1 -> 0.0001231692607 | G159: -0.05927937858 | H159: -0.4375419901 | I159: =G159*Inputs!$C$16/SQRT(240) -> -0.0002678527204 | J159: 1.869288954e-05 | K159: =(Inputs!$C$18*G159+((1-Inputs!$C$18^2)^(1/2))*H159)*Inputs!$D$16/SQRT(240) -> -0.001890570272 | L159: =Inputs!$F$13/240+K159 -> -0.001598903605 | M159: 109.6300615 | N159: =IF(MOD(B159,(240/Inputs!$D$35))=0,100*(1+Inputs!$C$20*K159),IF(O158=1,100*(1+Inputs!$C$20*L159),N158*(1+Inputs!$C$20*K159))) -> 100.3368427 | O159: =IF((((N159/100-1)*Inputs!$D$25)+1)*100<100*(1-Inputs!$D$45),1,IF((((N159/100-1)*Inputs!$D$25)+1)*100>100*(1+Inputs!$D$45),1,0)) -> 0 | P159: 111.8323512 | Q159: =IF(MOD(B159,(240/Inputs!$D$35))=0,OFFSET(P159,,0,1,1)*(E159/OFFSET(E159,,0,1,1)),Q158*(1+D159)) -> 110.3358284 | R159: =IF(MOD(B159,(240/Inputs!$D$35))=0,OFFSET(P159,,0,1,1)*(E159/OFFSET(E159,,0,1,1)),IF(O159=1,R158*(1+D159)*(N159/100),R158*(1+D159))) -> 110.3358284 | S159: =(Q159/P159-1)*Inputs!$D$25 -> -0.01338184173 | T159: =(R159/P159-1)*Inputs!$D$25 -> -0.01338184173 | U159: -0.01338184173 | V159: -0.01338184173 | W159: =IF(MOD(B159,(240/Inputs!$D$35))=0,S159-S158,0) -> 0 | X159: =IF(MOD(B159,(240/Inputs!$D$35))=0,T159-T158,0) -> 0 | Y159: 0 | Z159: =IF(O159=0,0,(N159/100-1)*Inputs!$D$25) -> 0
B160: 152 | C160: 1 | D160: =(1+Inputs!$E$11)^(1/240)-1 -> 0.0001634329919 | E160: 102.5150863 | F160: =(1+Inputs!$E$12)^(1/240)-1 -> 0.0001231692607 | G160: 1.694193883 | H160: -0.6834330721 | I160: =G160*Inputs!$C$16/SQRT(240) -> 0.007655182143 | J160: 0.007943998672 | K160: =(Inputs!$C$18*G160+((1-Inputs!$C$18^2)^(1/2))*H160)*Inputs!$D$16/SQRT(240) -> 0.009503316813 | L160: =Inputs!$F$13/240+K160 -> 0.00979498348 | M160: 110.7038861 | N160: =IF(MOD(B160,(240/Inputs!$D$35))=0,100*(1+Inputs!$C$20*K160),IF(O159=1,100*(1+Inputs!$C$20*L160),N159*(1+Inputs!$C$20*K160))) -> 100.8374475 | O160: =IF((((N160/100-1)*Inputs!$D$25)+1)*100<100*(1-Inputs!$D$45),1,IF((((N160/100-1)*Inputs!$D$25)+1)*100>100*(1+Inputs!$D$45),1,0)) -> 0 | P160: 112.7207473 | Q160: =IF(MOD(B160,(240/Inputs!$D$35))=0,OFFSET(P160,,0,1,1)*(E160/OFFSET(E160,,0,1,1)),Q159*(1+D160)) -> 110.3538609 | R160: =IF(MOD(B160,(240/Inputs!$D$35))=0,OFFSET(P160,,0,1,1)*(E160/OFFSET(E160,,0,1,1)),IF(O160=1,R159*(1+D160)*(N160/100),R159*(1+D160))) -> 110.3538609 | S160: =(Q160/P160-1)*Inputs!$D$25 -> -0.02099778805 | T160: =(R160/P160-1)*Inputs!$D$25 -> -0.02099778805 | U160: -0.02099778805 | V160: -0.02099778805 | W160: =IF(MOD(B160,(240/Inputs!$D$35))=0,S160-S159,0) -> 0 | X160: =IF(MOD(B160,(240/Inputs!$D$35))=0,T160-T159,0) -> 0 | Y160: 0 | Z160: =IF(O160=0,0,(N160/100-1)*Inputs!$D$25) -> 0
B161: 153 | C161: 1 | D161: =(1+Inputs!$E$11)^(1/240)-1 -> 0.0001634329919 | E161: 102.5318406 | F161: =(1+Inputs!$E$12)^(1/240)-1 -> 0.0001231692607 | G161: 0.6777934478 | H161: -1.254968574 | I161: =G161*Inputs!$C$16/SQRT(240) -> 0.003062596525 | J161: 0.003350096716 | K161: =(Inputs!$C$18*G161+((1-Inputs!$C$18^2)^(1/2))*H161)*Inputs!$D$16/SQRT(240) -> 0.000487887332 | L161: =Inputs!$F$13/240+K161 -> 0.0007795539987 | M161: 110.7901858 | N161: =IF(MOD(B161,(240/Inputs!$D$35))=0,100*(1+Inputs!$C$20*K161),IF(O160=1,100*(1+Inputs!$C$20*L161),N160*(1+Inputs!$C$20*K161))) -> 100.8632761 | O161: =IF((((N161/100-1)*Inputs!$D$25)+1)*100<100*(1-Inputs!$D$45),1,IF((((N161/100-1)*Inputs!$D$25)+1)*100>100*(1+Inputs!$D$45),1,0)) -> 0 | P161: 113.0983727 | Q161: =IF(MOD(B161,(240/Inputs!$D$35))=0,OFFSET(P161,,0,1,1)*(E161/OFFSET(E161,,0,1,1)),Q160*(1+D161)) -> 110.3718964 | R161: =IF(MOD(B161,(240/Inputs!$D$35))=0,OFFSET(P161,,0,1,1)*(E161/OFFSET(E161,,0,1,1)),IF(O161=1,R160*(1+D161)*(N161/100),R160*(1+D161))) -> 110.3718964 | S161: =(Q161/P161-1)*Inputs!$D$25 -> -0.02410712231 | T161: =(R161/P161-1)*Inputs!$D$25 -> -0.02410712231 | U161: -0.02410712231 | V161: -0.02410712231 | W161: =IF(MOD(B161,(240/Inputs!$D$35))=0,S161-S160,0) -> 0 | X161: =IF(MOD(B161,(240/Inputs!$D$35))=0,T161-T160,0) -> 0 | Y161: 0 | Z161: =IF(O161=0,0,(N161/100-1)*Inputs!$D$25) -> 0
B162: 154 | C162: 1 | D162: =(1+Inputs!$E$11)^(1/240)-1 -> 0.0001634329919 | E162: 102.5485977 | F162: =(1+Inputs!$E$12)^(1/240)-1 -> 0.0001231692607 | G162: 2.950407863 | H162: -1.52352587 | I162: =G162*Inputs!$C$16/SQRT(240) -> 0.0133313606 | J162: 0.01362180405 | K162: =(Inputs!$C$18*G162+((1-Inputs!$C$18^2)^(1/2))*H162)*Inputs!$D$16/SQRT(240) -> 0.01542436954 | L162: =Inputs!$F$13/240+K162 -> 0.01571603621 | M162: 112.5313684 | N162: =IF(MOD(B162,(240/Inputs!$D$35))=0,100*(1+Inputs!$C$20*K162),IF(O161=1,100*(1+Inputs!$C$20*L162),N161*(1+Inputs!$C$20*K162))) -> 101.6800461 | O162: =IF((((N162/100-1)*Inputs!$D$25)+1)*100<100*(1-Inputs!$D$45),1,IF((((N162/100-1)*Inputs!$D$25)+1)*100>100*(1+Inputs!$D$45),1,0)) -> 0 | P162: 114.6389765 | Q162: =IF(MOD(B162,(240/Inputs!$D$35))=0,OFFSET(P162,,0,1,1)*(E162/OFFSET(E162,,0,1,1)),Q161*(1+D162)) -> 110.3899348 | R162: =IF(MOD(B162,(240/Inputs!$D$35))=0,OFFSET(P162,,0,1,1)*(E162/OFFSET(E162,,0,1,1)),IF(O162=1,R161*(1+D162)*(N162/100),R161*(1+D162))) -> 110.3899348 | S162: =(Q162/P162-1)*Inputs!$D$25 -> -0.03706454727 | T162: =(R162/P162-1)*Inputs!$D$25 -> -0.03706454727 | U162: -0.03706454727 | V162: -0.03706454727 | W162: =IF(MOD(B162,(240/Inputs!$D$35))=0,S162-S161,0) -> 0 | X162: =IF(MOD(B162,(240/Inputs!$D$35))=0,T162-T161,0) -> 0 | Y162: 0 | Z162: =IF(O162=0,0,(N162/100-1)*Inputs!$D$25) -> 0
B163: 155 | C163: 1 | D163: =(1+Inputs!$E$11)^(1/240)-1 -> 0.0001634329919 | E163: 102.5653575 | F163: =(1+Inputs!$E$12)^(1/240)-1 -> 0.0001231692607 | G163: -2.156895104 | H163: 0.8325996658 | I163: =G163*Inputs!$C$16/SQRT(240) -> -0.009745888618 | J163: -0.009462059626 | K163: =(Inputs!$C$18*G163+((1-Inputs!$C$18^2)^(1/2))*H163)*Inputs!$D$16/SQRT(240) -> -0.01222533385 | L163: =Inputs!$F$13/240+K163 -> -0.01193366718 | M163: 111.1884565 | N163: =IF(MOD(B163,(240/Inputs!$D$35))=0,100*(1+Inputs!$C$20*K163),IF(O162=1,100*(1+Inputs!$C$20*L163),N162*(1+Inputs!$C$20*K163))) -> 101.027433 | O163: =IF((((N163/100-1)*Inputs!$D$25)+1)*100<100*(1-Inputs!$D$45),1,IF((((N163/100-1)*Inputs!$D$25)+1)*100>100*(1+Inputs!$D$45),1,0)) -> 0 | P163: 113.5542557 | Q163: =IF(MOD(B163,(240/Inputs!$D$35))=0,OFFSET(P163,,0,1,1)*(E163/OFFSET(E163,,0,1,1)),Q162*(1+D163)) -> 110.4079761 | R163: =IF(MOD(B163,(240/Inputs!$D$35))=0,OFFSET(P163,,0,1,1)*(E163/OFFSET(E163,,0,1,1)),IF(O163=1,R162*(1+D163)*(N163/100),R162*(1+D163))) -> 110.4079761 | S163: =(Q163/P163-1)*Inputs!$D$25 -> -0.02770728016 | T163: =(R163/P163-1)*Inputs!$D$25 -> -0.02770728016 | U163: -0.02770728016 | V163: -0.02770728016 | W163: =IF(MOD(B163,(240/Inputs!$D$35))=0,S163-S162,0) -> 0 | X163: =IF(MOD(B163,(240/Inputs!$D$35))=0,T163-T162,0) -> 0 | Y163: 0 | Z163: =IF(O163=0,0,(N163/100-1)*Inputs!$D$25) -> 0
B164: 156 | C164: 1 | D164: =(1+Inputs!$E$11)^(1/240)-1 -> 0.0001634329919 | E164: 102.5821201 | F164: =(1+Inputs!$E$12)^(1/240)-1 -> 0.0001231692607 | G164: -0.2570422177 | H164: 0.5631171308 | I164: =G164*Inputs!$C$16/SQRT(240) -> -0.001161440266 | J164: -0.0008751507786 | K164: =(Inputs!$C$18*G164+((1-Inputs!$C$18^2)^(1/2))*H164)*Inputs!$D$16/SQRT(240) -> 0.0001093658518 | L164: =Inputs!$F$13/240+K164 -> 0.0004010325184 | M164: 111.2330466 | N164: =IF(MOD(B164,(240/Inputs!$D$35))=0,100*(1+Inputs!$C$20*K164),IF(O163=1,100*(1+Inputs!$C$20*L164),N163*(1+Inputs!$C$20*K164))) -> 101.0332337 | O164: =IF((((N164/100-1)*Inputs!$D$25)+1)*100<100*(1-Inputs!$D$45),1,IF((((N164/100-1)*Inputs!$D$25)+1)*100>100*(1+Inputs!$D$45),1,0)) -> 0 | P164: 113.4548786 | Q164: =IF(MOD(B164,(240/Inputs!$D$35))=0,OFFSET(P164,,0,1,1)*(E164/OFFSET(E164,,0,1,1)),Q163*(1+D164)) -> 110.4260204 | R164: =IF(MOD(B164,(240/Inputs!$D$35))=0,OFFSET(P164,,0,1,1)*(E164/OFFSET(E164,,0,1,1)),IF(O164=1,R163*(1+D164)*(N164/100),R163*(1+D164))) -> 110.4260204 | S164: =(Q164/P164-1)*Inputs!$D$25 -> -0.02669658821 | T164: =(R164/P164-1)*Inputs!$D$25 -> -0.02669658821 | U164: -0.02669658821 | V164: -0.02669658821 | W164: =IF(MOD(B164,(240/Inputs!$D$35))=0,S164-S163,0) -> 0 | X164: =IF(MOD(B164,(240/Inputs!$D$35))=0,T164-T163,0) -> 0 | Y164: 0 | Z164: =IF(O164=0,0,(N164/100-1)*Inputs!$D$25) -> 0
B165: 157 | C165: 1 | D165: =(1+Inputs!$E$11)^(1/240)-1 -> 0.0001634329919 | E165: 102.5988854 | F165: =(1+Inputs!$E$12)^(1/240)-1 -> 0.0001231692607 | G165: 0.1861448603 | H165: -1.95016801 | I165: =G165*Inputs!$C$16/SQRT(240) -> 0.0008410919346 | J165: 0.001127955393 | K165: =(Inputs!$C$18*G165+((1-Inputs!$C$18^2)^(1/2))*H165)*Inputs!$D$16/SQRT(240) -> -0.005286840344 | L165: =Inputs!$F$13/240+K165 -> -0.004995173677 | M165: 110.6774183 | N165: =IF(MOD(B165,(240/Inputs!$D$35))=0,100*(1+Inputs!$C$20*K165),IF(O164=1,100*(1+Inputs!$C$20*L165),N164*(1+Inputs!$C$20*K165))) -> 100.7528068 | O165: =IF((((N165/100-1)*Inputs!$D$25)+1)*100<100*(1-Inputs!$D$45),1,IF((((N165/100-1)*Inputs!$D$25)+1)*100>100*(1+Inputs!$D$45),1,0)) -> 0 | P165: 113.5828507 | Q165: =IF(MOD(B165,(240/Inputs!$D$35))=0,OFFSET(P165,,0,1,1)*(E165/OFFSET(E165,,0,1,1)),Q164*(1+D165)) -> 110.4440677 | R165: =IF(MOD(B165,(240/Inputs!$D$35))=0,OFFSET(P165,,0,1,1)*(E165/OFFSET(E165,,0,1,1)),IF(O165=1,R164*(1+D165)*(N165/100),R164*(1+D165))) -> 110.4440677 | S165: =(Q165/P165-1)*Inputs!$D$25 -> -0.02763430346 | T165: =(R165/P165-1)*Inputs!$D$25 -> -0.02763430346 | U165: -0.02763430346 | V165: -0.02763430346 | W165: =IF(MOD(B165,(240/Inputs!$D$35))=0,S165-S164,0) -> 0 | X165: =IF(MOD(B165,(240/Inputs!$D$35))=0,T165-T164,0) -> 0 | Y165: 0 | Z165: =IF(O165=0,0,(N165/100-1)*Inputs!$D$25) -> 0
B166: 158 | C166: 1 | D166: =(1+Inputs!$E$11)^(1/240)-1 -> 0.0001634329919 | E166: 102.6156534 | F166: =(1+Inputs!$E$12)^(1/240)-1 -> 0.0001231692607 | G166: -0.07834175162 | H166: -0.7835234282 | I166: =G166*Inputs!$C$16/SQRT(240) -> -0.0003539856826 | J166: -6.746476029e-05 | K166: =(Inputs!$C$18*G166+((1-Inputs!$C$18^2)^(1/2))*H166)*Inputs!$D$16/SQRT(240) -> -0.003191628912 | L166: =Inputs!$F$13/240+K166 -> -0.002899962246 | M166: 110.3564579 | N166: =IF(MOD(B166,(240/Inputs!$D$35))=0,100*(1+Inputs!$C$20*K166),IF(O165=1,100*(1+Inputs!$C$20*L166),N165*(1+Inputs!$C$20*K166))) -> 100.5839848 | O166: =IF((((N166/100-1)*Inputs!$D$25)+1)*100<100*(1-Inputs!$D$45),1,IF((((N166/100-1)*Inputs!$D$25)+1)*100>100*(1+Inputs!$D$45),1,0)) -> 0 | P166: 113.5751878 | Q166: =IF(MOD(B166,(240/Inputs!$D$35))=0,OFFSET(P166,,0,1,1)*(E166/OFFSET(E166,,0,1,1)),Q165*(1+D166)) -> 110.4621179 | R166: =IF(MOD(B166,(240/Inputs!$D$35))=0,OFFSET(P166,,0,1,1)*(E166/OFFSET(E166,,0,1,1)),IF(O166=1,R165*(1+D166)*(N166/100),R165*(1+D166))) -> 110.4621179 | S166: =(Q166/P166-1)*Inputs!$D$25 -> -0.02740977125 | T166: =(R166/P166-1)*Inputs!$D$25 -> -0.02740977125 | U166: -0.02740977125 | V166: -0.02740977125 | W166: =IF(MOD(B166,(240/Inputs!$D$35))=0,S166-S165,0) -> 0 | X166: =IF(MOD(B166,(240/Inputs!$D$35))=0,T166-T165,0) -> 0 | Y166: 0 | Z166: =IF(O166=0,0,(N166/100-1)*Inputs!$D$25) -> 0
B167: 159 | C167: 1 | D167: =(1+Inputs!$E$11)^(1/240)-1 -> 0.0001634329919 | E167: 102.6324242 | F167: =(1+Inputs!$E$12)^(1/240)-1 -> 0.0001231692607 | G167: -0.1773466965 | H167: -1.973120729 | I167: =G167*Inputs!$C$16/SQRT(240) -> -0.0008013376025 | J167: -0.0005149449013 | K167: =(Inputs!$C$18*G167+((1-Inputs!$C$18^2)^(1/2))*H167)*Inputs!$D$16/SQRT(240) -> -0.007898371787 | L167: =Inputs!$F$13/240+K167 -> -0.007606705121 | M167: 109.5170089 | N167: =IF(MOD(B167,(240/Inputs!$D$35))=0,100*(1+Inputs!$C$20*K167),IF(O166=1,100*(1+Inputs!$C$20*L167),N166*(1+Inputs!$C$20*K167))) -> 100.1668987 | O167: =IF((((N167/100-1)*Inputs!$D$25)+1)*100<100*(1-Inputs!$D$45),1,IF((((N167/100-1)*Inputs!$D$25)+1)*100>100*(1+Inputs!$D$45),1,0)) -> 0 | P167: 113.5167029 | Q167: =IF(MOD(B167,(240/Inputs!$D$35))=0,OFFSET(P167,,0,1,1)*(E167/OFFSET(E167,,0,1,1)),Q166*(1+D167)) -> 110.4801711 | R167: =IF(MOD(B167,(240/Inputs!$D$35))=0,OFFSET(P167,,0,1,1)*(E167/OFFSET(E167,,0,1,1)),IF(O167=1,R166*(1+D167)*(N167/100),R166*(1+D167))) -> 110.4801711 | S167: =(Q167/P167-1)*Inputs!$D$25 -> -0.02674964762 | T167: =(R167/P167-1)*Inputs!$D$25 -> -0.02674964762 | U167: -0.02674964762 | V167: -0.02674964762 | W167: =IF(MOD(B167,(240/Inputs!$D$35))=0,S167-S166,0) -> 0 | X167: =IF(MOD(B167,(240/Inputs!$D$35))=0,T167-T166,0) -> 0 | Y167: 0 | Z167: =IF(O167=0,0,(N167/100-1)*Inputs!$D$25) -> 0
B168: 160 | C168: 1 | D168: =(1+Inputs!$E$11)^(1/240)-1 -> 0.0001634329919 | E168: 102.6491978 | F168: =(1+Inputs!$E$12)^(1/240)-1 -> 0.0001231692607 | G168: -0.6671889594 | H168: 0.6584122302 | I168: =G168*Inputs!$C$16/SQRT(240) -> -0.00301468035 | J168: -0.002728922042 | K168: =(Inputs!$C$18*G168+((1-Inputs!$C$18^2)^(1/2))*H168)*Inputs!$D$16/SQRT(240) -> -0.002428165561 | L168: =Inputs!$F$13/240+K168 -> -0.002136498895 | M168: 109.2830259 | N168: =IF(MOD(B168,(240/Inputs!$D$35))=0,100*(1+Inputs!$C$20*K168),IF(O167=1,100*(1+Inputs!$C$20*L168),N167*(1+Inputs!$C$20*K168))) -> 100.0392073 | O168: =IF((((N168/100-1)*Inputs!$D$25)+1)*100<100*(1-Inputs!$D$45),1,IF((((N168/100-1)*Inputs!$D$25)+1)*100>100*(1+Inputs!$D$45),1,0)) -> 0 | P168: 113.2069246 | Q168: =IF(MOD(B168,(240/Inputs!$D$35))=0,OFFSET(P168,,0,1,1)*(E168/OFFSET(E168,,0,1,1)),Q167*(1+D168)) -> 110.4982272 | R168: =IF(MOD(B168,(240/Inputs!$D$35))=0,OFFSET(P168,,0,1,1)*(E168/OFFSET(E168,,0,1,1)),IF(O168=1,R167*(1+D168)*(N168/100),R167*(1+D168))) -> 110.4982272 | S168: =(Q168/P168-1)*Inputs!$D$25 -> -0.02392695916 | T168: =(R168/P168-1)*Inputs!$D$25 -> -0.02392695916 | U168: -0.02392695916 | V168: -0.02392695916 | W168: =IF(MOD(B168,(240/Inputs!$D$35))=0,S168-S167,0) -> 0 | X168: =IF(MOD(B168,(240/Inputs!$D$35))=0,T168-T167,0) -> 0 | Y168: 0 | Z168: =IF(O168=0,0,(N168/100-1)*Inputs!$D$25) -> 0
B169: 161 | C169: 1 | D169: =(1+Inputs!$E$11)^(1/240)-1 -> 0.0001634329919 | E169: 102.665974 | F169: =(1+Inputs!$E$12)^(1/240)-1 -> 0.0001231692607 | G169: 0.2330674113 | H169: -0.6679058486 | I169: =G169*Inputs!$C$16/SQRT(240) -> 0.001053110569 | J169: 0.001340034797 | K169: =(Inputs!$C$18*G169+((1-Inputs!$C$18^2)^(1/2))*H169)*Inputs!$D$16/SQRT(240) -> -0.0006303105308 | L169: =Inputs!$F$13/240+K169 -> -0.0003386438641 | M169: 109.2460179 | N169: =IF(MOD(B169,(240/Inputs!$D$35))=0,100*(1+Inputs!$C$20*K169),IF(O168=1,100*(1+Inputs!$C$20*L169),N168*(1+Inputs!$C$20*K169))) -> 100.006103 | O169: =IF((((N169/100-1)*Inputs!$D$25)+1)*100<100*(1-Inputs!$D$45),1,IF((((N169/100-1)*Inputs!$D$25)+1)*100>100*(1+Inputs!$D$45),1,0)) -> 0 | P169: 113.3586258 | Q169: =IF(MOD(B169,(240/Inputs!$D$35))=0,OFFSET(P169,,0,1,1)*(E169/OFFSET(E169,,0,1,1)),Q168*(1+D169)) -> 110.5162862 | R169: =IF(MOD(B169,(240/Inputs!$D$35))=0,OFFSET(P169,,0,1,1)*(E169/OFFSET(E169,,0,1,1)),IF(O169=1,R168*(1+D169)*(N169/100),R168*(1+D169))) -> 110.5162862 | S169: =(Q169/P169-1)*Inputs!$D$25 -> -0.02507387156 | T169: =(R169/P169-1)*Inputs!$D$25 -> -0.02507387156 | U169: -0.02507387156 | V169: -0.02507387156 | W169: =IF(MOD(B169,(240/Inputs!$D$35))=0,S169-S168,0) -> 0 | X169: =IF(MOD(B169,(240/Inputs!$D$35))=0,T169-T168,0) -> 0 | Y169: 0 | Z169: =IF(O169=0,0,(N169/100-1)*Inputs!$D$25) -> 0
B170: 162 | C170: 1 | D170: =(1+Inputs!$E$11)^(1/240)-1 -> 0.0001634329919 | E170: 102.682753 | F170: =(1+Inputs!$E$12)^(1/240)-1 -> 0.0001231692607 | G170: =_xlfn.NORM.S.INV(RAND()) -> -1.701106925 | H170: -1.162129645 | I170: =G170*Inputs!$C$16/SQRT(240) -> -0.007686418589 | J170: -0.007401999306 | K170: =(Inputs!$C$18*G170+((1-Inputs!$C$18^2)^(1/2))*H170)*Inputs!$D$16/SQRT(240) -> -0.01578284711 | L170: =Inputs!$F$13/240+K170 -> -0.01549118044 | M170: 107.5536681 | N170: =IF(MOD(B170,(240/Inputs!$D$35))=0,100*(1+Inputs!$C$20*K170),IF(O169=1,100*(1+Inputs!$C$20*L170),N169*(1+Inputs!$C$20*K170))) -> 99.17745298 | O170: =IF((((N170/100-1)*Inputs!$D$25)+1)*100<100*(1-Inputs!$D$45),1,IF((((N170/100-1)*Inputs!$D$25)+1)*100>100*(1+Inputs!$D$45),1,0)) -> 0 | P170: 112.5195454 | Q170: =IF(MOD(B170,(240/Inputs!$D$35))=0,OFFSET(P170,,0,1,1)*(E170/OFFSET(E170,,0,1,1)),Q169*(1+D170)) -> 110.5343482 | R170: =IF(MOD(B170,(240/Inputs!$D$35))=0,OFFSET(P170,,0,1,1)*(E170/OFFSET(E170,,0,1,1)),IF(O170=1,R169*(1+D170)*(N170/100),R169*(1+D170))) -> 110.5343482 | S170: =(Q170/P170-1)*Inputs!$D$25 -> -0.01764313161 | T170: =(R170/P170-1)*Inputs!$D$25 -> -0.01764313161 | U170: -0.01764313161 | V170: -0.01764313161 | W170: =IF(MOD(B170,(240/Inputs!$D$35))=0,S170-S169,0) -> 0 | X170: =IF(MOD(B170,(240/Inputs!$D$35))=0,T170-T169,0) -> 0 | Y170: 0 | Z170: =IF(O170=0,0,(N170/100-1)*Inputs!$D$25) -> 0
B171: 163 | C171: 1 | D171: =(1+Inputs!$E$11)^(1/240)-1 -> 0.0001634329919 | E171: 102.6995348 | F171: =(1+Inputs!$E$12)^(1/240)-1 -> 0.0001231692607 | G171: -0.6770461136 | H171: -0.183893535 | I171: =G171*Inputs!$C$16/SQRT(240) -> -0.00305921971 | J171: -0.002773474168 | K171: =(Inputs!$C$18*G171+((1-Inputs!$C$18^2)^(1/2))*H171)*Inputs!$D$16/SQRT(240) -> -0.005340835016 | L171: =Inputs!$F$13/240+K171 -> -0.00504916835 | M171: 107.0106115 | N171: =IF(MOD(B171,(240/Inputs!$D$35))=0,100*(1+Inputs!$C$20*K171),IF(O170=1,100*(1+Inputs!$C$20*L171),N170*(1+Inputs!$C$20*K171))) -> 98.89936551 | O171: =IF((((N171/100-1)*Inputs!$D$25)+1)*100<100*(1-Inputs!$D$45),1,IF((((N171/100-1)*Inputs!$D$25)+1)*100>100*(1+Inputs!$D$45),1,0)) -> 0 | P171: 112.2074753 | Q171: =IF(MOD(B171,(240/Inputs!$D$35))=0,OFFSET(P171,,0,1,1)*(E171/OFFSET(E171,,0,1,1)),Q170*(1+D171)) -> 110.5524132 | R171: =IF(MOD(B171,(240/Inputs!$D$35))=0,OFFSET(P171,,0,1,1)*(E171/OFFSET(E171,,0,1,1)),IF(O171=1,R170*(1+D171)*(N171/100),R170*(1+D171))) -> 110.5524132 | S171: =(Q171/P171-1)*Inputs!$D$25 -> -0.01475001671 | T171: =(R171/P171-1)*Inputs!$D$25 -> -0.01475001671 | U171: -0.01475001671 | V171: -0.01475001671 | W171: =IF(MOD(B171,(240/Inputs!$D$35))=0,S171-S170,0) -> 0 | X171: =IF(MOD(B171,(240/Inputs!$D$35))=0,T171-T170,0) -> 0 | Y171: 0 | Z171: =IF(O171=0,0,(N171/100-1)*Inputs!$D$25) -> 0
B172: 164 | C172: 1 | D172: =(1+Inputs!$E$11)^(1/240)-1 -> 0.0001634329919 | E172: 102.7163193 | F172: =(1+Inputs!$E$12)^(1/240)-1 -> 0.0001231692607 | G172: 0.4862264519 | H172: 0.01034912804 | I172: =G172*Inputs!$C$16/SQRT(240) -> 0.002197004776 | J172: 0.002484256869 | K172: =(Inputs!$C$18*G172+((1-Inputs!$C$18^2)^(1/2))*H172)*Inputs!$D$16/SQRT(240) -> 0.003424607189 | L172: =Inputs!$F$13/240+K172 -> 0.003716273856 | M172: 107.4082923 | N172: =IF(MOD(B172,(240/Inputs!$D$35))=0,100*(1+Inputs!$C$20*K172),IF(O171=1,100*(1+Inputs!$C$20*L172),N171*(1+Inputs!$C$20*K172))) -> 99.07717854 | O172: =IF((((N172/100-1)*Inputs!$D$25)+1)*100<100*(1-Inputs!$D$45),1,IF((((N172/100-1)*Inputs!$D$25)+1)*100>100*(1+Inputs!$D$45),1,0)) -> 0 | P172: 112.4862275 | Q172: =IF(MOD(B172,(240/Inputs!$D$35))=0,OFFSET(P172,,0,1,1)*(E172/OFFSET(E172,,0,1,1)),Q171*(1+D172)) -> 110.5704811 | R172: =IF(MOD(B172,(240/Inputs!$D$35))=0,OFFSET(P172,,0,1,1)*(E172/OFFSET(E172,,0,1,1)),IF(O172=1,R171*(1+D172)*(N172/100),R171*(1+D172))) -> 110.5704811 | S172: =(Q172/P172-1)*Inputs!$D$25 -> -0.01703094199 | T172: =(R172/P172-1)*Inputs!$D$25 -> -0.01703094199 | U172: -0.01703094199 | V172: -0.01703094199 | W172: =IF(MOD(B172,(240/Inputs!$D$35))=0,S172-S171,0) -> 0 | X172: =IF(MOD(B172,(240/Inputs!$D$35))=0,T172-T171,0) -> 0 | Y172: 0 | Z172: =IF(O172=0,0,(N172/100-1)*Inputs!$D$25) -> 0
B173: 165 | C173: 1 | D173: =(1+Inputs!$E$11)^(1/240)-1 -> 0.0001634329919 | E173: 102.7331065 | F173: =(1+Inputs!$E$12)^(1/240)-1 -> 0.0001231692607 | G173: 0.447288788 | H173: 0.1153585062 | I173: =G173*Inputs!$C$16/SQRT(240) -> 0.002021065698 | J173: 0.002308267363 | K173: =(Inputs!$C$18*G173+((1-Inputs!$C$18^2)^(1/2))*H173)*Inputs!$D$16/SQRT(240) -> 0.003507710794 | L173: =Inputs!$F$13/240+K173 -> 0.00379937746 | M173: 107.8163769 | N173: =IF(MOD(B173,(240/Inputs!$D$35))=0,100*(1+Inputs!$C$20*K173),IF(O172=1,100*(1+Inputs!$C$20*L173),N172*(1+Inputs!$C$20*K173))) -> 99.25963393 | O173: =IF((((N173/100-1)*Inputs!$D$25)+1)*100<100*(1-Inputs!$D$45),1,IF((((N173/100-1)*Inputs!$D$25)+1)*100>100*(1+Inputs!$D$45),1,0)) -> 0 | P173: 112.7458758 | Q173: =IF(MOD(B173,(240/Inputs!$D$35))=0,OFFSET(P173,,0,1,1)*(E173/OFFSET(E173,,0,1,1)),Q172*(1+D173)) -> 110.588552 | R173: =IF(MOD(B173,(240/Inputs!$D$35))=0,OFFSET(P173,,0,1,1)*(E173/OFFSET(E173,,0,1,1)),IF(O173=1,R172*(1+D173)*(N173/100),R172*(1+D173))) -> 110.588552 | S173: =(Q173/P173-1)*Inputs!$D$25 -> -0.01913439249 | T173: =(R173/P173-1)*Inputs!$D$25 -> -0.01913439249 | U173: -0.01913439249 | V173: -0.01913439249 | W173: =IF(MOD(B173,(240/Inputs!$D$35))=0,S173-S172,0) -> 0 | X173: =IF(MOD(B173,(240/Inputs!$D$35))=0,T173-T172,0) -> 0 | Y173: 0 | Z173: =IF(O173=0,0,(N173/100-1)*Inputs!$D$25) -> 0
B174: 166 | C174: 1 | D174: =(1+Inputs!$E$11)^(1/240)-1 -> 0.0001634329919 | E174: 102.7498965 | F174: =(1+Inputs!$E$12)^(1/240)-1 -> 0.0001231692607 | G174: -1.021092053 | H174: -0.2604897109 | I174: =G174*Inputs!$C$16/SQRT(240) -> -0.004613784602 | J174: -0.004328484634 | K174: =(Inputs!$C$18*G174+((1-Inputs!$C$18^2)^(1/2))*H174)*Inputs!$D$16/SQRT(240) -> -0.007997925021 | L174: =Inputs!$F$13/240+K174 -> -0.007706258354 | M174: 106.9855161 | N174: =IF(MOD(B174,(240/Inputs!$D$35))=0,100*(1+Inputs!$C$20*K174),IF(O173=1,100*(1+Inputs!$C$20*L174),N173*(1+Inputs!$C$20*K174))) -> 98.8428516 | O174: =IF((((N174/100-1)*Inputs!$D$25)+1)*100<100*(1-Inputs!$D$45),1,IF((((N174/100-1)*Inputs!$D$25)+1)*100>100*(1+Inputs!$D$45),1,0)) -> 0 | P174: 112.257857 | Q174: =IF(MOD(B174,(240/Inputs!$D$35))=0,OFFSET(P174,,0,1,1)*(E174/OFFSET(E174,,0,1,1)),Q173*(1+D174)) -> 110.6066258 | R174: =IF(MOD(B174,(240/Inputs!$D$35))=0,OFFSET(P174,,0,1,1)*(E174/OFFSET(E174,,0,1,1)),IF(O174=1,R173*(1+D174)*(N174/100),R173*(1+D174))) -> 110.6066258 | S174: =(Q174/P174-1)*Inputs!$D$25 -> -0.01470927091 | T174: =(R174/P174-1)*Inputs!$D$25 -> -0.01470927091 | U174: -0.01470927091 | V174: -0.01470927091 | W174: =IF(MOD(B174,(240/Inputs!$D$35))=0,S174-S173,0) -> 0 | X174: =IF(MOD(B174,(240/Inputs!$D$35))=0,T174-T173,0) -> 0 | Y174: 0 | Z174: =IF(O174=0,0,(N174/100-1)*Inputs!$D$25) -> 0
B175: 167 | C175: 1 | D175: =(1+Inputs!$E$11)^(1/240)-1 -> 0.0001634329919 | E175: 102.7666892 | F175: =(1+Inputs!$E$12)^(1/240)-1 -> 0.0001231692607 | G175: 0.5195795082 | H175: 0.9311355107 | I175: =G175*Inputs!$C$16/SQRT(240) -> 0.002347709913 | J175: 0.002635005202 | K175: =(Inputs!$C$18*G175+((1-Inputs!$C$18^2)^(1/2))*H175)*Inputs!$D$16/SQRT(240) -> 0.006766056335 | L175: =Inputs!$F$13/240+K175 -> 0.007057723002 | M175: 107.7405902 | N175: =IF(MOD(B175,(240/Inputs!$D$35))=0,100*(1+Inputs!$C$20*K175),IF(O174=1,100*(1+Inputs!$C$20*L175),N174*(1+Inputs!$C$20*K175))) -> 99.19395916 | O175: =IF((((N175/100-1)*Inputs!$D$25)+1)*100<100*(1-Inputs!$D$45),1,IF((((N175/100-1)*Inputs!$D$25)+1)*100>100*(1+Inputs!$D$45),1,0)) -> 0 | P175: 112.553657 | Q175: =IF(MOD(B175,(240/Inputs!$D$35))=0,OFFSET(P175,,0,1,1)*(E175/OFFSET(E175,,0,1,1)),Q174*(1+D175)) -> 110.6247026 | R175: =IF(MOD(B175,(240/Inputs!$D$35))=0,OFFSET(P175,,0,1,1)*(E175/OFFSET(E175,,0,1,1)),IF(O175=1,R174*(1+D175)*(N175/100),R174*(1+D175))) -> 110.6247026 | S175: =(Q175/P175-1)*Inputs!$D$25 -> -0.01713808815 | T175: =(R175/P175-1)*Inputs!$D$25 -> -0.01713808815 | U175: -0.01713808815 | V175: -0.01713808815 | W175: =IF(MOD(B175,(240/Inputs!$D$35))=0,S175-S174,0) -> 0 | X175: =IF(MOD(B175,(240/Inputs!$D$35))=0,T175-T174,0) -> 0 | Y175: 0 | Z175: =IF(O175=0,0,(N175/100-1)*Inputs!$D$25) -> 0
B176: 168 | C176: 1 | D176: =(1+Inputs!$E$11)^(1/240)-1 -> 0.0001634329919 | E176: 102.7834847 | F176: =(1+Inputs!$E$12)^(1/240)-1 -> 0.0001231692607 | G176: -0.06492151646 | H176: 1.309406959 | I176: =G176*Inputs!$C$16/SQRT(240) -> -0.0002933466107 | J176: -6.80830796e-06 | K176: =(Inputs!$C$18*G176+((1-Inputs!$C$18^2)^(1/2))*H176)*Inputs!$D$16/SQRT(240) -> 0.003968474821 | L176: =Inputs!$F$13/240+K176 -> 0.004260141488 | M176: 108.1995804 | N176: =IF(MOD(B176,(240/Inputs!$D$35))=0,100*(1+Inputs!$C$20*K176),IF(O175=1,100*(1+Inputs!$C$20*L176),N175*(1+Inputs!$C$20*K176))) -> 99.40062474 | O176: =IF((((N176/100-1)*Inputs!$D$25)+1)*100<100*(1-Inputs!$D$45),1,IF((((N176/100-1)*Inputs!$D$25)+1)*100>100*(1+Inputs!$D$45),1,0)) -> 0 | P176: 112.5528907 | Q176: =IF(MOD(B176,(240/Inputs!$D$35))=0,OFFSET(P176,,0,1,1)*(E176/OFFSET(E176,,0,1,1)),Q175*(1+D176)) -> 110.6427823 | R176: =IF(MOD(B176,(240/Inputs!$D$35))=0,OFFSET(P176,,0,1,1)*(E176/OFFSET(E176,,0,1,1)),IF(O176=1,R175*(1+D176)*(N176/100),R175*(1+D176))) -> 110.6427823 | S176: =(Q176/P176-1)*Inputs!$D$25 -> -0.01697076332 | T176: =(R176/P176-1)*Inputs!$D$25 -> -0.01697076332 | U176: -0.01697076332 | V176: -0.01697076332 | W176: =IF(MOD(B176,(240/Inputs!$D$35))=0,S176-S175,0) -> 0 | X176: =IF(MOD(B176,(240/Inputs!$D$35))=0,T176-T175,0) -> 0 | Y176: 0 | Z176: =IF(O176=0,0,(N176/100-1)*Inputs!$D$25) -> 0
B177: 169 | C177: 1 | D177: =(1+Inputs!$E$11)^(1/240)-1 -> 0.0001634329919 | E177: 102.8002829 | F177: =(1+Inputs!$E$12)^(1/240)-1 -> 0.0001231692607 | G177: -0.5280642122 | H177: 1.266249211 | I177: =G177*Inputs!$C$16/SQRT(240) -> -0.002386047883 | J177: -0.002100109395 | K177: =(Inputs!$C$18*G177+((1-Inputs!$C$18^2)^(1/2))*H177)*Inputs!$D$16/SQRT(240) -> 0.0005940183848 | L177: =Inputs!$F$13/240+K177 -> 0.0008856850515 | M177: 108.2954111 | N177: =IF(MOD(B177,(240/Inputs!$D$35))=0,100*(1+Inputs!$C$20*K177),IF(O176=1,100*(1+Inputs!$C$20*L177),N176*(1+Inputs!$C$20*K177))) -> 99.43162379 | O177: =IF((((N177/100-1)*Inputs!$D$25)+1)*100<100*(1-Inputs!$D$45),1,IF((((N177/100-1)*Inputs!$D$25)+1)*100>100*(1+Inputs!$D$45),1,0)) -> 0 | P177: 112.3165174 | Q177: =IF(MOD(B177,(240/Inputs!$D$35))=0,OFFSET(P177,,0,1,1)*(E177/OFFSET(E177,,0,1,1)),Q176*(1+D177)) -> 110.660865 | R177: =IF(MOD(B177,(240/Inputs!$D$35))=0,OFFSET(P177,,0,1,1)*(E177/OFFSET(E177,,0,1,1)),IF(O177=1,R176*(1+D177)*(N177/100),R176*(1+D177))) -> 110.660865 | S177: =(Q177/P177-1)*Inputs!$D$25 -> -0.01474095213 | T177: =(R177/P177-1)*Inputs!$D$25 -> -0.01474095213 | U177: -0.01474095213 | V177: -0.01474095213 | W177: =IF(MOD(B177,(240/Inputs!$D$35))=0,S177-S176,0) -> 0 | X177: =IF(MOD(B177,(240/Inputs!$D$35))=0,T177-T176,0) -> 0 | Y177: 0 | Z177: =IF(O177=0,0,(N177/100-1)*Inputs!$D$25) -> 0
B178: 170 | C178: 1 | D178: =(1+Inputs!$E$11)^(1/240)-1 -> 0.0001634329919 | E178: 102.8170838 | F178: =(1+Inputs!$E$12)^(1/240)-1 -> 0.0001231692607 | G178: -1.522593216 | H178: 0.6309131193 | I178: =G178*Inputs!$C$16/SQRT(240) -> -0.006879807865 | J178: -0.00659515739 | K178: =(Inputs!$C$18*G178+((1-Inputs!$C$18^2)^(1/2))*H178)*Inputs!$D$16/SQRT(240) -> -0.008484352841 | L178: =Inputs!$F$13/240+K178 -> -0.008192686174 | M178: 107.4081808 | N178: =IF(MOD(B178,(240/Inputs!$D$35))=0,100*(1+Inputs!$C$20*K178),IF(O177=1,100*(1+Inputs!$C$20*L178),N177*(1+Inputs!$C$20*K178))) -> 98.98872697 | O178: =IF((((N178/100-1)*Inputs!$D$25)+1)*100<100*(1-Inputs!$D$45),1,IF((((N178/100-1)*Inputs!$D$25)+1)*100>100*(1+Inputs!$D$45),1,0)) -> 0 | P178: 111.5757723 | Q178: =IF(MOD(B178,(240/Inputs!$D$35))=0,OFFSET(P178,,0,1,1)*(E178/OFFSET(E178,,0,1,1)),Q177*(1+D178)) -> 110.6789506 | R178: =IF(MOD(B178,(240/Inputs!$D$35))=0,OFFSET(P178,,0,1,1)*(E178/OFFSET(E178,,0,1,1)),IF(O178=1,R177*(1+D178)*(N178/100),R177*(1+D178))) -> 110.6789506 | S178: =(Q178/P178-1)*Inputs!$D$25 -> -0.008037781334 | T178: =(R178/P178-1)*Inputs!$D$25 -> -0.008037781334 | U178: -0.008037781334 | V178: -0.008037781334 | W178: =IF(MOD(B178,(240/Inputs!$D$35))=0,S178-S177,0) -> 0 | X178: =IF(MOD(B178,(240/Inputs!$D$35))=0,T178-T177,0) -> 0 | Y178: 0 | Z178: =IF(O178=0,0,(N178/100-1)*Inputs!$D$25) -> 0
B179: 171 | C179: 1 | D179: =(1+Inputs!$E$11)^(1/240)-1 -> 0.0001634329919 | E179: 102.8338875 | F179: =(1+Inputs!$E$12)^(1/240)-1 -> 0.0001231692607 | G179: -0.5982079274 | H179: -1.417019453 | I179: =G179*Inputs!$C$16/SQRT(240) -> -0.002702990897 | J179: -0.002417143252 | K179: =(Inputs!$C$18*G179+((1-Inputs!$C$18^2)^(1/2))*H179)*Inputs!$D$16/SQRT(240) -> -0.008954737145 | L179: =Inputs!$F$13/240+K179 -> -0.008663070478 | M179: 106.4776962 | N179: =IF(MOD(B179,(240/Inputs!$D$35))=0,100*(1+Inputs!$C$20*K179),IF(O178=1,100*(1+Inputs!$C$20*L179),N178*(1+Inputs!$C$20*K179))) -> 98.52335751 | O179: =IF((((N179/100-1)*Inputs!$D$25)+1)*100<100*(1-Inputs!$D$45),1,IF((((N179/100-1)*Inputs!$D$25)+1)*100>100*(1+Inputs!$D$45),1,0)) -> 0 | P179: 111.3060776 | Q179: =IF(MOD(B179,(240/Inputs!$D$35))=0,OFFSET(P179,,0,1,1)*(E179/OFFSET(E179,,0,1,1)),Q178*(1+D179)) -> 110.6970392 | R179: =IF(MOD(B179,(240/Inputs!$D$35))=0,OFFSET(P179,,0,1,1)*(E179/OFFSET(E179,,0,1,1)),IF(O179=1,R178*(1+D179)*(N179/100),R178*(1+D179))) -> 110.6970392 | S179: =(Q179/P179-1)*Inputs!$D$25 -> -0.00547174472 | T179: =(R179/P179-1)*Inputs!$D$25 -> -0.00547174472 | U179: -0.00547174472 | V179: -0.00547174472 | W179: =IF(MOD(B179,(240/Inputs!$D$35))=0,S179-S178,0) -> 0 | X179: =IF(MOD(B179,(240/Inputs!$D$35))=0,T179-T178,0) -> 0 | Y179: 0 | Z179: =IF(O179=0,0,(N179/100-1)*Inputs!$D$25) -> 0
B180: 172 | C180: 1 | D180: =(1+Inputs!$E$11)^(1/240)-1 -> 0.0001634329919 | E180: 102.850694 | F180: =(1+Inputs!$E$12)^(1/240)-1 -> 0.0001231692607 | G180: 1.482672875 | H180: -0.6565572797 | I180: =G180*Inputs!$C$16/SQRT(240) -> 0.006699428578 | J180: 0.006987971167 | K180: =(Inputs!$C$18*G180+((1-Inputs!$C$18^2)^(1/2))*H180)*Inputs!$D$16/SQRT(240) -> 0.008119468718 | L180: =Inputs!$F$13/240+K180 -> 0.008411135385 | M180: 107.3732945 | N180: =IF(MOD(B180,(240/Inputs!$D$35))=0,100*(1+Inputs!$C$20*K180),IF(O179=1,100*(1+Inputs!$C$20*L180),N179*(1+Inputs!$C$20*K180))) -> 98.9433351 | O180: =IF((((N180/100-1)*Inputs!$D$25)+1)*100<100*(1-Inputs!$D$45),1,IF((((N180/100-1)*Inputs!$D$25)+1)*100>100*(1+Inputs!$D$45),1,0)) -> 0 | P180: 112.0838813 | Q180: =IF(MOD(B180,(240/Inputs!$D$35))=0,OFFSET(P180,,0,1,1)*(E180/OFFSET(E180,,0,1,1)),Q179*(1+D180)) -> 110.7151307 | R180: =IF(MOD(B180,(240/Inputs!$D$35))=0,OFFSET(P180,,0,1,1)*(E180/OFFSET(E180,,0,1,1)),IF(O180=1,R179*(1+D180)*(N180/100),R179*(1+D180))) -> 110.7151307 | S180: =(Q180/P180-1)*Inputs!$D$25 -> -0.01221184116 | T180: =(R180/P180-1)*Inputs!$D$25 -> -0.01221184116 | U180: -0.01221184116 | V180: -0.01221184116 | W180: =IF(MOD(B180,(240/Inputs!$D$35))=0,S180-S179,0) -> 0 | X180: =IF(MOD(B180,(240/Inputs!$D$35))=0,T180-T179,0) -> 0 | Y180: 0 | Z180: =IF(O180=0,0,(N180/100-1)*Inputs!$D$25) -> 0
B181: 173 | C181: 1 | D181: =(1+Inputs!$E$11)^(1/240)-1 -> 0.0001634329919 | E181: 102.8675032 | F181: =(1+Inputs!$E$12)^(1/240)-1 -> 0.0001231692607 | G181: 0.2179273939 | H181: -0.1671782334 | I181: =G181*Inputs!$C$16/SQRT(240) -> 0.0009847006952 | J181: 0.001271605315 | K181: =(Inputs!$C$18*G181+((1-Inputs!$C$18^2)^(1/2))*H181)*Inputs!$D$16/SQRT(240) -> 0.0009547938191 | L181: =Inputs!$F$13/240+K181 -> 0.001246460486 | M181: 107.507131 | N181: =IF(MOD(B181,(240/Inputs!$D$35))=0,100*(1+Inputs!$C$20*K181),IF(O180=1,100*(1+Inputs!$C$20*L181),N180*(1+Inputs!$C$20*K181))) -> 98.9929321 | O181: =IF((((N181/100-1)*Inputs!$D$25)+1)*100<100*(1-Inputs!$D$45),1,IF((((N181/100-1)*Inputs!$D$25)+1)*100>100*(1+Inputs!$D$45),1,0)) -> 0 | P181: 112.2264078 | Q181: =IF(MOD(B181,(240/Inputs!$D$35))=0,OFFSET(P181,,0,1,1)*(E181/OFFSET(E181,,0,1,1)),Q180*(1+D181)) -> 110.7332252 | R181: =IF(MOD(B181,(240/Inputs!$D$35))=0,OFFSET(P181,,0,1,1)*(E181/OFFSET(E181,,0,1,1)),IF(O181=1,R180*(1+D181)*(N181/100),R180*(1+D181))) -> 110.7332252 | S181: =(Q181/P181-1)*Inputs!$D$25 -> -0.01330509048 | T181: =(R181/P181-1)*Inputs!$D$25 -> -0.01330509048 | U181: -0.01330509048 | V181: -0.01330509048 | W181: =IF(MOD(B181,(240/Inputs!$D$35))=0,S181-S180,0) -> 0 | X181: =IF(MOD(B181,(240/Inputs!$D$35))=0,T181-T180,0) -> 0 | Y181: 0 | Z181: =IF(O181=0,0,(N181/100-1)*Inputs!$D$25) -> 0
B182: 174 | C182: 1 | D182: =(1+Inputs!$E$11)^(1/240)-1 -> 0.0001634329919 | E182: 102.8843151 | F182: =(1+Inputs!$E$12)^(1/240)-1 -> 0.0001231692607 | G182: 0.02872773371 | H182: -0.1426334538 | I182: =G182*Inputs!$C$16/SQRT(240) -> 0.0001298057066 | J182: 0.0004164652943 | K182: =(Inputs!$C$18*G182+((1-Inputs!$C$18^2)^(1/2))*H182)*Inputs!$D$16/SQRT(240) -> -0.0002813143063 | L182: =Inputs!$F$13/240+K182 -> 1.035236034e-05 | M182: 107.508244 | N182: =IF(MOD(B182,(240/Inputs!$D$35))=0,100*(1+Inputs!$C$20*K182),IF(O181=1,100*(1+Inputs!$C$20*L182),N181*(1+Inputs!$C$20*K182))) -> 98.97831183 | O182: =IF((((N182/100-1)*Inputs!$D$25)+1)*100<100*(1-Inputs!$D$45),1,IF((((N182/100-1)*Inputs!$D$25)+1)*100>100*(1+Inputs!$D$45),1,0)) -> 0 | P182: 112.2731462 | Q182: =IF(MOD(B182,(240/Inputs!$D$35))=0,OFFSET(P182,,0,1,1)*(E182/OFFSET(E182,,0,1,1)),Q181*(1+D182)) -> 110.7513227 | R182: =IF(MOD(B182,(240/Inputs!$D$35))=0,OFFSET(P182,,0,1,1)*(E182/OFFSET(E182,,0,1,1)),IF(O182=1,R181*(1+D182)*(N182/100),R181*(1+D182))) -> 110.7513227 | S182: =(Q182/P182-1)*Inputs!$D$25 -> -0.01355465223 | T182: =(R182/P182-1)*Inputs!$D$25 -> -0.01355465223 | U182: -0.01355465223 | V182: -0.01355465223 | W182: =IF(MOD(B182,(240/Inputs!$D$35))=0,S182-S181,0) -> 0 | X182: =IF(MOD(B182,(240/Inputs!$D$35))=0,T182-T181,0) -> 0 | Y182: 0 | Z182: =IF(O182=0,0,(N182/100-1)*Inputs!$D$25) -> 0
B183: 175 | C183: 1 | D183: =(1+Inputs!$E$11)^(1/240)-1 -> 0.0001634329919 | E183: 102.9011298 | F183: =(1+Inputs!$E$12)^(1/240)-1 -> 0.0001231692607 | G183: -0.6307808295 | H183: -1.087378878 | I183: =G183*Inputs!$C$16/SQRT(240) -> -0.002850170922 | J183: -0.002564365463 | K183: =(Inputs!$C$18*G183+((1-Inputs!$C$18^2)^(1/2))*H183)*Inputs!$D$16/SQRT(240) -> -0.008068820217 | L183: =Inputs!$F$13/240+K183 -> -0.00777715355 | M183: 106.6721359 | N183: =IF(MOD(B183,(240/Inputs!$D$35))=0,100*(1+Inputs!$C$20*K183),IF(O182=1,100*(1+Inputs!$C$20*L183),N182*(1+Inputs!$C$20*K183))) -> 98.55902678 | O183: =IF((((N183/100-1)*Inputs!$D$25)+1)*100<100*(1-Inputs!$D$45),1,IF((((N183/100-1)*Inputs!$D$25)+1)*100>100*(1+Inputs!$D$45),1,0)) -> 0 | P183: 111.9852368 | Q183: =IF(MOD(B183,(240/Inputs!$D$35))=0,OFFSET(P183,,0,1,1)*(E183/OFFSET(E183,,0,1,1)),Q182*(1+D183)) -> 110.7694231 | R183: =IF(MOD(B183,(240/Inputs!$D$35))=0,OFFSET(P183,,0,1,1)*(E183/OFFSET(E183,,0,1,1)),IF(O183=1,R182*(1+D183)*(N183/100),R182*(1+D183))) -> 110.7694231 | S183: =(Q183/P183-1)*Inputs!$D$25 -> -0.01085691014 | T183: =(R183/P183-1)*Inputs!$D$25 -> -0.01085691014 | U183: -0.01085691014 | V183: -0.01085691014 | W183: =IF(MOD(B183,(240/Inputs!$D$35))=0,S183-S182,0) -> 0 | X183: =IF(MOD(B183,(240/Inputs!$D$35))=0,T183-T182,0) -> 0 | Y183: 0 | Z183: =IF(O183=0,0,(N183/100-1)*Inputs!$D$25) -> 0
B184: 176 | C184: 1 | D184: =(1+Inputs!$E$11)^(1/240)-1 -> 0.0001634329919 | E184: 102.9179473 | F184: =(1+Inputs!$E$12)^(1/240)-1 -> 0.0001231692607 | G184: 0.06205708146 | H184: -1.137844624 | I184: =G184*Inputs!$C$16/SQRT(240) -> 0.0002804037168 | J184: 0.0005671064693 | K184: =(Inputs!$C$18*G184+((1-Inputs!$C$18^2)^(1/2))*H184)*Inputs!$D$16/SQRT(240) -> -0.003409182744 | L184: =Inputs!$F$13/240+K184 -> -0.003117516077 | M184: 106.3395838 | N184: =IF(MOD(B184,(240/Inputs!$D$35))=0,100*(1+Inputs!$C$20*K184),IF(O183=1,100*(1+Inputs!$C$20*L184),N183*(1+Inputs!$C$20*K184))) -> 98.38262377 | O184: =IF((((N184/100-1)*Inputs!$D$25)+1)*100<100*(1-Inputs!$D$45),1,IF((((N184/100-1)*Inputs!$D$25)+1)*100>100*(1+Inputs!$D$45),1,0)) -> 0 | P184: 112.0487443 | Q184: =IF(MOD(B184,(240/Inputs!$D$35))=0,OFFSET(P184,,0,1,1)*(E184/OFFSET(E184,,0,1,1)),Q183*(1+D184)) -> 110.7875265 | R184: =IF(MOD(B184,(240/Inputs!$D$35))=0,OFFSET(P184,,0,1,1)*(E184/OFFSET(E184,,0,1,1)),IF(O184=1,R183*(1+D184)*(N184/100),R183*(1+D184))) -> 110.7875265 | S184: =(Q184/P184-1)*Inputs!$D$25 -> -0.01125597466 | T184: =(R184/P184-1)*Inputs!$D$25 -> -0.01125597466 | U184: -0.01125597466 | V184: -0.01125597466 | W184: =IF(MOD(B184,(240/Inputs!$D$35))=0,S184-S183,0) -> 0 | X184: =IF(MOD(B184,(240/Inputs!$D$35))=0,T184-T183,0) -> 0 | Y184: 0 | Z184: =IF(O184=0,0,(N184/100-1)*Inputs!$D$25) -> 0
B185: 177 | C185: 1 | D185: =(1+Inputs!$E$11)^(1/240)-1 -> 0.0001634329919 | E185: 102.9347675 | F185: =(1+Inputs!$E$12)^(1/240)-1 -> 0.0001231692607 | G185: 0.1985785814 | H185: -0.05911072246 | I185: =G185*Inputs!$C$16/SQRT(240) -> 0.0008972734619 | J185: 0.001184153023 | K185: =(Inputs!$C$18*G185+((1-Inputs!$C$18^2)^(1/2))*H185)*Inputs!$D$16/SQRT(240) -> 0.001184784 | L185: =Inputs!$F$13/240+K185 -> 0.001476450667 | M185: 106.4965889 | N185: =IF(MOD(B185,(240/Inputs!$D$35))=0,100*(1+Inputs!$C$20*K185),IF(O184=1,100*(1+Inputs!$C$20*L185),N184*(1+Inputs!$C$20*K185))) -> 98.4438189 | O185: =IF((((N185/100-1)*Inputs!$D$25)+1)*100<100*(1-Inputs!$D$45),1,IF((((N185/100-1)*Inputs!$D$25)+1)*100>100*(1+Inputs!$D$45),1,0)) -> 0 | P185: 112.1814272 | Q185: =IF(MOD(B185,(240/Inputs!$D$35))=0,OFFSET(P185,,0,1,1)*(E185/OFFSET(E185,,0,1,1)),Q184*(1+D185)) -> 110.8056328 | R185: =IF(MOD(B185,(240/Inputs!$D$35))=0,OFFSET(P185,,0,1,1)*(E185/OFFSET(E185,,0,1,1)),IF(O185=1,R184*(1+D185)*(N185/100),R184*(1+D185))) -> 110.8056328 | S185: =(Q185/P185-1)*Inputs!$D$25 -> -0.01226401182 | T185: =(R185/P185-1)*Inputs!$D$25 -> -0.01226401182 | U185: -0.01226401182 | V185: -0.01226401182 | W185: =IF(MOD(B185,(240/Inputs!$D$35))=0,S185-S184,0) -> 0 | X185: =IF(MOD(B185,(240/Inputs!$D$35))=0,T185-T184,0) -> 0 | Y185: 0 | Z185: =IF(O185=0,0,(N185/100-1)*Inputs!$D$25) -> 0
B186: 178 | C186: 1 | D186: =(1+Inputs!$E$11)^(1/240)-1 -> 0.0001634329919 | E186: 102.9515904 | F186: =(1+Inputs!$E$12)^(1/240)-1 -> 0.0001231692607 | G186: -1.189117973 | H186: 0.1665310877 | I186: =G186*Inputs!$C$16/SQRT(240) -> -0.005373006455 | J186: -0.005087924096 | K186: =(Inputs!$C$18*G186+((1-Inputs!$C$18^2)^(1/2))*H186)*Inputs!$D$16/SQRT(240) -> -0.007727507721 | L186: =Inputs!$F$13/240+K186 -> -0.007435841055 | M186: 105.7046972 | N186: =IF(MOD(B186,(240/Inputs!$D$35))=0,100*(1+Inputs!$C$20*K186),IF(O185=1,100*(1+Inputs!$C$20*L186),N185*(1+Inputs!$C$20*K186))) -> 98.04443808 | O186: =IF((((N186/100-1)*Inputs!$D$25)+1)*100<100*(1-Inputs!$D$45),1,IF((((N186/100-1)*Inputs!$D$25)+1)*100>100*(1+Inputs!$D$45),1,0)) -> 0 | P186: 111.6106566 | Q186: =IF(MOD(B186,(240/Inputs!$D$35))=0,OFFSET(P186,,0,1,1)*(E186/OFFSET(E186,,0,1,1)),Q185*(1+D186)) -> 110.8237421 | R186: =IF(MOD(B186,(240/Inputs!$D$35))=0,OFFSET(P186,,0,1,1)*(E186/OFFSET(E186,,0,1,1)),IF(O186=1,R185*(1+D186)*(N186/100),R185*(1+D186))) -> 110.8237421 | S186: =(Q186/P186-1)*Inputs!$D$25 -> -0.007050531647 | T186: =(R186/P186-1)*Inputs!$D$25 -> -0.007050531647 | U186: -0.007050531647 | V186: -0.007050531647 | W186: =IF(MOD(B186,(240/Inputs!$D$35))=0,S186-S185,0) -> 0 | X186: =IF(MOD(B186,(240/Inputs!$D$35))=0,T186-T185,0) -> 0 | Y186: 0 | Z186: =IF(O186=0,0,(N186/100-1)*Inputs!$D$25) -> 0
B187: 179 | C187: 1 | D187: =(1+Inputs!$E$11)^(1/240)-1 -> 0.0001634329919 | E187: 102.9684161 | F187: =(1+Inputs!$E$12)^(1/240)-1 -> 0.0001231692607 | G187: 1.023150992 | H187: -0.8894845285 | I187: =G187*Inputs!$C$16/SQRT(240) -> 0.004623087878 | J187: 0.004911035341 | K187: =(Inputs!$C$18*G187+((1-Inputs!$C$18^2)^(1/2))*H187)*Inputs!$D$16/SQRT(240) -> 0.00412951873 | L187: =Inputs!$F$13/240+K187 -> 0.004421185397 | M187: 106.1720373 | N187: =IF(MOD(B187,(240/Inputs!$D$35))=0,100*(1+Inputs!$C$20*K187),IF(O186=1,100*(1+Inputs!$C$20*L187),N186*(1+Inputs!$C$20*K187))) -> 98.25699816 | O187: =IF((((N187/100-1)*Inputs!$D$25)+1)*100<100*(1-Inputs!$D$45),1,IF((((N187/100-1)*Inputs!$D$25)+1)*100>100*(1+Inputs!$D$45),1,0)) -> 0 | P187: 112.1587805 | Q187: =IF(MOD(B187,(240/Inputs!$D$35))=0,OFFSET(P187,,0,1,1)*(E187/OFFSET(E187,,0,1,1)),Q186*(1+D187)) -> 110.8418544 | R187: =IF(MOD(B187,(240/Inputs!$D$35))=0,OFFSET(P187,,0,1,1)*(E187/OFFSET(E187,,0,1,1)),IF(O187=1,R186*(1+D187)*(N187/100),R186*(1+D187))) -> 110.8418544 | S187: =(Q187/P187-1)*Inputs!$D$25 -> -0.01174162276 | T187: =(R187/P187-1)*Inputs!$D$25 -> -0.01174162276 | U187: -0.01174162276 | V187: -0.01174162276 | W187: =IF(MOD(B187,(240/Inputs!$D$35))=0,S187-S186,0) -> 0 | X187: =IF(MOD(B187,(240/Inputs!$D$35))=0,T187-T186,0) -> 0 | Y187: 0 | Z187: =IF(O187=0,0,(N187/100-1)*Inputs!$D$25) -> 0
B188: 180 | C188: 1 | D188: =(1+Inputs!$E$11)^(1/240)-1 -> 0.0001634329919 | E188: 102.9852445 | F188: =(1+Inputs!$E$12)^(1/240)-1 -> 0.0001231692607 | G188: -0.1157548835 | H188: 1.030241459 | I188: =G188*Inputs!$C$16/SQRT(240) -> -0.0005230361922 | J188: -0.0002365637236 | K188: =(Inputs!$C$18*G188+((1-Inputs!$C$18^2)^(1/2))*H188)*Inputs!$D$16/SQRT(240) -> 0.002671525395 | L188: =Inputs!$F$13/240+K188 -> 0.002963192062 | M188: 106.4866454 | N188: =IF(MOD(B188,(240/Inputs!$D$35))=0,100*(1+Inputs!$C$20*K188),IF(O187=1,100*(1+Inputs!$C$20*L188),N187*(1+Inputs!$C$20*K188))) -> 98.3948086 | O188: =IF((((N188/100-1)*Inputs!$D$25)+1)*100<100*(1-Inputs!$D$45),1,IF((((N188/100-1)*Inputs!$D$25)+1)*100>100*(1+Inputs!$D$45),1,0)) -> 0 | P188: 112.1322478 | Q188: =IF(MOD(B188,(240/Inputs!$D$35))=0,OFFSET(P188,,0,1,1)*(E188/OFFSET(E188,,0,1,1)),Q187*(1+D188)) -> 110.8599696 | R188: =IF(MOD(B188,(240/Inputs!$D$35))=0,OFFSET(P188,,0,1,1)*(E188/OFFSET(E188,,0,1,1)),IF(O188=1,R187*(1+D188)*(N188/100),R187*(1+D188))) -> 110.8599696 | S188: =(Q188/P188-1)*Inputs!$D$25 -> -0.01134622912 | T188: =(R188/P188-1)*Inputs!$D$25 -> -0.01134622912 | U188: -0.01134622912 | V188: -0.01134622912 | W188: =IF(MOD(B188,(240/Inputs!$D$35))=0,S188-S187,0) -> 0 | X188: =IF(MOD(B188,(240/Inputs!$D$35))=0,T188-T187,0) -> 0 | Y188: 0 | Z188: =IF(O188=0,0,(N188/100-1)*Inputs!$D$25) -> 0
B189: 181 | C189: 1 | D189: =(1+Inputs!$E$11)^(1/240)-1 -> 0.0001634329919 | E189: 103.0020757 | F189: =(1+Inputs!$E$12)^(1/240)-1 -> 0.0001231692607 | G189: 0.6508618301 | H189: -0.03738715108 | I189: =G189*Inputs!$C$16/SQRT(240) -> 0.002940906534 | J189: 0.003228371846 | K189: =(Inputs!$C$18*G189+((1-Inputs!$C$18^2)^(1/2))*H189)*Inputs!$D$16/SQRT(240) -> 0.004411165101 | L189: =Inputs!$F$13/240+K189 -> 0.004702831768 | M189: 106.9874342 | N189: =IF(MOD(B189,(240/Inputs!$D$35))=0,100*(1+Inputs!$C$20*K189),IF(O188=1,100*(1+Inputs!$C$20*L189),N188*(1+Inputs!$C$20*K189))) -> 98.62267736 | O189: =IF((((N189/100-1)*Inputs!$D$25)+1)*100<100*(1-Inputs!$D$45),1,IF((((N189/100-1)*Inputs!$D$25)+1)*100>100*(1+Inputs!$D$45),1,0)) -> 0 | P189: 112.4942524 | Q189: =IF(MOD(B189,(240/Inputs!$D$35))=0,OFFSET(P189,,0,1,1)*(E189/OFFSET(E189,,0,1,1)),Q188*(1+D189)) -> 110.8780878 | R189: =IF(MOD(B189,(240/Inputs!$D$35))=0,OFFSET(P189,,0,1,1)*(E189/OFFSET(E189,,0,1,1)),IF(O189=1,R188*(1+D189)*(N189/100),R188*(1+D189))) -> 110.8780878 | S189: =(Q189/P189-1)*Inputs!$D$25 -> -0.01436664146 | T189: =(R189/P189-1)*Inputs!$D$25 -> -0.01436664146 | U189: -0.01436664146 | V189: -0.01436664146 | W189: =IF(MOD(B189,(240/Inputs!$D$35))=0,S189-S188,0) -> 0 | X189: =IF(MOD(B189,(240/Inputs!$D$35))=0,T189-T188,0) -> 0 | Y189: 0 | Z189: =IF(O189=0,0,(N189/100-1)*Inputs!$D$25) -> 0
B190: 182 | C190: 1 | D190: =(1+Inputs!$E$11)^(1/240)-1 -> 0.0001634329919 | E190: 103.0189096 | F190: =(1+Inputs!$E$12)^(1/240)-1 -> 0.0001231692607 | G190: -0.2871149142 | H190: -0.1482100238 | I190: =G190*Inputs!$C$16/SQRT(240) -> -0.001297323161 | J190: -0.001011072621 | K190: =(Inputs!$C$18*G190+((1-Inputs!$C$18^2)^(1/2))*H190)*Inputs!$D$16/SQRT(240) -> -0.002501998941 | L190: =Inputs!$F$13/240+K190 -> -0.002210332275 | M190: 106.7509564 | N190: =IF(MOD(B190,(240/Inputs!$D$35))=0,100*(1+Inputs!$C$20*K190),IF(O189=1,100*(1+Inputs!$C$20*L190),N189*(1+Inputs!$C$20*K190))) -> 98.4931316 | O190: =IF((((N190/100-1)*Inputs!$D$25)+1)*100<100*(1-Inputs!$D$45),1,IF((((N190/100-1)*Inputs!$D$25)+1)*100>100*(1+Inputs!$D$45),1,0)) -> 0 | P190: 112.3805125 | Q190: =IF(MOD(B190,(240/Inputs!$D$35))=0,OFFSET(P190,,0,1,1)*(E190/OFFSET(E190,,0,1,1)),Q189*(1+D190)) -> 110.8962089 | R190: =IF(MOD(B190,(240/Inputs!$D$35))=0,OFFSET(P190,,0,1,1)*(E190/OFFSET(E190,,0,1,1)),IF(O190=1,R189*(1+D190)*(N190/100),R189*(1+D190))) -> 110.8962089 | S190: =(Q190/P190-1)*Inputs!$D$25 -> -0.01320783792 | T190: =(R190/P190-1)*Inputs!$D$25 -> -0.01320783792 | U190: -0.01320783792 | V190: -0.01320783792 | W190: =IF(MOD(B190,(240/Inputs!$D$35))=0,S190-S189,0) -> 0 | X190: =IF(MOD(B190,(240/Inputs!$D$35))=0,T190-T189,0) -> 0 | Y190: 0 | Z190: =IF(O190=0,0,(N190/100-1)*Inputs!$D$25) -> 0
B191: 183 | C191: 1 | D191: =(1+Inputs!$E$11)^(1/240)-1 -> 0.0001634329919 | E191: 103.0357463 | F191: =(1+Inputs!$E$12)^(1/240)-1 -> 0.0001231692607 | G191: 0.171276479 | H191: -0.5341374431 | I191: =G191*Inputs!$C$16/SQRT(240) -> 0.0007739094425 | J191: 0.001060753645 | K191: =(Inputs!$C$18*G191+((1-Inputs!$C$18^2)^(1/2))*H191)*Inputs!$D$16/SQRT(240) -> -0.0006094238643 | L191: =Inputs!$F$13/240+K191 -> -0.0003177571977 | M191: 106.7170355 | N191: =IF(MOD(B191,(240/Inputs!$D$35))=0,100*(1+Inputs!$C$20*K191),IF(O190=1,100*(1+Inputs!$C$20*L191),N190*(1+Inputs!$C$20*K191))) -> 98.46161897 | O191: =IF((((N191/100-1)*Inputs!$D$25)+1)*100<100*(1-Inputs!$D$45),1,IF((((N191/100-1)*Inputs!$D$25)+1)*100>100*(1+Inputs!$D$45),1,0)) -> 0 | P191: 112.4997206 | Q191: =IF(MOD(B191,(240/Inputs!$D$35))=0,OFFSET(P191,,0,1,1)*(E191/OFFSET(E191,,0,1,1)),Q190*(1+D191)) -> 110.914333 | R191: =IF(MOD(B191,(240/Inputs!$D$35))=0,OFFSET(P191,,0,1,1)*(E191/OFFSET(E191,,0,1,1)),IF(O191=1,R190*(1+D191)*(N191/100),R190*(1+D191))) -> 110.914333 | S191: =(Q191/P191-1)*Inputs!$D$25 -> -0.01409236863 | T191: =(R191/P191-1)*Inputs!$D$25 -> -0.01409236863 | U191: -0.01409236863 | V191: -0.01409236863 | W191: =IF(MOD(B191,(240/Inputs!$D$35))=0,S191-S190,0) -> 0 | X191: =IF(MOD(B191,(240/Inputs!$D$35))=0,T191-T190,0) -> 0 | Y191: 0 | Z191: =IF(O191=0,0,(N191/100-1)*Inputs!$D$25) -> 0
B192: 184 | C192: 1 | D192: =(1+Inputs!$E$11)^(1/240)-1 -> 0.0001634329919 | E192: 103.0525858 | F192: =(1+Inputs!$E$12)^(1/240)-1 -> 0.0001231692607 | G192: 0.7690169556 | H192: -0.1608843152 | I192: =G192*Inputs!$C$16/SQRT(240) -> 0.003474788172 | J192: 0.003762406507 | K192: =(Inputs!$C$18*G192+((1-Inputs!$C$18^2)^(1/2))*H192)*Inputs!$D$16/SQRT(240) -> 0.004817893784 | L192: =Inputs!$F$13/240+K192 -> 0.00510956045 | M192: 107.2623127 | N192: =IF(MOD(B192,(240/Inputs!$D$35))=0,100*(1+Inputs!$C$20*K192),IF(O191=1,100*(1+Inputs!$C$20*L192),N191*(1+Inputs!$C$20*K192))) -> 98.71066722 | O192: =IF((((N192/100-1)*Inputs!$D$25)+1)*100<100*(1-Inputs!$D$45),1,IF((((N192/100-1)*Inputs!$D$25)+1)*100>100*(1+Inputs!$D$45),1,0)) -> 0 | P192: 112.9229902 | Q192: =IF(MOD(B192,(240/Inputs!$D$35))=0,OFFSET(P192,,0,1,1)*(E192/OFFSET(E192,,0,1,1)),Q191*(1+D192)) -> 110.9324601 | R192: =IF(MOD(B192,(240/Inputs!$D$35))=0,OFFSET(P192,,0,1,1)*(E192/OFFSET(E192,,0,1,1)),IF(O192=1,R191*(1+D192)*(N192/100),R191*(1+D192))) -> 110.9324601 | S192: =(Q192/P192-1)*Inputs!$D$25 -> -0.01762732415 | T192: =(R192/P192-1)*Inputs!$D$25 -> -0.01762732415 | U192: -0.01762732415 | V192: -0.01762732415 | W192: =IF(MOD(B192,(240/Inputs!$D$35))=0,S192-S191,0) -> 0 | X192: =IF(MOD(B192,(240/Inputs!$D$35))=0,T192-T191,0) -> 0 | Y192: 0 | Z192: =IF(O192=0,0,(N192/100-1)*Inputs!$D$25) -> 0
B193: 185 | C193: 1 | D193: =(1+Inputs!$E$11)^(1/240)-1 -> 0.0001634329919 | E193: 103.069428 | F193: =(1+Inputs!$E$12)^(1/240)-1 -> 0.0001231692607 | G193: 2.179022752 | H193: 0.8028451802 | I193: =G193*Inputs!$C$16/SQRT(240) -> 0.009845871967 | J193: 0.0101353164 | K193: =(Inputs!$C$18*G193+((1-Inputs!$C$18^2)^(1/2))*H193)*Inputs!$D$16/SQRT(240) -> 0.01790149121 | L193: =Inputs!$F$13/240+K193 -> 0.01819315787 | M193: 109.2137529 | N193: =IF(MOD(B193,(240/Inputs!$D$35))=0,100*(1+Inputs!$C$20*K193),IF(O192=1,100*(1+Inputs!$C$20*L193),N192*(1+Inputs!$C$20*K193))) -> 99.63837799 | O193: =IF((((N193/100-1)*Inputs!$D$25)+1)*100<100*(1-Inputs!$D$45),1,IF((((N193/100-1)*Inputs!$D$25)+1)*100>100*(1+Inputs!$D$45),1,0)) -> 0 | P193: 114.0675005 | Q193: =IF(MOD(B193,(240/Inputs!$D$35))=0,OFFSET(P193,,0,1,1)*(E193/OFFSET(E193,,0,1,1)),Q192*(1+D193)) -> 110.9505901 | R193: =IF(MOD(B193,(240/Inputs!$D$35))=0,OFFSET(P193,,0,1,1)*(E193/OFFSET(E193,,0,1,1)),IF(O193=1,R192*(1+D193)*(N193/100),R192*(1+D193))) -> 110.9505901 | S193: =(Q193/P193-1)*Inputs!$D$25 -> -0.0273251395 | T193: =(R193/P193-1)*Inputs!$D$25 -> -0.0273251395 | U193: -0.0273251395 | V193: -0.0273251395 | W193: =IF(MOD(B193,(240/Inputs!$D$35))=0,S193-S192,0) -> 0 | X193: =IF(MOD(B193,(240/Inputs!$D$35))=0,T193-T192,0) -> 0 | Y193: 0 | Z193: =IF(O193=0,0,(N193/100-1)*Inputs!$D$25) -> 0
B194: 186 | C194: 1 | D194: =(1+Inputs!$E$11)^(1/240)-1 -> 0.0001634329919 | E194: 103.0862729 | F194: =(1+Inputs!$E$12)^(1/240)-1 -> 0.0001231692607 | G194: 0.9923573413 | H194: -0.0165409757 | I194: =G194*Inputs!$C$16/SQRT(240) -> 0.004483947366 | J194: 0.004771854948 | K194: =(Inputs!$C$18*G194+((1-Inputs!$C$18^2)^(1/2))*H194)*Inputs!$D$16/SQRT(240) -> 0.00686224146 | L194: =Inputs!$F$13/240+K194 -> 0.007153908127 | M194: 109.995058 | N194: =IF(MOD(B194,(240/Inputs!$D$35))=0,100*(1+Inputs!$C$20*K194),IF(O193=1,100*(1+Inputs!$C$20*L194),N193*(1+Inputs!$C$20*K194))) -> 99.99734286 | O194: =IF((((N194/100-1)*Inputs!$D$25)+1)*100<100*(1-Inputs!$D$45),1,IF((((N194/100-1)*Inputs!$D$25)+1)*100>100*(1+Inputs!$D$45),1,0)) -> 0 | P194: 114.611814 | Q194: =IF(MOD(B194,(240/Inputs!$D$35))=0,OFFSET(P194,,0,1,1)*(E194/OFFSET(E194,,0,1,1)),Q193*(1+D194)) -> 110.9687231 | R194: =IF(MOD(B194,(240/Inputs!$D$35))=0,OFFSET(P194,,0,1,1)*(E194/OFFSET(E194,,0,1,1)),IF(O194=1,R193*(1+D194)*(N194/100),R193*(1+D194))) -> 110.9687231 | S194: =(Q194/P194-1)*Inputs!$D$25 -> -0.03178634745 | T194: =(R194/P194-1)*Inputs!$D$25 -> -0.03178634745 | U194: -0.03178634745 | V194: -0.03178634745 | W194: =IF(MOD(B194,(240/Inputs!$D$35))=0,S194-S193,0) -> 0 | X194: =IF(MOD(B194,(240/Inputs!$D$35))=0,T194-T193,0) -> 0 | Y194: 0 | Z194: =IF(O194=0,0,(N194/100-1)*Inputs!$D$25) -> 0
B195: 187 | C195: 1 | D195: =(1+Inputs!$E$11)^(1/240)-1 -> 0.0001634329919 | E195: 103.1031206 | F195: =(1+Inputs!$E$12)^(1/240)-1 -> 0.0001231692607 | G195: -1.060595424 | H195: 0.6151876582 | I195: =G195*Inputs!$C$16/SQRT(240) -> -0.004792279818 | J195: -0.004507031011 | K195: =(Inputs!$C$18*G195+((1-Inputs!$C$18^2)^(1/2))*H195)*Inputs!$D$16/SQRT(240) -> -0.005316690551 | L195: =Inputs!$F$13/240+K195 -> -0.005025023884 | M195: 109.4423302 | N195: =IF(MOD(B195,(240/Inputs!$D$35))=0,100*(1+Inputs!$C$20*K195),IF(O194=1,100*(1+Inputs!$C$20*L195),N194*(1+Inputs!$C$20*K195))) -> 99.71822402 | O195: =IF((((N195/100-1)*Inputs!$D$25)+1)*100<100*(1-Inputs!$D$45),1,IF((((N195/100-1)*Inputs!$D$25)+1)*100>100*(1+Inputs!$D$45),1,0)) -> 0 | P195: 114.095255 | Q195: =IF(MOD(B195,(240/Inputs!$D$35))=0,OFFSET(P195,,0,1,1)*(E195/OFFSET(E195,,0,1,1)),Q194*(1+D195)) -> 110.986859 | R195: =IF(MOD(B195,(240/Inputs!$D$35))=0,OFFSET(P195,,0,1,1)*(E195/OFFSET(E195,,0,1,1)),IF(O195=1,R194*(1+D195)*(N195/100),R194*(1+D195))) -> 110.986859 | S195: =(Q195/P195-1)*Inputs!$D$25 -> -0.02724386734 | T195: =(R195/P195-1)*Inputs!$D$25 -> -0.02724386734 | U195: -0.02724386734 | V195: -0.02724386734 | W195: =IF(MOD(B195,(240/Inputs!$D$35))=0,S195-S194,0) -> 0 | X195: =IF(MOD(B195,(240/Inputs!$D$35))=0,T195-T194,0) -> 0 | Y195: 0 | Z195: =IF(O195=0,0,(N195/100-1)*Inputs!$D$25) -> 0
B196: 188 | C196: 1 | D196: =(1+Inputs!$E$11)^(1/240)-1 -> 0.0001634329919 | E196: 103.1199711 | F196: =(1+Inputs!$E$12)^(1/240)-1 -> 0.0001231692607 | G196: 0.9715966472 | H196: -1.452794084 | I196: =G196*Inputs!$C$16/SQRT(240) -> 0.004390140573 | J196: 0.004678021268 | K196: =(Inputs!$C$18*G196+((1-Inputs!$C$18^2)^(1/2))*H196)*Inputs!$D$16/SQRT(240) -> 0.001868162351 | L196: =Inputs!$F$13/240+K196 -> 0.002159829018 | M196: 109.678707 | N196: =IF(MOD(B196,(240/Inputs!$D$35))=0,100*(1+Inputs!$C$20*K196),IF(O195=1,100*(1+Inputs!$C$20*L196),N195*(1+Inputs!$C$20*K196))) -> 99.81602619 | O196: =IF((((N196/100-1)*Inputs!$D$25)+1)*100<100*(1-Inputs!$D$45),1,IF((((N196/100-1)*Inputs!$D$25)+1)*100>100*(1+Inputs!$D$45),1,0)) -> 0 | P196: 114.6289951 | Q196: =IF(MOD(B196,(240/Inputs!$D$35))=0,OFFSET(P196,,0,1,1)*(E196/OFFSET(E196,,0,1,1)),Q195*(1+D196)) -> 111.004998 | R196: =IF(MOD(B196,(240/Inputs!$D$35))=0,OFFSET(P196,,0,1,1)*(E196/OFFSET(E196,,0,1,1)),IF(O196=1,R195*(1+D196)*(N196/100),R195*(1+D196))) -> 111.004998 | S196: =(Q196/P196-1)*Inputs!$D$25 -> -0.03161501246 | T196: =(R196/P196-1)*Inputs!$D$25 -> -0.03161501246 | U196: -0.03161501246 | V196: -0.03161501246 | W196: =IF(MOD(B196,(240/Inputs!$D$35))=0,S196-S195,0) -> 0 | X196: =IF(MOD(B196,(240/Inputs!$D$35))=0,T196-T195,0) -> 0 | Y196: 0 | Z196: =IF(O196=0,0,(N196/100-1)*Inputs!$D$25) -> 0
B197: 189 | C197: 1 | D197: =(1+Inputs!$E$11)^(1/240)-1 -> 0.0001634329919 | E197: 103.1368243 | F197: =(1+Inputs!$E$12)^(1/240)-1 -> 0.0001231692607 | G197: -0.05533335501 | H197: -2.280996559 | I197: =G197*Inputs!$C$16/SQRT(240) -> -0.0002500226895 | J197: 3.652803086e-05 | K197: =(Inputs!$C$18*G197+((1-Inputs!$C$18^2)^(1/2))*H197)*Inputs!$D$16/SQRT(240) -> -0.00808728008 | L197: =Inputs!$F$13/240+K197 -> -0.007795613413 | M197: 108.8236942 | N197: =IF(MOD(B197,(240/Inputs!$D$35))=0,100*(1+Inputs!$C$20*K197),IF(O196=1,100*(1+Inputs!$C$20*L197),N196*(1+Inputs!$C$20*K197))) -> 99.3922251 | O197: =IF((((N197/100-1)*Inputs!$D$25)+1)*100<100*(1-Inputs!$D$45),1,IF((((N197/100-1)*Inputs!$D$25)+1)*100>100*(1+Inputs!$D$45),1,0)) -> 0 | P197: 114.6331822 | Q197: =IF(MOD(B197,(240/Inputs!$D$35))=0,OFFSET(P197,,0,1,1)*(E197/OFFSET(E197,,0,1,1)),Q196*(1+D197)) -> 111.0231398 | R197: =IF(MOD(B197,(240/Inputs!$D$35))=0,OFFSET(P197,,0,1,1)*(E197/OFFSET(E197,,0,1,1)),IF(O197=1,R196*(1+D197)*(N197/100),R196*(1+D197))) -> 111.0231398 | S197: =(Q197/P197-1)*Inputs!$D$25 -> -0.03149212409 | T197: =(R197/P197-1)*Inputs!$D$25 -> -0.03149212409 | U197: -0.03149212409 | V197: -0.03149212409 | W197: =IF(MOD(B197,(240/Inputs!$D$35))=0,S197-S196,0) -> 0 | X197: =IF(MOD(B197,(240/Inputs!$D$35))=0,T197-T196,0) -> 0 | Y197: 0 | Z197: =IF(O197=0,0,(N197/100-1)*Inputs!$D$25) -> 0
B198: 190 | C198: 1 | D198: =(1+Inputs!$E$11)^(1/240)-1 -> 0.0001634329919 | E198: 103.1536802 | F198: =(1+Inputs!$E$12)^(1/240)-1 -> 0.0001231692607 | G198: -0.1832994418 | H198: 0.4262823651 | I198: =G198*Inputs!$C$16/SQRT(240) -> -0.0008282349664 | J198: -0.0005418499746 | K198: =(Inputs!$C$18*G198+((1-Inputs!$C$18^2)^(1/2))*H198)*Inputs!$D$16/SQRT(240) -> 0.0001614466853 | L198: =Inputs!$F$13/240+K198 -> 0.000453113352 | M198: 108.8730036 | N198: =IF(MOD(B198,(240/Inputs!$D$35))=0,100*(1+Inputs!$C$20*K198),IF(O197=1,100*(1+Inputs!$C$20*L198),N197*(1+Inputs!$C$20*K198))) -> 99.40064954 | O198: =IF((((N198/100-1)*Inputs!$D$25)+1)*100<100*(1-Inputs!$D$45),1,IF((((N198/100-1)*Inputs!$D$25)+1)*100>100*(1+Inputs!$D$45),1,0)) -> 0 | P198: 114.5710682 | Q198: =IF(MOD(B198,(240/Inputs!$D$35))=0,OFFSET(P198,,0,1,1)*(E198/OFFSET(E198,,0,1,1)),Q197*(1+D198)) -> 111.0412847 | R198: =IF(MOD(B198,(240/Inputs!$D$35))=0,OFFSET(P198,,0,1,1)*(E198/OFFSET(E198,,0,1,1)),IF(O198=1,R197*(1+D198)*(N198/100),R197*(1+D198))) -> 111.0412847 | S198: =(Q198/P198-1)*Inputs!$D$25 -> -0.03080868166 | T198: =(R198/P198-1)*Inputs!$D$25 -> -0.03080868166 | U198: -0.03080868166 | V198: -0.03080868166 | W198: =IF(MOD(B198,(240/Inputs!$D$35))=0,S198-S197,0) -> 0 | X198: =IF(MOD(B198,(240/Inputs!$D$35))=0,T198-T197,0) -> 0 | Y198: 0 | Z198: =IF(O198=0,0,(N198/100-1)*Inputs!$D$25) -> 0
B199: 191 | C199: 1 | D199: =(1+Inputs!$E$11)^(1/240)-1 -> 0.0001634329919 | E199: 103.1705389 | F199: =(1+Inputs!$E$12)^(1/240)-1 -> 0.0001231692607 | G199: -0.01916085708 | H199: -0.1149883242 | I199: =G199*Inputs!$C$16/SQRT(240) -> -8.657796045e-05 | J199: 0.0002000196069 | K199: =(Inputs!$C$18*G199+((1-Inputs!$C$18^2)^(1/2))*H199)*Inputs!$D$16/SQRT(240) -> -0.0005218226922 | L199: =Inputs!$F$13/240+K199 -> -0.0002301560255 | M199: 108.8479458 | N199: =IF(MOD(B199,(240/Inputs!$D$35))=0,100*(1+Inputs!$C$20*K199),IF(O198=1,100*(1+Inputs!$C$20*L199),N198*(1+Inputs!$C$20*K199))) -> 99.37341804 | O199: =IF((((N199/100-1)*Inputs!$D$25)+1)*100<100*(1-Inputs!$D$45),1,IF((((N199/100-1)*Inputs!$D$25)+1)*100>100*(1+Inputs!$D$45),1,0)) -> 0 | P199: 114.5939847 | Q199: =IF(MOD(B199,(240/Inputs!$D$35))=0,OFFSET(P199,,0,1,1)*(E199/OFFSET(E199,,0,1,1)),Q198*(1+D199)) -> 111.0594325 | R199: =IF(MOD(B199,(240/Inputs!$D$35))=0,OFFSET(P199,,0,1,1)*(E199/OFFSET(E199,,0,1,1)),IF(O199=1,R198*(1+D199)*(N199/100),R198*(1+D199))) -> 111.0594325 | S199: =(Q199/P199-1)*Inputs!$D$25 -> -0.030844134 | T199: =(R199/P199-1)*Inputs!$D$25 -> -0.030844134 | U199: -0.030844134 | V199: -0.030844134 | W199: =IF(MOD(B199,(240/Inputs!$D$35))=0,S199-S198,0) -> 0 | X199: =IF(MOD(B199,(240/Inputs!$D$35))=0,T199-T198,0) -> 0 | Y199: 0 | Z199: =IF(O199=0,0,(N199/100-1)*Inputs!$D$25) -> 0
B200: 192 | C200: 1 | D200: =(1+Inputs!$E$11)^(1/240)-1 -> 0.0001634329919 | E200: 103.1874004 | F200: =(1+Inputs!$E$12)^(1/240)-1 -> 0.0001231692607 | G200: -0.3356696298 | H200: -0.142974745 | I200: =G200*Inputs!$C$16/SQRT(240) -> -0.001516716701 | J200: -0.001230529043 | K200: =(Inputs!$C$18*G200+((1-Inputs!$C$18^2)^(1/2))*H200)*Inputs!$D$16/SQRT(240) -> -0.002822815495 | L200: =Inputs!$F$13/240+K200 -> -0.002531148828 | M200: 108.5724355 | N200: =IF(MOD(B200,(240/Inputs!$D$35))=0,100*(1+Inputs!$C$20*K200),IF(O199=1,100*(1+Inputs!$C$20*L200),N199*(1+Inputs!$C$20*K200))) -> 99.22614881 | O200: =IF((((N200/100-1)*Inputs!$D$25)+1)*100<100*(1-Inputs!$D$45),1,IF((((N200/100-1)*Inputs!$D$25)+1)*100>100*(1+Inputs!$D$45),1,0)) -> 0 | P200: 114.4529735 | Q200: =IF(MOD(B200,(240/Inputs!$D$35))=0,OFFSET(P200,,0,1,1)*(E200/OFFSET(E200,,0,1,1)),Q199*(1+D200)) -> 111.0775833 | R200: =IF(MOD(B200,(240/Inputs!$D$35))=0,OFFSET(P200,,0,1,1)*(E200/OFFSET(E200,,0,1,1)),IF(O200=1,R199*(1+D200)*(N200/100),R199*(1+D200))) -> 111.0775833 | S200: =(Q200/P200-1)*Inputs!$D$25 -> -0.02949150307 | T200: =(R200/P200-1)*Inputs!$D$25 -> -0.02949150307 | U200: -0.02949150307 | V200: -0.02949150307 | W200: =IF(MOD(B200,(240/Inputs!$D$35))=0,S200-S199,0) -> 0 | X200: =IF(MOD(B200,(240/Inputs!$D$35))=0,T200-T199,0) -> 0 | Y200: 0 | Z200: =IF(O200=0,0,(N200/100-1)*Inputs!$D$25) -> 0
B201: 193 | C201: =IF(MOD(B201,$C$6)=0,1,0) -> 1 | D201: =(1+Inputs!$E$11)^(1/240)-1 -> 0.0001634329919 | E201: 103.2042646 | F201: =(1+Inputs!$E$12)^(1/240)-1 -> 0.0001231692607 | G201: -0.02195039731 | H201: 0.2824320176 | I201: =G201*Inputs!$C$16/SQRT(240) -> -9.918244378e-05 | J201: 0.0001874115108 | K201: =(Inputs!$C$18*G201+((1-Inputs!$C$18^2)^(1/2))*H201)*Inputs!$D$16/SQRT(240) -> 0.0008005759035 | L201: =Inputs!$F$13/240+K201 -> 0.00109224257 | M201: 108.6910229 | N201: =IF(MOD(B201,(240/Inputs!$D$35))=0,100*(1+Inputs!$C$20*K201),IF(O200=1,100*(1+Inputs!$C$20*L201),N200*(1+Inputs!$C$20*K201))) -> 99.26785379 | O201: =IF((((N201/100-1)*Inputs!$D$25)+1)*100<100*(1-Inputs!$D$45),1,IF((((N201/100-1)*Inputs!$D$25)+1)*100>100*(1+Inputs!$D$45),1,0)) -> 0 | P201: 114.4744233 | Q201: =IF(MOD(B201,(240/Inputs!$D$35))=0,OFFSET(P201,,0,1,1)*(E201/OFFSET(E201,,0,1,1)),Q200*(1+D201)) -> 111.095737 | R201: =IF(MOD(B201,(240/Inputs!$D$35))=0,OFFSET(P201,,0,1,1)*(E201/OFFSET(E201,,0,1,1)),IF(O201=1,R200*(1+D201)*(N201/100),R200*(1+D201))) -> 111.095737 | S201: =(Q201/P201-1)*Inputs!$D$25 -> -0.02951477006 | T201: =(R201/P201-1)*Inputs!$D$25 -> -0.02951477006 | U201: =C201*S201 -> -0.02951477006 | V201: =C201*T201 -> -0.02951477006 | W201: =IF(MOD(B201,(240/Inputs!$D$35))=0,S201-S200,0) -> 0 | X201: =IF(MOD(B201,(240/Inputs!$D$35))=0,T201-T200,0) -> 0 | Y201: 0 | Z201: =IF(O201=0,0,(N201/100-1)*Inputs!$D$25) -> 0
B202: 194 | C202: 1 | D202: =(1+Inputs!$E$11)^(1/240)-1 -> 0.0001634329919 | E202: =E201*(1+D202) -> 103.2211316 | F202: =(1+Inputs!$E$12)^(1/240)-1 -> 0.0001231692607 | G202: =_xlfn.NORM.S.INV(RAND()) -> 0.379472578 | H202: 0.06258680642 | I202: =G202*Inputs!$C$16/SQRT(240) -> 0.001714639471 | J202: =(1+D202)*(1+F202)*(1+I202)-1 -> 0.002001753307 | K202: =(Inputs!$C$18*G202+((1-Inputs!$C$18^2)^(1/2))*H202)*Inputs!$D$16/SQRT(240) -> 0.002856761135 | L202: =Inputs!$F$13/240+K202 -> 0.003148427802 | M202: =M201*(1+L202) -> 109.0332288 | N202: =IF(MOD(B202,(240/Inputs!$D$35))=0,100*(1+Inputs!$C$20*K202),IF(O201=1,100*(1+Inputs!$C$20*L202),N201*(1+Inputs!$C$20*K202))) -> 99.41673568 | O202: =IF((((N202/100-1)*Inputs!$D$25)+1)*100<100*(1-Inputs!$D$45),1,IF((((N202/100-1)*Inputs!$D$25)+1)*100>100*(1+Inputs!$D$45),1,0)) -> 0 | P202: =P201*(1+J202) -> 114.7035728 | Q202: =IF(MOD(B202,(240/Inputs!$D$35))=0,OFFSET(P202,,0,1,1)*(E202/OFFSET(E202,,0,1,1)),Q201*(1+D202)) -> 111.1138937 | R202: =IF(MOD(B202,(240/Inputs!$D$35))=0,OFFSET(P202,,0,1,1)*(E202/OFFSET(E202,,0,1,1)),IF(O202=1,R201*(1+D202)*(N202/100),R201*(1+D202))) -> 111.1138937 | S202: =(Q202/P202-1)*Inputs!$D$25 -> -0.03129526866 | T202: =(R202/P202-1)*Inputs!$D$25 -> -0.03129526866 | U202: -0.03129526866 | V202: -0.03129526866 | W202: =IF(MOD(B202,(240/Inputs!$D$35))=0,S202-S201,0) -> 0 | X202: =IF(MOD(B202,(240/Inputs!$D$35))=0,T202-T201,0) -> 0 | Y202: =ABS(X202) -> 0 | Z202: =IF(O202=0,0,(N202/100-1)*Inputs!$D$25) -> 0
B203: 195 | C203: 1 | D203: =(1+Inputs!$E$11)^(1/240)-1 -> 0.0001634329919 | E203: 103.2380014 | F203: =(1+Inputs!$E$12)^(1/240)-1 -> 0.0001231692607 | G203: 1.650468343 | H203: -1.04086282 | I203: =G203*Inputs!$C$16/SQRT(240) -> 0.007457609138 | J203: 0.007746369038 | K203: =(Inputs!$C$18*G203+((1-Inputs!$C$18^2)^(1/2))*H203)*Inputs!$D$16/SQRT(240) -> 0.007991668164 | L203: =Inputs!$F$13/240+K203 -> 0.00828333483 | M203: 109.9363875 | N203: =IF(MOD(B203,(240/Inputs!$D$35))=0,100*(1+Inputs!$C$20*K203),IF(O202=1,100*(1+Inputs!$C$20*L203),N202*(1+Inputs!$C$20*K203))) -> 99.8338511 | O203: =IF((((N203/100-1)*Inputs!$D$25)+1)*100<100*(1-Inputs!$D$45),1,IF((((N203/100-1)*Inputs!$D$25)+1)*100>100*(1+Inputs!$D$45),1,0)) -> 0 | P203: 115.592109 | Q203: =IF(MOD(B203,(240/Inputs!$D$35))=0,OFFSET(P203,,0,1,1)*(E203/OFFSET(E203,,0,1,1)),Q202*(1+D203)) -> 111.1320534 | R203: =IF(MOD(B203,(240/Inputs!$D$35))=0,OFFSET(P203,,0,1,1)*(E203/OFFSET(E203,,0,1,1)),IF(O203=1,R202*(1+D203)*(N203/100),R202*(1+D203))) -> 111.1320534 | S203: =(Q203/P203-1)*Inputs!$D$25 -> -0.03858443015 | T203: =(R203/P203-1)*Inputs!$D$25 -> -0.03858443015 | U203: -0.03858443015 | V203: -0.03858443015 | W203: =IF(MOD(B203,(240/Inputs!$D$35))=0,S203-S202,0) -> 0 | X203: =IF(MOD(B203,(240/Inputs!$D$35))=0,T203-T202,0) -> 0 | Y203: 0 | Z203: =IF(O203=0,0,(N203/100-1)*Inputs!$D$25) -> 0
... 45 more rows

Sheet Simulations 1 (hidden)
A1: Simulations (Premium / Discount inc. OoCR) - Do not touch
CY2: =PERCENTILE(B4:CW4,0.5) -> 0.05944452255 | CZ2: >2% | DA2: =COUNTIF($B$4:$CW$4,">2%")/100 -> 1
CY3: =PERCENTILE(B4:CW4,0.9) -> 0.07883204409 | CZ3: >4% | DA3: =COUNTIF($B$4:$CW$4,">4%")/100 -> 0.94
A4: Max(Absolute Value) | B4: =MAX(ABS(B10:B250)) -> 0.06757847327 | C4: =MAX(ABS(C10:C250)) -> 0.0421243567 | D4: =MAX(ABS(D10:D250)) -> 0.06827866974 | E4: =MAX(ABS(E10:E250)) -> 0.06345808521 | F4: =MAX(ABS(F10:F250)) -> 0.06190204285 | G4: =MAX(ABS(G10:G250)) -> 0.04181325557 | H4: =MAX(ABS(H10:H250)) -> 0.03585622187 | I4: =MAX(ABS(I10:I250)) -> 0.05011938657 | J4: =MAX(ABS(J10:J250)) -> 0.05832194821 | K4: =MAX(ABS(K10:K250)) -> 0.06881443934 | L4: =MAX(ABS(L10:L250)) -> 0.07887467134 | M4: =MAX(ABS(M10:M250)) -> 0.05506953804 | N4: =MAX(ABS(N10:N250)) -> 0.04434656899 | O4: =MAX(ABS(O10:O250)) -> 0.06312202517 | P4: =MAX(ABS(P10:P250)) -> 0.0646152841 | Q4: =MAX(ABS(Q10:Q250)) -> 0.05127975171 | R4: =MAX(ABS(R10:R250)) -> 0.05757159858 | S4: =MAX(ABS(S10:S250)) -> 0.0666182455 | T4: =MAX(ABS(T10:T250)) -> 0.04041469736 | U4: =MAX(ABS(U10:U250)) -> 0.04256896004 | V4: =MAX(ABS(V10:V250)) -> 0.06070491779 | W4: =MAX(ABS(W10:W250)) -> 0.05916307752 | X4: =MAX(ABS(X10:X250)) -> 0.08381102316 | Y4: =MAX(ABS(Y10:Y250)) -> 0.08008226235 | Z4: =MAX(ABS(Z10:Z250)) -> 0.04879368303 | AA4: =MAX(ABS(AA10:AA250)) -> 0.06586207645 | AB4: =MAX(ABS(AB10:AB250)) -> 0.05253329268 | AC4: =MAX(ABS(AC10:AC250)) -> 0.06123877119 | AD4: =MAX(ABS(AD10:AD250)) -> 0.06563748201 | AE4: =MAX(ABS(AE10:AE250)) -> 0.05491132969 | AF4: =MAX(ABS(AF10:AF250)) -> 0.0559687011 | AG4: =MAX(ABS(AG10:AG250)) -> 0.07542103932 | AH4: =MAX(ABS(AH10:AH250)) -> 0.07260972847 | AI4: =MAX(ABS(AI10:AI250)) -> 0.06449745 | AJ4: =MAX(ABS(AJ10:AJ250)) -> 0.05175982416 | AK4: =MAX(ABS(AK10:AK250)) -> 0.05436102479 | AL4: =MAX(ABS(AL10:AL250)) -> 0.04853158247 | AM4: =MAX(ABS(AM10:AM250)) -> 0.05873643385 | AN4: =MAX(ABS(AN10:AN250)) -> 0.07277677922 | AO4: =MAX(ABS(AO10:AO250)) -> 0.06620089069 | AP4: =MAX(ABS(AP10:AP250)) -> 0.08329207186 | AQ4: =MAX(ABS(AQ10:AQ250)) -> 0.07380465118 | AR4: =MAX(ABS(AR10:AR250)) -> 0.05669235219 | AS4: =MAX(ABS(AS10:AS250)) -> 0.07613861101 | AT4: =MAX(ABS(AT10:AT250)) -> 0.05238285401 | AU4: =MAX(ABS(AU10:AU250)) -> 0.09377709995 | AV4: =MAX(ABS(AV10:AV250)) -> 0.06175415058 | AW4: =MAX(ABS(AW10:AW250)) -> 0.05232621634 | AX4: =MAX(ABS(AX10:AX250)) -> 0.05857195231 | AY4: =MAX(ABS(AY10:AY250)) -> 0.06611473799 | AZ4: =MAX(ABS(AZ10:AZ250)) -> 0.09119651784 | BA4: =MAX(ABS(BA10:BA250)) -> 0.05492157937 | BB4: =MAX(ABS(BB10:BB250)) -> 0.08074558352 | BC4: =MAX(ABS(BC10:BC250)) -> 0.06328427676 | BD4: =MAX(ABS(BD10:BD250)) -> 0.07348034089 | BE4: =MAX(ABS(BE10:BE250)) -> 0.07126146655 | BF4: =MAX(ABS(BF10:BF250)) -> 0.05242364197 | BG4: =MAX(ABS(BG10:BG250)) -> 0.07577443845 | BH4: =MAX(ABS(BH10:BH250)) -> 0.06776803365 | BI4: =MAX(ABS(BI10:BI250)) -> 0.03420371974 | BJ4: =MAX(ABS(BJ10:BJ250)) -> 0.05500025515 | BK4: =MAX(ABS(BK10:BK250)) -> 0.05926967681 | BL4: =MAX(ABS(BL10:BL250)) -> 0.05362418157 | BM4: =MAX(ABS(BM10:BM250)) -> 0.06925306382 | BN4: =MAX(ABS(BN10:BN250)) -> 0.03999407655 | BO4: =MAX(ABS(BO10:BO250)) -> 0.05698419237 | BP4: =MAX(ABS(BP10:BP250)) -> 0.04888300222 | BQ4: =MAX(ABS(BQ10:BQ250)) -> 0.07405709258 | BR4: =MAX(ABS(BR10:BR250)) -> 0.05670033979 | BS4: =MAX(ABS(BS10:BS250)) -> 0.08001201481 | BT4: =MAX(ABS(BT10:BT250)) -> 0.05961936828 | BU4: =MAX(ABS(BU10:BU250)) -> 0.06705767784 | BV4: =MAX(ABS(BV10:BV250)) -> 0.04818139896 | BW4: =MAX(ABS(BW10:BW250)) -> 0.07699879723 | BX4: =MAX(ABS(BX10:BX250)) -> 0.07260991022 | BY4: =MAX(ABS(BY10:BY250)) -> 0.03441518152 | BZ4: =MAX(ABS(BZ10:BZ250)) -> 0.05826763048 | CA4: =MAX(ABS(CA10:CA250)) -> 0.04837328267 | CB4: =MAX(ABS(CB10:CB250)) -> 0.04832601016 | CC4: =MAX(ABS(CC10:CC250)) -> 0.06849124187 | CD4: =MAX(ABS(CD10:CD250)) -> 0.04959681661 | CE4: =MAX(ABS(CE10:CE250)) -> 0.05140783641 | CF4: =MAX(ABS(CF10:CF250)) -> 0.08568241198 | CG4: =MAX(ABS(CG10:CG250)) -> 0.06975525896 | CH4: =MAX(ABS(CH10:CH250)) -> 0.07895908301 | CI4: =MAX(ABS(CI10:CI250)) -> 0.07312358975 | CJ4: =MAX(ABS(CJ10:CJ250)) -> 0.03755811431 | CK4: =MAX(ABS(CK10:CK250)) -> 0.05178198294 | CL4: =MAX(ABS(CL10:CL250)) -> 0.06408889157 | CM4: =MAX(ABS(CM10:CM250)) -> 0.03617614601 | CN4: =MAX(ABS(CN10:CN250)) -> 0.07882730773 | CO4: =MAX(ABS(CO10:CO250)) -> 0.05344420288 | CP4: =MAX(ABS(CP10:CP250)) -> 0.07603717839 | CQ4: =MAX(ABS(CQ10:CQ250)) -> 0.05178642448 | CR4: =MAX(ABS(CR10:CR250)) -> 0.04328572064 | CS4: =MAX(ABS(CS10:CS250)) -> 0.06258424183 | CT4: =MAX(ABS(CT10:CT250)) -> 0.05701588636 | CU4: =MAX(ABS(CU10:CU250)) -> 0.05899179371 | CV4: =MAX(ABS(CV10:CV250)) -> 0.06798303538 | CW4: =MAX(ABS(CW10:CW250)) -> 0.05558700359 | CY4: =PERCENTILE(B4:CW4,0.99) -> 0.09122232366 | CZ4: >6% | DA4: =COUNTIF($B$4:$CW$4,">6%")/100 -> 0.49
A5: Breach "concerned" level | B5: =IF(B4>Inputs!$H$50,1,0) -> 1 | C5: =IF(C4>Inputs!$H$50,1,0) -> 0 | D5: =IF(D4>Inputs!$H$50,1,0) -> 1 | E5: =IF(E4>Inputs!$H$50,1,0) -> 1 | F5: =IF(F4>Inputs!$H$50,1,0) -> 1 | G5: =IF(G4>Inputs!$H$50,1,0) -> 0 | H5: =IF(H4>Inputs!$H$50,1,0) -> 0 | I5: =IF(I4>Inputs!$H$50,1,0) -> 1 | J5: =IF(J4>Inputs!$H$50,1,0) -> 1 | K5: =IF(K4>Inputs!$H$50,1,0) -> 1 | L5: =IF(L4>Inputs!$H$50,1,0) -> 1 | M5: =IF(M4>Inputs!$H$50,1,0) -> 1 | N5: =IF(N4>Inputs!$H$50,1,0) -> 0 | O5: =IF(O4>Inputs!$H$50,1,0) -> 1 | P5: =IF(P4>Inputs!$H$50,1,0) -> 1 | Q5: =IF(Q4>Inputs!$H$50,1,0) -> 1 | R5: =IF(R4>Inputs!$H$50,1,0) -> 1 | S5: =IF(S4>Inputs!$H$50,1,0) -> 1 | T5: =IF(T4>Inputs!$H$50,1,0) -> 0 | U5: =IF(U4>Inputs!$H$50,1,0) -> 0 | V5: =IF(V4>Inputs!$H$50,1,0) -> 1 | W5: =IF(W4>Inputs!$H$50,1,0) -> 1 | X5: =IF(X4>Inputs!$H$50,1,0) -> 1 | Y5: =IF(Y4>Inputs!$H$50,1,0) -> 1 | Z5: =IF(Z4>Inputs!$H$50,1,0) -> 0 | AA5: =IF(AA4>Inputs!$H$50,1,0) -> 1 | AB5: =IF(AB4>Inputs!$H$50,1,0) -> 1 | AC5: =IF(AC4>Inputs!$H$50,1,0) -> 1 | AD5: =IF(AD4>Inputs!$H$50,1,0) -> 1 | AE5: =IF(AE4>Inputs!$H$50,1,0) -> 1 | AF5: =IF(AF4>Inputs!$H$50,1,0) -> 1 | AG5: =IF(AG4>Inputs!$H$50,1,0) -> 1 | AH5: =IF(AH4>Inputs!$H$50,1,0) -> 1 | AI5: =IF(AI4>Inputs!$H$50,1,0) -> 1 | AJ5: =IF(AJ4>Inputs!$H$50,1,0) -> 1 | AK5: =IF(AK4>Inputs!$H$50,1,0) -> 1 | AL5: =IF(AL4>Inputs!$H$50,1,0) -> 0 | AM5: =IF(AM4>Inputs!$H$50,1,0) -> 1 | AN5: =IF(AN4>Inputs!$H$50,1,0) -> 1 | AO5: =IF(AO4>Inputs!$H$50,1,0) -> 1 | AP5: =IF(AP4>Inputs!$H$50,1,0) -> 1 | AQ5: =IF(AQ4>Inputs!$H$50,1,0) -> 1 | AR5: =IF(AR4>Inputs!$H$50,1,0) -> 1 | AS5: =IF(AS4>Inputs!$H$50,1,0) -> 1 | AT5: =IF(AT4>Inputs!$H$50,1,0) -> 1 | AU5: =IF(AU4>Inputs!$H$50,1,0) -> 1 | AV5: =IF(AV4>Inputs!$H$50,1,0) -> 1 | AW5: =IF(AW4>Inputs!$H$50,1,0) -> 1 | AX5: =IF(AX4>Inputs!$H$50,1,0) -> 1 | AY5: =IF(AY4>Inputs!$H$50,1,0) -> 1 | AZ5: =IF(AZ4>Inputs!$H$50,1,0) -> 1 | BA5: =IF(BA4>Inputs!$H$50,1,0) -> 1 | BB5: =IF(BB4>Inputs!$H$50,1,0) -> 1 | BC5: =IF(BC4>Inputs!$H$50,1,0) -> 1 | BD5: =IF(BD4>Inputs!$H$50,1,0) -> 1 | BE5: =IF(BE4>Inputs!$H$50,1,0) -> 1 | BF5: =IF(BF4>Inputs!$H$50,1,0) -> 1 | BG5: =IF(BG4>Inputs!$H$50,1,0) -> 1 | BH5: =IF(BH4>Inputs!$H$50,1,0) -> 1 | BI5: =IF(BI4>Inputs!$H$50,1,0) -> 0 | BJ5: =IF(BJ4>Inputs!$H$50,1,0) -> 1 | BK5: =IF(BK4>Inputs!$H$50,1,0) -> 1 | BL5: =IF(BL4>Inputs!$H$50,1,0) -> 1 | BM5: =IF(BM4>Inputs!$H$50,1,0) -> 1 | BN5: =IF(BN4>Inputs!$H$50,1,0) -> 0 | BO5: =IF(BO4>Inputs!$H$50,1,0) -> 1 | BP5: =IF(BP4>Inputs!$H$50,1,0) -> 0 | BQ5: =IF(BQ4>Inputs!$H$50,1,0) -> 1 | BR5: =IF(BR4>Inputs!$H$50,1,0) -> 1 | BS5: =IF(BS4>Inputs!$H$50,1,0) -> 1 | BT5: =IF(BT4>Inputs!$H$50,1,0) -> 1 | BU5: =IF(BU4>Inputs!$H$50,1,0) -> 1 | BV5: =IF(BV4>Inputs!$H$50,1,0) -> 0 | BW5: =IF(BW4>Inputs!$H$50,1,0) -> 1 | BX5: =IF(BX4>Inputs!$H$50,1,0) -> 1 | BY5: =IF(BY4>Inputs!$H$50,1,0) -> 0 | BZ5: =IF(BZ4>Inputs!$H$50,1,0) -> 1 | CA5: =IF(CA4>Inputs!$H$50,1,0) -> 0 | CB5: =IF(CB4>Inputs!$H$50,1,0) -> 0 | CC5: =IF(CC4>Inputs!$H$50,1,0) -> 1 | CD5: =IF(CD4>Inputs!$H$50,1,0) -> 0 | CE5: =IF(CE4>Inputs!$H$50,1,0) -> 1 | CF5: =IF(CF4>Inputs!$H$50,1,0) -> 1 | CG5: =IF(CG4>Inputs!$H$50,1,0) -> 1 | CH5: =IF(CH4>Inputs!$H$50,1,0) -> 1 | CI5: =IF(CI4>Inputs!$H$50,1,0) -> 1 | CJ5: =IF(CJ4>Inputs!$H$50,1,0) -> 0 | CK5: =IF(CK4>Inputs!$H$50,1,0) -> 1 | CL5: =IF(CL4>Inputs!$H$50,1,0) -> 1 | CM5: =IF(CM4>Inputs!$H$50,1,0) -> 0 | CN5: =IF(CN4>Inputs!$H$50,1,0) -> 1 | CO5: =IF(CO4>Inputs!$H$50,1,0) -> 1 | CP5: =IF(CP4>Inputs!$H$50,1,0) -> 1 | CQ5: =IF(CQ4>Inputs!$H$50,1,0) -> 1 | CR5: =IF(CR4>Inputs!$H$50,1,0) -> 0 | CS5: =IF(CS4>Inputs!$H$50,1,0) -> 1 | CT5: =IF(CT4>Inputs!$H$50,1,0) -> 1 | CU5: =IF(CU4>Inputs!$H$50,1,0) -> 1 | CV5: =IF(CV4>Inputs!$H$50,1,0) -> 1 | CW5: =IF(CW4>Inputs!$H$50,1,0) -> 1 | CY5: =SUM(B5:CW5) -> 81 | CZ5: >8% | DA5: =COUNTIF($B$4:$CW$4,">8%")/100 -> 0.08
A6: Breach "highly concerned" level | B6: =IF(B4>Inputs!$H$51,1,0) -> 0 | C6: =IF(C4>Inputs!$H$51,1,0) -> 0 | D6: =IF(D4>Inputs!$H$51,1,0) -> 0 | E6: =IF(E4>Inputs!$H$51,1,0) -> 0 | F6: =IF(F4>Inputs!$H$51,1,0) -> 0 | G6: =IF(G4>Inputs!$H$51,1,0) -> 0 | H6: =IF(H4>Inputs!$H$51,1,0) -> 0 | I6: =IF(I4>Inputs!$H$51,1,0) -> 0 | J6: =IF(J4>Inputs!$H$51,1,0) -> 0 | K6: =IF(K4>Inputs!$H$51,1,0) -> 0 | L6: =IF(L4>Inputs!$H$51,1,0) -> 0 | M6: =IF(M4>Inputs!$H$51,1,0) -> 0 | N6: =IF(N4>Inputs!$H$51,1,0) -> 0 | O6: =IF(O4>Inputs!$H$51,1,0) -> 0 | P6: =IF(P4>Inputs!$H$51,1,0) -> 0 | Q6: =IF(Q4>Inputs!$H$51,1,0) -> 0 | R6: =IF(R4>Inputs!$H$51,1,0) -> 0 | S6: =IF(S4>Inputs!$H$51,1,0) -> 0 | T6: =IF(T4>Inputs!$H$51,1,0) -> 0 | U6: =IF(U4>Inputs!$H$51,1,0) -> 0 | V6: =IF(V4>Inputs!$H$51,1,0) -> 0 | W6: =IF(W4>Inputs!$H$51,1,0) -> 0 | X6: =IF(X4>Inputs!$H$51,1,0) -> 0 | Y6: =IF(Y4>Inputs!$H$51,1,0) -> 0 | Z6: =IF(Z4>Inputs!$H$51,1,0) -> 0 | AA6: =IF(AA4>Inputs!$H$51,1,0) -> 0 | AB6: =IF(AB4>Inputs!$H$51,1,0) -> 0 | AC6: =IF(AC4>Inputs!$H$51,1,0) -> 0 | AD6: =IF(AD4>Inputs!$H$51,1,0) -> 0 | AE6: =IF(AE4>Inputs!$H$51,1,0) -> 0 | AF6: =IF(AF4>Inputs!$H$51,1,0) -> 0 | AG6: =IF(AG4>Inputs!$H$51,1,0) -> 0 | AH6: =IF(AH4>Inputs!$H$51,1,0) -> 0 | AI6: =IF(AI4>Inputs!$H$51,1,0) -> 0 | AJ6: =IF(AJ4>Inputs!$H$51,1,0) -> 0 | AK6: =IF(AK4>Inputs!$H$51,1,0) -> 0 | AL6: =IF(AL4>Inputs!$H$51,1,0) -> 0 | AM6: =IF(AM4>Inputs!$H$51,1,0) -> 0 | AN6: =IF(AN4>Inputs!$H$51,1,0) -> 0 | AO6: =IF(AO4>Inputs!$H$51,1,0) -> 0 | AP6: =IF(AP4>Inputs!$H$51,1,0) -> 0 | AQ6: =IF(AQ4>Inputs!$H$51,1,0) -> 0 | AR6: =IF(AR4>Inputs!$H$51,1,0) -> 0 | AS6: =IF(AS4>Inputs!$H$51,1,0) -> 0 | AT6: =IF(AT4>Inputs!$H$51,1,0) -> 0 | AU6: =IF(AU4>Inputs!$H$51,1,0) -> 0 | AV6: =IF(AV4>Inputs!$H$51,1,0) -> 0 | AW6: =IF(AW4>Inputs!$H$51,1,0) -> 0 | AX6: =IF(AX4>Inputs!$H$51,1,0) -> 0 | AY6: =IF(AY4>Inputs!$H$51,1,0) -> 0 | AZ6: =IF(AZ4>Inputs!$H$51,1,0) -> 0 | BA6: =IF(BA4>Inputs!$H$51,1,0) -> 0 | BB6: =IF(BB4>Inputs!$H$51,1,0) -> 0 | BC6: =IF(BC4>Inputs!$H$51,1,0) -> 0 | BD6: =IF(BD4>Inputs!$H$51,1,0) -> 0 | BE6: =IF(BE4>Inputs!$H$51,1,0) -> 0 | BF6: =IF(BF4>Inputs!$H$51,1,0) -> 0 | BG6: =IF(BG4>Inputs!$H$51,1,0) -> 0 | BH6: =IF(BH4>Inputs!$H$51,1,0) -> 0 | BI6: =IF(BI4>Inputs!$H$51,1,0) -> 0 | BJ6: =IF(BJ4>Inputs!$H$51,1,0) -> 0 | BK6: =IF(BK4>Inputs!$H$51,1,0) -> 0 | BL6: =IF(BL4>Inputs!$H$51,1,0) -> 0 | BM6: =IF(BM4>Inputs!$H$51,1,0) -> 0 | BN6: =IF(BN4>Inputs!$H$51,1,0) -> 0 | BO6: =IF(BO4>Inputs!$H$51,1,0) -> 0 | BP6: =IF(BP4>Inputs!$H$51,1,0) -> 0 | BQ6: =IF(BQ4>Inputs!$H$51,1,0) -> 0 | BR6: =IF(BR4>Inputs!$H$51,1,0) -> 0 | BS6: =IF(BS4>Inputs!$H$51,1,0) -> 0 | BT6: =IF(BT4>Inputs!$H$51,1,0) -> 0 | BU6: =IF(BU4>Inputs!$H$51,1,0) -> 0 | BV6: =IF(BV4>Inputs!$H$51,1,0) -> 0 | BW6: =IF(BW4>Inputs!$H$51,1,0) -> 0 | BX6: =IF(BX4>Inputs!$H$51,1,0) -> 0 | BY6: =IF(BY4>Inputs!$H$51,1,0) -> 0 | BZ6: =IF(BZ4>Inputs!$H$51,1,0) -> 0 | CA6: =IF(CA4>Inputs!$H$51,1,0) -> 0 | CB6: =IF(CB4>Inputs!$H$51,1,0) -> 0 | CC6: =IF(CC4>Inputs!$H$51,1,0) -> 0 | CD6: =IF(CD4>Inputs!$H$51,1,0) -> 0 | CE6: =IF(CE4>Inputs!$H$51,1,0) -> 0 | CF6: =IF(CF4>Inputs!$H$51,1,0) -> 0 | CG6: =IF(CG4>Inputs!$H$51,1,0) -> 0 | CH6: =IF(CH4>Inputs!$H$51,1,0) -> 0 | CI6: =IF(CI4>Inputs!$H$51,1,0) -> 0 | CJ6: =IF(CJ4>Inputs!$H$51,1,0) -> 0 | CK6: =IF(CK4>Inputs!$H$51,1,0) -> 0 | CL6: =IF(CL4>Inputs!$H$51,1,0) -> 0 | CM6: =IF(CM4>Inputs!$H$51,1,0) -> 0 | CN6: =IF(CN4>Inputs!$H$51,1,0) -> 0 | CO6: =IF(CO4>Inputs!$H$51,1,0) -> 0 | CP6: =IF(CP4>Inputs!$H$51,1,0) -> 0 | CQ6: =IF(CQ4>Inputs!$H$51,1,0) -> 0 | CR6: =IF(CR4>Inputs!$H$51,1,0) -> 0 | CS6: =IF(CS4>Inputs!$H$51,1,0) -> 0 | CT6: =IF(CT4>Inputs!$H$51,1,0) -> 0 | CU6: =IF(CU4>Inputs!$H$51,1,0) -> 0 | CV6: =IF(CV4>Inputs!$H$51,1,0) -> 0 | CW6: =IF(CW4>Inputs!$H$51,1,0) -> 0 | CY6: =SUM(B6:CW6) -> 0 | CZ6: >10% | DA6: =COUNTIF($B$4:$CW$4,">10%")/100 -> 0
B10: 0 | C10: 0 | D10: 0 | E10: 0 | F10: 0 | G10: 0 | H10: 0 | I10: 0 | J10: 0 | K10: 0 | L10: 0 | M10: 0 | N10: 0 | O10: 0 | P10: 0 | Q10: 0 | R10: 0 | S10: 0 | T10: 0 | U10: 0 | V10: 0 | W10: 0 | X10: 0 | Y10: 0 | Z10: 0 | AA10: 0 | AB10: 0 | AC10: 0 | AD10: 0 | AE10: 0 | AF10: 0 | AG10: 0 | AH10: 0 | AI10: 0 | AJ10: 0 | AK10: 0 | AL10: 0 | AM10: 0 | AN10: 0 | AO10: 0 | AP10: 0 | AQ10: 0 | AR10: 0 | AS10: 0 | AT10: 0 | AU10: 0 | AV10: 0 | AW10: 0 | AX10: 0 | AY10: 0 | AZ10: 0 | BA10: 0 | BB10: 0 | BC10: 0 | BD10: 0 | BE10: 0 | BF10: 0 | BG10: 0 | BH10: 0 | BI10: 0 | BJ10: 0 | BK10: 0 | BL10: 0 | BM10: 0 | BN10: 0 | BO10: 0 | BP10: 0 | BQ10: 0 | BR10: 0 | BS10: 0 | BT10: 0 | BU10: 0 | BV10: 0 | BW10: 0 | BX10: 0 | BY10: 0 | BZ10: 0 | CA10: 0 | CB10: 0 | CC10: 0 | CD10: 0 | CE10: 0 | CF10: 0 | CG10: 0 | CH10: 0 | CI10: 0 | CJ10: 0 | CK10: 0 | CL10: 0 | CM10: 0 | CN10: 0 | CO10: 0 | CP10: 0 | CQ10: 0 | CR10: 0 | CS10: 0 | CT10: 0 | CU10: 0 | CV10: 0 | CW10: 0
B11: 0.006734235824 | C11: -0.006879349927 | D11: 0.0003626143695 | E11: 0.000409744659 | F11: 0.002470909526 | G11: 0.002891502483 | H11: -0.0001882508483 | I11: -0.002880626242 | J11: -0.005536917596 | K11: -0.001269274597 | L11: 0.001682088355 | M11: 0.003798824873 | N11: 0.0009713671205 | O11: -0.002046331728 | P11: -0.005830172964 | Q11: -0.003171940542 | R11: -0.003262769596 | S11: -0.004290881326 | T11: 0.004941130971 | U11: -0.002923211675 | V11: 0.0039234944 | W11: 0.004332725549 | X11: -0.007452719515 | Y11: 0.007753153374 | Z11: -0.0008242596383 | AA11: -0.001325432768 | AB11: 0.0006451491154 | AC11: -0.007090985606 | AD11: -0.001480408886 | AE11: 0.0007339043337 | AF11: 0.002044204905 | AG11: 0.002818926909 | AH11: -0.001056517633 | AI11: -0.003517654745 | AJ11: -0.007112616621 | AK11: 0.002393958052 | AL11: -0.001216901394 | AM11: -0.0009097383424 | AN11: 0.005536838493 | AO11: -0.003516836264 | AP11: -0.002591089804 | AQ11: -0.006334068053 | AR11: -0.003061106913 | AS11: -0.005150459271 | AT11: 0.00563076888 | AU11: 0.002035112677 | AV11: 0.003553333055 | AW11: -0.0008080474178 | AX11: -0.003139000686 | AY11: -0.00212299398 | AZ11: -0.007262963208 | BA11: -0.006610163863 | BB11: -0.005000300307 | BC11: -0.001396366323 | BD11: -0.007028332719 | BE11: 0.005363283716 | BF11: -0.005199049274 | BG11: 0.001154587738 | BH11: -0.008914241159 | BI11: -0.0002643648727 | BJ11: 0.001554508572 | BK11: -0.0001280194246 | BL11: -0.0004554967564 | BM11: 0.004010240946 | BN11: 0.002274990883 | BO11: -0.00113024962 | BP11: 0.0036326436 | BQ11: -0.001098580252 | BR11: -0.0007137461676 | BS11: -0.005398954076 | BT11: -0.001733192746 | BU11: -0.006466861005 | BV11: 0.002821088159 | BW11: 0.007651019639 | BX11: 0.004854034417 | BY11: -0.006418900413 | BZ11: -0.006475021338 | CA11: -0.004558522964 | CB11: -0.009863292664 | CC11: -0.0004462408486 | CD11: 0.006030051012 | CE11: -0.01048479025 | CF11: 0.001318072818 | CG11: 0.008872345575 | CH11: 0.0008910545064 | CI11: 0.003800322268 | CJ11: 0.002054504141 | CK11: -0.0005773408944 | CL11: -0.0002774976842 | CM11: -0.001504046779 | CN11: 0.0009405764497 | CO11: -0.007108110645 | CP11: 0.007331777495 | CQ11: -0.0008059270444 | CR11: -0.003041911975 | CS11: 0.004390046677 | CT11: 0.0006189352559 | CU11: 0.0003804209459 | CV11: -0.005532174523 | CW11: -0.004465587508
B12: 0.01639806028 | C12: -0.006449485713 | D12: 0.0006213207747 | E12: -0.01163185651 | F12: 0.01216505344 | G12: 0.01241761045 | H12: 0.002713222126 | I12: -0.002254123484 | J12: -0.004423261396 | K12: -0.009500312762 | L12: -0.001002960319 | M12: 0.004260877548 | N12: 0.004653464279 | O12: -0.001399208455 | P12: -0.002839726268 | Q12: -0.006484630707 | R12: -0.007164249862 | S12: -0.001234451904 | T12: -0.002832295899 | U12: -0.003993063281 | V12: -0.002286942596 | W12: 0.006858340836 | X12: -0.007827199558 | Y12: 0.01380030114 | Z12: 0.008683292972 | AA12: -0.005273385491 | AB12: 0.001378944233 | AC12: -0.009716317388 | AD12: -0.005720672766 | AE12: 0.007103939272 | AF12: -0.005867517986 | AG12: -0.001602263039 | AH12: -0.001510280864 | AI12: -0.008835823793 | AJ12: -0.0143434082 | AK12: 0.002170698957 | AL12: 0.007842617866 | AM12: -0.00645497669 | AN12: 0.006556478733 | AO12: -0.005125809075 | AP12: -0.004203572631 | AQ12: -0.007289669395 | AR12: 0.01655888957 | AS12: -0.004426490096 | AT12: 0.01232885534 | AU12: -0.0005940725153 | AV12: 0.009478239629 | AW12: 0.002687113602 | AX12: -0.007287754405 | AY12: -0.002498694826 | AZ12: -0.01123293542 | BA12: -0.007618973561 | BB12: -0.005991109907 | BC12: 0.001798214757 | BD12: -0.01199767112 | BE12: 0.001797007128 | BF12: -0.004273406783 | BG12: -0.007489210596 | BH12: 0.0015734489 | BI12: 0.009804191663 | BJ12: 0.004201217076 | BK12: 0.0008676501238 | BL12: -0.004206900267 | BM12: 0.002511003293 | BN12: -0.001327847751 | BO12: -0.003932824944 | BP12: -0.0008044710998 | BQ12: -0.002460955562 | BR12: -0.01148852755 | BS12: -0.0001381918991 | BT12: 0.0005095650937 | BU12: -0.01137416068 | BV12: 0.005010606355 | BW12: 0.001978560224 | BX12: 0.006822439222 | BY12: -0.00506929637 | BZ12: -0.01204575254 | CA12: -0.01417565806 | CB12: -0.008149386929 | CC12: 0.001415618229 | CD12: 0.001954716229 | CE12: -0.01412692294 | CF12: 0.0003796516168 | CG12: 0.003692252122 | CH12: -0.0008161449642 | CI12: 0.00473279772 | CJ12: 0.002518171626 | CK12: -0.005314451308 | CL12: -0.006216988351 | CM12: -0.005642176603 | CN12: -0.002480172253 | CO12: -0.003948731573 | CP12: 0.01100841677 | CQ12: -0.002909623625 | CR12: -0.001865818703 | CS12: 0.003546151516 | CT12: -0.007645083959 | CU12: -0.0009278337169 | CV12: -0.005108590816 | CW12: -0.008094574007
B13: 0.02140798949 | C13: 0.003337557009 | D13: -0.004280729706 | E13: -0.01984301702 | F13: 0.01248989731 | G13: 0.01313562446 | H13: 0.004996356299 | I13: -0.003638021015 | J13: -0.004859192648 | K13: -0.012599677 | L13: -0.002528395028 | M13: 0.009104445517 | N13: 0.002095762904 | O13: -0.001025361636 | P13: -0.006811615714 | Q13: -0.004607054073 | R13: -0.007775225732 | S13: -0.00614129679 | T13: -0.001356043385 | U13: -0.001308169751 | V13: -0.001298932614 | W13: -0.001152201239 | X13: -0.01100192497 | Y13: 0.0215288385 | Z13: 0.008272365444 | AA13: -0.005659093859 | AB13: -0.004227827214 | AC13: -0.007827918493 | AD13: -0.00871503483 | AE13: 0.001857243802 | AF13: -0.008709956978 | AG13: 0.0008611720544 | AH13: -0.004697255901 | AI13: -0.02107895027 | AJ13: -0.01976604739 | AK13: 0.01085239439 | AL13: 0.004071293079 | AM13: -0.01367910887 | AN13: 0.005278916856 | AO13: -0.00175305899 | AP13: -0.01605243538 | AQ13: -0.003713829474 | AR13: 0.01944997956 | AS13: -0.01360181682 | AT13: 0.0175002682 | AU13: -0.004411553906 | AV13: 0.00288317324 | AW13: 0.005741831398 | AX13: -0.005379105977 | AY13: -0.004069069897 | AZ13: -0.007839066128 | BA13: -0.00735844494 | BB13: -0.01098330388 | BC13: 0.0001656958645 | BD13: -0.01673043263 | BE13: 0.006982166025 | BF13: -0.005773370287 | BG13: -0.007230490216 | BH13: 0.007143966691 | BI13: 0.01268490817 | BJ13: 0.003995795344 | BK13: -0.001789178702 | BL13: -0.003663485968 | BM13: -0.001418613382 | BN13: -0.006717106226 | BO13: -0.005021815576 | BP13: -0.004303951651 | BQ13: -0.00623864996 | BR13: -0.01782572327 | BS13: 0.008971208687 | BT13: -0.00234181511 | BU13: -0.01111753316 | BV13: 0.002563238629 | BW13: -0.002970872259 | BX13: -0.001894997209 | BY13: -0.008931003396 | BZ13: -0.008667489168 | CA13: -0.01340256545 | CB13: -0.01250723609 | CC13: 0.007567257245 | CD13: -0.003545233569 | CE13: -0.01948541182 | CF13: -0.002088251141 | CG13: 0.004556334663 | CH13: -0.01021391069 | CI13: 0.006474165428 | CJ13: 0.006872371239 | CK13: -0.007254871225 | CL13: -0.01728777541 | CM13: -0.007580274176 | CN13: -0.006033254514 | CO13: -0.002259709679 | CP13: 0.01584472874 | CQ13: -0.003792176787 | CR13: 0.001959001154 | CS13: 0.006741049301 | CT13: -0.009522451298 | CU13: 0.0009368827703 | CV13: -0.0005325945076 | CW13: 0.001287219737
B14: 0.02158377591 | C14: -0.003347928426 | D14: -0.00905766783 | E14: -0.02533669367 | F14: 0.01351180339 | G14: 0.01313432823 | H14: 0.007345977526 | I14: -0.004118923972 | J14: -0.0003380806986 | K14: -0.01101439199 | L14: -0.01506510609 | M14: 0.01173174567 | N14: 0.00719529197 | O14: 0.002422507344 | P14: -0.003739067169 | Q14: -0.003970980996 | R14: -0.008568903699 | S14: -0.01069556327 | T14: -0.005228767019 | U14: -0.007970529424 | V14: -0.006827134257 | W14: 0.004249602689 | X14: -0.00912727627 | Y14: 0.02556686094 | Z14: 0.01247852847 | AA14: -0.004586639899 | AB14: -0.006308321953 | AC14: -0.00276590839 | AD14: -0.01285737924 | AE14: 0.007562262591 | AF14: -0.002871210136 | AG14: -0.008720535689 | AH14: -0.01481422625 | AI14: -0.01744187942 | AJ14: -0.02021844511 | AK14: 0.0153347957 | AL14: -0.001104632585 | AM14: -0.01220858326 | AN14: 0.004794351252 | AO14: -0.002616418005 | AP14: -0.01834865209 | AQ14: -0.002545889969 | AR14: 0.01317194065 | AS14: -0.01023277593 | AT14: 0.02663278514 | AU14: -0.0009208611864 | AV14: 0.0006771874479 | AW14: -5.032283743e-05 | AX14: -0.00800367814 | AY14: 0.0005157280735 | AZ14: -0.002869012106 | BA14: -0.007986642449 | BB14: -0.01363692872 | BC14: 0.002155808007 | BD14: -0.02489062083 | BE14: 0.009430313739 | BF14: -0.005908886807 | BG14: -0.003112565335 | BH14: 0.005103430834 | BI14: 0.01321613144 | BJ14: 0.0009849953034 | BK14: -0.001785440052 | BL14: -0.006661885826 | BM14: 0.003638614977 | BN14: -0.0142666732 | BO14: -0.002682474333 | BP14: -0.0111618691 | BQ14: -0.00440125274 | BR14: -0.01503995427 | BS14: 0.007975938408 | BT14: 0.002269431324 | BU14: -0.01201550141 | BV14: 0.00874289306 | BW14: 0.003611289639 | BX14: -0.002420435346 | BY14: -0.01274515227 | BZ14: -0.006919753251 | CA14: -0.01564012944 | CB14: -0.009834218584 | CC14: -0.003518207661 | CD14: -0.006549760842 | CE14: -0.02311823047 | CF14: -0.006769207098 | CG14: 0.002372003817 | CH14: -0.01107741773 | CI14: 0.0007519944887 | CJ14: 0.01061903547 | CK14: -0.01055050108 | CL14: -0.01530574241 | CM14: -0.004432142296 | CN14: 0.00174590424 | CO14: 0.003509831843 | CP14: 0.02289484785 | CQ14: -0.004977444809 | CR14: 0.005736368574 | CS14: 0.007771675378 | CT14: -0.007157166019 | CU14: 0.003025617266 | CV14: -0.002761795431 | CW14: 0.0003876600277
B15: 0.02257076892 | C15: -0.001406902543 | D15: -0.01283288434 | E15: -0.01827814704 | F15: 0.006595698078 | G15: 0.00971665016 | H15: 0.0003508367778 | I15: 0.004705261083 | J15: 0.0001655557625 | K15: -0.01462961627 | L15: -0.02173541742 | M15: 0.01039194019 | N15: 0.002085612163 | O15: 0.003811991274 | P15: -0.002420730699 | Q15: -0.0001180468218 | R15: -0.006851546626 | S15: -0.01545722453 | T15: -0.004783519981 | U15: -0.0007430632095 | V15: -0.004502817171 | W15: 0.002786171069 | X15: -0.007154575167 | Y15: 0.03156172923 | Z15: 0.01130738397 | AA15: 0.001229982648 | AB15: -0.003151641301 | AC15: -0.001549100616 | AD15: -0.01862637294 | AE15: 0.009752734224 | AF15: -0.0004821266132 | AG15: -0.009861402472 | AH15: -0.01448889933 | AI15: -0.02016685587 | AJ15: -0.02564608241 | AK15: 0.01093196617 | AL15: -0.004612160854 | AM15: -0.0123281883 | AN15: 0.004855679344 | AO15: -0.01177903411 | AP15: -0.03029522315 | AQ15: -0.003464988795 | AR15: 0.01109833295 | AS15: -0.0121714049 | AT15: 0.02181330958 | AU15: 0.001732110678 | AV15: -0.001786858718 | AW15: 0.003404033756 | AX15: -0.003521811472 | AY15: -0.002866772979 | AZ15: 0.001927229742 | BA15: -0.004240027847 | BB15: -0.01469437545 | BC15: -0.0001537993549 | BD15: -0.02167744683 | BE15: 0.01128633128 | BF15: -0.009517497757 | BG15: -0.003097980882 | BH15: 0.003628438107 | BI15: 0.007902185233 | BJ15: -0.003412990678 | BK15: -0.003232287444 | BL15: -0.01113159026 | BM15: 0.007063294516 | BN15: -0.01725941516 | BO15: -0.009178266493 | BP15: -0.01710731547 | BQ15: -0.004994127982 | BR15: -0.009911446673 | BS15: 0.008870780422 | BT15: 0.005412762542 | BU15: -0.01739080884 | BV15: 0.006525845267 | BW15: 0.006219278512 | BX15: 0.001333017609 | BY15: -0.009753019894 | BZ15: -0.006294911225 | CA15: -0.01199043674 | CB15: -0.01006246961 | CC15: -0.006450748661 | CD15: -0.005727105665 | CE15: -0.02167456219 | CF15: -0.007213298168 | CG15: -0.001588597319 | CH15: -0.007635560509 | CI15: -0.005234376885 | CJ15: 0.007575281576 | CK15: -0.0112339625 | CL15: -0.007718338521 | CM15: -0.008692727495 | CN15: 0.005242238209 | CO15: -0.007246782005 | CP15: 0.01883132049 | CQ15: -0.002719104889 | CR15: 0.003047621124 | CS15: 0.004729943693 | CT15: -0.003223215199 | CU15: -0.004164407842 | CV15: -0.005739600432 | CW15: 0.01085555129
B16: 0.01891956567 | C16: -0.002578667686 | D16: -0.0149467989 | E16: -0.01738985778 | F16: -0.002498409394 | G16: 0.009650810368 | H16: 0.002629506026 | I16: 0.004881533649 | J16: -0.003124748879 | K16: -0.01426061324 | L16: -0.02907726981 | M16: -0.002312305345 | N16: 0.01181435085 | O16: -0.004229468651 | P16: -0.006082810059 | Q16: -0.004961921234 | R16: -0.009323887556 | S16: -0.01890028864 | T16: -0.00702168633 | U16: 0.006859799374 | V16: 0.001475551135 | W16: 0.004590835514 | X16: 0.0002980397098 | Y16: 0.03835158393 | Z16: 0.01296207483 | AA16: -0.0006474523053 | AB16: -0.005110684479 | AC16: -0.003091650177 | AD16: -0.01898809654 | AE16: 0.004668639107 | AF16: 0.002075301235 | AG16: -0.01207093634 | AH16: -0.01571804429 | AI16: -0.01895774822 | AJ16: -0.02667264047 | AK16: 0.01611079607 | AL16: 0.003133441429 | AM16: -0.01536925535 | AN16: 0.00249962245 | AO16: -0.006555466935 | AP16: -0.02559194169 | AQ16: -0.002581121565 | AR16: 0.008022228529 | AS16: -0.009879168496 | AT16: 0.02771205658 | AU16: 0.008013317367 | AV16: 0.0008095565108 | AW16: 0.001751421148 | AX16: 0.0006814563609 | AY16: -0.002142444657 | AZ16: 0.006464231371 | BA16: -0.002584618441 | BB16: -0.007658718043 | BC16: 0.0001818519005 | BD16: -0.02081203146 | BE16: 0.009587283366 | BF16: -0.005809180365 | BG16: -0.009987323595 | BH16: 0.007384010591 | BI16: 0.004918911347 | BJ16: -0.008127922609 | BK16: 0.0007174347071 | BL16: -0.01414273903 | BM16: 0.0009969790645 | BN16: -0.01854586636 | BO16: -0.01088299436 | BP16: -0.01518642613 | BQ16: -0.005755142265 | BR16: -0.003403159371 | BS16: 0.008499143811 | BT16: 0.01217658838 | BU16: -0.01844567018 | BV16: 0.01531196944 | BW16: 0.008604834245 | BX16: -0.00757049881 | BY16: -0.01133356403 | BZ16: -0.01419869639 | CA16: -0.01049889858 | CB16: -0.0130895814 | CC16: -0.01649729448 | CD16: -0.007514843995 | CE16: -0.01924787571 | CF16: -0.01392842377 | CG16: 0.0006608553723 | CH16: -0.01167383327 | CI16: -0.008914455204 | CJ16: 0.007733044845 | CK16: -0.002317277884 | CL16: -0.01401189005 | CM16: -0.007522659565 | CN16: 0.007141720944 | CO16: -0.003342565265 | CP16: 0.02046132675 | CQ16: 0.0004867456884 | CR16: 0.004595789162 | CS16: 0.005063059218 | CT16: -0.002361914501 | CU16: -0.004777288817 | CV16: -0.01300776365 | CW16: 0.0210353489
B17: 0.00988876987 | C17: -0.006983524611 | D17: -0.01748201269 | E17: -0.0191718128 | F17: -0.001950927177 | G17: 0.01454620187 | H17: -0.002876875777 | I17: 0.001289716958 | J17: -0.00286946534 | K17: -0.01169921561 | L17: -0.04186381478 | M17: -0.001905945375 | N17: 0.01357210022 | O17: -0.007361701674 | P17: -0.00304038187 | Q17: -0.004750049904 | R17: -0.006027912881 | S17: -0.01949846566 | T17: -0.01395105789 | U17: 0.01137020254 | V17: 0.002627328787 | W17: 0.01059492159 | X17: 7.082112111e-05 | Y17: 0.04050378926 | Z17: 0.009401274784 | AA17: -0.001232578431 | AB17: -0.01412023723 | AC17: 0.00297074852 | AD17: -0.02043643346 | AE17: -0.001743997268 | AF17: -0.001468935959 | AG17: -0.0116003779 | AH17: -0.01331408662 | AI17: -0.0187385769 | AJ17: -0.02827301248 | AK17: 0.01680120235 | AL17: -0.003341534243 | AM17: -0.006981026567 | AN17: -0.002632083202 | AO17: -0.0005544038819 | AP17: -0.02763220753 | AQ17: -0.004142316047 | AR17: 0.008187289847 | AS17: -0.01442295921 | AT17: 0.03264350956 | AU17: 0.0007466134127 | AV17: -0.00231949801 | AW17: 0.004940930796 | AX17: 0.004542933096 | AY17: -0.001673072158 | AZ17: -0.0007823038807 | BA17: -0.005808874216 | BB17: -0.004533632631 | BC17: 0.0006926914925 | BD17: -0.02655314868 | BE17: 0.001147561962 | BF17: 0.0001356934142 | BG17: -0.01119471723 | BH17: 0.01128068986 | BI17: 0.003317330765 | BJ17: -0.007816934375 | BK17: -0.003555519796 | BL17: -0.01047622907 | BM17: 0.003310887214 | BN17: -0.0204415779 | BO17: -0.009365343386 | BP17: -0.01877040827 | BQ17: -0.01048998556 | BR17: -0.00300356918 | BS17: 0.002881453137 | BT17: 0.02122357999 | BU17: -0.02395135954 | BV17: 0.0180261886 | BW17: 0.006921898139 | BX17: 0.000790017802 | BY17: -0.01500891413 | BZ17: -0.01703008492 | CA17: -0.01209274365 | CB17: -0.01221001002 | CC17: -0.01924019795 | CD17: -0.01106239873 | CE17: -0.02077165229 | CF17: -0.006125079602 | CG17: 0.002986163536 | CH17: -0.01009165082 | CI17: -0.0007280666281 | CJ17: 0.01005870014 | CK17: -0.0027695366 | CL17: -0.01818403728 | CM17: -0.001286446331 | CN17: 0.001159877214 | CO17: -0.0004221883578 | CP17: 0.02547715402 | CQ17: 0.0102212836 | CR17: 0.002022898703 | CS17: 0.005462710224 | CT17: -0.00125759508 | CU17: -0.009919264831 | CV17: -0.0110376887 | CW17: 0.01890854542
B18: 0.01595578733 | C18: -0.004247442079 | D18: -0.01708003886 | E18: -0.01612864738 | F18: 0.0038643386 | G18: 0.01754346293 | H18: -0.001250706363 | I18: -0.003207361953 | J18: -0.003909299337 | K18: -0.002985186835 | L18: -0.04268654094 | M18: 0.001588196272 | N18: 0.009038142161 | O18: -0.002345955208 | P18: -0.004170544817 | Q18: -0.004393767259 | R18: -0.00976444421 | S18: -0.01926695661 | T18: -0.008530656936 | U18: 0.01132494237 | V18: -0.00224155317 | W18: 0.01687193469 | X18: 0.007825996904 | Y18: 0.03608953357 | Z18: 0.00656580256 | AA18: 0.0009629580398 | AB18: -0.01315000657 | AC18: -0.001764889723 | AD18: -0.02244888535 | AE18: 0.004665187321 | AF18: -0.001954326088 | AG18: -0.00481683612 | AH18: -0.01105330367 | AI18: -0.02117664553 | AJ18: -0.01902929091 | AK18: 0.01957207545 | AL18: -0.009420939704 | AM18: -0.0004243732504 | AN18: -0.006866213877 | AO18: 5.359039339e-05 | AP18: -0.02500344552 | AQ18: -0.009768572455 | AR18: 0.007343456562 | AS18: -0.01325881956 | AT18: 0.03321780279 | AU18: 0.02147959961 | AV18: -0.003987096379 | AW18: 0.004013241592 | AX18: 0.007029661987 | AY18: -0.004109132393 | AZ18: -0.009671666878 | BA18: -0.008816520494 | BB18: -0.01167084095 | BC18: -0.003976810951 | BD18: -0.03047324367 | BE18: 0.003182512844 | BF18: 0.0009335427531 | BG18: -0.01191407678 | BH18: 0.00999108324 | BI18: -0.0006391040922 | BJ18: -0.003932216034 | BK18: -0.008472166913 | BL18: -0.008389675018 | BM18: 0.002711210651 | BN18: -0.02286436822 | BO18: -0.01261568773 | BP18: -0.01357582886 | BQ18: -0.006050689849 | BR18: -0.00837533742 | BS18: 0.003731574793 | BT18: 0.02758362737 | BU18: -0.01383141038 | BV18: 0.01622303489 | BW18: 0.007199191172 | BX18: 0.0115609609 | BY18: -0.007897124047 | BZ18: -0.01857872061 | CA18: -0.01757545322 | CB18: -0.01507479477 | CC18: -0.02784366165 | CD18: -0.01036320636 | CE18: -0.03030405132 | CF18: -0.0052641843 | CG18: 0.0005748275576 | CH18: -0.01034280893 | CI18: -0.00236962676 | CJ18: 0.02135869871 | CK18: -0.001900850073 | CL18: -0.02361194261 | CM18: 0.0009420905218 | CN18: -0.001948429927 | CO18: 0.006961847181 | CP18: 0.03314505029 | CQ18: 0.009788958116 | CR18: 0.006049231127 | CS18: 0.006298283973 | CT18: -0.006024459429 | CU18: -0.0076184121 | CV18: -0.01147183934 | CW18: 0.02049807317
B19: 0.01085482615 | C19: -0.005697527041 | D19: -0.02237442177 | E19: -0.00950200134 | F19: 0.006545659646 | G19: 0.01482482814 | H19: -0.002860839458 | I19: -0.008172213663 | J19: -0.0008614914305 | K19: -0.001444323632 | L19: -0.03944044518 | M19: 0.001063762256 | N19: 0.004393493753 | O19: -0.009600323519 | P19: -0.005763373289 | Q19: -0.005647076465 | R19: -0.01278181219 | S19: -0.02062749155 | T19: -0.006544317355 | U19: 0.009527971085 | V19: -0.002351211424 | W19: 0.0071408025 | X19: 0.006239384248 | Y19: 0.04290942196 | Z19: 0.01192274925 | AA19: 0.0007897300648 | AB19: -0.0143147685 | AC19: 0.002230564772 | AD19: -0.02574982567 | AE19: 0.0001895586454 | AF19: -0.004033664711 | AG19: -0.004604967068 | AH19: -0.008349961073 | AI19: -0.01771721228 | AJ19: -0.01214263042 | AK19: 0.02131877643 | AL19: -0.01106766676 | AM19: -0.006834187301 | AN19: -0.009376954234 | AO19: 0.001929960129 | AP19: -0.02431063034 | AQ19: -0.004538375235 | AR19: 0.005250989511 | AS19: -0.009962140862 | AT19: 0.03673153093 | AU19: 0.03059150166 | AV19: -0.004066296591 | AW19: 0.00443448278 | AX19: 0.006095620509 | AY19: -0.009468946271 | AZ19: -0.008308365106 | BA19: -0.01387388798 | BB19: -0.0142370763 | BC19: 0.002036093883 | BD19: -0.02718421746 | BE19: 0.002928095804 | BF19: -0.002917206139 | BG19: -0.00831505815 | BH19: 0.007544476596 | BI19: 0.007838318056 | BJ19: -0.004750157408 | BK19: -0.006887580496 | BL19: -0.01102194512 | BM19: 0.004449442012 | BN19: -0.01679894803 | BO19: -0.01206426065 | BP19: -0.01717089651 | BQ19: -0.008122313361 | BR19: -0.006674728127 | BS19: 0.006002462045 | BT19: 0.02258821887 | BU19: -0.01458843424 | BV19: 0.01254091769 | BW19: 0.008984626759 | BX19: 0.0009427593294 | BY19: -0.01577470325 | BZ19: -0.02430815151 | CA19: -0.01333343674 | CB19: -0.01362255925 | CC19: -0.02282276676 | CD19: -0.007225625092 | CE19: -0.02206574819 | CF19: -0.002011781294 | CG19: 0.004713756792 | CH19: -0.004969573659 | CI19: -0.00533357759 | CJ19: 0.01896087741 | CK19: 0.003060557176 | CL19: -0.01223562905 | CM19: 0.005541491047 | CN19: -0.002119373392 | CO19: -0.001299581122 | CP19: 0.03556352684 | CQ19: 0.009438378875 | CR19: 0.008774313187 | CS19: 0.004324986283 | CT19: -0.005783896629 | CU19: -0.01213980582 | CV19: -0.01044308158 | CW19: 0.01768562717
